Workbook

Sheet START

Sheet Instructions
D2: 2020
X4: Yes
X5: No
W7: Type of Entities Range: | X7: Parent Municipality
X8: Consolidated Information
W17: MTREF Range: | X17: 2008
X18: 2009
X19: 2010
X20: 2011
X21: 2012
X22: 2013
X23: 2014
X24: 2015
X25: 2016
X26: 2017
X27: 2018
X28: 2019
X29: 2020
X30: 2021
X31: 2022
W33: MTREF Linked: | X33: 7
W34: MTREF: | X34: =INDEX(X17:X31,X33,1) -> 2014
W36: Fin Year: | X36: =MTREF&"/"&RIGHT(MTREF,2)+1 -> 2014/15

Sheet Template names (hidden)
A1: Common sheet headings
A2: Head1 | B2: =HLOOKUP(MTREF,Headings,2) -> 2012/13 | C2: Prior year -1
A3: Head1A | B3: =HLOOKUP(MTREF,Headings,3) -> 2011/12 | C3: Prior year -2
A4: Head1B | B4: =HLOOKUP(MTREF,Headings,4) -> 2010/11 | C4: Prior year -3
A5: Head2 | B5: =HLOOKUP(MTREF,Headings,5) -> Current Year 2013/14 | C5: Year in which budget is being prepared
A6: Head2A | B6: =HLOOKUP(MTREF,Headings,6) -> 2013/14 | C6: Year in which budget is being prepared
A7: Head3 | B7: =HLOOKUP(MTREF,Headings,7) -> 2014/15 Medium Term Revenue & Expenditure Framework | C7: MTREF name
A8: Head4 | B8: LTFS | C8: Long term financial strategy
A9: Head5 | B9: Audited Outcome
A10: Head5A | B10: Outcome
A11: Head5B | B11: Pre-audit outcome
A12: Head6 | B12: Original Budget
A13: Head7 | B13: Adjusted Budget
A14: Head8 | B14: Full Year Forecast
A15: Head9 | B15: =HLOOKUP(MTREF,Headings,8) -> Budget Year 2014/15 | C15: 1st year of MTREF | D15: Year1
A16: Head10 | B16: =HLOOKUP(MTREF,Headings,9) -> Budget Year +1 2015/16 | C16: 2nd year of MTREF | D16: Year2
A17: Head11 | B17: =HLOOKUP(MTREF,Headings,10) -> Budget Year +2 2016/17 | C17: 3rd year of MTREF | D17: Year3
A18: Head12 | B18: =HLOOKUP(MTREF,Headings,11) -> Forecast 2017/18 | C18: 1st yr of long term forecast | D18: Year4
A19: Head13 | B19: =HLOOKUP(MTREF,Headings,12) -> Forecast 2018/19 | C19: Next yr of long term forecast | D19: Year5
A20: Head14 | B20: =HLOOKUP(MTREF,Headings,13) -> Forecast 2019/20 | C20: Next yr of long term forecast | D20: Year6
A21: Head15 | B21: =HLOOKUP(MTREF,Headings,14) -> Forecast 2020/21 | C21: Next yr of long term forecast | D21: Year7
A22: Head16 | B22: =HLOOKUP(MTREF,Headings,15) -> Forecast 2021/22 | C22: Next yr of long term forecast | D22: Year8
A23: Head17 | B23: =HLOOKUP(MTREF,Headings,16) -> Forecast 2022/23 | C23: Next yr of long term forecast | D23: Year9
A24: Head18 | B24: =HLOOKUP(MTREF,Headings,17) -> Forecast 2023/24 | C24: Next yr of long term forecast | D24: Year10
A25: Head19 | B25: =HLOOKUP(MTREF,Headings,18) -> Forecast 2024/25 | C25: Next yr of long term forecast | D25: Year11
A26: Head20 | B26: =HLOOKUP(MTREF,Headings,19) -> Forecast 2025/26 | C26: Next yr of long term forecast | D26: Year12
A27: Head21 | B27: =HLOOKUP(MTREF,Headings,20) -> Forecast 2026/27 | C27: Next yr of long term forecast | D27: Year13
A28: Head22 | B28: =HLOOKUP(MTREF,Headings,21) -> Forecast 2027/28 | C28: Next yr of long term forecast | D28: Year14
A29: Head23 | B29: =HLOOKUP(MTREF,Headings,22) -> Forecast 2028/29 | C29: Next yr of long term forecast | D29: Year15
A30: Head24 | B30: Description
A31: Head25
A32: Head26 | B32: Vote Description
A33: Head27 | B33: Ref
A34: Head27a | B34: References
A35: Head28 | B35: Surplus/(Deficit) for the year | D35: Result
A36: Head29 | B36: =HLOOKUP(MTREF,Headings,23) -> Annual target 2014/15
A37: Head30 | B37: =HLOOKUP(MTREF,Headings,24) -> Revised target 2014/15
A38: Head31 | B38: Quarter ended 30 September
A39: Head32 | B39: Quarter ended 31 December
A40: Head33 | B40: Quarter ended 31 March
A41: Head34 | B41: Quarter ended 30 June
A42: Head35 | B42: Variance explanation
A43: Head36 | B43: YTD Actual 31 Dec
A44: Head37 | B44: YTD Budget 31 Dec
A45: Head38 | B45: Monthly actual
A46: Head39 | B46: YTD actual
A47: Head40 | B47: YTD budget
A48: Head41 | B48: YTD variance
A49: Head42 | B49: Surplus/ (Deficit) for the yr/period
A50: Head43 | B50: =Head3&" Summary" -> 2014/15 Medium Term Revenue & Expenditure Framework Summary
A51: Head44 | B51: 2001 Census
A52: Head45 | B52: 2011 Census
A53: Head46 | B53: - Adjustments Budget - January 2007
A54: Head47 | B54: Previous target year to complete
A55: Head48 | B55: Present value
A56: Head49
A57: Head50 | B57: Other Adjusts.
A58: Head51 | B58: Accum. Funds
A59: Head52 | B59: Multi-year capital
A60: Head53 | B60: Unfore. Unavoid.
A61: Head54 | B61: Prior Adjusted
A62: Head55 | B62: Nat. or Prov. Govt
A63: Head56 | B63: Total Adjusts.
A64: SFPerf1 | B64: Budgeted Financial Performance
A65: SFPerf2 | B65: Forecast Financial Performance
A66: SFPos1 | B66: Budgeted Financial Position
A67: SFPos2 | B67: Forecast Financial Position
A68: Cash1 | B68: Budget Cash Flow
A69: Cash2 | B69: Forecast Cash Flow
A70: RandM | B70: Expenditure includes repairs & maintenance of R'000
A71: Depart1 | B71: Department 1 - | D71: DEP1
A72: Depart2 | B72: Department 2 - | D72: DEP2
A73: Depart3 | B73: Department 3 - | D73: DEP3
A74: Depart4 | B74: Department 4 - | D74: DEP4
A75: Depart5 | B75: Department 5 - | D75: DEP5
A76: Depart6 | B76: Department 6 - | D76: DEP6
A77: Depart7 | B77: Department 7 - | D77: DEP7
A78: Depart8 | B78: Department 8 - | D78: DEP8
A79: Depart9 | B79: Department 9 - | D79: DEP9
A80: Depart10 | B80: Department 10 - | D80: DEP10
A81: Depart11 | B81: Department 11 - | D81: DEP11
A82: Depart12 | B82: Department 12 - | D82: DEP12
A83: Depart13 | B83: Department 13 - | D83: DEP13
A84: Depart14 | B84: Department 14 - | D84: DEP14
A87: Base year of forecast column selection names
A88: Choose | B88: ACT
B89: APP
B90: ADJ
A92: Standard nomenclature
A93: Muni | B93: ='Lookup and lists'!B28 -> DC16 Xhariep
A94: Municipal Entities | B94: 2 | C94: Type of report: | D94: 2
A95: =IF((MuniEntities=1)*(MuniType=2),"YES","NO") -> NO | B95: Does this municipality have entities (consolidated budget and entity budgets required)? YES/NO
A96: Entity 1 | B96: (Pty) Ltd Example 1 - Municipal entity - | D96: Ent1
A97: Entity 2 | B97: (Pty) Ltd Example 2 - Municipal entity - | D97: Ent2
A98: Entity 3 | B98: Municipal Entity Example 3 | D98: Ent3
A99: Budget approval tables | C99: Chart x-ref | D99: Sch/Tab/Ch | E99: Alternative for municipalities without entities | F99: Alternative for municipalities without entities
B100: =IF(Consolques="YES",E100,F100) -> Table A1 Budget Summary | D100: Table A1 | E100: =D100&"Consolidated Budget Summary" -> Table A1 Consolidated Budget Summary | F100: =D100&"Budget Summary" -> Table A1 Budget Summary
B101: Table A2 Budgeted Financial Performance (revenue and expenditure by standard classification) | C101: Charts 5, 6 | D101: Table A2 | E101: =D101&"Consolidated Budgeted Financial Performance (revenue and expenditure by standard classification)" -> Table A2 Consolidated Budgeted Financial Performance (revenue and expenditure by standard classification) | F101: =D101&"Budgeted Financial Performance (revenue and expenditure by standard classification)" -> Table A2 Budgeted Financial Performance (revenue and expenditure by standard classification)
B102: Table A3 Budgeted Financial Performance (revenue and expenditure by municipal vote) | D102: Table A3 | E102: =D102&"Consolidated Budgeted Financial Performance (revenue and expenditure by municipal vote)" -> Table A3 Consolidated Budgeted Financial Performance (revenue and expenditure by municipal vote) | F102: =D102&"Budgeted Financial Performance (revenue and expenditure by municipal vote)" -> Table A3 Budgeted Financial Performance (revenue and expenditure by municipal vote)
B103: Table A4 Budgeted Financial Performance (revenue and expenditure) | C103: Charts 1, 2, 3, 4 | D103: Table A4 | E103: =D103&"Consolidated Budgeted Financial Performance (revenue and expenditure)" -> Table A4 Consolidated Budgeted Financial Performance (revenue and expenditure) | F103: =D103&"Budgeted Financial Performance (revenue and expenditure)" -> Table A4 Budgeted Financial Performance (revenue and expenditure)
B104: Table A5 Budgeted Capital Expenditure by vote, standard classification and funding | C104: Charts 7, 8, 9, 10, 20 | D104: Table A5 | E104: =D104&"Consolidated Budgeted Capital Expenditure by vote, standard classification and funding" -> Table A5 Consolidated Budgeted Capital Expenditure by vote, standard classification and funding | F104: =D104&"Budgeted Capital Expenditure by vote, standard classification and funding" -> Table A5 Budgeted Capital Expenditure by vote, standard classification and funding
B105: Table A6 Budgeted Financial Position | D105: Table A6 | E105: =D105&"Consolidated Budgeted Financial Position" -> Table A6 Consolidated Budgeted Financial Position | F105: =D105&"Budgeted Financial Position" -> Table A6 Budgeted Financial Position
B106: Table A7 Budgeted Cash Flows | D106: Table A7 | E106: =D106&"Consolidated Budgeted Cash Flows" -> Table A7 Consolidated Budgeted Cash Flows | F106: =D106&"Budgeted Cash Flows" -> Table A7 Budgeted Cash Flows
B107: Table A8 Cash backed reserves/accumulated surplus reconciliation | D107: Table A8 | E107: =D107&"Consolidated Cash backed reserves/accumulated surplus reconciliation" -> Table A8 Consolidated Cash backed reserves/accumulated surplus reconciliation | F107: =D107&"Cash backed reserves/accumulated surplus reconciliation" -> Table A8 Cash backed reserves/accumulated surplus reconciliation
B108: Table A9 Asset Management | D108: Table A9 | E108: =D108&"Consolidated Asset Management" -> Table A9 Consolidated Asset Management | F108: =D108&"Asset Management" -> Table A9 Asset Management
B109: Table A10 Basic service delivery measurement | D109: Table A10 | E109: =D109&"Consolidated basic service delivery measurement" -> Table A10 Consolidated basic service delivery measurement | F109: =D109&"Basic service delivery measurement" -> Table A10 Basic service delivery measurement
A110: Supportinging Tables to the Budget Approval Tables | C110: =$C$99 -> Chart x-ref | D110: =$D$99 -> Sch/Tab/Ch
A111: Supporting Table SA1 | B111: =A111&" Supportinging detail to 'Budgeted Financial Performance'" -> Supporting Table SA1 Supportinging detail to 'Budgeted Financial Performance'
A112: Supporting Table SA2 | B112: =IF(Consolques="YES",E112,F112) -> Supporting Table SA2 Matrix Financial Performance Budget (revenue source/expenditure type and dept.) | E112: =A112&"Consolidated Matrix Financial Performance Budget (revenue source/expenditure type & dept.)" -> Supporting Table SA2 Consolidated Matrix Financial Performance Budget (revenue source/expenditure type & dept.) | F112: =A112&"Matrix Financial Performance Budget (revenue source/expenditure type and dept.)" -> Supporting Table SA2 Matrix Financial Performance Budget (revenue source/expenditure type and dept.)
A113: Supporting Table SA3 | B113: =A113&"Supportinging detail to 'Budgeted Financial Position'" -> Supporting Table SA3 Supportinging detail to 'Budgeted Financial Position'
A114: Supporting Table SA4 | B114: =A114&"Reconciliation of IDP strategic objectives and budget (revenue)" -> Supporting Table SA4 Reconciliation of IDP strategic objectives and budget (revenue) | C114: Chart 11
A115: Supporting Table SA5 | B115: =A115&"Reconciliation of IDP strategic objectives and budget (operating expenditure)" -> Supporting Table SA5 Reconciliation of IDP strategic objectives and budget (operating expenditure) | C115: Chart 12
A116: Supporting Table SA6 | B116: =A116&"Reconciliation of IDP strategic objectives and budget (capital expenditure)" -> Supporting Table SA6 Reconciliation of IDP strategic objectives and budget (capital expenditure) | C116: Chart 13
A117: Supporting Table SA7 | B117: =A117&" Measureable performance objectives" -> Supporting Table SA7 Measureable performance objectives
A118: Supporting Table SA8 | B118: =A118&" Performance indicators and benchmarks" -> Supporting Table SA8 Performance indicators and benchmarks | C118: Chts 15-19
A119: Supporting Table SA9 | B119: =A119&" Social, economic and demographic statistics and assumptions" -> Supporting Table SA9 Social, economic and demographic statistics and assumptions
A120: Supporting Table SA10 | B120: =A120&" Funding measurement" -> Supporting Table SA10 Funding measurement | C120: Chart 14
A121: Supporting Table SA11 | B121: =A121&" Property rates summary" -> Supporting Table SA11 Property rates summary
A122: Supporting Table SA12a | B122: =A122&" Property rates by category (current year)" -> Supporting Table SA12a Property rates by category (current year)
A123: Supporting Table SA12b | B123: =A123&" Property rates by category (budget year)" -> Supporting Table SA12b Property rates by category (budget year)
A124: Supporting Table SA13a | B124: =A124&" Service Tariffs by category" -> Supporting Table SA13a Service Tariffs by category
A125: Supporting Table SA13b | B125: =A125&" Service Tariffs by category - explanatory" -> Supporting Table SA13b Service Tariffs by category - explanatory
A126: Supporting Table SA14 | B126: =A126&" Household bills" -> Supporting Table SA14 Household bills
A127: Supporting Table SA15 | B127: =A127&" Investment particulars by type" -> Supporting Table SA15 Investment particulars by type
A128: Supporting Table SA16 | B128: =A128&" Investment particulars by maturity" -> Supporting Table SA16 Investment particulars by maturity
A129: Supporting Table SA17 | B129: =A129&" Borrowing" -> Supporting Table SA17 Borrowing
A130: Supporting Table SA18 | B130: =A130&" Transfers and grant receipts" -> Supporting Table SA18 Transfers and grant receipts
A131: Supporting Table SA19 | B131: =A131&" Expenditure on transfers and grant programme" -> Supporting Table SA19 Expenditure on transfers and grant programme
A132: Supporting Table SA20 | B132: =A132&" Reconciliation of transfers, grant receipts and unspent funds" -> Supporting Table SA20 Reconciliation of transfers, grant receipts and unspent funds
A133: Supporting Table SA21 | B133: =A133&" Transfers and grants made by the municipality" -> Supporting Table SA21 Transfers and grants made by the municipality
A134: Supporting Table SA22 | B134: =A134&" Summary councillor and staff benefits" -> Supporting Table SA22 Summary councillor and staff benefits
A135: Supporting Table SA23 | B135: =A135&" Salaries, allowances & benefits (political office bearers/councillors/senior managers)" -> Supporting Table SA23 Salaries, allowances & benefits (political office bearers/councillors/senior managers)
A136: Supporting Table SA24 | B136: =A136&" Summary of personnel numbers" -> Supporting Table SA24 Summary of personnel numbers
A137: Supporting Table SA25 | B137: =IF(Consolques="YES",E137,F137) -> Supporting Table SA25 Budgeted monthly revenue and expenditure | E137: =A137&" Consolidated budgeted monthly revenue and expenditure" -> Supporting Table SA25 Consolidated budgeted monthly revenue and expenditure | F137: =A137&" Budgeted monthly revenue and expenditure" -> Supporting Table SA25 Budgeted monthly revenue and expenditure
A138: Supporting Table SA26 | B138: Supporting Table SA26 Budgeted monthly revenue and expenditure (municipal vote) | E138: =A138&" Consolidated budgeted monthly revenue and expenditure (municipal vote)" -> Supporting Table SA26 Consolidated budgeted monthly revenue and expenditure (municipal vote) | F138: =A138&" Budgeted monthly revenue and expenditure (municipal vote)" -> Supporting Table SA26 Budgeted monthly revenue and expenditure (municipal vote)
A139: Supporting Table SA27 | B139: Supporting Table SA27 Budgeted monthly revenue and expenditure (standard classification) | E139: =A139&" Consolidated budgeted monthly revenue and expenditure (standard classification)" -> Supporting Table SA27 Consolidated budgeted monthly revenue and expenditure (standard classification) | F139: =A139&" Budgeted monthly revenue and expenditure (standard classification)" -> Supporting Table SA27 Budgeted monthly revenue and expenditure (standard classification)
A140: Supporting Table SA28 | B140: Supporting Table SA28 Budgeted monthly capital expenditure (municipal vote) | E140: =A140&" Consolidated budgeted monthly capital expenditure (municipal vote)" -> Supporting Table SA28 Consolidated budgeted monthly capital expenditure (municipal vote) | F140: =A140&" Budgeted monthly capital expenditure (municipal vote)" -> Supporting Table SA28 Budgeted monthly capital expenditure (municipal vote)
A141: Supporting Table SA29 | B141: Supporting Table SA29 Budgeted monthly capital expenditure (standard classification) | E141: =A141&" Consolidated budgeted monthly capital expenditure (standard classification)" -> Supporting Table SA29 Consolidated budgeted monthly capital expenditure (standard classification) | F141: =A141&" Budgeted monthly capital expenditure (standard classification)" -> Supporting Table SA29 Budgeted monthly capital expenditure (standard classification)
A142: Supporting Table SA30 | B142: Supporting Table SA30 Budgeted monthly cash flow | E142: =A142&" Consolidated budgeted monthly cash flow" -> Supporting Table SA30 Consolidated budgeted monthly cash flow | F142: =A142&" Budgeted monthly cash flow" -> Supporting Table SA30 Budgeted monthly cash flow
A143: Supporting Table SA31 | B143: NOT REQUIRED - municipality does not have entities | E143: =A143&" Aggregated entity budget" -> Supporting Table SA31 Aggregated entity budget | F143: NOT REQUIRED - municipality does not have entities
A144: Supporting Table SA32 | B144: =A144&" List of external mechanisms" -> Supporting Table SA32 List of external mechanisms
A145: Supporting Table SA33 | B145: =A145&" Contracts having future budgetary implications" -> Supporting Table SA33 Contracts having future budgetary implications
A146: Supporting Table SA34a | B146: =IF(Consolques="YES",E146,F146) -> Supporting Table SA34a Capital expenditure on new assets by asset class | E146: =A146&" Consolidated capital expenditure on new assets by asset class" -> Supporting Table SA34a Consolidated capital expenditure on new assets by asset class | F146: =A146&" Capital expenditure on new assets by asset class" -> Supporting Table SA34a Capital expenditure on new assets by asset class
A147: Supporting Table SA34b | B147: Supporting Table SA34b Capital expenditure on the renewal of existing assets by asset class | E147: =A147&" Consolidated capital expenditure on existing assets by asset class" -> Supporting Table SA34b Consolidated capital expenditure on existing assets by asset class | F147: =A147&" Capital expenditure on the renewal of existing assets by asset class" -> Supporting Table SA34b Capital expenditure on the renewal of existing assets by asset class
A148: Supporting Table SA34c | B148: Supporting Table SA34c Repairs and maintenance expenditure by asset class | E148: =A148&" Consolidated repairs and maintenance by asset class" -> Supporting Table SA34c Consolidated repairs and maintenance by asset class | F148: =A148&" Repairs and maintenance expenditure by asset class" -> Supporting Table SA34c Repairs and maintenance expenditure by asset class
A149: Supporting Table SA34d | B149: =IF(Consolques="YES",E149,F149) -> Supporting Table SA34d Depreciation by asset class | E149: =A149&" Consolidated Depreciation by asset class" -> Supporting Table SA34d Consolidated Depreciation by asset class | F149: =A149&" Depreciation by asset class" -> Supporting Table SA34d Depreciation by asset class
A150: Supporting Table SA35 | B150: Supporting Table SA35 Future financial implications of the capital budget | E150: =A150&" Consolidated future financial implications of the capital budget" -> Supporting Table SA35 Consolidated future financial implications of the capital budget | F150: =A150& " Future financial implications of the capital budget" -> Supporting Table SA35 Future financial implications of the capital budget
A151: Supporting Table SA36 | B151: Supporting Table SA36 Detailed capital budget | E151: =A151&" Consolidated detailed capital budget" -> Supporting Table SA36 Consolidated detailed capital budget | F151: =A151& " Detailed capital budget" -> Supporting Table SA36 Detailed capital budget
A152: Supporting Table SA37 | B152: Supporting Table SA37 Projects delayed from previous financial year/s | E152: =A152&" Consolidated projects delayed from previous financial year/s" -> Supporting Table SA37 Consolidated projects delayed from previous financial year/s | F152: =A152& " Projects delayed from previous financial year/s" -> Supporting Table SA37 Projects delayed from previous financial year/s
A154: Budget Charts | B154: Charts | C154: Cross reference
A155: Chart A1 | B155: =A155&"Revenue by Municipal Vote" -> Chart A1 Revenue by Municipal Vote
A156: Chart A2 | B156: =A156&"Expenditure by Municipal Vote" -> Chart A2 Expenditure by Municipal Vote
A157: Chart A3 | B157: =A157&"Revenue by Standard Classification" -> Chart A3 Revenue by Standard Classification | C157: A2
A158: Chart A4 | B158: =A158&"Expenditure by Standard Classification" -> Chart A4 Expenditure by Standard Classification | C158: A2
A159: Chart A5 | B159: =A159&"Revenue by Major Source (refer 'Minor' source for 'Other Revenue' allocation" -> Chart A5 Revenue by Major Source (refer 'Minor' source for 'Other Revenue' allocation | C159: A3
A160: Chart A6 | B160: =A160&"Revenue by Minor Source (Other)" -> Chart A6 Revenue by Minor Source (Other) | C160: A3
A161: Chart A7 | B161: =A161&"Expenditure by Major Type" -> Chart A7 Expenditure by Major Type | C161: A3
A162: Chart A8 | B162: =A162&"Expenditure by Minor Type (Other)" -> Chart A8 Expenditure by Minor Type (Other) | C162: A3
A163: Chart A9 | B163: =A163&"Capital Expenditure by Municipal Vote/Appropriation (Major)" -> Chart A9 Capital Expenditure by Municipal Vote/Appropriation (Major) | C163: A5
A164: Chart A10 | B164: =A164&"Capital Expenditure by Municipal Vote/Appropriation (Minor)" -> Chart A10 Capital Expenditure by Municipal Vote/Appropriation (Minor) | C164: A5
A165: Chart A11 | B165: =A164&"Capital Expenditure by Standard Classification" -> Chart A10 Capital Expenditure by Standard Classification | C165: A5
A166: Chart A12 | B166: =A166&"Capital expenditure performance trend" -> Chart A12 Capital expenditure performance trend | C166: A5
A167: Chart A13 | B167: =A167&"Capital funding by Source" -> Chart A13 Capital funding by Source | C167: A5
A168: Chart A14 | B168: =A168&"Cash flow trend" -> Chart A14 Cash flow trend | C168: A7
A169: Chart A15 | B169: =A169&"IDP Strategic Objective - Revenue" -> Chart A15 IDP Strategic Objective - Revenue | C169: Table A4
A170: Chart A16 | B170: =A170&"IDP Strategic Objective - Expenditure" -> Chart A16 IDP Strategic Objective - Expenditure | C170: Table A5
A171: Chart A17 | B171: =A171&"IDP Strategic Objective - Capital Expenditure" -> Chart A17 IDP Strategic Objective - Capital Expenditure | C171: Table A6
A172: Chart A18 | B172: =A172&"Debt (borrowing to Total Revenue)" -> Chart A18 Debt (borrowing to Total Revenue) | C172: Table A8
A173: Chart A19 | B173: =A173&"Debtors' trend analysis" -> Chart A19 Debtors' trend analysis | C173: Table A8
A174: Chart A20 | B174: =A174&"Distribution losses" -> Chart A20 Distribution losses | C174: Table A8
A175: Chart A21 | B175: =A175&"Borrowed funding of capital expenditure" -> Chart A21 Borrowed funding of capital expenditure | C175: Table A8
A176: Chart A22 | B176: =A176&"Expenditure analysis (% of Revenue)" -> Chart A22 Expenditure analysis (% of Revenue) | C176: Table A8
A177: Chart A23 | B177: =A177&"Increases in service charges" -> Chart A23 Increases in service charges | C177: Table A10

Sheet Lookup and lists (hidden)
A1: Description | B1: 2007 | C1: 2008 | D1: 2009 | E1: 2010 | F1: 2011 | G1: 2012 | H1: 2013 | I1: 2014 | J1: 2015 | K1: 2016 | L1: 2017 | M1: 2018 | N1: 2019 | O1: 2020 | Q1: Lists | Y1: Grants: | Z1: National - opex | AA1: Provincial - opex | AB1: National - capex | AC1: Provincial - capex
A2: ='Template names'!C2 -> Prior year -1 | B2: 2005/06 | C2: 2006/07 | D2: 2007/08 | E2: =E1-2&"/"&RIGHT(E1,2)-1 -> 2008/9 | F2: 2009/10 | G2: 2010/11 | H2: 2011/12 | I2: 2012/13 | J2: 2013/14 | K2: 2014/15 | L2: 2015/16 | M2: 2016/17 | N2: 2017/18 | O2: 2018/19 | Q2: Yes | R2: <1 | S2: <4 | T2: Market | U2: Land & impr. | V2: Yes | W2: Uniform | X2: Yrs | Z2: Local Government Equitable Share | AA2: Health subsidy | AB2: Municipal Infrastructure Grant (MIG) | AC2: Agriculture
A3: ='Template names'!C3 -> Prior year -2 | B3: 2004/05 | C3: 2005/06 | D3: 2006/07 | E3: =E1-3&"/"&RIGHT(E1,2)-2 -> 2007/8 | F3: 2008/9 | G3: 2009/10 | H3: 2010/11 | I3: 2011/12 | J3: 2012/13 | K3: 2013/14 | L3: 2014/15 | M3: 2015/16 | N3: 2016/17 | O3: 2017/18 | Q3: No | R3: 1 | S3: 4 | T3: Dep.Replace | U3: Land only | V3: No | W3: Variable | X3: Mths | Z3: RSC Levy Replacement | AA3: Ambulance subsidy | AB3: Public Transport and Systems | AC3: Education
A4: ='Template names'!C4 -> Prior year -3 | B4: 2003/04 | C4: 2004/05 | D4: 2005/06 | E4: =E1-4&"/"&RIGHT(E1,2)-3 -> 2006/7 | F4: 2007/8 | G4: 2008/9 | H4: 2009/10 | I4: 2010/11 | J4: 2011/12 | K4: 2012/13 | L4: 2013/14 | M4: 2014/15 | N4: 2015/16 | O4: 2016/17 | R4: 2 | S4: 5 | T4: Other | U4: Other | Z4: Finance Management | AA4: Housing | AB4: Rural Transport Services and Infrastructure | AC4: Health
A5: ='Template names'!C5 -> Year in which budget is being prepared | B5: Current Year 2006/07 | C5: Current Year 2007/08 | D5: Current Year 2008/09 | E5: ="Current Year "& E1-1&"/"&RIGHT(E1,2) -> Current Year 2009/10 | F5: Current Year 2010/11 | G5: Current Year 2011/12 | H5: Current Year 2012/13 | I5: Current Year 2013/14 | J5: Current Year 2014/15 | K5: Current Year 2015/16 | L5: Current Year 2016/17 | M5: Current Year 2017/18 | N5: Current Year 2018/19 | O5: Current Year 2019/20 | R5: 3 | S5: 6 | Z5: Municipal Systems Improvement | AA5: Sport and Recreation | AB5: Regional Bulk Infrastructure | AC5: Housing and Local Government
A6: ='Template names'!C6 -> Year in which budget is being prepared | B6: 2006/07 | C6: 2007/08 | D6: 2008/09 | E6: =E1-1&"/"&RIGHT(E1,2) -> 2009/10 | F6: 2010/11 | G6: 2011/12 | H6: 2012/13 | I6: 2013/14 | J6: 2014/15 | K6: 2015/16 | L6: 2016/17 | M6: 2017/18 | N6: 2018/19 | O6: 2019/20 | R6: 4 | S6: 6-10 | Z6: Water Services Operating Subsidy | AB6: Rural Households Infrastructure | AC6: Other Departments
A7: ='Template names'!C7 -> MTREF name | B7: 2007/08 Medium Term Revenue & Expenditure Framework | C7: 2008/09 Medium Term Revenue & Expenditure Framework | D7: 2009/10 Medium Term Revenue & Expenditure Framework | E7: =E1&"/"&RIGHT(E1,2)+1&" Medium Term Revenue & Expenditure Framework" -> 2010/11 Medium Term Revenue & Expenditure Framework | F7: 2011/12 Medium Term Revenue & Expenditure Framework | G7: 2012/13 Medium Term Revenue & Expenditure Framework | H7: 2013/14 Medium Term Revenue & Expenditure Framework | I7: 2014/15 Medium Term Revenue & Expenditure Framework | J7: 2015/16 Medium Term Revenue & Expenditure Framework | K7: 2016/17 Medium Term Revenue & Expenditure Framework | L7: 2017/18 Medium Term Revenue & Expenditure Framework | M7: 2018/19 Medium Term Revenue & Expenditure Framework | N7: 2019/20 Medium Term Revenue & Expenditure Framework | O7: 2020/21 Medium Term Revenue & Expenditure Framework | R7: 5 | S7: >10 | Z7: Energy Efficiency and Demand Management | AB7: Neighbourhood Development Partnership | AC7: Public Works, Roads, Transport
A8: ='Template names'!C15 -> 1st year of MTREF | B8: Budget Year 2007/08 | C8: Budget Year 2008/09 | D8: Budget Year 2009/10 | E8: ="Budget Year "&E1&"/"&RIGHT(E1,2)+1 -> Budget Year 2010/11 | F8: Budget Year 2011/12 | G8: Budget Year 2012/13 | H8: Budget Year 2013/14 | I8: Budget Year 2014/15 | J8: Budget Year 2015/16 | K8: Budget Year 2016/17 | L8: Budget Year 2017/18 | M8: Budget Year 2018/19 | N8: Budget Year 2019/20 | O8: Budget Year 2020/21 | R8: >5 | Z8: Integrated National Electrification Programme | AB8: 2010 FIFA World Cup Stadiums Development | AC8: Sport and Recreation
A9: ='Template names'!C16 -> 2nd year of MTREF | B9: Budget Year +1 2008/09 | C9: Budget Year +1 2009/10 | D9: Budget Year +1 2010/11 | E9: ="Budget Year +1 "&E1+1&"/"&RIGHT(E1,2)+2 -> Budget Year +1 2011/12 | F9: Budget Year +1 2012/13 | G9: Budget Year +1 2013/14 | H9: Budget Year +1 2014/15 | I9: Budget Year +1 2015/16 | J9: Budget Year +1 2016/17 | K9: Budget Year +1 2017/18 | L9: Budget Year +1 2018/19 | M9: Budget Year +1 2019/20 | N9: Budget Year +1 2020/21 | O9: Budget Year +1 2021/22 | Z9: Municipal Drought Relief
A10: ='Template names'!C17 -> 3rd year of MTREF | B10: Budget Year +2 2009/10 | C10: Budget Year +2 2010/11 | D10: Budget Year +2 2011/12 | E10: ="Budget Year +2 "&E1+2&"/"&RIGHT(E1,2)+3 -> Budget Year +2 2012/13 | F10: Budget Year +2 2013/14 | G10: Budget Year +2 2014/15 | H10: Budget Year +2 2015/16 | I10: Budget Year +2 2016/17 | J10: Budget Year +2 2017/18 | K10: Budget Year +2 2018/19 | L10: Budget Year +2 2019/20 | M10: Budget Year +2 2020/21 | N10: Budget Year +2 2021/22 | O10: Budget Year +2 2022/23 | Z10: 2010 FIFA World Cup Operating
A11: ='Template names'!C18 -> 1st yr of long term forecast | B11: Forecast 2010/11 | C11: Forecast 2011/12 | D11: Forecast 2012/13 | E11: ="Forecast "&E1+3&"/"&RIGHT(E1,2)+4 -> Forecast 2013/14 | F11: Forecast 2014/15 | G11: Forecast 2015/16 | H11: Forecast 2016/17 | I11: Forecast 2017/18 | J11: Forecast 2018/19 | K11: Forecast 2019/20 | L11: Forecast 2020/21 | M11: Forecast 2021/22 | N11: Forecast 2022/23 | O11: Forecast 2023/24 | Z11: Electricity Demand Side Management
A12: ='Template names'!C19 -> Next yr of long term forecast | B12: Forecast 2011/12 | C12: Forecast 2012/13 | D12: Forecast 2013/14 | E12: ="Forecast "&E1+4&"/"&RIGHT(E1,2)+5 -> Forecast 2014/15 | F12: Forecast 2015/16 | G12: Forecast 2016/17 | H12: Forecast 2017/18 | I12: Forecast 2018/19 | J12: Forecast 2019/20 | K12: Forecast 2020/21 | L12: Forecast 2021/22 | M12: Forecast 2022/23 | N12: Forecast 2023/24 | O12: Forecast 2024/25 | Z12: EPWP Incentive
A13: ='Template names'!C20 -> Next yr of long term forecast | B13: Forecast 2012/13 | C13: Forecast 2013/14 | D13: Forecast 2014/15 | E13: ="Forecast "&E1+5&"/"&RIGHT(E1,2)+6 -> Forecast 2015/16 | F13: Forecast 2016/17 | G13: Forecast 2017/18 | H13: Forecast 2018/19 | I13: Forecast 2019/20 | J13: Forecast 2020/21 | K13: Forecast 2021/22 | L13: Forecast 2022/23 | M13: Forecast 2023/24 | N13: Forecast 2024/25 | O13: Forecast 2025/26
A14: ='Template names'!C21 -> Next yr of long term forecast | B14: Forecast 2013/14 | C14: Forecast 2014/15 | D14: Forecast 2015/16 | E14: ="Forecast "&E1+6&"/"&RIGHT(E1,2)+7 -> Forecast 2016/17 | F14: Forecast 2017/18 | G14: Forecast 2018/19 | H14: Forecast 2019/20 | I14: Forecast 2020/21 | J14: Forecast 2021/22 | K14: Forecast 2022/23 | L14: Forecast 2023/24 | M14: Forecast 2024/25 | N14: Forecast 2025/26 | O14: Forecast 2026/27 | Z14: Asset Class | AA14: Asset sub-class
A15: ='Template names'!C22 -> Next yr of long term forecast | B15: Forecast 2014/15 | C15: Forecast 2015/16 | D15: Forecast 2016/17 | E15: ="Forecast "&E1+7&"/"&RIGHT(E1,2)+8 -> Forecast 2017/18 | F15: Forecast 2018/19 | G15: Forecast 2019/20 | H15: Forecast 2020/21 | I15: Forecast 2021/22 | J15: Forecast 2022/23 | K15: Forecast 2023/24 | L15: Forecast 2024/25 | M15: Forecast 2025/26 | N15: Forecast 2026/27 | O15: Forecast 2027/28
A16: ='Template names'!C23 -> Next yr of long term forecast | B16: Forecast 2015/16 | C16: Forecast 2016/17 | D16: Forecast 2017/18 | E16: ="Forecast "&E1+8&"/"&RIGHT(E1,2)+9 -> Forecast 2018/19 | F16: Forecast 2019/20 | G16: Forecast 2020/21 | H16: Forecast 2021/22 | I16: Forecast 2022/23 | J16: Forecast 2023/24 | K16: Forecast 2024/25 | L16: Forecast 2025/26 | M16: Forecast 2026/27 | N16: Forecast 2027/28 | O16: Forecast 2028/29 | Z16: Infrastructure - Road transport | AA16: Roads, Pavements & Bridges
A17: ='Template names'!C24 -> Next yr of long term forecast | B17: Forecast 2016/17 | C17: Forecast 2017/18 | D17: Forecast 2018/19 | E17: ="Forecast "&E1+9&"/"&RIGHT(E1,2)+10 -> Forecast 2019/20 | F17: Forecast 2020/21 | G17: Forecast 2021/22 | H17: Forecast 2022/23 | I17: Forecast 2023/24 | J17: Forecast 2024/25 | K17: Forecast 2025/26 | L17: Forecast 2026/27 | M17: Forecast 2027/28 | N17: Forecast 2028/29 | O17: Forecast 2029/30 | Z17: Infrastructure - Electricity | AA17: Storm water
A18: ='Template names'!C25 -> Next yr of long term forecast | B18: Forecast 2017/18 | C18: Forecast 2018/19 | D18: Forecast 2019/20 | E18: ="Forecast "&E1+10&"/"&RIGHT(E1,2)+11 -> Forecast 2020/21 | F18: Forecast 2021/22 | G18: Forecast 2022/23 | H18: Forecast 2023/24 | I18: Forecast 2024/25 | J18: Forecast 2025/26 | K18: Forecast 2026/27 | L18: Forecast 2027/28 | M18: Forecast 2028/29 | N18: Forecast 2029/30 | O18: Forecast 2030/31 | Z18: Infrastructure - Water | AA18: Generation
A19: ='Template names'!C26 -> Next yr of long term forecast | B19: Forecast 2018/19 | C19: Forecast 2019/20 | D19: Forecast 2020/21 | E19: ="Forecast "&E1+11&"/"&RIGHT(E1,2)+12 -> Forecast 2021/22 | F19: Forecast 2022/23 | G19: Forecast 2023/24 | H19: Forecast 2024/25 | I19: Forecast 2025/26 | J19: Forecast 2026/27 | K19: Forecast 2027/28 | L19: Forecast 2028/29 | M19: Forecast 2029/30 | N19: Forecast 2030/31 | O19: Forecast 2031/32 | Z19: Infrastructure - Sanitation | AA19: Transmission & Reticulation
A20: ='Template names'!C27 -> Next yr of long term forecast | B20: Forecast 2019/20 | C20: Forecast 2020/21 | D20: Forecast 2021/22 | E20: ="Forecast "&E1+12&"/"&RIGHT(E1,2)+13 -> Forecast 2022/23 | F20: Forecast 2023/24 | G20: Forecast 2024/25 | H20: Forecast 2025/26 | I20: Forecast 2026/27 | J20: Forecast 2027/28 | K20: Forecast 2028/29 | L20: Forecast 2029/30 | M20: Forecast 2030/31 | N20: Forecast 2031/32 | O20: Forecast 2032/33 | Z20: Infrastructure - Other | AA20: Street Lighting
A21: ='Template names'!C28 -> Next yr of long term forecast | B21: Forecast 2020/21 | C21: Forecast 2021/22 | D21: Forecast 2022/23 | E21: ="Forecast "&E1+13&"/"&RIGHT(E1,2)+14 -> Forecast 2023/24 | F21: Forecast 2024/25 | G21: Forecast 2025/26 | H21: Forecast 2026/27 | I21: Forecast 2027/28 | J21: Forecast 2028/29 | K21: Forecast 2029/30 | L21: Forecast 2030/31 | M21: Forecast 2031/32 | N21: Forecast 2032/33 | O21: Forecast 2033/34 | Z21: Community | AA21: Dams & Reservoirs
A22: ='Template names'!C29 -> Next yr of long term forecast | B22: Forecast 2021/22 | C22: Forecast 2022/23 | D22: Forecast 2023/24 | E22: ="Forecast "&E1+14&"/"&RIGHT(E1,2)+15 -> Forecast 2024/25 | F22: Forecast 2025/26 | G22: Forecast 2026/27 | H22: Forecast 2027/28 | I22: Forecast 2028/29 | J22: Forecast 2029/30 | K22: Forecast 2030/31 | L22: Forecast 2031/32 | M22: Forecast 2032/33 | N22: Forecast 2033/34 | O22: Forecast 2034/35 | Z22: Heritage Assets | AA22: Water purification
A23: Adjustments Budget | B23: Annual target 2007/08 | C23: Annual target 2008/09 | D23: Annual target 2009/10 | E23: ="Annual target " & E1&"/"&RIGHT(E1,2)+1 -> Annual target 2010/11 | F23: Annual target 2011/12 | G23: Annual target 2012/13 | H23: Annual target 2013/14 | I23: Annual target 2014/15 | J23: Annual target 2015/16 | K23: Annual target 2016/17 | L23: Annual target 2017/18 | M23: Annual target 2018/19 | N23: Annual target 2019/20 | O23: Annual target 2020/21 | Z23: Investment Properties | AA23: Reticulation
A24: =A23 -> Adjustments Budget | B24: Revised target 2007/08 | C24: Revised target 2008/09 | D24: Revised target 2009/10 | E24: ="Revised target "& E1&"/"&RIGHT(E1,2)+1 -> Revised target 2010/11 | F24: Revised target 2011/12 | G24: Revised target 2012/13 | H24: Revised target 2013/14 | I24: Revised target 2014/15 | J24: Revised target 2015/16 | K24: Revised target 2016/17 | L24: Revised target 2017/18 | M24: Revised target 2018/19 | N24: Revised target 2019/20 | O24: Revised target 2020/21 | Z24: Other Assets | AA24: Sewerage purification
A25: NOTE: This sheet should not be directly amended - select headings from sheet 'S' | Z25: Agricultural assets | AA25: Waste Management
Z26: Biological assets | AA26: Transportation
A27: Name link | B27: 52 | Z27: Intangibles | AA27: Gas
A28: Name of Muni | B28: =INDEX(B29:B307,B27,1) -> DC16 Xhariep | Z28: Other | AA28: Parks & gardens
B29: Choose name from list | C29: Set name on 'Instructions' sheet | AA29: Sportsfields & stadia
B30: BUF Buffalo City | C30: EC EASTERN CAPE | AA30: Swimming pools
B31: NMA Nelson Mandela Bay | C31: EC EASTERN CAPE | AA31: Community halls
B32: EC101 Camdeboo | C32: EC EASTERN CAPE | AA32: Libraries
B33: EC102 Blue Crane Route | C33: EC EASTERN CAPE | AA33: Recreational facilities
B34: EC103 Ikwezi | C34: EC EASTERN CAPE | AA34: Fire, safety & emergency
B35: EC104 Makana | C35: EC EASTERN CAPE | AA35: Security and policing
B36: EC105 Ndlambe | C36: EC EASTERN CAPE | AA36: Buses
B37: EC106 Sundays River Valley | C37: EC EASTERN CAPE | AA37: Clinics
B38: EC107 Baviaans | C38: EC EASTERN CAPE | AA38: Museums & Art Galleries
B39: EC108 Kouga | C39: EC EASTERN CAPE | AA39: Cemeteries
B40: EC109 Kou-Kamma | C40: EC EASTERN CAPE | AA40: Social rental housing
B41: DC10 Cacadu | C41: EC EASTERN CAPE | AA41: Buildings
B42: EC121 Mbhashe | C42: EC EASTERN CAPE | AA42: Housing development
B43: EC122 Mnquma | C43: EC EASTERN CAPE | AA43: General vehicles
B44: EC123 Great Kei | C44: EC EASTERN CAPE | AA44: Specialised vehicles - Refuse
B45: EC124 Amahlathi | C45: EC EASTERN CAPE | AA45: Specialised vehicles - Fire
B46: EC126 Ngqushwa | C46: EC EASTERN CAPE | AA46: Specialised vehicles - Conservancy
B47: EC127 Nkonkobe | C47: EC EASTERN CAPE | AA47: Specialised vehicles - Ambulances
B48: EC128 Nxuba | C48: EC EASTERN CAPE | AA48: Plant & equipment
B49: DC12 Amathole | C49: EC EASTERN CAPE | AA49: Computers - hardware/equipment
B50: EC131 Inxuba Yethemba | C50: EC EASTERN CAPE | AA50: Furniture and other office equipment
B51: EC132 Tsolwana | C51: EC EASTERN CAPE | AA51: Abattoirs
B52: EC133 Inkwanca | C52: EC EASTERN CAPE | AA52: Markets
B53: EC134 Lukhanji | C53: EC EASTERN CAPE | AA53: Civic Land and Buildings
B54: EC135 Intsika Yethu | C54: EC EASTERN CAPE | AA54: Other Buildings
B55: EC136 Emalahleni (EC) | C55: EC EASTERN CAPE | AA55: Other Land
B56: EC137 Engcobo | C56: EC EASTERN CAPE | AA56: Surplus Assets - (Investment or Inventory)
B57: EC138 Sakhisizwe | C57: EC EASTERN CAPE | AA57: Computers - software & programming
B58: DC13 Chris Hani | C58: EC EASTERN CAPE | AA58: Other
B59: EC141 Elundini | C59: EC EASTERN CAPE
B60: EC142 Senqu | C60: EC EASTERN CAPE | Z60: SA16 - Investments
B61: EC143 Maletswai | C61: EC EASTERN CAPE | Z61: Security | AA61: Interest rate
B62: EC144 Gariep | C62: EC EASTERN CAPE | Z62: Yes | AA62: Fixed
B63: DC14 Joe Gqabi | C63: EC EASTERN CAPE | Z63: No | AA63: Variable
B64: EC153 Ngquza Hills | C64: EC EASTERN CAPE
B65: EC154 Port St Johns | C65: EC EASTERN CAPE
B66: EC155 Nyandeni | C66: EC EASTERN CAPE | Z66: SA36, SA37 - Capital projects
B67: EC156 Mhlontlo | C67: EC EASTERN CAPE | Z67: Yes
B68: EC157 King Sabata Dalindyebo | C68: EC EASTERN CAPE | Z68: No
B69: DC15 O .R. Tambo | C69: EC EASTERN CAPE
B70: EC441 Matatiele | C70: EC EASTERN CAPE
B71: EC442 Umzimvubu | C71: EC EASTERN CAPE
B72: EC443 Mbizana | C72: EC EASTERN CAPE
B73: EC444 Ntabankulu | C73: EC EASTERN CAPE
B74: DC44 Alfred Nzo | C74: EC EASTERN CAPE
B75: MAN Mangaung | C75: FS FREE STATE
B76: FS161 Letsemeng | C76: FS FREE STATE
B77: FS162 Kopanong | C77: FS FREE STATE
B78: FS163 Mohokare | C78: FS FREE STATE
B79: FS164 Naledi (Fs) | C79: FS FREE STATE
B80: DC16 Xhariep | C80: FS FREE STATE
B81: FS181 Masilonyana | C81: FS FREE STATE
B82: FS182 Tokologo | C82: FS FREE STATE
B83: FS183 Tswelopele | C83: FS FREE STATE
B84: FS184 Matjhabeng | C84: FS FREE STATE
B85: FS185 Nala | C85: FS FREE STATE
B86: DC18 Lejweleputswa | C86: FS FREE STATE
B87: FS191 Setsoto | C87: FS FREE STATE
B88: FS192 Dihlabeng | C88: FS FREE STATE
B89: FS193 Nketoana | C89: FS FREE STATE
B90: FS194 Maluti-a-Phofung | C90: FS FREE STATE
B91: FS195 Phumelela | C91: FS FREE STATE
B92: FS196 Mantsopa | C92: FS FREE STATE
B93: DC19 Thabo Mofutsanyana | C93: FS FREE STATE
B94: FS201 Moqhaka | C94: FS FREE STATE
B95: FS203 Ngwathe | C95: FS FREE STATE
B96: FS204 Metsimaholo | C96: FS FREE STATE
B97: FS205 Mafube | C97: FS FREE STATE
B98: DC20 Fezile Dabi | C98: FS FREE STATE
B99: EKU Ekurhuleni Metro | C99: GT GAUTENG
B100: JHB City Of Johannesburg | C100: GT GAUTENG
B101: TSH City Of Tshwane | C101: GT GAUTENG
B102: GT421 Emfuleni | C102: GT GAUTENG
B103: GT422 Midvaal | C103: GT GAUTENG
B104: GT423 Lesedi | C104: GT GAUTENG
B105: DC42 Sedibeng | C105: GT GAUTENG
B106: GT481 Mogale City | C106: GT GAUTENG
B107: GT482 Randfontein | C107: GT GAUTENG
B108: GT483 Westonaria | C108: GT GAUTENG
B109: GT484 Merafong City | C109: GT GAUTENG
B110: DC48 West Rand | C110: GT GAUTENG
B111: ETH eThekwini | C111: KZN KWAZULU-NATAL
B112: KZN211 Vulamehlo | C112: KZN KWAZULU-NATAL
B113: KZN212 Umdoni | C113: KZN KWAZULU-NATAL
B114: KZN213 Umzumbe | C114: KZN KWAZULU-NATAL
B115: KZN214 uMuziwabantu | C115: KZN KWAZULU-NATAL
B116: KZN215 Ezinqoleni | C116: KZN KWAZULU-NATAL
B117: KZN216 Hibiscus Coast | C117: KZN KWAZULU-NATAL
B118: DC21 Ugu | C118: KZN KWAZULU-NATAL
B119: KZN221 uMshwathi | C119: KZN KWAZULU-NATAL
B120: KZN222 uMngeni | C120: KZN KWAZULU-NATAL
B121: KZN223 Mpofana | C121: KZN KWAZULU-NATAL
B122: KZN224 Impendle | C122: KZN KWAZULU-NATAL
B123: KZN225 Msunduzi | C123: KZN KWAZULU-NATAL
B124: KZN226 Mkhambathini | C124: KZN KWAZULU-NATAL
B125: KZN227 Richmond | C125: KZN KWAZULU-NATAL
B126: DC22 uMgungundlovu | C126: KZN KWAZULU-NATAL
B127: KZN232 Emnambithi/Ladysmith | C127: KZN KWAZULU-NATAL
B128: KZN233 Indaka | C128: KZN KWAZULU-NATAL
B129: KZN234 Umtshezi | C129: KZN KWAZULU-NATAL
B130: KZN235 Okhahlamba | C130: KZN KWAZULU-NATAL
B131: KZN236 Imbabazane | C131: KZN KWAZULU-NATAL
B132: DC23 Uthukela | C132: KZN KWAZULU-NATAL
B133: KZN241 Endumeni | C133: KZN KWAZULU-NATAL
B134: KZN242 Nquthu | C134: KZN KWAZULU-NATAL
B135: KZN244 Msinga | C135: KZN KWAZULU-NATAL
B136: KZN245 Umvoti | C136: KZN KWAZULU-NATAL
B137: DC24 Umzinyathi | C137: KZN KWAZULU-NATAL
B138: KZN252 Newcastle | C138: KZN KWAZULU-NATAL
B139: KZN253 eMadlangeni | C139: KZN KWAZULU-NATAL
B140: KZN254 Dannhauser | C140: KZN KWAZULU-NATAL
B141: DC25 Amajuba | C141: KZN KWAZULU-NATAL
B142: KZN261 eDumbe | C142: KZN KWAZULU-NATAL
B143: KZN262 uPhongolo | C143: KZN KWAZULU-NATAL
B144: KZN263 Abaqulusi | C144: KZN KWAZULU-NATAL
B145: KZN265 Nongoma | C145: KZN KWAZULU-NATAL
B146: KZN266 Ulundi | C146: KZN KWAZULU-NATAL
B147: DC26 Zululand | C147: KZN KWAZULU-NATAL
B148: KZN271 Umhlabuyalingana | C148: KZN KWAZULU-NATAL
B149: KZN272 Jozini | C149: KZN KWAZULU-NATAL
B150: KZN273 The Big 5 False Bay | C150: KZN KWAZULU-NATAL
B151: KZN274 Hlabisa | C151: KZN KWAZULU-NATAL
B152: KZN275 Mtubatuba | C152: KZN KWAZULU-NATAL
B153: DC27 Umkhanyakude | C153: KZN KWAZULU-NATAL
B154: KZN281 Mfolozi | C154: KZN KWAZULU-NATAL
B155: KZN282 uMhlathuze | C155: KZN KWAZULU-NATAL
B156: KZN283 Ntambanana | C156: KZN KWAZULU-NATAL
B157: KZN284 uMlalazi | C157: KZN KWAZULU-NATAL
B158: KZN285 Mthonjaneni | C158: KZN KWAZULU-NATAL
B159: KZN286 Nkandla | C159: KZN KWAZULU-NATAL
B160: DC28 uThungulu | C160: KZN KWAZULU-NATAL
B161: KZN291 Mandeni | C161: KZN KWAZULU-NATAL
B162: KZN292 KwaDukuza | C162: KZN KWAZULU-NATAL
B163: KZN293 Ndwedwe | C163: KZN KWAZULU-NATAL
B164: KZN294 Maphumulo | C164: KZN KWAZULU-NATAL
B165: DC29 iLembe | C165: KZN KWAZULU-NATAL
B166: KZN431 Ingwe | C166: KZN KWAZULU-NATAL
B167: KZN432 Kwa Sani | C167: KZN KWAZULU-NATAL
B168: KZN433 Greater Kokstad | C168: KZN KWAZULU-NATAL
B169: KZN434 Ubuhlebezwe | C169: KZN KWAZULU-NATAL
B170: KZN435 Umzimkhulu | C170: KZN KWAZULU-NATAL
B171: DC43 Sisonke | C171: KZN KWAZULU-NATAL
B172: LIM331 Greater Giyani | C172: LIM LIMPOPO
B173: LIM332 Greater Letaba | C173: LIM LIMPOPO
B174: LIM333 Greater Tzaneen | C174: LIM LIMPOPO
B175: LIM334 Ba-Phalaborwa | C175: LIM LIMPOPO
B176: LIM335 Maruleng | C176: LIM LIMPOPO
B177: DC33 Mopani | C177: LIM LIMPOPO
B178: LIM341 Musina | C178: LIM LIMPOPO
B179: LIM342 Mutale | C179: LIM LIMPOPO
B180: LIM343 Thulamela | C180: LIM LIMPOPO
B181: LIM344 Makhado | C181: LIM LIMPOPO
B182: DC34 Vhembe | C182: LIM LIMPOPO
B183: LIM351 Blouberg | C183: LIM LIMPOPO
B184: LIM352 Aganang | C184: LIM LIMPOPO
B185: LIM353 Molemole | C185: LIM LIMPOPO
B186: LIM354 Polokwane | C186: LIM LIMPOPO
B187: LIM355 Lepelle-Nkumpi | C187: LIM LIMPOPO
B188: DC35 Capricorn | C188: LIM LIMPOPO
B189: LIM361 Thabazimbi | C189: LIM LIMPOPO
B190: LIM362 Lephalale | C190: LIM LIMPOPO
B191: LIM364 Mookgopong | C191: LIM LIMPOPO
B192: LIM365 Modimolle | C192: LIM LIMPOPO
B193: LIM366 Bela Bela | C193: LIM LIMPOPO
B194: LIM367 Mogalakwena | C194: LIM LIMPOPO
B195: DC36 Waterberg | C195: LIM LIMPOPO
B196: LIM471 Ephraim Mogale | C196: LIM LIMPOPO
B197: LIM472 Elias Motsoaledi | C197: LIM LIMPOPO
B198: LIM473 Makhuduthamaga | C198: LIM LIMPOPO
B199: LIM474 Fetakgomo | C199: LIM LIMPOPO
B200: LIM475 Greater Tubatse | C200: LIM LIMPOPO
... 108 more rows

Sheet Org structure
A1: Organisational Structure Votes | C1: Organisational Structure Sub-Votes | E1: Display Sub-Votes
A2: =B2&" - "&C2 -> Vote 1 - General Council | B2: Vote 1 | C2: General Council | E2: General Council
A3: =B13&" - "& C13 -> Vote 2 - Municipal Manager | B3: 1.1 | C3: Mayor | D3: =CONCATENATE(B3, " - ", C3) -> 1.1 - Mayor | E3: 1.1 - Mayor
A4: =B24&" - "&C24 -> Vote 3 - Budget & Treasury Office | B4: 1.2 | C4: Speaker | D4: 1.2 - Speaker | E4: 1.2 - Speaker
A5: =B35&" - "&C35 -> Vote 4 - Planning & Development | B5: 1.3 | C5: Council | D5: 1.3 - Council | E5: 1.3 - Council
A6: =B46&" - "&C46 -> Vote 5 - Corporate Services | B6: 1.4 | C6: Youth Developmrnt Programmes | D6: 1.4 - Youth Developmrnt Programmes | E6: 1.4 Youth Development Programme
A7: =B57&" - "&C57 -> Vote 6 - [NAME OF VOTE 6] | B7: 1.5 | C7: Special Programmes | D7: 1.5 - Special Programmes | E7: 1.5 Special Programme
A8: =B68&" - "&C68 -> Vote 7 - [NAME OF VOTE 7] | B8: 1.6 | C8: IGR | D8: 1.6 - IGR | E8: 1.6 IGR
A9: =B79&" - "&C79 -> Vote 8 - [NAME OF VOTE 8] | B9: 1.7 | D9: 1.7 -
A10: =B90&" - "&C90 -> Vote 9 - [NAME OF VOTE 9] | B10: 1.8 | D10: 1.8 -
A11: =B101&" - "&C101 -> Vote 10 - [NAME OF VOTE 10] | B11: 1.9 | D11: 1.9 -
A12: =B112&" - "&C112 -> Vote 11 - [NAME OF VOTE 11] | B12: 1.10 | D12: 1.10 -
A13: =B123&" - "&C123 -> Vote 12 - [NAME OF VOTE 12] | B13: Vote 2 | C13: Municipal Manager | E13: Municipal Manager
A14: =B134&" - "&C134 -> Vote 13 - [NAME OF VOTE 13] | B14: 2.1 | C14: Office of the Municipal Manager | D14: =CONCATENATE(B14, " - ", C14) -> 2.1 - Office of the Municipal Manager | E14: 2.1 - Office of the Municipal Manager
A15: =B145&" - "&C145 -> Vote 14 - [NAME OF VOTE 14] | B15: 2.2 | C15: Internal Audit | D15: 2.2 - Internal Audit | E15: 2.2 - Internal Audit
A16: =B156&" - "&C156 -> Vote 15 - [NAME OF VOTE 15] | B16: 2.3 | C16: Performance and Monitoring Management | D16: 2.3 - Performance and Monitoring Management | E16: 2.3 - Performance and Monitoring Management
B17: 2.4 | C17: Risk Office | D17: 2.4 - Risk Office | E17: 2.4 - Risk Office
B18: 2.5 | C18: Disaster management | D18: 2.5 - Disaster management | E18: 2.5 - Disaster management
B19: 2.6 | D19: 2.6 -
B20: 2.7 | D20: 2.7 -
B21: 2.8 | D21: 2.8 -
B22: 2.9 | D22: 2.9 -
B23: 2.10 | D23: 2.10 -
B24: Vote 3 | C24: Budget & Treasury Office | E24: Budget & Treasury Office
B25: 3.1 | C25: Office of the CFO | D25: =CONCATENATE(B25, " - ", C25) -> 3.1 - Office of the CFO | E25: 3.1 - Office of the CFO
B26: 3.2 | C26: Supply Chain Management | D26: 3.2 - Supply Chain Management | E26: 3.2 - Supply Chain Management
B27: 3.3 | C27: Expenditure | D27: 3.3 - Expenditure | E27: 3.3 - Expenditure
B28: 3.4 | C28: Budget & Reporting | D28: 3.4 - Budget & Reporting | E28: 3.4 - Budget & Reporting
B29: 3.5 | C29: FMG Projects | D29: 3.5 - FMG Projects | E29: 3.5 - FMG Projects
B30: 3.6 | D30: 3.6 -
B31: 3.7 | D31: 3.7 -
B32: 3.8 | D32: 3.8 -
B33: 3.9 | D33: 3.9 -
B34: 3.10 | D34: 3.10 -
B35: Vote 4 | C35: Planning & Development | E35: Planning & Development
B36: 4.1 | C36: Office of the Director - Planning and Development | D36: =CONCATENATE(B36, " - ", C36) -> 4.1 - Office of the Director - Planning and Development | E36: 4.1 - Office of the Director - Planning and Development
B37: 4.2 | C37: Economic Development | D37: =CONCATENATE(B37, " - ", C37) -> 4.2 - Economic Development | E37: 4.2 - Economic Development
B38: 4.3 | C38: Development Planning | D38: =CONCATENATE(B38, " - ", C38) -> 4.3 - Development Planning | E38: 4.4 - Development Planning
B39: 4.4 | C39: Municipal Health | D39: =CONCATENATE(B39, " - ", C39) -> 4.4 - Municipal Health | E39: 4.5 - Municipal Health
B40: 4.5 | D40: =CONCATENATE(B40, " - ", C40) -> 4.5 -
B41: 4.6 | D41: 4.6 -
B42: 4.7 | D42: 4.7 -
B43: 4.8 | D43: 4.8 -
B44: 4.9 | D44: 4.9 -
B45: 4.10 | D45: 4.10 -
B46: Vote 5 | C46: Corporate Services | E46: Corporate services
B47: 5.1 | C47: Office of the Director - Corporate Services | D47: =CONCATENATE(B47, " - ", C47) -> 5.1 - Office of the Director - Corporate Services | E47: 5.1 - Office of the Director - Corporate Services
B48: 5.2 | C48: Administration | D48: 5.2 - Administration | E48: 5.2 - Administration
B49: 5.3 | C49: Information Technology | D49: 5.3 - Information Technology | E49: 5.3 - Information Technology
B50: 5.4 | C50: Property Services | D50: 5.4 - Property Services | E50: 5.4 - Property Services
B51: 5.5 | C51: Human Resources | D51: 5.5 - Human Resources | E51: 5.5 - Human Resources
B52: 5.6 | D52: 5.6 -
B53: 5.7 | C53: [Name of sub-vote] | D53: 5.7 - [Name of sub-vote]
B54: 5.8 | C54: [Name of sub-vote] | D54: 5.8 - [Name of sub-vote]
B55: 5.9 | C55: [Name of sub-vote] | D55: 5.9 - [Name of sub-vote]
B56: 5.10 | C56: [Name of sub-vote] | D56: 5.10 - [Name of sub-vote]
B57: Vote 6 | C57: [NAME OF VOTE 6]
B58: 6.1 | C58: [Name of sub-vote] | D58: =CONCATENATE(B58, " - ", C58) -> 6.1 - [Name of sub-vote] | E58: 6.1 - [Name of sub-vote]
B59: 6.2 | C59: [Name of sub-vote] | D59: 6.2 - [Name of sub-vote]
B60: 6.3 | C60: [Name of sub-vote] | D60: 6.3 - [Name of sub-vote]
B61: 6.4 | C61: [Name of sub-vote] | D61: 6.4 - [Name of sub-vote]
B62: 6.5 | C62: [Name of sub-vote] | D62: 6.5 - [Name of sub-vote]
B63: 6.6 | C63: [Name of sub-vote] | D63: 6.6 - [Name of sub-vote]
B64: 6.7 | C64: [Name of sub-vote] | D64: 6.7 - [Name of sub-vote]
B65: 6.8 | C65: [Name of sub-vote] | D65: 6.8 - [Name of sub-vote]
B66: 6.9 | C66: [Name of sub-vote] | D66: 6.9 - [Name of sub-vote]
B67: 6.10 | C67: [Name of sub-vote] | D67: 6.10 - [Name of sub-vote]
B68: Vote 7 | C68: [NAME OF VOTE 7]
B69: 7.1 | C69: [Name of sub-vote] | D69: =CONCATENATE(B69, " - ", C69) -> 7.1 - [Name of sub-vote] | E69: 7.1 - [Name of sub-vote]
B70: 7.2 | C70: [Name of sub-vote] | D70: 7.2 - [Name of sub-vote]
B71: 7.3 | C71: [Name of sub-vote] | D71: 7.3 - [Name of sub-vote]
B72: 7.4 | C72: [Name of sub-vote] | D72: 7.4 - [Name of sub-vote]
B73: 7.5 | C73: [Name of sub-vote] | D73: 7.5 - [Name of sub-vote]
B74: 7.6 | C74: [Name of sub-vote] | D74: 7.6 - [Name of sub-vote]
B75: 7.7 | C75: [Name of sub-vote] | D75: 7.7 - [Name of sub-vote]
B76: 7.8 | C76: [Name of sub-vote] | D76: 7.8 - [Name of sub-vote]
B77: 7.9 | C77: [Name of sub-vote] | D77: 7.9 - [Name of sub-vote]
B78: 7.10 | C78: [Name of sub-vote] | D78: 7.10 - [Name of sub-vote]
B79: Vote 8 | C79: [NAME OF VOTE 8]
B80: 8.1 | C80: [Name of sub-vote] | D80: =CONCATENATE(B80, " - ", C80) -> 8.1 - [Name of sub-vote] | E80: 8.1 - [Name of sub-vote]
B81: 8.2 | C81: [Name of sub-vote] | D81: 8.2 - [Name of sub-vote]
B82: 8.3 | C82: [Name of sub-vote] | D82: 8.3 - [Name of sub-vote]
B83: 8.4 | C83: [Name of sub-vote] | D83: 8.4 - [Name of sub-vote]
B84: 8.5 | C84: [Name of sub-vote] | D84: 8.5 - [Name of sub-vote]
B85: 8.6 | C85: [Name of sub-vote] | D85: 8.6 - [Name of sub-vote]
B86: 8.7 | C86: [Name of sub-vote] | D86: 8.7 - [Name of sub-vote]
B87: 8.8 | C87: [Name of sub-vote] | D87: 8.8 - [Name of sub-vote]
B88: 8.9 | C88: [Name of sub-vote] | D88: 8.9 - [Name of sub-vote]
B89: 8.10 | C89: [Name of sub-vote] | D89: 8.10 - [Name of sub-vote]
B90: Vote 9 | C90: [NAME OF VOTE 9]
B91: 9.1 | C91: [Name of sub-vote] | D91: =CONCATENATE(B91, " - ", C91) -> 9.1 - [Name of sub-vote] | E91: 9.1 - [Name of sub-vote]
B92: 9.2 | C92: [Name of sub-vote] | D92: 9.2 - [Name of sub-vote]
B93: 9.3 | C93: [Name of sub-vote] | D93: 9.3 - [Name of sub-vote]
B94: 9.4 | C94: [Name of sub-vote] | D94: 9.4 - [Name of sub-vote]
B95: 9.5 | C95: [Name of sub-vote] | D95: 9.5 - [Name of sub-vote]
B96: 9.6 | C96: [Name of sub-vote] | D96: 9.6 - [Name of sub-vote]
B97: 9.7 | C97: [Name of sub-vote] | D97: 9.7 - [Name of sub-vote]
B98: 9.8 | C98: [Name of sub-vote] | D98: 9.8 - [Name of sub-vote]
B99: 9.9 | C99: [Name of sub-vote] | D99: 9.9 - [Name of sub-vote]
B100: 9.10 | C100: [Name of sub-vote] | D100: 9.10 - [Name of sub-vote]
B101: Vote 10 | C101: [NAME OF VOTE 10]
B102: 10.1 | C102: [Name of sub-vote] | D102: =CONCATENATE(B102, " - ", C102) -> 10.1 - [Name of sub-vote] | E102: 10.1 - [Name of sub-vote]
B103: 10.2 | C103: [Name of sub-vote] | D103: 10.2 - [Name of sub-vote]
B104: 10.3 | C104: [Name of sub-vote] | D104: 10.3 - [Name of sub-vote]
B105: 10.4 | C105: [Name of sub-vote] | D105: 10.4 - [Name of sub-vote]
B106: 10.5 | C106: [Name of sub-vote] | D106: 10.5 - [Name of sub-vote]
B107: 10.6 | C107: [Name of sub-vote] | D107: 10.6 - [Name of sub-vote]
B108: 10.7 | C108: [Name of sub-vote] | D108: 10.7 - [Name of sub-vote]
B109: 10.8 | C109: [Name of sub-vote] | D109: 10.8 - [Name of sub-vote]
B110: 10.9 | C110: [Name of sub-vote] | D110: 10.9 - [Name of sub-vote]
B111: 10.10 | C111: [Name of sub-vote] | D111: 10.10 - [Name of sub-vote]
B112: Vote 11 | C112: [NAME OF VOTE 11]
B113: 11.1 | C113: [Name of sub-vote] | D113: =CONCATENATE(B113, " - ", C113) -> 11.1 - [Name of sub-vote] | E113: 11.1 - [Name of sub-vote]
B114: 11.2 | C114: [Name of sub-vote] | D114: 11.2 - [Name of sub-vote]
B115: 11.3 | C115: [Name of sub-vote] | D115: 11.3 - [Name of sub-vote]
B116: 11.4 | C116: [Name of sub-vote] | D116: 11.4 - [Name of sub-vote]
B117: 11.5 | C117: [Name of sub-vote] | D117: 11.5 - [Name of sub-vote]
B118: 11.6 | C118: [Name of sub-vote] | D118: 11.6 - [Name of sub-vote]
B119: 11.7 | C119: [Name of sub-vote] | D119: 11.7 - [Name of sub-vote]
B120: 11.8 | C120: [Name of sub-vote] | D120: 11.8 - [Name of sub-vote]
B121: 11.9 | C121: [Name of sub-vote] | D121: 11.9 - [Name of sub-vote]
B122: 11.10 | C122: [Name of sub-vote] | D122: 11.10 - [Name of sub-vote]
B123: Vote 12 | C123: [NAME OF VOTE 12]
B124: 12.1 | C124: [Name of sub-vote] | D124: =CONCATENATE(B124, " - ", C124) -> 12.1 - [Name of sub-vote] | E124: 12.1 - [Name of sub-vote]
B125: 12.2 | C125: [Name of sub-vote] | D125: 12.2 - [Name of sub-vote]
B126: 12.3 | C126: [Name of sub-vote] | D126: 12.3 - [Name of sub-vote]
B127: 12.4 | C127: [Name of sub-vote] | D127: 12.4 - [Name of sub-vote]
B128: 12.5 | C128: [Name of sub-vote] | D128: 12.5 - [Name of sub-vote]
B129: 12.6 | C129: [Name of sub-vote] | D129: 12.6 - [Name of sub-vote]
B130: 12.7 | C130: [Name of sub-vote] | D130: 12.7 - [Name of sub-vote]
B131: 12.8 | C131: [Name of sub-vote] | D131: 12.8 - [Name of sub-vote]
B132: 12.9 | C132: [Name of sub-vote] | D132: 12.9 - [Name of sub-vote]
B133: 12.10 | C133: [Name of sub-vote] | D133: 12.10 - [Name of sub-vote]
B134: Vote 13 | C134: [NAME OF VOTE 13]
B135: 13.1 | C135: [Name of sub-vote] | D135: =CONCATENATE(B135, " - ", C135) -> 13.1 - [Name of sub-vote] | E135: 13.1 - [Name of sub-vote]
B136: 13.2 | C136: [Name of sub-vote] | D136: 13.2 - [Name of sub-vote]
B137: 13.3 | C137: [Name of sub-vote] | D137: 13.3 - [Name of sub-vote]
B138: 13.4 | C138: [Name of sub-vote] | D138: 13.4 - [Name of sub-vote]
B139: 13.5 | C139: [Name of sub-vote] | D139: 13.5 - [Name of sub-vote]
B140: 13.6 | C140: [Name of sub-vote] | D140: 13.6 - [Name of sub-vote]
B141: 13.7 | C141: [Name of sub-vote] | D141: 13.7 - [Name of sub-vote]
B142: 13.8 | C142: [Name of sub-vote] | D142: 13.8 - [Name of sub-vote]
B143: 13.9 | C143: [Name of sub-vote] | D143: 13.9 - [Name of sub-vote]
B144: 13.10 | C144: [Name of sub-vote] | D144: 13.10 - [Name of sub-vote]
B145: Vote 14 | C145: [NAME OF VOTE 14]
B146: 14.1 | C146: [Name of sub-vote] | D146: =CONCATENATE(B146, " - ", C146) -> 14.1 - [Name of sub-vote] | E146: 14.1 - [Name of sub-vote]
B147: 14.2 | C147: [Name of sub-vote] | D147: 14.2 - [Name of sub-vote]
B148: 14.3 | C148: [Name of sub-vote] | D148: 14.3 - [Name of sub-vote]
B149: 14.4 | C149: [Name of sub-vote] | D149: 14.4 - [Name of sub-vote]
B150: 14.5 | C150: [Name of sub-vote] | D150: 14.5 - [Name of sub-vote]
B151: 14.6 | C151: [Name of sub-vote] | D151: 14.6 - [Name of sub-vote]
B152: 14.7 | C152: [Name of sub-vote] | D152: 14.7 - [Name of sub-vote]
B153: 14.8 | C153: [Name of sub-vote] | D153: 14.8 - [Name of sub-vote]
B154: 14.9 | C154: [Name of sub-vote] | D154: 14.9 - [Name of sub-vote]
B155: 14.10 | C155: [Name of sub-vote] | D155: 14.10 - [Name of sub-vote]
B156: Vote 15 | C156: [NAME OF VOTE 15]
B157: 15.1 | C157: [Name of sub-vote] | D157: =CONCATENATE(B157, " - ", C157) -> 15.1 - [Name of sub-vote] | E157: 15.1 - [Name of sub-vote]
B158: 15.2 | C158: [Name of sub-vote] | D158: 15.2 - [Name of sub-vote]
B159: 15.3 | C159: [Name of sub-vote] | D159: 15.3 - [Name of sub-vote]
B160: 15.4 | C160: [Name of sub-vote] | D160: 15.4 - [Name of sub-vote]
B161: 15.5 | C161: [Name of sub-vote] | D161: 15.5 - [Name of sub-vote]
B162: 15.6 | C162: [Name of sub-vote] | D162: 15.6 - [Name of sub-vote]
B163: 15.7 | C163: [Name of sub-vote] | D163: 15.7 - [Name of sub-vote]
B164: 15.8 | C164: [Name of sub-vote] | D164: 15.8 - [Name of sub-vote]
B165: 15.9 | C165: [Name of sub-vote] | D165: 15.9 - [Name of sub-vote]
B166: 15.10 | C166: [Name of sub-vote] | D166: 15.10 - [Name of sub-vote]

Sheet Contacts
A1: =muni&" - "&" Contact Information" -> DC16 Xhariep - Contact Information
A3: A. GENERAL INFORMATION
A4: Municipality | B4: =muni -> DC16 Xhariep | C4: =IF(B4="Choose name from List","Set name on 'Instructions' sheet", "") -> 
A6: Grade | B6: 2
A8: Province | B8: =IF(B4>" ",VLOOKUP(B4,'Lookup and lists'!B29:C307,2, FALSE)," ") -> FS FREE STATE
A10: Web Address | B10: www.xhariep.gov.za
A12: e-mail Address | B12: martyr@xhariep.gov.za
A14: B. CONTACT INFORMATION
A15: Postal address:
A16: P.O. Box | B16: Private Bag X136
A17: City / Town | B17: Trompsburg
A18: Postal Code | B18: 9913
A20: Street address
A21: Building | B21: Xhariep District Municipality
A22: Street No. & Name | B22: 20 Louw Street
A23: City / Town | B23: Trompsburg
A24: Postal Code | B24: 9913
A26: General Contacts
A27: Telephone number | B27: 051 7139 300
A28: Fax number | B28: 051 7130 461
A30: C. POLITICAL LEADERSHIP
A31: Speaker: | C31: Secretary/PA to the Speaker:
A32: Name | B32: Cllr. MJ Sehanka | C32: Name | D32: Mr N Mothabeng
A33: Telephone number | B33: 051 7139 339 | C33: Telephone number | D33: 051 7139 339
A34: Cell number | B34: 079 5083 568 | C34: Cell number | D34: 083 421 4311
A35: Fax number | B35: 051 7130 461 | C35: Fax number | D35: 051 7130 461
A36: E-mail address | B36: sehankam@xhariep.gov.za | C36: E-mail address | D36: mothabengn@xhariep.gov.za
A38: Mayor/Executive Mayor: | C38: Secretary/PA to the Mayor/Executive Mayor:
A39: Name | B39: Cllr. MG Ntwanambi | C39: Name | D39: Mrs DC Mkololo
A40: Telephone number | B40: 051 7130 229 | C40: Telephone number | D40: 051 7139 360
A41: Cell number | B41: 072 2050 311 | C41: Cell number | D41: 083 938 6411
A42: Fax number | B42: 086 5361 411 | C42: Fax number | D42: 865361411
A43: E-mail address | B43: babyr@xhariep.gov.za | C43: E-mail address | D43: babyr@xhariep.gov.za
A45: Deputy Mayor/Executive Mayor: | C45: Secretary/PA to the Deputy Mayor/Executive Mayor:
A46: Name | C46: Name
A47: Telephone number | C47: Telephone number
A48: Cell number | C48: Cell number
A49: Fax number | C49: Fax number
A50: E-mail address | C50: E-mail address
A52: D. MANAGEMENT LEADERSHIP
A53: Municipal Manager: | C53: Secretary/PA to the Municipal Manager:
A54: Name | B54: Mr. MM Kubeka | C54: Name | D54: Mr P Tshabalala (Acting)
A55: Telephone number | B55: 051 7139 304 | C55: Telephone number | D55: 051 713 9304
A56: Cell number | B56: 082 933 6056 | C56: Cell number | D56: 073 199 6395
A57: Fax number | B57: 051 7130 461 | C57: Fax number | D57: 051 713 0461
A58: E-mail address | B58: martyr@xhariep.gov.za | C58: E-mail address | D58: tshabalalapaseka@yahoo.com
A60: Chief Financial Officer | C60: Secretary/PA to the Chief Financial Officer
A61: Name | B61: Mr L Mashiane | C61: Name | D61: Miss M Moopela
A62: Telephone number | B62: 051 713 9307 | C62: Telephone number | D62: 051 7139 307
A63: Cell number | C63: Cell number | D63: 083 9939 969
A64: Fax number | B64: 051 713 0461 | C64: Fax number | D64: 051 7130 461
A65: E-mail address | B65: l.mashiane@vodamail.co.za | C65: E-mail address | D65: moiponem@xhariep.gov.za
A67: Official responsible for submitting financial information
A68: Name | B68: Mr LJ Makubu
A69: Telephone number | B69: 051 7139 331
A70: Cell number
A71: Fax number | B71: 051 7130 461
A72: E-mail address | B72: makubulj@gmail.com
A73: Official responsible for submitting financial information
A74: Name
A75: Telephone number
A76: Cell number
A77: Fax number
A78: E-mail address
A79: Official responsible for submitting financial information
A80: Name
A81: Telephone number
A82: Cell number
A83: Fax number
A84: E-mail address

Sheet A1-Sum
A1: =muni&" - "&Approve1 -> DC16 Xhariep - Table A1 Budget Summary
A2: =desc -> Description | B2: =head1b -> 2010/11 | C2: =head1A -> 2011/12 | D2: =Head1 -> 2012/13 | E2: =Head2 -> Current Year 2013/14 | I2: =Head3 -> 2014/15 Medium Term Revenue & Expenditure Framework
A3: R thousands | B3: =Head5 -> Audited Outcome | C3: =Head5 -> Audited Outcome | D3: =Head5 -> Audited Outcome | E3: =Head6 -> Original Budget | F3: =Head7 -> Adjusted Budget | G3: =Head8 -> Full Year Forecast | H3: =Head5b -> Pre-audit outcome | I3: =Head9 -> Budget Year 2014/15 | J3: =Head10 -> Budget Year +1 2015/16 | K3: =Head11 -> Budget Year +2 2016/17
A4: Financial Performance
A5: Property rates | B5: ='A4-FinPerf RE'!C5+'A4-FinPerf RE'!C6 -> 0 | C5: ='A4-FinPerf RE'!D5+'A4-FinPerf RE'!D6 -> 0 | D5: ='A4-FinPerf RE'!E5+'A4-FinPerf RE'!E6 -> 0 | E5: ='A4-FinPerf RE'!F5+'A4-FinPerf RE'!F6 -> 0 | F5: ='A4-FinPerf RE'!G5+'A4-FinPerf RE'!G6 -> 0 | G5: ='A4-FinPerf RE'!H5+'A4-FinPerf RE'!H6 -> 0 | H5: ='A4-FinPerf RE'!I5+'A4-FinPerf RE'!I6 -> 0 | I5: ='A4-FinPerf RE'!J5+'A4-FinPerf RE'!J6 -> 0 | J5: ='A4-FinPerf RE'!K5+'A4-FinPerf RE'!K6 -> 0 | K5: ='A4-FinPerf RE'!L5+'A4-FinPerf RE'!L6 -> 0
A6: Service charges | B6: =SUM('A4-FinPerf RE'!C7:C11) -> 0 | C6: =SUM('A4-FinPerf RE'!D7:D11) -> 0 | D6: =SUM('A4-FinPerf RE'!E7:E11) -> 0 | E6: =SUM('A4-FinPerf RE'!F7:F11) -> 0 | F6: =SUM('A4-FinPerf RE'!G7:G11) -> 0 | G6: =SUM('A4-FinPerf RE'!H7:H11) -> 0 | H6: =SUM('A4-FinPerf RE'!I7:I11) -> 0 | I6: =SUM('A4-FinPerf RE'!J7:J11) -> 0 | J6: =SUM('A4-FinPerf RE'!K7:K11) -> 0 | K6: =SUM('A4-FinPerf RE'!L7:L11) -> 0
A7: Investment revenue | B7: ='A4-FinPerf RE'!C13 -> 382910 | C7: ='A4-FinPerf RE'!D13 -> 731413 | D7: ='A4-FinPerf RE'!E13 -> 283816 | E7: ='A4-FinPerf RE'!F13 -> 129000 | F7: ='A4-FinPerf RE'!G13 -> 129000 | G7: ='A4-FinPerf RE'!H13 -> 129000 | H7: ='A4-FinPerf RE'!I13 -> 89000 | I7: ='A4-FinPerf RE'!J13 -> 103800 | J7: ='A4-FinPerf RE'!K13 -> 114180 | K7: ='A4-FinPerf RE'!L13 -> 125598
A8: Transfers recognised - operational | B8: ='A4-FinPerf RE'!C19 -> 44886347 | C8: ='A4-FinPerf RE'!D19 -> 88254890 | D8: ='A4-FinPerf RE'!E19 -> 38596152 | E8: ='A4-FinPerf RE'!F19 -> 59971000 | F8: ='A4-FinPerf RE'!G19 -> 59340000 | G8: ='A4-FinPerf RE'!H19 -> 59340000 | H8: ='A4-FinPerf RE'!I19 -> 54971000 | I8: ='A4-FinPerf RE'!J19 -> 62992000 | J8: ='A4-FinPerf RE'!K19 -> 69291200 | K8: ='A4-FinPerf RE'!L19 -> 76220320
A9: Other own revenue | B9: ='A4-FinPerf RE'!C12+'A4-FinPerf RE'!C14+'A4-FinPerf RE'!C15+'A4-FinPerf RE'!C16+'A4-FinPerf RE'!C17+'A4-FinPerf RE'!C18+'A4-FinPerf RE'!C20+'A4-FinPerf RE'!C21 -> 307367 | C9: ='A4-FinPerf RE'!D12+'A4-FinPerf RE'!D14+'A4-FinPerf RE'!D15+'A4-FinPerf RE'!D16+'A4-FinPerf RE'!D17+'A4-FinPerf RE'!D18+'A4-FinPerf RE'!D20+'A4-FinPerf RE'!D21 -> 1892911 | D9: ='A4-FinPerf RE'!E12+'A4-FinPerf RE'!E14+'A4-FinPerf RE'!E15+'A4-FinPerf RE'!E16+'A4-FinPerf RE'!E17+'A4-FinPerf RE'!E18+'A4-FinPerf RE'!E20+'A4-FinPerf RE'!E21 -> 505140 | E9: ='A4-FinPerf RE'!F12+'A4-FinPerf RE'!F14+'A4-FinPerf RE'!F15+'A4-FinPerf RE'!F16+'A4-FinPerf RE'!F17+'A4-FinPerf RE'!F18+'A4-FinPerf RE'!F20+'A4-FinPerf RE'!F21 -> 455255.0442 | F9: ='A4-FinPerf RE'!G12+'A4-FinPerf RE'!G14+'A4-FinPerf RE'!G15+'A4-FinPerf RE'!G16+'A4-FinPerf RE'!G17+'A4-FinPerf RE'!G18+'A4-FinPerf RE'!G20+'A4-FinPerf RE'!G21 -> 444496.6842 | G9: ='A4-FinPerf RE'!H12+'A4-FinPerf RE'!H14+'A4-FinPerf RE'!H15+'A4-FinPerf RE'!H16+'A4-FinPerf RE'!H17+'A4-FinPerf RE'!H18+'A4-FinPerf RE'!H20+'A4-FinPerf RE'!H21 -> 444496.6842 | H9: ='A4-FinPerf RE'!I12+'A4-FinPerf RE'!I14+'A4-FinPerf RE'!I15+'A4-FinPerf RE'!I16+'A4-FinPerf RE'!I17+'A4-FinPerf RE'!I18+'A4-FinPerf RE'!I20+'A4-FinPerf RE'!I21 -> 455496.6842 | I9: ='A4-FinPerf RE'!J12+'A4-FinPerf RE'!J14+'A4-FinPerf RE'!J15+'A4-FinPerf RE'!J16+'A4-FinPerf RE'!J17+'A4-FinPerf RE'!J18+'A4-FinPerf RE'!J20+'A4-FinPerf RE'!J21 -> 1109570.48 | J9: ='A4-FinPerf RE'!K12+'A4-FinPerf RE'!K14+'A4-FinPerf RE'!K15+'A4-FinPerf RE'!K16+'A4-FinPerf RE'!K17+'A4-FinPerf RE'!K18+'A4-FinPerf RE'!K20+'A4-FinPerf RE'!K21 -> 593527.528 | K9: ='A4-FinPerf RE'!L12+'A4-FinPerf RE'!L14+'A4-FinPerf RE'!L15+'A4-FinPerf RE'!L16+'A4-FinPerf RE'!L17+'A4-FinPerf RE'!L18+'A4-FinPerf RE'!L20+'A4-FinPerf RE'!L21 -> 652880.2808
A10: ='A4-FinPerf RE'!A22 -> Total Revenue (excluding capital transfers and contributions) | B10: =SUM(B5:B9) -> 45576624 | C10: 90879214 | D10: 39385108 | E10: 60555255.04 | F10: 59913496.68 | G10: 59913496.68 | H10: 55515496.68 | I10: 64205370.48 | J10: 69998907.53 | K10: 76998798.28
A11: Employee costs | B11: ='A4-FinPerf RE'!C25 -> 20001631 | C11: ='A4-FinPerf RE'!D25 -> 24585630 | D11: ='A4-FinPerf RE'!E25 -> 30159010 | E11: ='A4-FinPerf RE'!F25 -> 34411006.5 | F11: ='A4-FinPerf RE'!G25 -> 32099545.22 | G11: ='A4-FinPerf RE'!H25 -> 32099545.22 | H11: ='A4-FinPerf RE'!I25 -> 32099545.22 | I11: ='A4-FinPerf RE'!J25 -> 39164805.95 | J11: ='A4-FinPerf RE'!K25 -> 42421907.76 | K11: ='A4-FinPerf RE'!L25 -> 45955266.34
A12: Remuneration of councillors | B12: ='A4-FinPerf RE'!C26 -> 2566048 | C12: ='A4-FinPerf RE'!D26 -> 2895434 | D12: ='A4-FinPerf RE'!E26 -> 3318054 | E12: ='A4-FinPerf RE'!F26 -> 3239545.074 | F12: ='A4-FinPerf RE'!G26 -> 3239545.074 | G12: ='A4-FinPerf RE'!H26 -> 3239545.074 | H12: ='A4-FinPerf RE'!I26 -> 3239545.074 | I12: ='A4-FinPerf RE'!J26 -> 4696833.48 | J12: ='A4-FinPerf RE'!K26 -> 5025611.824 | K12: ='A4-FinPerf RE'!L26 -> 5377404.651
A13: Depreciation & asset impairment | B13: ='A4-FinPerf RE'!C28 -> 0 | C13: ='A4-FinPerf RE'!D28 -> 2307376 | D13: ='A4-FinPerf RE'!E28 -> 3648189 | E13: ='A4-FinPerf RE'!F28 -> 3866861.745 | F13: ='A4-FinPerf RE'!G28 -> 3366861.745 | G13: ='A4-FinPerf RE'!H28 -> 3366861.745 | H13: ='A4-FinPerf RE'!I28 -> 3366861.745 | I13: ='A4-FinPerf RE'!J28 -> 3500000 | J13: ='A4-FinPerf RE'!K28 -> 3850000 | K13: ='A4-FinPerf RE'!L28 -> 4235000
A14: Finance charges | B14: ='A4-FinPerf RE'!C29 -> 497112 | C14: ='A4-FinPerf RE'!D29 -> 307741 | D14: ='A4-FinPerf RE'!E29 -> 286676 | E14: ='A4-FinPerf RE'!F29 -> 0 | F14: ='A4-FinPerf RE'!G29 -> 0 | G14: ='A4-FinPerf RE'!H29 -> 0 | H14: ='A4-FinPerf RE'!I29 -> 0 | I14: ='A4-FinPerf RE'!J29 -> 0 | J14: ='A4-FinPerf RE'!K29 -> 0 | K14: ='A4-FinPerf RE'!L29 -> 0
A15: Materials and bulk purchases | B15: ='A4-FinPerf RE'!C30+'A4-FinPerf RE'!C31 -> 0 | C15: ='A4-FinPerf RE'!D30+'A4-FinPerf RE'!D31 -> 0 | D15: ='A4-FinPerf RE'!E30+'A4-FinPerf RE'!E31 -> 0 | E15: ='A4-FinPerf RE'!F30+'A4-FinPerf RE'!F31 -> 0 | F15: ='A4-FinPerf RE'!G30+'A4-FinPerf RE'!G31 -> 0 | G15: ='A4-FinPerf RE'!H30+'A4-FinPerf RE'!H31 -> 0 | H15: ='A4-FinPerf RE'!I30+'A4-FinPerf RE'!I31 -> 0 | I15: ='A4-FinPerf RE'!J30+'A4-FinPerf RE'!J31 -> 0 | J15: ='A4-FinPerf RE'!K30+'A4-FinPerf RE'!K31 -> 0 | K15: ='A4-FinPerf RE'!L30+'A4-FinPerf RE'!L31 -> 0
A16: Transfers and grants | B16: ='A4-FinPerf RE'!C33 -> 0 | C16: ='A4-FinPerf RE'!D33 -> 0 | D16: ='A4-FinPerf RE'!E33 -> 0 | E16: ='A4-FinPerf RE'!F33 -> 0 | F16: ='A4-FinPerf RE'!G33 -> 1089978 | G16: ='A4-FinPerf RE'!H33 -> 1089978 | H16: ='A4-FinPerf RE'!I33 -> 1089978 | I16: ='A4-FinPerf RE'!J33 -> 0 | J16: ='A4-FinPerf RE'!K33 -> 0 | K16: ='A4-FinPerf RE'!L33 -> 0
A17: Other expenditure | B17: ='A4-FinPerf RE'!C27+'A4-FinPerf RE'!C32+'A4-FinPerf RE'!C34+'A4-FinPerf RE'!C35 -> 16122554 | C17: ='A4-FinPerf RE'!D27+'A4-FinPerf RE'!D32+'A4-FinPerf RE'!D34+'A4-FinPerf RE'!D35 -> 37965458 | D17: ='A4-FinPerf RE'!E27+'A4-FinPerf RE'!E32+'A4-FinPerf RE'!E34+'A4-FinPerf RE'!E35 -> 33333209 | E17: ='A4-FinPerf RE'!F27+'A4-FinPerf RE'!F32+'A4-FinPerf RE'!F34+'A4-FinPerf RE'!F35 -> 21338903.6 | F17: ='A4-FinPerf RE'!G27+'A4-FinPerf RE'!G32+'A4-FinPerf RE'!G34+'A4-FinPerf RE'!G35 -> 22600453.6 | G17: ='A4-FinPerf RE'!H27+'A4-FinPerf RE'!H32+'A4-FinPerf RE'!H34+'A4-FinPerf RE'!H35 -> 22600453.6 | H17: ='A4-FinPerf RE'!I27+'A4-FinPerf RE'!I32+'A4-FinPerf RE'!I34+'A4-FinPerf RE'!I35 -> 22600453.6 | I17: ='A4-FinPerf RE'!J27+'A4-FinPerf RE'!J32+'A4-FinPerf RE'!J34+'A4-FinPerf RE'!J35 -> 19172239.98 | J17: ='A4-FinPerf RE'!K27+'A4-FinPerf RE'!K32+'A4-FinPerf RE'!K34+'A4-FinPerf RE'!K35 -> 21089463.98 | K17: ='A4-FinPerf RE'!L27+'A4-FinPerf RE'!L32+'A4-FinPerf RE'!L34+'A4-FinPerf RE'!L35 -> 23198410.38
A18: ='A4-FinPerf RE'!A36 -> Total Expenditure | B18: =SUM(B11:B17) -> 39187345 | C18: =SUM(C11:C17) -> 68061639 | D18: 70745138 | E18: 62856316.92 | F18: 62396383.63 | G18: 62396383.63 | H18: 62396383.63 | I18: 66533879.41 | J18: 72386983.56 | K18: 78766081.37
A19: ='A4-FinPerf RE'!A38 -> Surplus/(Deficit) | B19: =B10-B18 -> 6389279 | C19: 22817575 | D19: -31360030 | E19: -2301061.871 | F19: -2482886.95 | G19: -2482886.95 | H19: -6880886.95 | I19: -2328508.93 | J19: -2388076.033 | K19: -1767283.087
A20: ='A4-FinPerf RE'!A39 -> Transfers recognised - capital | B20: ='A4-FinPerf RE'!C39 -> 0 | C20: ='A4-FinPerf RE'!D39 -> 0 | D20: ='A4-FinPerf RE'!E39 -> 0 | E20: ='A4-FinPerf RE'!F39 -> 0 | F20: ='A4-FinPerf RE'!G39 -> 0 | G20: ='A4-FinPerf RE'!H39 -> 0 | H20: ='A4-FinPerf RE'!I39 -> 0 | I20: ='A4-FinPerf RE'!J39 -> 0 | J20: ='A4-FinPerf RE'!K39 -> 0 | K20: ='A4-FinPerf RE'!L39 -> 0
A21: Contributions recognised - capital & contributed assets | B21: ='A4-FinPerf RE'!C40+'A4-FinPerf RE'!C41 -> 0 | C21: ='A4-FinPerf RE'!D40+'A4-FinPerf RE'!D41 -> 0 | D21: ='A4-FinPerf RE'!E40+'A4-FinPerf RE'!E41 -> 0 | E21: ='A4-FinPerf RE'!F40+'A4-FinPerf RE'!F41 -> 0 | F21: ='A4-FinPerf RE'!G40+'A4-FinPerf RE'!G41 -> 0 | G21: ='A4-FinPerf RE'!H40+'A4-FinPerf RE'!H41 -> 0 | H21: ='A4-FinPerf RE'!I40+'A4-FinPerf RE'!I41 -> 0 | I21: ='A4-FinPerf RE'!J40+'A4-FinPerf RE'!J41 -> 0 | J21: ='A4-FinPerf RE'!K40+'A4-FinPerf RE'!K41 -> 0 | K21: ='A4-FinPerf RE'!L40+'A4-FinPerf RE'!L41 -> 0
A22: ='A4-FinPerf RE'!A42 -> Surplus/(Deficit) after capital transfers & contributions | B22: =B19+SUM(B20:B21) -> 6389279 | C22: =C19+SUM(C20:C21) -> 22817575 | D22: -31360030 | E22: -2301061.871 | F22: -2482886.95 | G22: -2482886.95 | H22: -6880886.95 | I22: -2328508.93 | J22: -2388076.033 | K22: -1767283.087
A23: ='A4-FinPerf RE'!A47 -> Share of surplus/ (deficit) of associate | B23: ='A4-FinPerf RE'!C47 -> 0 | C23: ='A4-FinPerf RE'!D47 -> 0 | D23: ='A4-FinPerf RE'!E47 -> 0 | E23: ='A4-FinPerf RE'!F47 -> 0 | F23: ='A4-FinPerf RE'!G47 -> 0 | G23: ='A4-FinPerf RE'!H47 -> 0 | H23: ='A4-FinPerf RE'!I47 -> 0 | I23: ='A4-FinPerf RE'!J47 -> 0 | J23: ='A4-FinPerf RE'!K47 -> 0 | K23: ='A4-FinPerf RE'!L47 -> 0
A24: ='A4-FinPerf RE'!A48 -> Surplus/(Deficit) for the year | B24: =B22+B23 -> 6389279 | C24: =C22+C23 -> 22817575 | D24: -31360030 | E24: -2301061.871 | F24: -2482886.95 | G24: -2482886.95 | H24: -6880886.95 | I24: -2328508.93 | J24: -2388076.033 | K24: -1767283.087
A26: Capital expenditure & funds sources
A27: Capital expenditure | B27: ='A5-Capex'!C63 -> 5611378 | C27: ='A5-Capex'!D63 -> 7474889 | D27: ='A5-Capex'!E63 -> 20077000 | E27: ='A5-Capex'!F63 -> 4490000 | F27: ='A5-Capex'!G63 -> 1324579.697 | G27: ='A5-Capex'!H63 -> 1324579.697 | H27: ='A5-Capex'!I63 -> 1324579.697 | I27: ='A5-Capex'!J63 -> 1745000 | J27: ='A5-Capex'!K63 -> 715000 | K27: ='A5-Capex'!L63 -> 786500
A28: Transfers recognised - capital | B28: ='A5-Capex'!C70 -> 5611378 | C28: ='A5-Capex'!D70 -> 7474889 | D28: ='A5-Capex'!E70 -> 20076711 | E28: ='A5-Capex'!F70 -> 3049696 | F28: ='A5-Capex'!G70 -> 1324579.697 | G28: ='A5-Capex'!H70 -> 1324579.697 | H28: ='A5-Capex'!I70 -> 1324579.697 | I28: ='A5-Capex'!J70 -> 1745000 | J28: ='A5-Capex'!K70 -> 715000 | K28: ='A5-Capex'!L70 -> 786500
A29: ='A5-Capex'!A71 -> Public contributions & donations | B29: ='A5-Capex'!C71 -> 0 | C29: ='A5-Capex'!D71 -> 0 | D29: ='A5-Capex'!E71 -> 0 | E29: ='A5-Capex'!F71 -> 0 | F29: ='A5-Capex'!G71 -> 0 | G29: ='A5-Capex'!H71 -> 0 | H29: ='A5-Capex'!I71 -> 0 | I29: ='A5-Capex'!J71 -> 0 | J29: ='A5-Capex'!K71 -> 0 | K29: ='A5-Capex'!L71 -> 0
A30: ='A5-Capex'!A72 -> Borrowing | B30: ='A5-Capex'!C72 -> 0 | C30: ='A5-Capex'!D72 -> 0 | D30: ='A5-Capex'!E72 -> 0 | E30: ='A5-Capex'!F72 -> 0 | F30: ='A5-Capex'!G72 -> 0 | G30: ='A5-Capex'!H72 -> 0 | H30: ='A5-Capex'!I72 -> 0 | I30: ='A5-Capex'!J72 -> 0 | J30: ='A5-Capex'!K72 -> 0 | K30: ='A5-Capex'!L72 -> 0
A31: ='A5-Capex'!A73 -> Internally generated funds | B31: ='A5-Capex'!C73 -> 0 | C31: ='A5-Capex'!D73 -> 0 | D31: ='A5-Capex'!E73 -> 0 | E31: ='A5-Capex'!F73 -> 0 | F31: ='A5-Capex'!G73 -> 0 | G31: ='A5-Capex'!H73 -> 0 | H31: ='A5-Capex'!I73 -> 0 | I31: ='A5-Capex'!J73 -> 0 | J31: ='A5-Capex'!K73 -> 0 | K31: ='A5-Capex'!L73 -> 0
A32: Total sources of capital funds | B32: =SUM(B28:B31) -> 5611378 | C32: 7474889 | D32: 20076711 | E32: 3049696 | F32: 1324579.697 | G32: 1324579.697 | H32: 1324579.697 | I32: 1745000 | J32: 715000 | K32: 786500
A34: Financial position
A35: ='A6-FinPos'!A12 -> Total current assets | B35: ='A6-FinPos'!C12 -> 16724782 | C35: ='A6-FinPos'!D12 -> 35956043 | D35: ='A6-FinPos'!E12 -> 2790065.26 | E35: ='A6-FinPos'!F12 -> 23226547.71 | F35: ='A6-FinPos'!G12 -> 23226547.71 | G35: ='A6-FinPos'!H12 -> 23226547.71 | H35: ='A6-FinPos'!I12 -> 1596084.31 | I35: ='A6-FinPos'!J12 -> 418000 | J35: ='A6-FinPos'!K12 -> 1003000 | K35: ='A6-FinPos'!L12 -> 875000
A36: ='A6-FinPos'!A24 -> Total non current assets | B36: ='A6-FinPos'!C24 -> 12090040 | C36: ='A6-FinPos'!D24 -> 17497493 | D36: ='A6-FinPos'!E24 -> 21628547 | E36: ='A6-FinPos'!F24 -> 16124155.75 | F36: ='A6-FinPos'!G24 -> 16124155.75 | G36: ='A6-FinPos'!H24 -> 16124155.75 | H36: ='A6-FinPos'!I24 -> 19387495.87 | I36: ='A6-FinPos'!J24 -> 16367495.87 | J36: ='A6-FinPos'!K24 -> 12793495.87 | K36: ='A6-FinPos'!L24 -> 15061439.8
A37: ='A6-FinPos'!A34 -> Total current liabilities | B37: ='A6-FinPos'!C34 -> 6083636 | C37: ='A6-FinPos'!D34 -> 4579198 | D37: ='A6-FinPos'!E34 -> 7303639 | E37: ='A6-FinPos'!F34 -> 15160020.66 | F37: ='A6-FinPos'!G34 -> 15160020.66 | G37: ='A6-FinPos'!H34 -> 15160020.66 | H37: ='A6-FinPos'!I34 -> 7285365.82 | I37: ='A6-FinPos'!J34 -> 4307053 | J37: ='A6-FinPos'!K34 -> 3960033 | K37: ='A6-FinPos'!L34 -> 3255984
A38: ='A6-FinPos'!A39 -> Total non current liabilities | B38: ='A6-FinPos'!C39 -> 858178 | C38: ='A6-FinPos'!D39 -> 673000 | D38: ='A6-FinPos'!E39 -> 879000 | E38: ='A6-FinPos'!F39 -> 1304000 | F38: ='A6-FinPos'!G39 -> 1503000 | G38: ='A6-FinPos'!H39 -> 1503000 | H38: ='A6-FinPos'!I39 -> 879000 | I38: ='A6-FinPos'!J39 -> 1412000 | J38: ='A6-FinPos'!K39 -> 1534960 | K38: ='A6-FinPos'!L39 -> 1668756.8
A39: Community wealth/Equity | B39: ='A6-FinPos'!C48 -> 26904981 | C39: ='A6-FinPos'!D48 -> 53201338 | D39: ='A6-FinPos'!E48 -> 16235973.26 | E39: ='A6-FinPos'!F48 -> 28587682.8 | F39: ='A6-FinPos'!G48 -> 28587682.8 | G39: ='A6-FinPos'!H48 -> 28587682.8 | H39: ='A6-FinPos'!I48 -> 12819214.36 | I39: ='A6-FinPos'!J48 -> 10966443 | J39: ='A6-FinPos'!K48 -> 8431502.87 | K39: ='A6-FinPos'!L48 -> 11396699
A41: Cash flows
A42: Net cash from (used) operating | B42: ='A7-CFlow'!C15 -> 5468295 | C42: ='A7-CFlow'!D15 -> 16278353 | D42: ='A7-CFlow'!E15 -> -11886257 | E42: ='A7-CFlow'!F15 -> 2196391.484 | F42: ='A7-CFlow'!G15 -> 4038467.809 | G42: ='A7-CFlow'!H15 -> 4038467.809 | H42: ='A7-CFlow'!I15 -> 4036821.809 | I42: ='A7-CFlow'!J15 -> -1828509.41 | J42: ='A7-CFlow'!K15 -> -2011360.351 | K42: ='A7-CFlow'!L15 -> -2212496.386
A43: Net cash from (used) investing | B43: ='A7-CFlow'!C25 -> -5738348 | C43: ='A7-CFlow'!D25 -> -6176492 | D43: ='A7-CFlow'!E25 -> -1410817 | E43: ='A7-CFlow'!F25 -> -3746000 | F43: ='A7-CFlow'!G25 -> -2620913 | G43: ='A7-CFlow'!H25 -> -2620913 | H43: ='A7-CFlow'!I25 -> -2620913 | I43: ='A7-CFlow'!J25 -> 0 | J43: ='A7-CFlow'!K25 -> 0 | K43: ='A7-CFlow'!L25 -> 0
A44: Net cash from (used) financing | B44: ='A7-CFlow'!C34 -> -254470 | C44: ='A7-CFlow'!D34 -> -397947 | D44: ='A7-CFlow'!E34 -> -362859 | E44: ='A7-CFlow'!F34 -> 0 | F44: ='A7-CFlow'!G34 -> 0 | G44: ='A7-CFlow'!H34 -> 0 | H44: ='A7-CFlow'!I34 -> 0 | I44: ='A7-CFlow'!J34 -> -500000 | J44: ='A7-CFlow'!K34 -> -550000 | K44: ='A7-CFlow'!L34 -> -605000
A45: =LEFT('A7-CFlow'!A38,37) -> Cash/cash equivalents at the year end | B45: ='A7-CFlow'!C38 -> 9952826 | C45: ='A7-CFlow'!D38 -> 19656740 | D45: ='A7-CFlow'!E38 -> 5996807 | E45: ='A7-CFlow'!F38 -> -1549608.516 | F45: ='A7-CFlow'!G38 -> 1417554.809 | G45: ='A7-CFlow'!H38 -> 1417554.809 | H45: ='A7-CFlow'!I38 -> 1415908.809 | I45: ='A7-CFlow'!J38 -> -2328509.41 | J45: ='A7-CFlow'!K38 -> -4889869.761 | K45: ='A7-CFlow'!L38 -> -7707366.147
A47: Cash backing/surplus reconciliation
A48: ='A8-ResRecon'!A4 -> Cash and investments available | B48: ='A8-ResRecon'!C8 -> 1358177 | C48: ='A8-ResRecon'!D8 -> 11062090 | D48: ='A8-ResRecon'!E8 -> 1819068 | E48: ='A8-ResRecon'!F8 -> 0 | F48: ='A8-ResRecon'!G8 -> 0 | G48: ='A8-ResRecon'!H8 -> 0 | H48: ='A8-ResRecon'!I8 -> 0 | I48: ='A8-ResRecon'!J8 -> 260000 | J48: ='A8-ResRecon'!K8 -> 560000 | K48: ='A8-ResRecon'!L8 -> 875000
A49: ='A8-ResRecon'!A10 -> Application of cash and investments | B49: ='A8-ResRecon'!C18 -> -4756311 | C49: ='A8-ResRecon'!D18 -> -13258607 | D49: ='A8-ResRecon'!E18 -> 7451540 | E49: ='A8-ResRecon'!F18 -> -2719979.34 | F49: ='A8-ResRecon'!G18 -> -3150979.34 | G49: ='A8-ResRecon'!H18 -> -3150979.34 | H49: ='A8-ResRecon'!I18 -> 7339150.09 | I49: ='A8-ResRecon'!J18 -> 4877053 | J49: ='A8-ResRecon'!K18 -> 4554033 | K49: ='A8-ResRecon'!L18 -> 3967984
A50: Balance - surplus (shortfall) | B50: =B48-B49 -> 6114488 | C50: =C48-C49 -> 24320697 | D50: -5632472 | E50: 2719979.34 | F50: 3150979.34 | G50: 3150979.34 | H50: -7339150.09 | I50: -4617053 | J50: -3994033 | K50: -3092984
A52: Asset management
A53: Asset register summary (WDV) | B53: ='A9-Asset'!C65 -> 344908 | C53: ='A9-Asset'!D65 -> 455024 | D53: ='A9-Asset'!E65 -> 739015 | E53: ='A9-Asset'!F65 -> 408000 | F53: ='A9-Asset'!G65 -> 408000 | G53: ='A9-Asset'!H65 -> 408000 | H53: ='A9-Asset'!I65 -> 460000 | I53: ='A9-Asset'!I65 -> 460000 | J53: ='A9-Asset'!J65 -> 386000 | K53: ='A9-Asset'!K65 -> 300000
A54: ='A9-Asset'!A68 -> Depreciation & asset impairment | B54: ='A9-Asset'!C68 -> 0 | C54: ='A9-Asset'!D68 -> 2307376 | D54: ='A9-Asset'!E68 -> 3648189 | E54: ='A9-Asset'!F68 -> 3866861.745 | F54: ='A9-Asset'!G68 -> 3366861.745 | G54: ='A9-Asset'!H68 -> 3366861.745 | H54: ='A9-Asset'!I68 -> 3500000 | I54: ='A9-Asset'!I68 -> 3500000 | J54: ='A9-Asset'!J68 -> 3850000 | K54: ='A9-Asset'!K68 -> 4235000
A55: Renewal of Existing Assets | B55: ='A9-Asset'!C20 -> 140000 | C55: ='A9-Asset'!D20 -> 0 | D55: ='A9-Asset'!E20 -> 0 | E55: ='A9-Asset'!F20 -> 0 | F55: ='A9-Asset'!G20 -> 0 | G55: ='A9-Asset'!H20 -> 0 | H55: ='A9-Asset'!H20 -> 0 | I55: ='A9-Asset'!I20 -> 0 | J55: ='A9-Asset'!J20 -> 0 | K55: ='A9-Asset'!K20 -> 0
A56: Repairs and Maintenance | B56: ='A9-Asset'!C69 -> 4878087 | C56: ='A9-Asset'!D69 -> 7602087 | D56: ='A9-Asset'!E69 -> 1271312 | E56: ='A9-Asset'!F69 -> 1151000 | F56: ='A9-Asset'!G69 -> 1445465 | G56: ='A9-Asset'!H69 -> 1445465 | H56: ='A9-Asset'!I69 -> 528000 | I56: ='A9-Asset'!I69 -> 528000 | J56: ='A9-Asset'!J69 -> 580800 | K56: ='A9-Asset'!K69 -> 638880
A58: Free services
A59: Cost of Free Basic Services provided | B59: ='A10-SerDel'!C59 -> 0 | C59: ='A10-SerDel'!D59 -> 0 | D59: ='A10-SerDel'!E59 -> 0 | E59: ='A10-SerDel'!F59 -> 0 | F59: ='A10-SerDel'!G59 -> 0 | G59: ='A10-SerDel'!H59 -> 0 | H59: ='A10-SerDel'!I59 -> 0 | I59: ='A10-SerDel'!I59 -> 0 | J59: ='A10-SerDel'!J59 -> 0 | K59: ='A10-SerDel'!K59 -> 0
A60: Revenue cost of free services provided | B60: ='A10-SerDel'!C78 -> 0 | C60: ='A10-SerDel'!D78 -> 0 | D60: ='A10-SerDel'!E78 -> 0 | E60: ='A10-SerDel'!F78 -> 0 | F60: ='A10-SerDel'!G78 -> 0 | G60: ='A10-SerDel'!H78 -> 0 | H60: ='A10-SerDel'!I78 -> 0 | I60: ='A10-SerDel'!I78 -> 0 | J60: ='A10-SerDel'!J78 -> 0 | K60: ='A10-SerDel'!K78 -> 0
A61: Households below minimum service level
A62: ='A10-SerDel'!A5 -> Water: | B62: ='A10-SerDel'!C14 -> 0 | C62: ='A10-SerDel'!D14 -> 0 | D62: ='A10-SerDel'!E14 -> 0 | E62: ='A10-SerDel'!F14 -> 0 | F62: ='A10-SerDel'!G14 -> 0 | G62: ='A10-SerDel'!H14 -> 0 | H62: ='A10-SerDel'!I14 -> 0 | I62: ='A10-SerDel'!I14 -> 0 | J62: ='A10-SerDel'!J14 -> 0 | K62: ='A10-SerDel'!K14 -> 0
A63: ='A10-SerDel'!A16 -> Sanitation/sewerage: | B63: ='A10-SerDel'!C26 -> 0 | C63: ='A10-SerDel'!D26 -> 0 | D63: ='A10-SerDel'!E26 -> 0 | E63: ='A10-SerDel'!F26 -> 0 | F63: ='A10-SerDel'!G26 -> 0 | G63: ='A10-SerDel'!H26 -> 0 | H63: ='A10-SerDel'!I26 -> 0 | I63: ='A10-SerDel'!I26 -> 0 | J63: ='A10-SerDel'!J26 -> 0 | K63: ='A10-SerDel'!K26 -> 0
A64: ='A10-SerDel'!A28 -> Energy: | B64: ='A10-SerDel'!C35 -> 0 | C64: ='A10-SerDel'!D35 -> 0 | D64: ='A10-SerDel'!E35 -> 0 | E64: ='A10-SerDel'!F35 -> 0 | F64: ='A10-SerDel'!G35 -> 0 | G64: ='A10-SerDel'!H35 -> 0 | H64: ='A10-SerDel'!I35 -> 0 | I64: ='A10-SerDel'!I35 -> 0 | J64: ='A10-SerDel'!J35 -> 0 | K64: ='A10-SerDel'!K35 -> 0
A65: ='A10-SerDel'!A37 -> Refuse: | B65: ='A10-SerDel'!C45 -> 0 | C65: ='A10-SerDel'!D45 -> 0 | D65: ='A10-SerDel'!E45 -> 0 | E65: ='A10-SerDel'!F45 -> 0 | F65: ='A10-SerDel'!G45 -> 0 | G65: ='A10-SerDel'!H45 -> 0 | H65: ='A10-SerDel'!I45 -> 0 | I65: ='A10-SerDel'!I45 -> 0 | J65: ='A10-SerDel'!J45 -> 0 | K65: ='A10-SerDel'!K45 -> 0

Sheet A2-FinPerf SC
A1: =muni&" - "&Approve3 -> DC16 Xhariep - Table A2 Budgeted Financial Performance (revenue and expenditure by standard classification)
A2: ="Standard Classification "&desc -> Standard Classification Description | B2: =head27 -> Ref | C2: =head1b -> 2010/11 | D2: =head1A -> 2011/12 | E2: =Head1 -> 2012/13 | F2: =Head2 -> Current Year 2013/14 | I2: =Head3 -> 2014/15 Medium Term Revenue & Expenditure Framework
A3: R thousand | B3: 1 | C3: =Head5 -> Audited Outcome | D3: =Head5 -> Audited Outcome | E3: =Head5 -> Audited Outcome | F3: =Head6 -> Original Budget | G3: =Head7 -> Adjusted Budget | H3: =Head8 -> Full Year Forecast | I3: =Head9 -> Budget Year 2014/15 | J3: =Head10 -> Budget Year +1 2015/16 | K3: =Head11 -> Budget Year +2 2016/17
A4: Revenue - Standard
A5: Governance and administration | C5: =SUM(C6:C8) -> 35747062.32 | D5: =SUM(D6:D8) -> 82702400.52 | E5: 35152233.35 | F5: 43383315.82 | G5: 43499176.98 | H5: 43499176.98 | I5: 52066361.08 | J5: 56645998.19 | K5: 62310598.01
A6: Executive and council | C6: =A2A!C6 -> 10706000 | D6: =A2A!D6 -> 17930453.05 | E6: =A2A!E6 -> 10252734.73 | F6: =A2A!F6 -> 16290441.18 | G6: =A2A!G6 -> 16038002.94 | H6: =A2A!H6 -> 16038002.94 | I6: =A2A!I6 -> 14877955.75 | J6: =A2A!J6 -> 16365751.33 | K6: =A2A!K6 -> 18002326.46
A7: Budget and treasury office | C7: =A2A!C9 -> 9662062.32 | D7: =A2A!D9 -> 46805414.26 | E7: =A2A!E9 -> 9520396.53 | F7: =A2A!F9 -> 11915534.83 | G7: =A2A!G9 -> 12410053.35 | H7: =A2A!H9 -> 12410053.35 | I7: =A2A!I9 -> 14928408.22 | J7: =A2A!J9 -> 16421249.04 | K7: =A2A!K9 -> 18063373.95
A8: Corporate services | C8: =A2A!C10 -> 15379000 | D8: =A2A!D10 -> 17966533.21 | E8: =A2A!E10 -> 15379102.09 | F8: =A2A!F10 -> 15177339.82 | G8: =A2A!G10 -> 15051120.69 | H8: =A2A!H10 -> 15051120.69 | I8: =A2A!I10 -> 22259997.11 | J8: =A2A!J10 -> 23858997.82 | K8: =A2A!K10 -> 26244897.6
A9: Community and public safety | C9: =SUM(C10:C14) -> 0 | D9: =SUM(D10:D14) -> 0 | E9: 0 | F9: 0 | G9: 0 | H9: 0 | I9: 0 | J9: 0 | K9: 0
A10: Community and social services | C10: =A2A!C16 -> 0 | D10: =A2A!D16 -> 0 | E10: =A2A!E16 -> 0 | F10: =A2A!F16 -> 0 | G10: =A2A!G16 -> 0 | H10: =A2A!H16 -> 0 | I10: =A2A!I16 -> 0 | J10: =A2A!J16 -> 0 | K10: =A2A!K16 -> 0
A11: Sport and recreation | C11: =A2A!C25 -> 0 | D11: =A2A!D25 -> 0 | E11: =A2A!E25 -> 0 | F11: =A2A!F25 -> 0 | G11: =A2A!G25 -> 0 | H11: =A2A!H25 -> 0 | I11: =A2A!I25 -> 0 | J11: =A2A!J25 -> 0 | K11: =A2A!K25 -> 0
A12: Public safety | C12: =A2A!C26 -> 0 | D12: =A2A!D26 -> 0 | E12: =A2A!E26 -> 0 | F12: =A2A!F26 -> 0 | G12: =A2A!G26 -> 0 | H12: =A2A!H26 -> 0 | I12: =A2A!I26 -> 0 | J12: =A2A!J26 -> 0 | K12: =A2A!K26 -> 0
A13: Housing | C13: =A2A!C32 -> 0 | D13: =A2A!D32 -> 0 | E13: =A2A!E32 -> 0 | F13: =A2A!F32 -> 0 | G13: =A2A!G32 -> 0 | H13: =A2A!H32 -> 0 | I13: =A2A!I32 -> 0 | J13: =A2A!J32 -> 0 | K13: =A2A!K32 -> 0
A14: Health | C14: =A2A!C33 -> 0 | D14: =A2A!D33 -> 0 | E14: =A2A!E33 -> 0 | F14: =A2A!F33 -> 0 | G14: =A2A!G33 -> 0 | H14: =A2A!H33 -> 0 | I14: =A2A!I33 -> 0 | J14: =A2A!J33 -> 0 | K14: =A2A!K33 -> 0
A15: Economic and environmental services | C15: =SUM(C16:C18) -> 9829561.68 | D15: =SUM(D16:D18) -> 8176813.82 | E15: 6224874.65 | F15: 17171939.22 | G15: 17045320.1 | H15: 17045320.1 | I15: 11639008.85 | J15: 12802909.73 | K15: 14083200.71
A16: Planning and development | C16: =A2A!C38 -> 9829561.68 | D16: =A2A!D38 -> 8176813.82 | E16: =A2A!E38 -> 6224874.65 | F16: =A2A!F38 -> 17171939.22 | G16: =A2A!G38 -> 17045320.1 | H16: =A2A!H38 -> 17045320.1 | I16: =A2A!I38 -> 11639008.85 | J16: =A2A!J38 -> 12802909.73 | K16: =A2A!K38 -> 14083200.71
A17: Road transport | C17: =A2A!C42 -> 0 | D17: =A2A!D42 -> 0 | E17: =A2A!E42 -> 0 | F17: =A2A!F42 -> 0 | G17: =A2A!G42 -> 0 | H17: =A2A!H42 -> 0 | I17: =A2A!I42 -> 0 | J17: =A2A!J42 -> 0 | K17: =A2A!K42 -> 0
A18: Environmental protection | C18: =A2A!C48 -> 0 | D18: =A2A!D48 -> 0 | E18: =A2A!E48 -> 0 | F18: =A2A!F48 -> 0 | G18: =A2A!G48 -> 0 | H18: =A2A!H48 -> 0 | I18: =A2A!I48 -> 0 | J18: =A2A!J48 -> 0 | K18: =A2A!K48 -> 0
A19: Trading services | C19: =SUM(C20:C23) -> 0 | D19: =SUM(D20:D23) -> 0 | E19: 0 | F19: 0 | G19: 0 | H19: 0 | I19: 0 | J19: =SUM(J20:J23) -> 0 | K19: 0
A20: Electricity | C20: =A2A!C53 -> 0 | D20: =A2A!D53 -> 0 | E20: =A2A!E53 -> 0 | F20: =A2A!F53 -> 0 | G20: =A2A!G53 -> 0 | H20: =A2A!H53 -> 0 | I20: =A2A!I53 -> 0 | J20: =A2A!J53 -> 0 | K20: =A2A!K53 -> 0
A21: Water | C21: =A2A!C56 -> 0 | D21: =A2A!D56 -> 0 | E21: =A2A!E56 -> 0 | F21: =A2A!F56 -> 0 | G21: =A2A!G56 -> 0 | H21: =A2A!H56 -> 0 | I21: =A2A!I56 -> 0 | J21: =A2A!J56 -> 0 | K21: =A2A!K56 -> 0
A22: Waste water management | C22: =A2A!C59 -> 0 | D22: =A2A!D59 -> 0 | E22: =A2A!E59 -> 0 | F22: =A2A!F59 -> 0 | G22: =A2A!G59 -> 0 | H22: =A2A!H59 -> 0 | I22: =A2A!I59 -> 0 | J22: =A2A!J59 -> 0 | K22: =A2A!K59 -> 0
A23: Waste management | C23: =A2A!C63 -> 0 | D23: =A2A!D63 -> 0 | E23: =A2A!E63 -> 0 | F23: =A2A!F63 -> 0 | G23: =A2A!G63 -> 0 | H23: =A2A!H63 -> 0 | I23: =A2A!I63 -> 0 | J23: =A2A!J63 -> 0 | K23: =A2A!K63 -> 0
A24: Other | B24: 4 | C24: =A2A!C65 -> 0 | D24: =A2A!D65 -> 0 | E24: =A2A!E65 -> 0 | F24: =A2A!F65 -> 0 | G24: =A2A!G65 -> 0 | H24: =A2A!H65 -> 0 | I24: =A2A!I65 -> 0 | J24: =A2A!J65 -> 0 | K24: =A2A!K65 -> 0
A25: ="Total "&A4 -> Total Revenue - Standard | B25: 2 | C25: =C5+C9+C15+C19+C24 -> 45576624 | D25: =D5+D9+D15+D19+D24 -> 90879214.34 | E25: =E5+E9+E15+E19+E24 -> 41377108 | F25: 60555255.04 | G25: 60544497.08 | H25: 60544497.08 | I25: =I5+I9+I15+I19+I24 -> 63705369.93 | J25: 69448907.92 | K25: 76393798.72
A27: Expenditure - Standard
A28: =A5 -> Governance and administration | C28: =SUM(C29:C31) -> 30795584.32 | D28: =SUM(D29:D31) -> 54109717.81 | E28: 60101131.4 | F28: 48458591.21 | G28: 47119780.93 | H28: 47119780.93 | I28: 52227155.39 | J28: 56649586.93 | K28: 61454945.62
A29: =A6 -> Executive and council | C29: =A2A!C75 -> 10688000 | D29: =A2A!D75 -> 12535276.42 | E29: =A2A!E75 -> 17531304.99 | F29: =A2A!F75 -> 17184977.42 | G29: =A2A!G75 -> 17369461.42 | H29: =A2A!H75 -> 17369461.42 | I29: =A2A!I75 -> 20830214.81 | J29: =A2A!J75 -> 22913236.29 | K29: =A2A!K75 -> 25204559.92
A30: Budget and treasury office | C30: =A2A!C78 -> 5708584.32 | D30: =A2A!D78 -> 22158108.95 | E30: =A2A!E78 -> 16279068.92 | F30: =A2A!F78 -> 11649471.49 | G30: =A2A!G78 -> 10607817.49 | H30: =A2A!H78 -> 10607817.49 | I30: =A2A!I78 -> 12354570.26 | J30: =A2A!J78 -> 13590027.29 | K30: =A2A!K78 -> 14949030.02
A31: Corporate services | C31: =A2A!C79 -> 14399000 | D31: =A2A!D79 -> 19416332.44 | E31: =A2A!E79 -> 26290757.49 | F31: =A2A!F79 -> 19624142.3 | G31: =A2A!G79 -> 19142502.02 | H31: =A2A!H79 -> 19142502.02 | I31: =A2A!I79 -> 19042370.31 | J31: =A2A!J79 -> 20146323.35 | K31: =A2A!K79 -> 21301355.68
A32: Community and public safety | C32: =SUM(C33:C37) -> 0 | D32: =SUM(D33:D37) -> 0 | E32: 0 | F32: 0 | G32: 0 | H32: 0 | I32: 0 | J32: 0 | K32: 0
A33: Community and social services | C33: =A2A!C85 -> 0 | D33: =A2A!D85 -> 0 | E33: =A2A!E85 -> 0 | F33: =A2A!F85 -> 0 | G33: =A2A!G85 -> 0 | H33: =A2A!H85 -> 0 | I33: =A2A!I85 -> 0 | J33: =A2A!J85 -> 0 | K33: =A2A!K85 -> 0
A34: Sport and recreation | C34: =A2A!C94 -> 0 | D34: =A2A!D94 -> 0 | E34: =A2A!E94 -> 0 | F34: =A2A!F94 -> 0 | G34: =A2A!G94 -> 0 | H34: =A2A!H94 -> 0 | I34: =A2A!I94 -> 0 | J34: =A2A!J94 -> 0 | K34: =A2A!K94 -> 0
A35: Public safety | C35: =A2A!C95 -> 0 | D35: =A2A!D95 -> 0 | E35: =A2A!E95 -> 0 | F35: =A2A!F95 -> 0 | G35: =A2A!G95 -> 0 | H35: =A2A!H95 -> 0 | I35: =A2A!I95 -> 0 | J35: =A2A!J95 -> 0 | K35: =A2A!K95 -> 0
A36: Housing | C36: =A2A!C101 -> 0 | D36: =A2A!D101 -> 0 | E36: =A2A!E101 -> 0 | F36: =A2A!F101 -> 0 | G36: =A2A!G101 -> 0 | H36: =A2A!H101 -> 0 | I36: =A2A!I101 -> 0 | J36: =A2A!J101 -> 0 | K36: =A2A!K101 -> 0
A37: Health | C37: =A2A!C102 -> 0 | D37: =A2A!D102 -> 0 | E37: =A2A!E102 -> 0 | F37: =A2A!F102 -> 0 | G37: =A2A!G102 -> 0 | H37: =A2A!H102 -> 0 | I37: =A2A!I102 -> 0 | J37: =A2A!J102 -> 0 | K37: =A2A!K102 -> 0
A38: Economic and environmental services | C38: =SUM(C39:C41) -> 8391760.68 | D38: =SUM(D39:D41) -> 13951921.49 | E38: 10644006.6 | F38: 14397725.7 | G38: 15276602.7 | H38: 15276602.7 | I38: 13806724.02 | J38: 15187396.42 | K38: 16706136.06
A39: Planning and development | C39: =A2A!C107 -> 8391760.68 | D39: =A2A!D107 -> 13951921.49 | E39: =A2A!E107 -> 10644006.6 | F39: =A2A!F107 -> 14397725.7 | G39: =A2A!G107 -> 15276602.7 | H39: =A2A!H107 -> 15276602.7 | I39: =A2A!I107 -> 13806724.02 | J39: =A2A!J107 -> 15187396.42 | K39: =A2A!K107 -> 16706136.06
A40: Road transport | C40: =A2A!C111 -> 0 | D40: =A2A!D111 -> 0 | E40: =A2A!E111 -> 0 | F40: =A2A!F111 -> 0 | G40: =A2A!G111 -> 0 | H40: =A2A!H111 -> 0 | I40: =A2A!I111 -> 0 | J40: =A2A!J111 -> 0 | K40: =A2A!K111 -> 0
A41: Environmental protection | C41: =A2A!C117 -> 0 | D41: =A2A!D117 -> 0 | E41: =A2A!E117 -> 0 | F41: =A2A!F117 -> 0 | G41: =A2A!G117 -> 0 | H41: =A2A!H117 -> 0 | I41: =A2A!I117 -> 0 | J41: =A2A!J117 -> 0 | K41: =A2A!K117 -> 0
A42: Trading services | C42: =SUM(C43:C46) -> 0 | D42: =SUM(D43:D46) -> 0 | E42: 0 | F42: =SUM(F43:F46) -> 0 | G42: 0 | H42: 0 | I42: 0 | J42: 0 | K42: =SUM(K43:K46) -> 0
A43: Electricity | C43: =A2A!C122 -> 0 | D43: =A2A!D122 -> 0 | E43: =A2A!E122 -> 0 | F43: =A2A!F122 -> 0 | G43: =A2A!G122 -> 0 | H43: =A2A!H122 -> 0 | I43: =A2A!I122 -> 0 | J43: =A2A!J122 -> 0 | K43: =A2A!K122 -> 0
A44: Water | C44: =A2A!C125 -> 0 | D44: =A2A!D125 -> 0 | E44: =A2A!E125 -> 0 | F44: =A2A!F125 -> 0 | G44: =A2A!G125 -> 0 | H44: =A2A!H125 -> 0 | I44: =A2A!I125 -> 0 | J44: =A2A!J125 -> 0 | K44: =A2A!K125 -> 0
A45: Waste water management | C45: =A2A!C128 -> 0 | D45: =A2A!D128 -> 0 | E45: =A2A!E128 -> 0 | F45: =A2A!F128 -> 0 | G45: =A2A!G128 -> 0 | H45: =A2A!H128 -> 0 | I45: =A2A!I128 -> 0 | J45: =A2A!J128 -> 0 | K45: =A2A!K128 -> 0
A46: Waste management | C46: =A2A!C132 -> 0 | D46: =A2A!D132 -> 0 | E46: =A2A!E132 -> 0 | F46: =A2A!F132 -> 0 | G46: =A2A!G132 -> 0 | H46: =A2A!H132 -> 0 | I46: =A2A!I132 -> 0 | J46: =A2A!J132 -> 0 | K46: =A2A!K132 -> 0
A47: Other | B47: 4 | C47: =A2A!C134 -> 0 | D47: =A2A!D134 -> 0 | E47: =A2A!E134 -> 0 | F47: =A2A!F134 -> 0 | G47: =A2A!G134 -> 0 | H47: =A2A!H134 -> 0 | I47: =A2A!I134 -> 0 | J47: =A2A!J134 -> 0 | K47: =A2A!K134 -> 0
A48: ="Total "&A27 -> Total Expenditure - Standard | B48: 3 | C48: =C28+C32+C38+C42+C47 -> 39187345 | D48: =D28+D32+D38+D42+D47 -> 68061639.3 | E48: =E28+E32+E38+E42+E47 -> 70745138 | F48: =F28+F32+F38+F42+F47 -> 62856316.92 | G48: 62396383.63 | H48: 62396383.63 | I48: 66033879.4 | J48: 71836983.34 | K48: 78161081.68
A49: =result -> Surplus/(Deficit) for the year | C49: =C25-C48 -> 6389279 | D49: =D25-D48 -> 22817575.04 | E49: -29368030 | F49: -2301061.875 | G49: -1851886.55 | H49: -1851886.55 | I49: -2328509.474 | J49: -2388075.421 | K49: -1767282.963
A50: =head27a -> References
A51: 1. Government Finance Statistics Functions and Sub-functions are standardised to assist the compilation of national and international accounts for comparison purposes
A52: 2. Total Revenue by standard classification must reconcile to Total Operating Revenue shown in Budgeted Financial Performance (revenue and expenditure)
A53: 3. Total Expenditure by Standard Classification must reconcile to Total Operating Expenditure shown in Budgeted Financial Performance (revenue and expenditure)
A54: 4. All amounts must be classified under a standard classification (modified GFS). The GFS function 'Other' is only for Abbatoirs, Air Transport, Markets and Tourism - and if used must be supported by footnotes. Nothing else may be placed under 'Other'. Assign associate share to relevant classification
A57: check oprev balance | C57: =C25-'A4-FinPerf RE'!C60 -> 0 | D57: =D25-'A4-FinPerf RE'!D60 -> 0.3399999887 | E57: =E25-'A4-FinPerf RE'!E60 -> 1992000 | F57: =F25-'A4-FinPerf RE'!F60 -> -0.004210531712 | G57: =G25-'A4-FinPerf RE'!G60 -> 631000.3958 | H57: =H25-'A4-FinPerf RE'!H60 -> 631000.3958 | I57: =I25-'A4-FinPerf RE'!J60 -> -500000.55 | J57: =J25-'A4-FinPerf RE'!K60 -> -549999.605 | K57: =K25-'A4-FinPerf RE'!L60 -> -604999.5655
A58: check opexp balance | C58: =C48-'A4-FinPerf RE'!C36 -> 0 | D58: =D48-'A4-FinPerf RE'!D36 -> 0.299999997 | E58: =E48-'A4-FinPerf RE'!E36 -> 0 | F58: =F48-'A4-FinPerf RE'!F36 -> 0 | G58: =G48-'A4-FinPerf RE'!G36 -> -0.00418510288 | H58: =H48-'A4-FinPerf RE'!H36 -> -0.00418510288 | I58: =I48-'A4-FinPerf RE'!J36 -> -500000.0064 | J58: =J48-'A4-FinPerf RE'!K36 -> -550000.2169 | K58: =K48-'A4-FinPerf RE'!L36 -> -604999.6892

Sheet A2A
A1: =muni&" - "&Approve3 -> DC16 Xhariep - Table A2 Budgeted Financial Performance (revenue and expenditure by standard classification)
A2: ="Standard Classification "&desc -> Standard Classification Description | B2: =head27 -> Ref | C2: =head1b -> 2010/11 | D2: =head1A -> 2011/12 | E2: =Head1 -> 2012/13 | F2: =Head2 -> Current Year 2013/14 | I2: =Head3 -> 2014/15 Medium Term Revenue & Expenditure Framework
A3: R thousand | B3: 1 | C3: =Head5 -> Audited Outcome | D3: =Head5 -> Audited Outcome | E3: =Head5 -> Audited Outcome | F3: =Head6 -> Original Budget | G3: =Head7 -> Adjusted Budget | H3: =Head8 -> Full Year Forecast | I3: =Head9 -> Budget Year 2014/15 | J3: =Head10 -> Budget Year +1 2015/16 | K3: =Head11 -> Budget Year +2 2016/17
A4: Revenue - Standard
A5: Municipal governance and administration | C5: =C6+C9+C10 -> 35747062.32 | D5: =D6+D9+D10 -> 82702400.52 | E5: 35152233.35 | F5: 43383315.82 | G5: 43499176.98 | H5: 43499176.98 | I5: 52066361.08 | J5: 56645998.19 | K5: 62310598.01
A6: Executive and council | C6: =SUM(C7:C8) -> 10706000 | D6: =SUM(D7:D8) -> 17930453.05 | E6: 10252734.73 | F6: 16290441.18 | G6: 16038002.94 | H6: 16038002.94 | I6: 14877955.75 | J6: 16365751.33 | K6: 18002326.46
A7: Mayor and Council | C7: 4512000 | D7: 5334402.06 | E7: 5858705.56 | F7: 5873676.471 | G7: 5747457.35 | H7: 5747457.35 | I7: =8428331.85840708+70000 -> 8498331.858 | J7: =I7*1.1 -> 9348165.044 | K7: =J7*1.1 -> 10282981.55
A8: Municipal Manager | C8: 6194000 | D8: 12596050.99 | E8: 4394029.17 | F8: 10416764.71 | G8: 10290545.59 | H8: 10290545.59 | I8: 6379623.894 | J8: =I8*1.1 -> 7017586.283 | K8: 7719344.912
A9: Budget and treasury office | C9: 9662062.32 | D9: 46805414.26 | E9: 9520396.53 | F9: 11915534.83 | G9: 12410053.35 | H9: 12410053.35 | I9: 14928408.22 | J9: 16421249.04 | K9: 18063373.95
A10: Corporate services | C10: =SUM(C11:C14) -> 15379000 | D10: =SUM(D11:D14) -> 17966533.21 | E10: 15379102.09 | F10: 15177339.82 | G10: 15051120.69 | H10: 15051120.69 | I10: 22259997.11 | J10: 23858997.82 | K10: 26244897.6
A11: Human Resources | C11: 2730000 | D11: 2629248.762 | E11: 2625700.36 | F11: 3427141.249 | G11: 3395586.47 | H11: 3395586.47 | I11: 3800487.311 | J11: =I11*1.1 -> 4180536.042 | K11: =J11*1.1 -> 4598589.647
A12: Information Technology | C12: 1678000 | D12: 1314624.381 | E12: 1125300.15 | F12: 1468774.821 | G12: 1437220.04 | H12: 1437220.04 | I12: 1628780.276 | J12: =I12*1.1 -> 1791658.304 | K12: 1970824.134
A13: Property Services | C13: 3522000 | D13: 3943873.144 | E13: 3375900.46 | F13: 4406324.463 | G13: 4374769.68 | H13: 4374769.68 | I13: 4886340.829 | J13: =I13*1.1 -> 5374974.912 | K13: 5912472.403
A14: Other Admin | C14: 7449000 | D14: 10078786.92 | E14: 8252201.12 | F14: 5875099.284 | G14: 5843544.5 | H14: 5843544.5 | I14: 11944388.69 | J14: =(I14*1.1)-626999 -> 12511828.56 | K14: =J14*1.1 -> 13763011.42
A15: Community and public safety | C15: =C16+C25+C26+C32+C33 -> 0 | D15: =D16+D25+D26+D32+D33 -> 0 | E15: 0 | F15: 0 | G15: 0 | H15: 0 | I15: 0 | J15: 0 | K15: 0
A16: Community and social services | C16: =SUM(C17:C24) -> 0 | D16: =SUM(D17:D24) -> 0 | E16: 0 | F16: 0 | G16: 0 | H16: 0 | I16: 0 | J16: 0 | K16: 0
A17: Libraries and Archives
A18: Museums & Art Galleries etc
A19: Community halls and Facilities
A20: Cemeteries & Crematoriums
A21: Child Care
A22: Aged Care
A23: Other Community
A24: Other Social
A25: Sport and recreation
A26: Public safety | C26: =SUM(C27:C31) -> 0 | D26: =SUM(D27:D31) -> 0 | E26: 0 | F26: 0 | G26: 0 | H26: 0 | I26: 0 | J26: 0 | K26: 0
A27: Police
A28: Fire
A29: Civil Defence
A30: Street Lighting
A31: Other
A32: Housing
A33: Health | C33: =SUM(C34:C36) -> 0 | D33: =SUM(D34:D36) -> 0 | E33: 0 | F33: 0 | G33: 0 | H33: 0 | I33: 0 | J33: 0 | K33: 0
A34: Clinics
A35: Ambulance
A36: Other
A37: Economic and environmental services | C37: =C38+C42+C48 -> 9829561.68 | D37: =D38+D42+D48 -> 8176813.82 | E37: 6224874.65 | F37: 17171939.22 | G37: 17045320.1 | H37: 17045320.1 | I37: 11639008.85 | J37: 12802909.73 | K37: 14083200.71
A38: Planning and development | C38: =SUM(C39:C41) -> 9829561.68 | D38: =SUM(D39:D41) -> 8176813.82 | E38: 6224874.65 | F38: 17171939.22 | G38: 17045320.1 | H38: 17045320.1 | I38: 11639008.85 | J38: 12802909.73 | K38: 14083200.71
A39: Economic Development/Planning | C39: 9829561.68 | D39: 8176813.82 | E39: 6224874.65 | F39: 17171939.22 | G39: 17045320.1 | H39: 17045320.1 | I39: 11639008.85 | J39: =I39*1.1 -> 12802909.73 | K39: =J39*1.1 -> 14083200.71
A40: Town Planning/Building enforcement
A41: Licensing & Regulation
A42: Road transport | C42: =SUM(C43:C47) -> 0 | D42: =SUM(D43:D47) -> 0 | E42: 0 | F42: 0 | G42: 0 | H42: 0 | I42: 0 | J42: 0 | K42: 0
A43: Roads
A44: Public Buses
A45: Parking Garages
A46: Vehicle Licensing and Testing
A47: Other
A48: Environmental protection | C48: =SUM(C49:C51) -> 0 | D48: =SUM(D49:D51) -> 0 | E48: 0 | F48: 0 | G48: 0 | H48: 0 | I48: 0 | J48: 0 | K48: 0
A49: Pollution Control
A50: Biodiversity & Landscape
A51: Other
A52: Trading services | C52: =C53+C56+C59+C63 -> 0 | D52: =D53+D56+D59+D63 -> 0 | E52: 0 | F52: 0 | G52: 0 | H52: 0 | I52: 0 | J52: 0 | K52: =K53+K56+K59+K63 -> 0
A53: Electricity | C53: =SUM(C54:C55) -> 0 | D53: =SUM(D54:D55) -> 0 | E53: 0 | F53: 0 | G53: 0 | H53: 0 | I53: 0 | J53: 0 | K53: 0
A54: Electricity Distribution
A55: Electricity Generation
A56: Water | C56: =SUM(C57:C58) -> 0 | D56: =SUM(D57:D58) -> 0 | E56: 0 | F56: 0 | G56: 0 | H56: 0 | I56: 0 | J56: 0 | K56: 0
A57: Water Distribution
A58: Water Storage
A59: Waste water management | C59: =SUM(C60:C62) -> 0 | D59: =SUM(D60:D62) -> 0 | E59: 0 | F59: 0 | G59: 0 | H59: 0 | I59: 0 | J59: 0 | K59: 0
A60: Sewerage
A61: Storm Water Management
A62: Public Toilets
A63: Waste management | C63: =SUM(C64) -> 0 | D63: =SUM(D64) -> 0 | E63: 0 | F63: 0 | G63: 0 | H63: 0 | I63: 0 | J63: 0 | K63: 0
A64: Solid Waste
A65: Other | C65: =SUM(C66:C70) -> 0 | D65: =SUM(D66:D70) -> 0 | E65: 0 | F65: 0 | G65: 0 | H65: 0 | I65: 0 | J65: 0 | K65: 0
A66: Air Transport
A67: Abattoirs
A68: Tourism
A69: Forestry
A70: Markets
A71: ="Total "&A4 -> Total Revenue - Standard | B71: 2 | C71: =C5+C15+C37+C52+C65 -> 45576624 | D71: =D5+D15+D37+D52+D65 -> 90879214.34 | E71: =E5+E15+E37+E52+E65 -> 41377108 | F71: 60555255.04 | G71: 60544497.08 | H71: 60544497.08 | I71: 63705369.93 | J71: 69448907.92 | K71: =K5+K15+K37+K52+K65 -> 76393798.72
A73: Expenditure - Standard
A74: =A5 -> Municipal governance and administration | C74: =C75+C78+C79 -> 30795584.32 | D74: 54109717.81 | E74: 60101131.4 | F74: 48458591.21 | G74: 47119780.93 | H74: 47119780.93 | I74: 52227155.39 | J74: 56649586.93 | K74: 61454945.62
A75: =A6 -> Executive and council | C75: =SUM(C76:C77) -> 10688000 | D75: 12535276.42 | E75: 17531304.99 | F75: 17184977.42 | G75: 17369461.42 | H75: 17369461.42 | I75: 20830214.81 | J75: 22913236.29 | K75: 25204559.92
A76: Mayor and Council | C76: 4512000 | D76: 6376862.32 | E76: 10017888.57 | F76: 9011106.818 | G76: 8805288.82 | H76: 8805288.82 | I76: =10730140.48+70000 -> 10800140.48 | J76: =I76*1.1 -> 11880154.53 | K76: =J76*1.1 -> 13068169.98
A77: Municipal Manager | C77: 6176000 | D77: 6158414.1 | E77: 7513416.42 | F77: 8173870.601 | G77: 8564172.6 | H77: 8564172.6 | I77: 10030074.33 | J77: =I77*1.1 -> 11033081.76 | K77: 12136389.94
A78: Budget and treasury office | C78: 5708584.32 | D78: 22158108.95 | E78: 16279068.92 | F78: 11649471.49 | G78: 10607817.49 | H78: 10607817.49 | I78: 12354570.26 | J78: 13590027.29 | K78: 14949030.02
A79: Corporate services | C79: =SUM(C80:C83) -> 14399000 | D79: 19416332.44 | E79: 26290757.49 | F79: 19624142.3 | G79: 19142502.02 | H79: 19142502.02 | I79: 19042370.31 | J79: 20146323.35 | K79: 21301355.68
A80: Human Resources | C80: 2730000 | D80: 2844335.479 | E80: 4489724.45 | F80: 4431257.939 | G80: 3579773.94 | H80: 3579773.94 | I80: 3201754.175 | J80: =I80*1.1 -> 3521929.592 | K80: =J80*1.1 -> 3874122.551
A81: Information Technology | C81: 1658000 | D81: 1422167.74 | E81: 1924167.62 | F81: 1899110.545 | G81: 1325773.81 | H81: 1325773.81 | I81: 1372180.361 | J81: =I81*1.1 -> 1509398.397 | K81: 1660338.236
A82: Property Services | C82: 3382000 | D82: 4266503.219 | E82: 5772502.86 | F82: 5697331.636 | G82: 3203162.66 | H82: 3203162.66 | I82: 4116541.082 | J82: =I82*1.1 -> 4528195.19 | K82: 4981014.709
A83: Other Admin | C83: 6629000 | D83: 10883326 | E83: 14104362.56 | F83: 7596442.181 | G83: 11033791.61 | H83: 11033791.61 | I83: =10062655.9770983+289238.72 -> 10351894.7 | J83: =(I83*1.1)-800284 -> 10586800.17 | K83: =(J83*1.1)-859600 -> 10785880.18
A84: Community and public safety | C84: =C85+C94+C95+C101+C102 -> 0 | D84: 0 | E84: 0 | F84: 0 | G84: 0 | H84: 0 | I84: 0 | J84: 0 | K84: 0
A85: Community and social services | C85: =SUM(C86:C93) -> 0 | D85: 0 | E85: 0 | F85: 0 | G85: 0 | H85: 0 | I85: 0 | J85: 0 | K85: 0
A86: Libraries and Archives
A87: Museums & Art Galleries etc
A88: Community halls and Facilities
A89: Cemeteries & Crematoriums
A90: Child Care
A91: Aged Care
A92: Other Community
A93: Other Social
A94: Sport and recreation
A95: Public safety | C95: =SUM(C96:C100) -> 0 | D95: 0 | E95: 0 | F95: 0 | G95: 0 | H95: 0 | I95: 0 | J95: 0 | K95: 0
A96: Police
A97: Fire
A98: Civil Defence
A99: Street Lighting
A100: Other
A101: Housing
A102: Health | C102: =SUM(C103:C105) -> 0 | D102: 0 | E102: 0 | F102: 0 | G102: 0 | H102: 0 | I102: 0 | J102: 0 | K102: 0
A103: Clinics
A104: Ambulance
A105: Other
A106: Economic and environmental services | C106: =C107+C111+C117 -> 8391760.68 | D106: 13951921.49 | E106: 10644006.6 | F106: 14397725.7 | G106: 15276602.7 | H106: 15276602.7 | I106: 13806724.02 | J106: 15187396.42 | K106: 16706136.06
A107: Planning and development | C107: =SUM(C108:C110) -> 8391760.68 | D107: 13951921.49 | E107: 10644006.6 | F107: 14397725.7 | G107: 15276602.7 | H107: 15276602.7 | I107: 13806724.02 | J107: 15187396.42 | K107: 16706136.06
A108: Economic Development/Planning | C108: 8391760.68 | D108: 13951921.49 | E108: 10644006.6 | F108: 14397725.7 | G108: 15276602.7 | H108: 15276602.7 | I108: 13806724.02 | J108: =I108*1.1 -> 15187396.42 | K108: =J108*1.1 -> 16706136.06
A109: Town Planning/Building enforcement
A110: Licensing & Regulation
A111: Road transport | C111: =SUM(C112:C116) -> 0 | D111: 0 | E111: 0 | F111: 0 | G111: 0 | H111: 0 | I111: 0 | J111: 0 | K111: 0
A112: Roads
A113: Public Buses
A114: Parking Garages
A115: Vehicle Licensing and Testing
A116: Other
A117: Environmental protection | C117: =SUM(C118:C120) -> 0 | D117: 0 | E117: 0 | F117: 0 | G117: 0 | H117: 0 | I117: 0 | J117: 0 | K117: 0
A118: Pollution Control
A119: Biodiversity & Landscape
A120: Other
A121: Trading services | C121: =C122+C125+C128+C132 -> 0 | D121: =D122+D125+D128+D132 -> 0 | E121: 0 | F121: 0 | G121: 0 | H121: 0 | I121: 0 | J121: 0 | K121: 0
A122: Electricity | C122: =SUM(C123:C124) -> 0 | D122: 0 | E122: 0 | F122: 0 | G122: 0 | H122: 0 | I122: 0 | J122: 0 | K122: 0
A123: Electricity Distribution
A124: Electricity Generation
A125: Water | C125: =SUM(C126:C127) -> 0 | D125: 0 | E125: 0 | F125: 0 | G125: 0 | H125: 0 | I125: 0 | J125: 0 | K125: 0
A126: Water Distribution
A127: Water Storage
A128: Waste water management | C128: =SUM(C129:C131) -> 0 | D128: 0 | E128: 0 | F128: 0 | G128: 0 | H128: 0 | I128: 0 | J128: 0 | K128: 0
A129: Sewerage
A130: Storm Water Management
A131: Public Toilets
A132: Waste management | C132: =SUM(C133) -> 0 | D132: 0 | E132: 0 | F132: 0 | G132: 0 | H132: 0 | I132: 0 | J132: 0 | K132: 0
A133: Solid Waste
A134: Other | C134: =SUM(C135:C139) -> 0 | D134: 0 | E134: 0 | F134: 0 | G134: 0 | H134: 0 | I134: 0 | J134: 0 | K134: 0
A135: Air Transport
A136: Abattoirs
A137: Tourism
A138: Forestry
A139: =A70 -> Markets
A140: ="Total "&A73 -> Total Expenditure - Standard | B140: 3 | C140: =C74+C84+C106+C121+C134 -> 39187345 | D140: =D74+D84+D106+D121+D134 -> 68061639.3 | E140: =E74+E84+E106+E121+E134 -> 70745138 | F140: 62856316.92 | G140: 62396383.63 | H140: 62396383.63 | I140: 66033879.4 | J140: 71836983.34 | K140: =K74+K84+K106+K121+K134 -> 78161081.68
A141: =result -> Surplus/(Deficit) for the year | C141: =C71-C140 -> 6389279 | D141: 22817575.04 | E141: -29368030 | F141: -2301061.875 | G141: -1851886.55 | H141: -1851886.55 | I141: -2328509.474 | J141: -2388075.421 | K141: -1767282.963
A142: =head27a -> References
A143: 1. Government Finance Statistics Functions and Sub-functions are standardised to assist national and international accounts and comparison
A144: 2. Total Revenue by Standard Classification must reconcile to total operating revenue shown in Financial Performance (revenue and expenditure)
A145: 3. Total Expenditure by Standard Classification must reconcile to total operating expenditure shown in Financial Performance (revenue and expenditure)
A146: 4. All amounts must be classified under a Standard (modified GFS) classification. The GFS function 'Other' is only for Abbatoirs, Air Transport, Markets and Tourism - and if used must be supported by footnotes. Nothing else may be placed under 'Other'. Assign associate share to relevant classification
A149: check oprev balance | C149: =C71-'A4-FinPerf RE'!C60 -> 0 | D149: =D71-'A4-FinPerf RE'!D60 -> 0.3399999887 | E149: =E71-'A4-FinPerf RE'!E60 -> 1992000 | F149: =F71-'A4-FinPerf RE'!F60 -> -0.004210531712 | G149: =G71-'A4-FinPerf RE'!G60 -> 631000.3958 | H149: =H71-'A4-FinPerf RE'!H60 -> 631000.3958 | I149: =I71-'A4-FinPerf RE'!J60 -> -500000.55 | J149: =J71-'A4-FinPerf RE'!K60 -> -549999.605 | K149: =K71-'A4-FinPerf RE'!L60 -> -604999.5655
A150: check opexp balance | C150: =C140-'A4-FinPerf RE'!C36 -> 0 | D150: =D140-'A4-FinPerf RE'!D36 -> 0.299999997 | E150: =E140-'A4-FinPerf RE'!E36 -> 0 | F150: =F140-'A4-FinPerf RE'!F36 -> 0 | G150: =G140-'A4-FinPerf RE'!G36 -> -0.00418510288 | H150: =H140-'A4-FinPerf RE'!H36 -> -0.00418510288 | I150: =I140-'A4-FinPerf RE'!J36 -> -500000.0064 | J150: =J140-'A4-FinPerf RE'!K36 -> -550000.2169 | K150: =K140-'A4-FinPerf RE'!L36 -> -604999.6892

Sheet A3-FinPerf V
A1: =muni&" - "&Approve2 -> DC16 Xhariep - Table A3 Budgeted Financial Performance (revenue and expenditure by municipal vote)
A2: =Vdesc -> Vote Description | B2: =head27 -> Ref | C2: =head1b -> 2010/11 | D2: =head1A -> 2011/12 | E2: =Head1 -> 2012/13 | F2: =Head2 -> Current Year 2013/14 | I2: =Head3 -> 2014/15 Medium Term Revenue & Expenditure Framework | L2: =Head4 -> LTFS
A3: R thousand | C3: =Head5 -> Audited Outcome | D3: =Head5 -> Audited Outcome | E3: =Head5 -> Audited Outcome | F3: =Head6 -> Original Budget | G3: =Head7 -> Adjusted Budget | H3: =Head8 -> Full Year Forecast | I3: =Head9 -> Budget Year 2014/15 | J3: =Head10 -> Budget Year +1 2015/16 | K3: =Head11 -> Budget Year +2 2016/17 | L3: =Head12 -> Forecast 2017/18 | M3: =Head13 -> Forecast 2018/19 | N3: =Head14 -> Forecast 2019/20 | O3: =Head15 -> Forecast 2020/21 | P3: =Head16 -> Forecast 2021/22 | Q3: =Head17 -> Forecast 2022/23 | R3: =Head18 -> Forecast 2023/24 | S3: =Head19 -> Forecast 2024/25 | T3: =Head20 -> Forecast 2025/26 | U3: =Head21 -> Forecast 2026/27 | V3: =Head22 -> Forecast 2027/28 | W3: =Head23 -> Forecast 2028/29
A4: Revenue by Vote | B4: 1
A5: =A3A!A5 -> Vote 1 - General Council | C5: =A3A!C5 -> 4511595.408 | D5: =A3A!D5 -> 5334402.06 | E5: =A3A!E5 -> 5858705.56 | F5: =A3A!F5 -> 5873676.471 | G5: =A3A!G5 -> 5747457.2 | H5: =A3A!H5 -> 5747457.2 | I5: =A3A!I5 -> 8498331.858 | J5: =A3A!J5 -> 9348165.044 | K5: =A3A!K5 -> 10282981.55
A6: =A3A!A16 -> Vote 2 - Municipal Manager | C6: =A3A!C16 -> 6194996.52 | D6: =A3A!D16 -> 12596050.99 | E6: =A3A!E16 -> 3075820.41 | F6: =A3A!F16 -> 10416764.71 | G6: =A3A!G16 -> 10290545.58 | H6: =A3A!H16 -> 10290545.58 | I6: =A3A!I16 -> 6379623.894 | J6: =A3A!J16 -> 7017586.283 | K6: =A3A!K16 -> 7719344.912
A7: =A3A!A27 -> Vote 3 - Budget & Treasury Office | C7: =A3A!C27 -> 9662002.97 | D7: =A3A!D27 -> 46805414.26 | E7: =A3A!E27 -> 9520396.53 | F7: =A3A!F27 -> 11915534.83 | G7: =A3A!G27 -> 12410053.34 | H7: =A3A!H27 -> 12410053.34 | I7: =A3A!I27 -> 14928408.22 | J7: =A3A!J27 -> 16421249.04 | K7: =A3A!K27 -> 18063373.94
A8: =A3A!A38 -> Vote 4 - Planning & Development | C8: =A3A!C38 -> 9829560.68 | D8: =A3A!D38 -> 8176813.82 | E8: =A3A!E38 -> 7543083.4 | F8: =A3A!F38 -> 17171939.22 | G8: =A3A!G38 -> 17045319.47 | H8: =A3A!H38 -> 17045319.47 | I8: =A3A!I38 -> 11639008.85 | J8: =A3A!J38 -> 12802909.73 | K8: =A3A!K38 -> 14083200.71
A9: =A3A!A49 -> Vote 5 - Corporate Services | C9: =A3A!C49 -> 15378468.11 | D9: =A3A!D49 -> 17966533.21 | E9: =A3A!E49 -> 15379102.09 | F9: =A3A!F49 -> 15177339.81 | G9: =A3A!G49 -> 15051120.71 | H9: =A3A!H49 -> 15051120.71 | I9: =A3A!I49 -> 22259997.11 | J9: =A3A!J49 -> 23858997.82 | K9: =A3A!K49 -> 26244897.6
A10: =A3A!A60 -> Vote 6 - [NAME OF VOTE 6] | C10: =A3A!C60 -> 0 | D10: =A3A!D60 -> 0 | E10: =A3A!E60 -> 0 | F10: =A3A!F60 -> 0 | G10: =A3A!G60 -> 0 | H10: =A3A!H60 -> 0 | I10: =A3A!I60 -> 0 | J10: =A3A!J60 -> 0 | K10: =A3A!K60 -> 0
A11: =A3A!A71 -> Vote 7 - [NAME OF VOTE 7] | C11: =A3A!C71 -> 0 | D11: =A3A!D71 -> 0 | E11: =A3A!E71 -> 0 | F11: =A3A!F71 -> 0 | G11: =A3A!G71 -> 0 | H11: =A3A!H71 -> 0 | I11: =A3A!I71 -> 0 | J11: =A3A!J71 -> 0 | K11: =A3A!K71 -> 0
A12: =A3A!A82 -> Vote 8 - [NAME OF VOTE 8] | C12: =A3A!C82 -> 0 | D12: =A3A!D82 -> 0 | E12: =A3A!E82 -> 0 | F12: =A3A!F82 -> 0 | G12: =A3A!G82 -> 0 | H12: =A3A!H82 -> 0 | I12: =A3A!I82 -> 0 | J12: =A3A!J82 -> 0 | K12: =A3A!K82 -> 0
A13: =A3A!A93 -> Vote 9 - [NAME OF VOTE 9] | C13: =A3A!C93 -> 0 | D13: =A3A!D93 -> 0 | E13: =A3A!E93 -> 0 | F13: =A3A!F93 -> 0 | G13: =A3A!G93 -> 0 | H13: =A3A!H93 -> 0 | I13: =A3A!I93 -> 0 | J13: =A3A!J93 -> 0 | K13: =A3A!K93 -> 0
A14: =A3A!A104 -> Vote 10 - [NAME OF VOTE 10] | C14: =A3A!C104 -> 0 | D14: =A3A!D104 -> 0 | E14: =A3A!E104 -> 0 | F14: =A3A!F104 -> 0 | G14: =A3A!G104 -> 0 | H14: =A3A!H104 -> 0 | I14: =A3A!I104 -> 0 | J14: =A3A!J104 -> 0 | K14: =A3A!K104 -> 0
A15: =A3A!A115 -> Vote 11 - [NAME OF VOTE 11] | C15: =A3A!C115 -> 0 | D15: =A3A!D115 -> 0 | E15: =A3A!E115 -> 0 | F15: =A3A!F115 -> 0 | G15: =A3A!G115 -> 0 | H15: =A3A!H115 -> 0 | I15: =A3A!I115 -> 0 | J15: =A3A!J115 -> 0 | K15: =A3A!K115 -> 0 | L15: =A5A!L115 -> 0
A16: =A3A!A126 -> Vote 12 - [NAME OF VOTE 12] | C16: =A3A!C126 -> 0 | D16: =A3A!D126 -> 0 | E16: =A3A!E126 -> 0 | F16: =A3A!F126 -> 0 | G16: =A3A!G126 -> 0 | H16: =A3A!H126 -> 0 | I16: =A3A!I126 -> 0 | J16: =A3A!J126 -> 0 | K16: =A3A!K126 -> 0 | L16: =A5A!L126 -> 0
A17: =A3A!A137 -> Vote 13 - [NAME OF VOTE 13] | C17: =A3A!C137 -> 0 | D17: =A3A!D137 -> 0 | E17: =A3A!E137 -> 0 | F17: =A3A!F137 -> 0 | G17: =A3A!G137 -> 0 | H17: =A3A!H137 -> 0 | I17: =A3A!I137 -> 0 | J17: =A3A!J137 -> 0 | K17: =A3A!K137 -> 0 | L17: =A5A!L137 -> 0
A18: =A3A!A148 -> Vote 14 - [NAME OF VOTE 14] | C18: =A3A!C148 -> 0 | D18: =A3A!D148 -> 0 | E18: =A3A!E148 -> 0 | F18: =A3A!F148 -> 0 | G18: =A3A!G148 -> 0 | H18: =A3A!H148 -> 0 | I18: =A3A!I148 -> 0 | J18: =A3A!J148 -> 0 | K18: =A3A!K148 -> 0 | L18: =A5A!L148 -> 0
A19: =A3A!A159 -> Vote 15 - [NAME OF VOTE 15] | C19: =A3A!C159 -> 0 | D19: =A3A!D159 -> 0 | E19: =A3A!E159 -> 0 | F19: =A3A!F159 -> 0 | G19: =A3A!G159 -> 0 | H19: =A3A!H159 -> 0 | I19: =A3A!I159 -> 0 | J19: =A3A!J159 -> 0 | K19: =A3A!K159 -> 0 | L19: =A5A!L159 -> 0
A20: Total Revenue by Vote | B20: 2 | C20: =SUM(C5:C19) -> 45576623.69 | D20: =SUM(D5:D19) -> 90879214.34 | E20: 41377107.99 | F20: 60555255.03 | G20: 60544496.3 | H20: 60544496.3 | I20: 63705369.93 | J20: 69448907.92 | K20: 76393798.71
A22: Expenditure by Vote to be appropriated | B22: 1
A23: =A3A!A173 -> Vote 1 - General Council | C23: =A3A!C173 -> 4511593.408 | D23: =A3A!D173 -> 6377438.32 | E23: =A3A!E173 -> 10017888.57 | F23: =A3A!F173 -> 9011522.818 | G23: =A3A!G173 -> 8805489.81 | H23: =A3A!H173 -> 8805489.81 | I23: =A3A!I173 -> 10800140.48 | J23: =A3A!J173 -> 11880154.53 | K23: =A3A!K173 -> 13068169.98
A24: =A3A!A184 -> Vote 2 - Municipal Manager | C24: =A3A!C184 -> 6176410.52 | D24: =A3A!D184 -> 4789877.633 | E24: =A3A!E184 -> 5259391.48 | F24: =A3A!F184 -> 6357454.912 | G24: =A3A!G184 -> 8563855.6 | H24: =A3A!H184 -> 8563855.6 | I24: =A3A!I184 -> 10030074.33 | J24: =A3A!J184 -> 11033081.76 | K24: =A3A!K184 -> 12136389.94
A25: =A3A!A195 -> Vote 3 - Budget & Treasury Office | C25: =A3A!C195 -> 5708524.97 | D25: =A3A!D195 -> 22158108.95 | E25: =A3A!E195 -> 16279068.92 | F25: =A3A!F195 -> 11649471.49 | G25: =A3A!G195 -> 10608136.34 | H25: =A3A!H195 -> 10608136.34 | I25: =A3A!I195 -> 12354570.37 | J25: =A3A!J195 -> 13590027.4 | K25: =A3A!K195 -> 14949030.14
A26: =A3A!A206 -> Vote 4 - Planning & Development | C26: =A3A!C206 -> 8391759.68 | D26: =A3A!D206 -> 15618921.49 | E26: =A3A!E206 -> 12898031.54 | F26: =A3A!F206 -> 16213725.7 | G26: =A3A!G206 -> 13285657.7 | H26: =A3A!H206 -> 13285657.7 | I26: =A3A!I206 -> 13806724.02 | J26: =A3A!J206 -> 15187396.42 | K26: =A3A!K206 -> 16706136.06
A27: =A3A!A217 -> Vote 5 - Corporate Services | C27: =A3A!C217 -> 14399056.11 | D27: =A3A!D217 -> 19117292.44 | E27: =A3A!E217 -> 26290757.49 | F27: =A3A!F217 -> 19624142.3 | G27: =A3A!G217 -> 21133244.02 | H27: =A3A!H217 -> 21133244.02 | I27: =A3A!I217 -> 19042370.31 | J27: =A3A!J217 -> 20146323.35 | K27: =A3A!K217 -> 21301355.68
A28: =A3A!A228 -> Vote 6 - [NAME OF VOTE 6] | C28: =A3A!C228 -> 0 | D28: =A3A!D228 -> 0 | E28: =A3A!E228 -> 0 | F28: =A3A!F228 -> 0 | G28: =A3A!G228 -> 0 | H28: =A3A!H228 -> 0 | I28: =A3A!I228 -> 0 | J28: =A3A!J228 -> 0 | K28: =A3A!K228 -> 0
A29: =A3A!A239 -> Vote 7 - [NAME OF VOTE 7] | C29: =A3A!C239 -> 0 | D29: =A3A!D239 -> 0 | E29: =A3A!E239 -> 0 | F29: =A3A!F239 -> 0 | G29: =A3A!G239 -> 0 | H29: =A3A!H239 -> 0 | I29: =A3A!I239 -> 0 | J29: =A3A!J239 -> 0 | K29: =A3A!K239 -> 0
A30: =A3A!A250 -> Vote 8 - [NAME OF VOTE 8] | C30: =A3A!C250 -> 0 | D30: =A3A!D250 -> 0 | E30: =A3A!E250 -> 0 | F30: =A3A!F250 -> 0 | G30: =A3A!G250 -> 0 | H30: =A3A!H250 -> 0 | I30: =A3A!I250 -> 0 | J30: =A3A!J250 -> 0 | K30: =A3A!K250 -> 0
A31: =A3A!A261 -> Vote 9 - [NAME OF VOTE 9] | C31: =A3A!C261 -> 0 | D31: =A3A!D261 -> 0 | E31: =A3A!E261 -> 0 | F31: =A3A!F261 -> 0 | G31: =A3A!G261 -> 0 | H31: =A3A!H261 -> 0 | I31: =A3A!I261 -> 0 | J31: =A3A!J261 -> 0 | K31: =A3A!K261 -> 0
A32: =A3A!A272 -> Vote 10 - [NAME OF VOTE 10] | C32: =A3A!C272 -> 0 | D32: =A3A!D272 -> 0 | E32: =A3A!E272 -> 0 | F32: =A3A!F272 -> 0 | G32: =A3A!G272 -> 0 | H32: =A3A!H272 -> 0 | I32: =A3A!I272 -> 0 | J32: =A3A!J272 -> 0 | K32: =A3A!K272 -> 0
A33: =A3A!A283 -> Vote 11 - [NAME OF VOTE 11] | C33: =A3A!C283 -> 0 | D33: =A3A!D283 -> 0 | E33: =A3A!E283 -> 0 | F33: =A3A!F283 -> 0 | G33: =A3A!G283 -> 0 | H33: =A3A!H283 -> 0 | I33: =A3A!I283 -> 0 | J33: =A3A!J283 -> 0 | K33: =A3A!K283 -> 0 | L33: =A3A!L284 -> 0
A34: =A3A!A294 -> Vote 12 - [NAME OF VOTE 12] | C34: =A3A!C294 -> 0 | D34: =A3A!D294 -> 0 | E34: =A3A!E294 -> 0 | F34: =A3A!F294 -> 0 | G34: =A3A!G294 -> 0 | H34: =A3A!H294 -> 0 | I34: =A3A!I294 -> 0 | J34: =A3A!J294 -> 0 | K34: =A3A!K294 -> 0 | L34: =A3A!L295 -> 0
A35: =A3A!A305 -> Vote 13 - [NAME OF VOTE 13] | C35: =A3A!C305 -> 0 | D35: =A3A!D305 -> 0 | E35: =A3A!E305 -> 0 | F35: =A3A!F305 -> 0 | G35: =A3A!G305 -> 0 | H35: =A3A!H305 -> 0 | I35: =A3A!I305 -> 0 | J35: =A3A!J305 -> 0 | K35: =A3A!K305 -> 0 | L35: =A3A!L306 -> 0
A36: =A3A!A316 -> Vote 14 - [NAME OF VOTE 14] | C36: =A3A!C316 -> 0 | D36: =A3A!D316 -> 0 | E36: =A3A!E316 -> 0 | F36: =A3A!F316 -> 0 | G36: =A3A!G316 -> 0 | H36: =A3A!H316 -> 0 | I36: =A3A!I316 -> 0 | J36: =A3A!J316 -> 0 | K36: =A3A!K316 -> 0 | L36: =A3A!L317 -> 0
A37: =A3A!A327 -> Vote 15 - [NAME OF VOTE 15] | C37: =A3A!C327 -> 0 | D37: =A3A!D327 -> 0 | E37: =A3A!E327 -> 0 | F37: =A3A!F327 -> 0 | G37: =A3A!G327 -> 0 | H37: =A3A!H327 -> 0 | I37: =A3A!I327 -> 0 | J37: =A3A!J327 -> 0 | K37: =A3A!K327 -> 0 | L37: =A3A!L328 -> 0
A38: Total Expenditure by Vote | B38: 2 | C38: =SUM(C23:C37) -> 39187344.69 | D38: =SUM(D23:D37) -> 68061638.83 | E38: 70745138 | F38: 62856317.23 | G38: 62396383.47 | H38: 62396383.47 | I38: 66033879.51 | J38: 71836983.46 | K38: 78161081.8 | L38: =SUM(L23:L29) -> 0 | M38: 0 | N38: 0 | O38: 0 | P38: 0 | Q38: 0 | R38: 0 | S38: 0 | T38: 0 | U38: 0 | V38: 0 | W38: 0
A39: =result -> Surplus/(Deficit) for the year | B39: 2 | C39: =C20-C38 -> 6389279 | D39: 22817575.51 | E39: -29368030.01 | F39: -2301062.194 | G39: -1851887.17 | H39: -1851887.17 | I39: -2328509.582 | J39: -2388075.54 | K39: -1767283.094 | L39: 0 | M39: 0 | N39: 0 | O39: 0 | P39: 0 | Q39: 0 | R39: 0 | S39: 0 | T39: 0 | U39: 0 | V39: 0 | W39: 0
A40: =head27a -> References
A41: 1. Insert 'Vote'; e.g. department, if different to standard classification structure
A42: 2. Must reconcile to Budgeted Financial Performance (revenue and expenditure)
A43: 3. Assign share in 'associate' to relevant Vote
A45: ="check "&A39 -> check Surplus/(Deficit) for the year | C45: =C39-A3A!C340 -> 0 | D45: =D39-A3A!D340 -> 0 | E45: =E39-A3A!E340 -> 0 | F45: =F39-A3A!F340 -> 0 | G45: =G39-A3A!G340 -> 0 | H45: =H39-A3A!H340 -> 0 | I45: =I39-A3A!I340 -> 0 | J45: =J39-A3A!J340 -> 0 | K45: =K39-A3A!K340 -> 0

Sheet A3A
A1: =muni&" - "&Approve2&"A" -> DC16 Xhariep - Table A3 Budgeted Financial Performance (revenue and expenditure by municipal vote)A
A2: =Vdesc -> Vote Description | B2: =head27 -> Ref | C2: =head1b -> 2010/11 | D2: =head1A -> 2011/12 | E2: =Head1 -> 2012/13 | F2: =Head2 -> Current Year 2013/14 | I2: =Head3 -> 2014/15 Medium Term Revenue & Expenditure Framework | L2: =Head4 -> LTFS
A3: R thousand | C3: =Head5 -> Audited Outcome | D3: =Head5 -> Audited Outcome | E3: =Head5 -> Audited Outcome | F3: =Head6 -> Original Budget | G3: =Head7 -> Adjusted Budget | H3: =Head8 -> Full Year Forecast | I3: =Head9 -> Budget Year 2014/15 | J3: =Head10 -> Budget Year +1 2015/16 | K3: =Head11 -> Budget Year +2 2016/17 | L3: =Head12 -> Forecast 2017/18 | M3: =Head13 -> Forecast 2018/19 | N3: =Head14 -> Forecast 2019/20 | O3: =Head15 -> Forecast 2020/21 | P3: =Head16 -> Forecast 2021/22 | Q3: =Head17 -> Forecast 2022/23 | R3: =Head18 -> Forecast 2023/24 | S3: =Head19 -> Forecast 2024/25 | T3: =Head20 -> Forecast 2025/26 | U3: =Head21 -> Forecast 2026/27 | V3: =Head22 -> Forecast 2027/28 | W3: =Head23 -> Forecast 2028/29
A4: Revenue by Vote | B4: 1
A5: ='Org structure'!A2 -> Vote 1 - General Council | C5: =SUM(C6:C15) -> 4511595.408 | D5: =SUM(D6:D15) -> 5334402.06 | E5: 5858705.56 | F5: 5873676.471 | G5: 5747457.2 | H5: 5747457.2 | I5: 8498331.858 | J5: 9348165.044 | K5: 10282981.55
A6: ='Org structure'!E3 -> 1.1 - Mayor | C6: 1451963.052 | D6: 1926467.353 | E6: 1464676.39 | F6: 1957892.157 | G6: 1936855.48 | H6: 1936855.48 | I6: =2107082.96460177+70000 -> 2177082.965 | J6: =I6*1.1 -> 2394791.261 | K6: =J6*1.1 -> 2634270.387
A7: ='Org structure'!E4 -> 1.2 - Speaker | C7: 792078.5633 | D7: 1963084.192 | E7: 366169.1 | F7: 2447365.196 | G7: 2426328.68 | H7: 2426328.68 | I7: 526770.7412 | J7: =I7*1.1 -> 579447.8153 | K7: 637392.5968
A8: ='Org structure'!E5 -> 1.3 - Council | C8: 1691362.793 | D8: 0 | E8: 4027860.07 | F8: 0 | G8: -21036.52 | H8: -21036.52 | I8: 5794478.153 | J8: =I8*1.1 -> 6373925.968 | K8: 7011318.565
A9: ='Org structure'!E6 -> 1.4 Youth Development Programme | C9: 198729.6667 | D9: 481616.8383 | F9: 489473.0392 | G9: 468436.52 | H9: 468436.52 | J9: =I9*1.1 -> 0 | K9: 0
A10: ='Org structure'!E7 -> 1.5 Special Programme | C10: 188731.6667 | D10: 481616.8383 | F10: 489473.0392 | G10: 468436.52 | H10: 468436.52 | J10: =I10*1.1 -> 0 | K10: 0
A11: ='Org structure'!E8 -> 1.6 IGR | C11: 188729.6667 | D11: 481616.8383 | F11: 489473.0392 | G11: 468436.52 | H11: 468436.52 | J11: =I11*1.1 -> 0 | K11: =J11*1.1 -> 0
A12: ='Org structure'!E9 -> 0
A13: ='Org structure'!E10 -> 0
A14: ='Org structure'!E11 -> 0
A15: ='Org structure'!E12 -> 0
A16: ='Org structure'!A3 -> Vote 2 - Municipal Manager | C16: =SUM(C17:C26) -> 6194996.52 | D16: =SUM(D17:D26) -> 12596050.99 | E16: 3075820.41 | F16: 10416764.71 | G16: 10290545.58 | H16: 10290545.58 | I16: 6379623.894 | J16: 7017586.283 | K16: 7719344.912
A17: ='Org structure'!E14 -> 2.1 - Office of the Municipal Manager | C17: 3833146.67 | D17: 2799122.442 | E17: 878805.83 | F17: 2314836.601 | G17: 2283281.82 | H17: 2283281.82 | I17: 1275924.779 | J17: =I17*1.1 -> 1403517.257 | K17: =J17*1.1 -> 1543868.982
A18: ='Org structure'!E15 -> 2.2 - Internal Audit | C18: 704762.38 | D18: 2799122.442 | E18: 878805.83 | F18: 2314836.601 | G18: 2283281.82 | H18: 2283281.82 | I18: 1275924.779 | J18: =I18*1.1 -> 1403517.257 | K18: 1543868.982
A19: ='Org structure'!E16 -> 2.3 - Performance and Monitoring Management | C19: 1013301.39 | D19: 2799122.442 | E19: 878805.83 | F19: 2314836.601 | G19: 2283281.82 | H19: 2283281.82 | I19: 1275924.779 | J19: =I19*1.1 -> 1403517.257 | K19: 1543868.982
A20: ='Org structure'!E17 -> 2.4 - Risk Office | C20: 643786.08 | D20: 1399561.221 | E20: 439402.92 | F20: 1157418.301 | G20: 1125863.52 | H20: 1125863.52 | I20: 637962.3894 | J20: =I20*1.1 -> 701758.6283 | K20: 771934.4912
A21: ='Org structure'!E18 -> 2.5 - Disaster management | D21: 2799122.442 | F21: 2314836.601 | G21: 2314836.6 | H21: 2314836.6 | I21: 1913887.168 | J21: =I21*1.1 -> 2105275.885 | K21: 2315803.473
A22: ='Org structure'!E19 -> 0
A23: ='Org structure'!E20 -> 0
A24: ='Org structure'!E21 -> 0
A25: ='Org structure'!E22 -> 0
A26: ='Org structure'!E23 -> 0
A27: ='Org structure'!A4 -> Vote 3 - Budget & Treasury Office | C27: =SUM(C28:C37) -> 9662002.97 | D27: 46805414.26 | E27: 9520396.53 | F27: 11915534.83 | G27: 12410053.34 | H27: 12410053.34 | I27: 14928408.22 | J27: 16421249.04 | K27: 18063373.94
A28: ='Org structure'!E25 -> 3.1 - Office of the CFO | C28: 4253327.08 | D28: 3504104.76 | E28: 732338.19 | F28: 882632.2097 | G28: 851077.43 | H28: 851077.43 | I28: =1148339.09383935+1620847.73 -> 2769186.824 | J28: =I28*1.1 -> 3046105.506 | K28: =J28*1.1 -> 3350716.057
A29: ='Org structure'!E26 -> 3.2 - Supply Chain Management | C29: 1483655.33 | D29: 7008209.52 | E29: 1464676.39 | F29: 1765264.419 | G29: 1733709.64 | H29: 1733709.64 | I29: 2296678.188 | J29: =I29*1.1 -> 2526346.006 | K29: 2778980.607
A30: ='Org structure'!E27 -> 3.3 - Expenditure | C30: 2018727.287 | D30: 15268471.42 | E30: 3295521.88 | F30: 3971844.944 | G30: 3940290.16 | H30: 3940290.16 | I30: 5167525.922 | J30: 5684278.515 | K30: 6252706.366
A31: ='Org structure'!E28 -> 3.4 - Budget & Reporting | C31: 1490377.943 | D31: 12264366.66 | E31: 2197014.58 | F31: 3089212.734 | G31: 3678395.59 | H31: 3678395.59 | I31: 3445017.282 | J31: 3789519.01 | K31: 4168470.911
A32: ='Org structure'!E29 -> 3.5 - FMG Projects | C32: 415915.33 | D32: 8760261.9 | E32: 1830845.49 | F32: 2206580.524 | G32: 2206580.52 | H32: 2206580.52 | I32: 1250000 | J32: =I32*1.1 -> 1375000 | K32: =J32*1.1 -> 1512500
A33: ='Org structure'!E30 -> 0
A34: ='Org structure'!E31 -> 0
A35: ='Org structure'!E32 -> 0
A36: ='Org structure'!E33 -> 0
A37: ='Org structure'!E34 -> 0
A38: ='Org structure'!A5 -> Vote 4 - Planning & Development | C38: =SUM(C39:C48) -> 9829560.68 | D38: 8176813.82 | E38: 7543083.4 | F38: 17171939.22 | G38: 17045319.47 | H38: 17045319.47 | I38: 11639008.85 | J38: 12802909.73 | K38: 14083200.71
A39: ='Org structure'!E36 -> 4.1 - Office of the Director - Planning and Development | C39: 502449.5424 | D39: 711027.2887 | E39: 732338.19 | F39: 1493177.323 | G39: 1467933.5 | H39: 1467933.5 | I39: 1369295.159 | J39: =I39*1.1 -> 1506224.675 | K39: =J39*1.1 -> 1656847.142
A40: ='Org structure'!E37 -> 4.2 - Economic Development | C40: 3802890.121 | D40: 2488595.51 | E40: 1830845.49 | F40: 5226520.631 | G40: 5200876.18 | H40: 5200876.18 | I40: 3423237.897 | J40: =I40*1.1 -> 3765561.687 | K40: 4142117.855
A41: ='Org structure'!E38 -> 4.4 - Development Planning | C41: 1381548.2 | D41: 1066540.933 | E41: 1318208.75 | F41: 2239765.985 | G41: 2214522.16 | H41: 2214522.16 | I41: 2053942.738 | J41: =I41*1.1 -> 2259337.012 | K41: 2485270.713
A42: ='Org structure'!E39 -> 4.5 - Municipal Health | C42: 1902584.884 | D42: 1066540.933 | E42: 1098507.29 | F42: 2239765.985 | G42: 2214522.16 | H42: 2214522.16 | I42: 4792533.056 | J42: =I42*1.1 -> 5271786.361 | K42: 5798964.997
A43: ='Org structure'!E40 -> 0 | C43: 2240087.933 | D43: 2133081.866 | E43: 2563183.68 | F43: 4479531.969 | G43: 4454288.15 | H43: 4454288.15
A44: ='Org structure'!E41 -> 0 | D44: 711027.2887 | F44: 1493177.323 | G44: 1493177.32 | H44: 1493177.32
A45: ='Org structure'!E42 -> 0
A46: ='Org structure'!E43 -> 0
A47: ='Org structure'!E44 -> 0
A48: ='Org structure'!E45 -> 0
A49: ='Org structure'!A6 -> Vote 5 - Corporate Services | C49: =SUM(C50:C59) -> 15378468.11 | D49: =SUM(D50:D59) -> 17966533.21 | E49: 15379102.09 | F49: 15177339.81 | G49: 15051120.71 | H49: 15051120.71 | I49: 22259997.11 | J49: 23858997.82 | K49: 26244897.6
A50: ='Org structure'!E47 -> 5.1 - Office of the Director - Corporate Services | C50: 2253767.939 | D50: 1159131.175 | E50: 0 | F50: 979183.21 | G50: 953939.39 | H50: 953939.39 | I50: =1700000 -> 1700000 | J50: =I50*1.1 -> 1870000 | K50: =J50*1.1 -> 2057000
A51: ='Org structure'!E48 -> 5.2 - Administration | C51: 5195025.577 | D51: 5795655.874 | E51: 8252201.12 | F51: 4895916.07 | G51: 4870672.25 | H51: 4870672.25 | I51: =11944388.6922685-1700000 -> 10244388.69 | J51: =(I51*1.1)-626999 -> 10641828.56 | K51: =J51*1.1 -> 11706011.42
A52: ='Org structure'!E49 -> 5.3 - Information Technology | C52: 1678209.449 | D52: 1738696.762 | E52: 1125300.15 | F52: 1468774.82 | G52: 1443531 | H52: 1443531 | I52: 1628780.276 | J52: =I52*1.1 -> 1791658.304 | K52: 1970824.134
A53: ='Org structure'!E50 -> 5.4 - Property Services | C53: 3521947.471 | D53: 5216090.287 | E53: 3375900.46 | F53: 4406324.46 | G53: 4381080.64 | H53: 4381080.64 | I53: 4886340.829 | J53: =I53*1.1 -> 5374974.912 | K53: 5912472.403
A54: ='Org structure'!E51 -> 5.5 - Human Resources | C54: 2729517.673 | D54: 4056959.112 | E54: 2625700.36 | F54: 3427141.25 | G54: 3401897.43 | H54: 3401897.43 | I54: 3800487.311 | J54: =I54*1.1 -> 4180536.042 | K54: =J54*1.1 -> 4598589.647
A55: ='Org structure'!E52 -> 0
A56: ='Org structure'!E53 -> 0
A57: ='Org structure'!E54 -> 0
A58: ='Org structure'!E55 -> 0
A59: ='Org structure'!E56 -> 0
A60: ='Org structure'!A7 -> Vote 6 - [NAME OF VOTE 6] | C60: =SUM(C61:C70) -> 0 | D60: =SUM(D61:D70) -> 0 | E60: 0 | F60: 0 | G60: 0 | H60: 0 | I60: 0 | J60: 0 | K60: 0
A61: ='Org structure'!E58 -> 6.1 - [Name of sub-vote]
A62: ='Org structure'!E59 -> 0
A63: ='Org structure'!E60 -> 0
A64: ='Org structure'!E61 -> 0
A65: ='Org structure'!E62 -> 0
A66: ='Org structure'!E63 -> 0
A67: ='Org structure'!E64 -> 0
A68: ='Org structure'!E65 -> 0
A69: ='Org structure'!E66 -> 0
A70: ='Org structure'!E67 -> 0
A71: ='Org structure'!A8 -> Vote 7 - [NAME OF VOTE 7] | C71: =SUM(C72:C81) -> 0 | D71: 0 | E71: 0 | F71: 0 | G71: 0 | H71: 0 | I71: 0 | J71: 0 | K71: 0
A72: ='Org structure'!E69 -> 7.1 - [Name of sub-vote]
A73: ='Org structure'!E70 -> 0
A74: ='Org structure'!E71 -> 0
A75: ='Org structure'!E72 -> 0
A76: ='Org structure'!E73 -> 0
A77: ='Org structure'!E74 -> 0
A78: ='Org structure'!E75 -> 0
A79: ='Org structure'!E76 -> 0
A80: ='Org structure'!E77 -> 0
A81: ='Org structure'!E78 -> 0
A82: ='Org structure'!A9 -> Vote 8 - [NAME OF VOTE 8] | C82: =SUM(C83:C92) -> 0 | D82: =SUM(D83:D92) -> 0 | E82: 0 | F82: 0 | G82: 0 | H82: 0 | I82: 0 | J82: 0 | K82: 0
A83: ='Org structure'!E80 -> 8.1 - [Name of sub-vote]
A84: ='Org structure'!E81 -> 0
A85: ='Org structure'!E82 -> 0
A86: ='Org structure'!E83 -> 0
A87: ='Org structure'!E84 -> 0
A88: ='Org structure'!E85 -> 0
A89: ='Org structure'!E86 -> 0
A90: ='Org structure'!E87 -> 0
A91: ='Org structure'!E88 -> 0
A92: ='Org structure'!E89 -> 0
A93: ='Org structure'!A10 -> Vote 9 - [NAME OF VOTE 9] | C93: =SUM(C94:C103) -> 0 | D93: =SUM(D94:D103) -> 0 | E93: 0 | F93: 0 | G93: 0 | H93: 0 | I93: 0 | J93: 0 | K93: 0
A94: ='Org structure'!E91 -> 9.1 - [Name of sub-vote]
A95: ='Org structure'!E92 -> 0
A96: ='Org structure'!E93 -> 0
A97: ='Org structure'!E94 -> 0
A98: ='Org structure'!E95 -> 0
A99: ='Org structure'!E96 -> 0
A100: ='Org structure'!E97 -> 0
A101: ='Org structure'!E98 -> 0
A102: ='Org structure'!E99 -> 0
A103: ='Org structure'!E100 -> 0
A104: ='Org structure'!A11 -> Vote 10 - [NAME OF VOTE 10] | C104: =SUM(C105:C114) -> 0 | D104: =SUM(D105:D114) -> 0 | E104: 0 | F104: 0 | G104: 0 | H104: 0 | I104: 0 | J104: 0 | K104: 0
A105: ='Org structure'!E102 -> 10.1 - [Name of sub-vote]
A106: ='Org structure'!E103 -> 0
A107: ='Org structure'!E104 -> 0
A108: ='Org structure'!E105 -> 0
A109: ='Org structure'!E106 -> 0
A110: ='Org structure'!E107 -> 0
A111: ='Org structure'!E108 -> 0
A112: ='Org structure'!E109 -> 0
A113: ='Org structure'!E110 -> 0
A114: ='Org structure'!E111 -> 0
A115: ='Org structure'!A12 -> Vote 11 - [NAME OF VOTE 11] | C115: =SUM(C116:C125) -> 0 | D115: =SUM(D116:D125) -> 0 | E115: 0 | F115: 0 | G115: 0 | H115: 0 | I115: 0 | J115: 0 | K115: 0
A116: ='Org structure'!E113 -> 11.1 - [Name of sub-vote]
A117: ='Org structure'!E114 -> 0
A118: ='Org structure'!E115 -> 0
A119: ='Org structure'!E116 -> 0
A120: ='Org structure'!E117 -> 0
A121: ='Org structure'!E118 -> 0
A122: ='Org structure'!E119 -> 0
A123: ='Org structure'!E120 -> 0
A124: ='Org structure'!E121 -> 0
A125: ='Org structure'!E122 -> 0
A126: ='Org structure'!A13 -> Vote 12 - [NAME OF VOTE 12] | C126: =SUM(C127:C136) -> 0 | D126: =SUM(D127:D136) -> 0 | E126: 0 | F126: 0 | G126: 0 | H126: 0 | I126: 0 | J126: 0 | K126: 0
A127: ='Org structure'!E124 -> 12.1 - [Name of sub-vote]
A128: ='Org structure'!E125 -> 0
A129: ='Org structure'!E126 -> 0
A130: ='Org structure'!E127 -> 0
A131: ='Org structure'!E128 -> 0
A132: ='Org structure'!E129 -> 0
A133: ='Org structure'!E130 -> 0
A134: ='Org structure'!E131 -> 0
A135: ='Org structure'!E132 -> 0
A136: ='Org structure'!E133 -> 0
A137: ='Org structure'!A14 -> Vote 13 - [NAME OF VOTE 13] | C137: =SUM(C138:C147) -> 0 | D137: =SUM(D138:D147) -> 0 | E137: 0 | F137: 0 | G137: 0 | H137: 0 | I137: 0 | J137: 0 | K137: 0
A138: ='Org structure'!E135 -> 13.1 - [Name of sub-vote]
A139: ='Org structure'!E136 -> 0
A140: ='Org structure'!E137 -> 0
A141: ='Org structure'!E138 -> 0
A142: ='Org structure'!E139 -> 0
A143: ='Org structure'!E140 -> 0
A144: ='Org structure'!E141 -> 0
A145: ='Org structure'!E142 -> 0
A146: ='Org structure'!E143 -> 0
A147: ='Org structure'!E144 -> 0
A148: ='Org structure'!A15 -> Vote 14 - [NAME OF VOTE 14] | C148: =SUM(C149:C158) -> 0 | D148: =SUM(D149:D158) -> 0 | E148: 0 | F148: 0 | G148: 0 | H148: 0 | I148: 0 | J148: 0 | K148: 0
A149: ='Org structure'!E146 -> 14.1 - [Name of sub-vote]
A150: ='Org structure'!E147 -> 0
A151: ='Org structure'!E148 -> 0
A152: ='Org structure'!E149 -> 0
A153: ='Org structure'!E150 -> 0
A154: ='Org structure'!E151 -> 0
A155: ='Org structure'!E152 -> 0
A156: ='Org structure'!E153 -> 0
A157: ='Org structure'!E154 -> 0
A158: ='Org structure'!E155 -> 0
A159: ='Org structure'!A16 -> Vote 15 - [NAME OF VOTE 15] | C159: =SUM(C160:C169) -> 0 | D159: =SUM(D160:D169) -> 0 | E159: 0 | F159: 0 | G159: 0 | H159: 0 | I159: 0 | J159: 0 | K159: 0
A160: ='Org structure'!E157 -> 15.1 - [Name of sub-vote]
A161: ='Org structure'!E158 -> 0
A162: ='Org structure'!E159 -> 0
A163: ='Org structure'!E160 -> 0
A164: ='Org structure'!E161 -> 0
A165: ='Org structure'!E162 -> 0
A166: ='Org structure'!E163 -> 0
A167: ='Org structure'!E164 -> 0
A168: ='Org structure'!E165 -> 0
A169: ='Org structure'!E166 -> 0
A170: Total Revenue by Vote | B170: 2 | C170: =C5+C16+C27+C38+C49+C60+C71+C82+C93+C104+C115+C126+C137+C148+C159 -> 45576623.69 | D170: =D5+D16+D27+D38+D49+D60+D71+D82+D93+D104+D115+D126+D137+D148+D159 -> 90879214.34 | E170: =E5+E16+E27+E38+E49+E60+E71+E82+E93+E104+E115+E126+E137+E148+E159 -> 41377107.99 | F170: 60555255.03 | G170: 60544496.3 | H170: 60544496.3 | I170: =I5+I16+I27+I38+I49+I60+I71+I82+I93+I104+I115+I126+I137+I148+I159 -> 63705369.93 | J170: 69448907.92 | K170: 76393798.71 | L170: =SUM(L78:L81) -> 0 | M170: 0 | N170: 0 | O170: 0 | P170: 0 | Q170: 0 | R170: 0 | S170: 0 | T170: 0 | U170: 0 | V170: 0 | W170: 0
A172: Expenditure by Vote | B172: 1
A173: =A5 -> Vote 1 - General Council | C173: =SUM(C174:C183) -> 4511593.408 | D173: 6377438.32 | E173: 10017888.57 | F173: 9011522.818 | G173: 8805489.81 | H173: 8805489.81 | I173: 10800140.48 | J173: 11880154.53 | K173: 13068169.98
A174: =A6 -> 1.1 - Mayor | C174: 1451963.052 | D174: 2125620.773 | E174: 1845400.53 | F174: 3004118.273 | G174: 6977337.61 | H174: 6977337.61 | I174: =1976604.82526316+70000 -> 2046604.825 | J174: =I174*1.1 -> 2251265.308 | K174: =J174*1.1 -> 2476391.839
A175: 1.2 - Speaker | C175: 792078.5633 | D175: 2657601.967 | E175: 2372657.82 | F175: 3754627.841 | G175: 1689198.2 | H175: 1689198.2 | I175: 2541349.061 | J175: =I175*1.1 -> 2795483.967 | K175: 3075032.364
A176: 1.3 - Council | C176: 1691362.793 | D176: 0 | E176: 5799830.22 | F176: 0 | G176: 0 | H176: 0 | I176: 6212186.594 | J176: 6833405.253 | K176: 7516745.778
A177: 1.4 Youth Development Programme | C177: 198729.6667 | D177: 531405.1933 | F177: 750925.5682 | G177: 89885 | H177: 89885
A178: 1.5 Special Programme | C178: 188729.6667 | D178: 531405.1933 | F178: 750925.5682 | G178: 49069 | H178: 49069
A179: 1.6 IGR | C179: 188729.6667 | D179: 531405.1933 | F179: 750925.5682 | G179: 0 | H179: 0
A180: 0 | G180: 0 | H180: 0
A181: 0
A182: 0
A183: 0
A184: =A16 -> Vote 2 - Municipal Manager | C184: =SUM(C185:C194) -> 6176410.52 | D184: =SUM(D185:D194) -> 4789877.633 | E184: =SUM(E185:E194) -> 5259391.48 | F184: 6357454.912 | G184: 8563855.6 | H184: 8563855.6 | I184: 10030074.33 | J184: 11033081.76 | K184: 12136389.94
A185: =A17 -> 2.1 - Office of the Municipal Manager | C185: 3833146.67 | D185: 1368536.467 | E185: 1502683.28 | F185: 1816415.689 | G185: 3450127.83 | H185: 3450127.83 | I185: 2006014.866 | J185: =I185*1.1 -> 2206616.353 | K185: =J185*1.1 -> 2427277.988
A186: 2.2 - Internal Audit | C186: 686762.38 | D186: 1368536.467 | E186: 1502683.28 | F186: 1816415.689 | G186: 3826545.58 | H186: 3826545.58 | I186: 2006014.866 | J186: =I186*1.1 -> 2206616.353 | K186: 2427277.988
A187: 2.3 - Performance and Monitoring Management | C187: 1012715.39 | D187: 1368536.467 | E187: 1502683.28 | F187: 1816415.689 | G187: 936253.7 | H187: 936253.7 | I187: 2006014.866 | J187: 2206616.353 | K187: 2427277.988
A188: 2.4 - Risk Office | C188: 643786.08 | D188: 684268.2333 | E188: 751341.64 | F188: 908207.8446 | G188: 350928.49 | H188: 350928.49 | I188: 1003007.433 | J188: 1103308.176 | K188: 1213638.994
A189: 2.5 - Disaster management | D189: 0 | F189: 0 | G189: 0 | H189: 0 | I189: 3009022.299 | J189: =I189*1.1 -> 3309924.529 | K189: =J189*1.1 -> 3640916.982
A190: 0 | G190: 0 | H190: 0
A191: 0
A192: 0
A193: 0
A194: 0
A195: =A27 -> Vote 3 - Budget & Treasury Office | C195: =SUM(C196:C205) -> 5708524.97 | D195: 22158108.95 | E195: 16279068.92 | F195: 11649471.49 | G195: 10608136.34 | H195: 10608136.34 | I195: 12354570.37 | J195: 13590027.4 | K195: 14949030.14
A196: 3.1 - Office of the CFO | C196: 1586958.74 | D196: 1641341.404 | E196: 1252236.07 | F196: 862923.814 | G196: 3325923.81 | H196: 3325923.81 | I196: =950351.558633369+1125879 -> 2076230.559 | J196: =I196*1.1 -> 2283853.614 | K196: =J196*1.1 -> 2512238.976
A197: 3.2 - Supply Chain Management | C197: 1458290.03 | D197: 3282682.807 | E197: 2504472.14 | F197: 1725847.628 | G197: 1693144.4 | H197: 1693144.4 | I197: 1900703.117 | J197: =I197*1.1 -> 2090773.429 | K197: 2299850.772
A198: 3.3 - Expenditure | C198: 1374245.507 | D198: 7386036.317 | E198: 5635062.32 | F198: 3883157.163 | G198: 2775229.23 | H198: 2775229.23 | I198: 4276582.014 | J198: 4704240.215 | K198: 5174664.237
A199: 3.4 - Budget & Reporting | C199: 873115.3633 | D199: 5744694.913 | E199: 3756708.21 | F199: 3020233.349 | G199: 1966838.9 | H199: 1966838.9 | I199: 2851054.676 | J199: 3136160.143 | K199: 3449776.158
A200: 3.5 - FMG Projects | C200: 415915.33 | D200: 4103353.509 | E200: 3130590.18 | F200: 2157309.535 | G200: 847000 | H200: 847000 | I200: 1250000 | J200: =I200*1.1 -> 1375000 | K200: =J200*1.1 -> 1512500
A201: 0 | G201: 0 | H201: 0
... 144 more rows

Sheet A4-FinPerf RE
A1: =muni&" - "&Approve4 -> DC16 Xhariep - Table A4 Budgeted Financial Performance (revenue and expenditure)
A2: =desc -> Description | B2: =head27 -> Ref | C2: =head1b -> 2010/11 | D2: =head1A -> 2011/12 | E2: =Head1 -> 2012/13 | F2: =Head2 -> Current Year 2013/14 | J2: =Head3 -> 2014/15 Medium Term Revenue & Expenditure Framework | M2: =Head4 -> LTFS
A3: R thousand | B3: 1 | C3: =Head5 -> Audited Outcome | D3: =Head5 -> Audited Outcome | E3: =Head5 -> Audited Outcome | F3: =Head6 -> Original Budget | G3: =Head7 -> Adjusted Budget | H3: =Head8 -> Full Year Forecast | I3: =Head5b -> Pre-audit outcome | J3: =Head9 -> Budget Year 2014/15 | K3: =Head10 -> Budget Year +1 2015/16 | L3: =Head11 -> Budget Year +2 2016/17 | M3: =Head12 -> Forecast 2017/18 | N3: =Head13 -> Forecast 2018/19 | O3: =Head14 -> Forecast 2019/20 | P3: =Head15 -> Forecast 2020/21 | Q3: =Head16 -> Forecast 2021/22 | R3: =Head17 -> Forecast 2022/23 | S3: =Head18 -> Forecast 2023/24 | T3: =Head19 -> Forecast 2024/25 | U3: =Head20 -> Forecast 2025/26 | V3: =Head21 -> Forecast 2026/27 | W3: =Head22 -> Forecast 2027/28 | X3: =Head23 -> Forecast 2028/29
A4: Revenue By Source
A5: Property rates | B5: 2 | C5: ='SA1'!C9 -> 0 | D5: ='SA1'!D9 -> 0 | E5: ='SA1'!E9 -> 0 | F5: ='SA1'!F9 -> 0 | G5: ='SA1'!G9 -> 0 | H5: ='SA1'!H9 -> 0 | I5: ='SA1'!I9 -> 0 | J5: ='SA1'!J9 -> 0 | K5: ='SA1'!K9 -> 0 | L5: ='SA1'!L9 -> 0
A6: Property rates - penalties & collection charges
A7: Service charges - electricity revenue | B7: 2 | C7: ='SA1'!C14 -> 0 | D7: ='SA1'!D14 -> 0 | E7: ='SA1'!E14 -> 0 | F7: ='SA1'!F14 -> 0 | G7: ='SA1'!G14 -> 0 | H7: ='SA1'!H14 -> 0 | I7: ='SA1'!I14 -> 0 | J7: ='SA1'!J14 -> 0 | K7: ='SA1'!K14 -> 0 | L7: ='SA1'!L14 -> 0
A8: Service charges - water revenue | B8: 2 | C8: ='SA1'!C19 -> 0 | D8: ='SA1'!D19 -> 0 | E8: ='SA1'!E19 -> 0 | F8: ='SA1'!F19 -> 0 | G8: ='SA1'!G19 -> 0 | H8: ='SA1'!H19 -> 0 | I8: ='SA1'!I19 -> 0 | J8: ='SA1'!J19 -> 0 | K8: ='SA1'!K19 -> 0 | L8: ='SA1'!L19 -> 0
A9: Service charges - sanitation revenue | B9: 2 | C9: ='SA1'!C24 -> 0 | D9: ='SA1'!D24 -> 0 | E9: ='SA1'!E24 -> 0 | F9: ='SA1'!F24 -> 0 | G9: ='SA1'!G24 -> 0 | H9: ='SA1'!H24 -> 0 | I9: ='SA1'!I24 -> 0 | J9: ='SA1'!J24 -> 0 | K9: ='SA1'!K24 -> 0 | L9: ='SA1'!L24 -> 0
A10: Service charges - refuse revenue | B10: 2 | C10: ='SA1'!C30 -> 0 | D10: ='SA1'!D30 -> 0 | E10: ='SA1'!E30 -> 0 | F10: ='SA1'!F30 -> 0 | G10: ='SA1'!G30 -> 0 | H10: ='SA1'!H30 -> 0 | I10: ='SA1'!I30 -> 0 | J10: ='SA1'!J30 -> 0 | K10: ='SA1'!K30 -> 0 | L10: ='SA1'!L30 -> 0
A11: Service charges - other | C11: 0 | D11: 0 | F11: 0
A12: Rental of facilities and equipment | C12: 290957 | D12: 366954 | E12: 432517 | F12: 340722.6842 | G12: 340722.6842 | H12: 340722.6842 | I12: 340722.6842 | J12: 468565.88 | K12: =J12*1.1 -> 515422.468 | L12: =K12*1.1 -> 566964.7148
A13: Interest earned - external investments | C13: 382910 | D13: 731413 | E13: 283816 | F13: 129000 | G13: 129000 | H13: 129000 | I13: 89000 | J13: =100000+3800 -> 103800 | K13: =J13*1.1 -> 114180 | L13: 125598
A14: Interest earned - outstanding debtors | C14: 0 | D14: 0 | F14: 10758.36 | G14: 0 | H14: 0 | I14: 11000 | J14: =8404+3603 -> 12007 | K14: =J14*1.1 -> 13207.7 | L14: 14528.47
A15: Dividends received | C15: 0 | D15: 0 | F15: 0 | G15: 0 | H15: 0 | K15: =J15*1.1 -> 0 | L15: 0
A16: Fines | C16: 0 | D16: 0 | F16: 0 | G16: 0 | H16: 0 | K16: =J16*1.1 -> 0 | L16: 0
A17: Licences and permits | C17: 0 | D17: 0 | F17: 0 | G17: 0 | H17: 0 | K17: =J17*1.1 -> 0 | L17: 0
A18: Agency services | C18: 0 | D18: 0 | F18: 0 | G18: 0 | H18: 0 | K18: =J18*1.1 -> 0 | L18: 0
A19: Transfers recognised - operational | C19: 44886347 | D19: 88254890 | E19: =40588152-1992000 -> 38596152 | F19: 59971000 | G19: =59971000-631000 -> 59340000 | H19: =59971000-631000 -> 59340000 | I19: 54971000 | J19: =62992000 -> 62992000 | K19: =J19*1.1 -> 69291200 | L19: 76220320
A20: Other revenue | B20: 2 | C20: ='SA1'!C45 -> 16410 | D20: ='SA1'!D45 -> 1504275 | E20: ='SA1'!E45 -> 72623 | F20: ='SA1'!F45 -> 103774 | G20: ='SA1'!G45 -> 103774 | H20: ='SA1'!H45 -> 103774 | I20: ='SA1'!I45 -> 103774 | J20: ='SA1'!J45 -> 628997.6 | K20: ='SA1'!K45 -> 64897.36 | L20: ='SA1'!L45 -> 71387.096
A21: Gains on disposal of PPE | C21: 0 | D21: 21682
A22: Total Revenue (excluding capital transfers and contributions) | C22: =SUM(C5:C21) -> 45576624 | D22: 90879214 | E22: 39385108 | F22: 60555255.04 | G22: 59913496.68 | H22: 59913496.68 | I22: 55515496.68 | J22: 64205370.48 | K22: 69998907.53 | L22: 76998798.28 | M22: 0 | N22: 0 | O22: 0 | P22: 0 | Q22: 0 | R22: 0 | S22: 0 | T22: 0 | U22: 0 | V22: 0 | W22: 0 | X22: 0
A24: Expenditure By Type
A25: Employee related costs | B25: 2 | C25: ='SA1'!C63 -> 20001631 | D25: ='SA1'!D63 -> 24585630 | E25: ='SA1'!E63 -> 30159010 | F25: ='SA1'!F63 -> 34411006.5 | G25: ='SA1'!G63 -> 32099545.22 | H25: ='SA1'!H63 -> 32099545.22 | I25: ='SA1'!I63 -> 32099545.22 | J25: ='SA1'!J63 -> 39164805.95 | K25: ='SA1'!K63 -> 42421907.76 | L25: ='SA1'!L63 -> 45955266.34
A26: Remuneration of councillors | C26: 2566048 | D26: 2895434 | E26: 3318054 | F26: 3239545.074 | G26: 3239545.074 | H26: 3239545.074 | I26: 3239545.074 | J26: 4696833.48 | K26: =J26*1.07 -> 5025611.824 | L26: =K26*1.07 -> 5377404.651
A27: Debt impairment | B27: 3 | C27: -659604 | D27: 9388 | E27: 10777736 | J27: 0 | K27: 0 | L27: 0
A28: Depreciation & asset impairment | B28: 2 | C28: ='SA1'!C79 -> 0 | D28: ='SA1'!D79 -> 2307376 | E28: ='SA1'!E79 -> 3648189 | F28: ='SA1'!F79 -> 3866861.745 | G28: ='SA1'!G79 -> 3366861.745 | H28: ='SA1'!H79 -> 3366861.745 | I28: ='SA1'!I79 -> 3366861.745 | J28: ='SA1'!J79 -> 3500000 | K28: ='SA1'!K79 -> 3850000 | L28: ='SA1'!L79 -> 4235000
A29: Finance charges | C29: 497112 | D29: 307741 | E29: 286676 | J29: 0
A30: Bulk purchases | B30: 2 | C30: ='SA1'!C84 -> 0 | D30: ='SA1'!D84 -> 0 | E30: ='SA1'!E84 -> 0 | F30: ='SA1'!F84 -> 0 | G30: ='SA1'!G84 -> 0 | H30: ='SA1'!H84 -> 0 | I30: ='SA1'!I84 -> 0 | J30: ='SA1'!J84 -> 0 | K30: ='SA1'!K84 -> 0 | L30: ='SA1'!L84 -> 0
A31: Other materials | B31: 8 | J31: 0
A32: Contracted services | C32: ='SA1'!C123 -> 0 | D32: ='SA1'!D123 -> 0 | E32: ='SA1'!E123 -> 0 | F32: ='SA1'!F123 -> 600000 | G32: ='SA1'!G123 -> 900000 | H32: ='SA1'!H123 -> 900000 | I32: ='SA1'!I123 -> 900000 | J32: ='SA1'!J123 -> 500000 | K32: ='SA1'!K123 -> 550000 | L32: ='SA1'!L123 -> 605000
A33: Transfers and grants | C33: ='SA1'!C89 -> 0 | D33: ='SA1'!D89 -> 0 | E33: ='SA1'!E89 -> 0 | F33: ='SA1'!F89 -> 0 | G33: ='SA1'!G89 -> 1089978 | H33: ='SA1'!H89 -> 1089978 | I33: ='SA1'!I89 -> 1089978 | J33: ='SA1'!J89 -> 0 | K33: ='SA1'!K89 -> 0 | L33: ='SA1'!L89 -> 0
A34: Other expenditure | B34: 4, 5 | C34: ='SA1'!C153 -> 16736938 | D34: ='SA1'!D153 -> 37956070 | E34: ='SA1'!E153 -> 22555473 | F34: ='SA1'!F153 -> 20738903.6 | G34: ='SA1'!G153 -> 21700453.6 | H34: ='SA1'!H153 -> 21700453.6 | I34: ='SA1'!I153 -> 21700453.6 | J34: ='SA1'!J153 -> 18672239.98 | K34: ='SA1'!K153 -> 20539463.98 | L34: ='SA1'!L153 -> 22593410.38
A35: Loss on disposal of PPE | C35: 45220 | D35: 0 | E35: 0 | J35: 0
A36: Total Expenditure | C36: =SUM(C25:C35) -> 39187345 | D36: =SUM(D25:D35) -> 68061639 | E36: 70745138 | F36: 62856316.92 | G36: 62396383.63 | H36: 62396383.63 | I36: 62396383.63 | J36: 66533879.41 | K36: 72386983.56 | L36: 78766081.37 | M36: =SUM(M25:M35) -> 0 | N36: 0 | O36: 0 | P36: 0 | Q36: 0 | R36: 0 | S36: 0 | T36: 0 | U36: 0 | V36: 0 | W36: 0 | X36: 0
A38: Surplus/(Deficit) | C38: =C22-C36 -> 6389279 | D38: 22817575 | E38: -31360030 | F38: -2301061.871 | G38: -2482886.95 | H38: -2482886.95 | I38: -6880886.95 | J38: -2328508.93 | K38: -2388076.033 | L38: -1767283.087 | M38: =M22+M36 -> 0 | N38: 0 | O38: 0 | P38: 0 | Q38: 0 | R38: 0 | S38: 0 | T38: 0 | U38: 0 | V38: 0 | W38: 0 | X38: 0
A39: Transfers recognised - capital | J39: 0
A40: Contributions recognised - capital | B40: 6 | C40: ='SA1'!C72 -> 0 | D40: ='SA1'!D72 -> 0 | E40: ='SA1'!E72 -> 0 | F40: ='SA1'!F72 -> 0 | G40: ='SA1'!G72 -> 0 | H40: ='SA1'!H72 -> 0 | I40: ='SA1'!I72 -> 0 | J40: ='SA1'!J72 -> 0 | K40: ='SA1'!K72 -> 0 | L40: ='SA1'!L72 -> 0
A41: Contributed assets
A42: Surplus/(Deficit) after capital transfers & contributions | C42: =SUM(C38:C41) -> 6389279 | D42: 22817575 | E42: -31360030 | F42: -2301061.871 | G42: -2482886.95 | H42: -2482886.95 | I42: -6880886.95 | J42: -2328508.93 | K42: -2388076.033 | L42: -1767283.087
A43: Taxation
A44: Surplus/(Deficit) after taxation | C44: =C42-C43 -> 6389279 | D44: 22817575 | E44: -31360030 | F44: -2301061.871 | G44: -2482886.95 | H44: -2482886.95 | I44: -6880886.95 | J44: -2328508.93 | K44: -2388076.033 | L44: -1767283.087
A45: Attributable to minorities
A46: Surplus/(Deficit) attributable to municipality | C46: =SUM(C44:C45) -> 6389279 | D46: 22817575 | E46: -31360030 | F46: -2301061.871 | G46: -2482886.95 | H46: -2482886.95 | I46: -6880886.95 | J46: -2328508.93 | K46: -2388076.033 | L46: -1767283.087
A47: Share of surplus/ (deficit) of associate | B47: 7
A48: =result -> Surplus/(Deficit) for the year | C48: =SUM(C46:C47) -> 6389279 | D48: 22817575 | E48: -31360030 | F48: -2301061.871 | G48: -2482886.95 | H48: -2482886.95 | I48: -6880886.95 | J48: -2328508.93 | K48: -2388076.033 | L48: -1767283.087 | M48: =M26+M47 -> 0 | N48: 0 | O48: 0 | P48: 0 | Q48: 0 | R48: 0 | S48: 0 | T48: 0 | U48: 0 | V48: 0 | W48: 0 | X48: 0
A49: =head27a -> References
A50: 1. Classifications are revenue sources and expenditure type
A51: 2. Detail to be provided in Table SA1
A52: 3. Previously described as 'bad or doubtful debts' - amounts shown should reflect the change in the provision for debt impairment
A53: 4. Expenditure type components previously shown under repairs and maintenance should be allocated back to the originating expenditure group/item; e.g. employee costs
A54: 5. Repairs & maintenance detailed in Table A9 and Table SA34c
A55: 6. Contributions are funds provided by external organisations to assist with infrastructure development; e.g. developer contributions (detail to be provided in Table SA1)
A56: 7. Equity method
A57: 8. All materials not part of 'bulk' e.g road making materials, pipe, cable etc.
A58: check balance | C58: =C46-'A3-FinPerf V'!C39 -> -7.450580597e-09 | D58: =D46-'A3-FinPerf V'!D39 -> -0.5066666603 | E58: =E46-'A3-FinPerf V'!E39 -> -1991999.99 | F58: =F46-'A3-FinPerf V'!F39 -> 0.3223200515 | G58: =G46-'A3-FinPerf V'!G39 -> -630999.78 | H58: =H46-'A3-FinPerf V'!H39 -> -630999.78 | J58: =J46-'A3-FinPerf V'!I39 -> 0.6515969336 | K58: =K46-'A3-FinPerf V'!J39 -> -0.4930933565 | L58: =L46-'A3-FinPerf V'!K39 -> 0.006986543536
A60: Total revenue | C60: =C22+SUM(C39:C41) -> 45576624 | D60: 90879214 | E60: 39385108 | F60: 60555255.04 | G60: 59913496.68 | H60: 59913496.68 | I60: 55515496.68 | J60: 64205370.48 | K60: 69998907.53 | L60: 76998798.28

Sheet A5-Capex
A1: =muni&" - "&Approve5 -> DC16 Xhariep - Table A5 Budgeted Capital Expenditure by vote, standard classification and funding
A2: =Vdesc -> Vote Description | B2: =head27 -> Ref | C2: =head1b -> 2010/11 | D2: =head1A -> 2011/12 | E2: =Head1 -> 2012/13 | F2: =Head2 -> Current Year 2013/14 | J2: =Head3 -> 2014/15 Medium Term Revenue & Expenditure Framework
A3: R thousand | B3: 1 | C3: =Head5 -> Audited Outcome | D3: =Head5 -> Audited Outcome | E3: =Head5 -> Audited Outcome | F3: =Head6 -> Original Budget | G3: =Head7 -> Adjusted Budget | H3: =Head8 -> Full Year Forecast | I3: =Head5b -> Pre-audit outcome | J3: =Head9 -> Budget Year 2014/15 | K3: =Head10 -> Budget Year +1 2015/16 | L3: =Head11 -> Budget Year +2 2016/17
A4: Capital expenditure - Vote
A5: Multi-year expenditure to be appropriated | B5: 2
A6: =A5A!A6 -> Vote 1 - General Council | C6: =A5A!C6 -> 0 | D6: =A5A!D6 -> 0 | E6: =A5A!E6 -> 0 | F6: =A5A!F6 -> 0 | G6: =A5A!G6 -> 0 | H6: =A5A!H6 -> 0 | I6: =A5A!I6 -> 0 | J6: =A5A!J6 -> 0 | K6: =A5A!K6 -> 0 | L6: =A5A!L6 -> 0
A7: =A5A!A17 -> Vote 2 - Municipal Manager | C7: =A5A!C17 -> 0 | D7: =A5A!D17 -> 0 | E7: =A5A!E17 -> 0 | F7: =A5A!F17 -> 0 | G7: =A5A!G17 -> 0 | H7: =A5A!H17 -> 0 | I7: =A5A!I17 -> 0 | J7: =A5A!J17 -> 0 | K7: =A5A!K17 -> 0 | L7: =A5A!L17 -> 0
A8: =A5A!A28 -> Vote 3 - Budget & Treasury Office | C8: =A5A!C28 -> 0 | D8: =A5A!D28 -> 0 | E8: =A5A!E28 -> 0 | F8: =A5A!F28 -> 0 | G8: =A5A!G28 -> 0 | H8: =A5A!H28 -> 0 | I8: =A5A!I28 -> 0 | J8: =A5A!J28 -> 0 | K8: =A5A!K28 -> 0 | L8: =A5A!L28 -> 0
A9: =A5A!A39 -> Vote 4 - Planning & Development | C9: =A5A!C39 -> 0 | D9: =A5A!D39 -> 0 | E9: =A5A!E39 -> 0 | F9: =A5A!F39 -> 0 | G9: =A5A!G39 -> 0 | H9: =A5A!H39 -> 0 | I9: =A5A!I39 -> 0 | J9: =A5A!J39 -> 0 | K9: =A5A!K39 -> 0 | L9: =A5A!L39 -> 0
A10: =A5A!A50 -> Vote 5 - Corporate Services | C10: =A5A!C50 -> 0 | D10: =A5A!D50 -> 0 | E10: =A5A!E50 -> 0 | F10: =A5A!F50 -> 0 | G10: =A5A!G50 -> 0 | H10: =A5A!H50 -> 0 | I10: =A5A!I50 -> 0 | J10: =A5A!J50 -> 0 | K10: =A5A!K50 -> 0 | L10: =A5A!L50 -> 0
A11: =A5A!A61 -> Vote 6 - [NAME OF VOTE 6] | C11: =A5A!C61 -> 0 | D11: =A5A!D61 -> 0 | E11: =A5A!E61 -> 0 | F11: =A5A!F61 -> 0 | G11: =A5A!G61 -> 0 | H11: =A5A!H61 -> 0 | I11: =A5A!I61 -> 0 | J11: =A5A!J61 -> 0 | K11: =A5A!K61 -> 0 | L11: =A5A!L61 -> 0
A12: =A5A!A72 -> Vote 7 - [NAME OF VOTE 7] | C12: =A5A!C72 -> 0 | D12: =A5A!D72 -> 0 | E12: =A5A!E72 -> 0 | F12: =A5A!F72 -> 0 | G12: =A5A!G72 -> 0 | H12: =A5A!H72 -> 0 | I12: =A5A!I72 -> 0 | J12: =A5A!J72 -> 0 | K12: =A5A!K72 -> 0 | L12: =A5A!L72 -> 0
A13: =A5A!A83 -> Vote 8 - [NAME OF VOTE 8] | C13: =A5A!C83 -> 0 | D13: =A5A!D83 -> 0 | E13: =A5A!E83 -> 0 | F13: =A5A!F83 -> 0 | G13: =A5A!G83 -> 0 | H13: =A5A!H83 -> 0 | I13: =A5A!I83 -> 0 | J13: =A5A!J83 -> 0 | K13: =A5A!K83 -> 0 | L13: =A5A!L83 -> 0
A14: =A5A!A94 -> Vote 9 - [NAME OF VOTE 9] | C14: =A5A!C94 -> 0 | D14: =A5A!D94 -> 0 | E14: =A5A!E94 -> 0 | F14: =A5A!F94 -> 0 | G14: =A5A!G94 -> 0 | H14: =A5A!H94 -> 0 | I14: =A5A!I94 -> 0 | J14: =A5A!J94 -> 0 | K14: =A5A!K94 -> 0 | L14: =A5A!L94 -> 0
A15: =A5A!A105 -> Vote 10 - [NAME OF VOTE 10] | C15: =A5A!C105 -> 0 | D15: =A5A!D105 -> 0 | E15: =A5A!E105 -> 0 | F15: =A5A!F105 -> 0 | G15: =A5A!G105 -> 0 | H15: =A5A!H105 -> 0 | I15: =A5A!I105 -> 0 | J15: =A5A!J105 -> 0 | K15: =A5A!K105 -> 0 | L15: =A5A!L105 -> 0
A16: =A5A!A116 -> Vote 11 - [NAME OF VOTE 11] | C16: =A5A!C116 -> 0 | D16: =A5A!D116 -> 0 | E16: =A5A!E116 -> 0 | F16: =A5A!F116 -> 0 | G16: =A5A!G116 -> 0 | H16: =A5A!H116 -> 0 | I16: =A5A!I116 -> 0 | J16: =A5A!J116 -> 0 | K16: =A5A!K116 -> 0 | L16: =A5A!L116 -> 0
A17: =A5A!A127 -> Vote 12 - [NAME OF VOTE 12] | C17: =A5A!C127 -> 0 | D17: =A5A!D127 -> 0 | E17: =A5A!E127 -> 0 | F17: =A5A!F127 -> 0 | G17: =A5A!G127 -> 0 | H17: =A5A!H127 -> 0 | I17: =A5A!I127 -> 0 | J17: =A5A!J127 -> 0 | K17: =A5A!K127 -> 0 | L17: =A5A!L127 -> 0
A18: =A5A!A138 -> Vote 13 - [NAME OF VOTE 13] | C18: =A5A!C138 -> 0 | D18: =A5A!D138 -> 0 | E18: =A5A!E138 -> 0 | F18: =A5A!F138 -> 0 | G18: =A5A!G138 -> 0 | H18: =A5A!H138 -> 0 | I18: =A5A!I138 -> 0 | J18: =A5A!J138 -> 0 | K18: =A5A!K138 -> 0 | L18: =A5A!L138 -> 0
A19: =A5A!A149 -> Vote 14 - [NAME OF VOTE 14] | C19: =A5A!C149 -> 0 | D19: =A5A!D149 -> 0 | E19: =A5A!E149 -> 0 | F19: =A5A!F149 -> 0 | G19: =A5A!G149 -> 0 | H19: =A5A!H149 -> 0 | I19: =A5A!I149 -> 0 | J19: =A5A!J149 -> 0 | K19: =A5A!K149 -> 0 | L19: =A5A!L149 -> 0
A20: =A5A!A160 -> Vote 15 - [NAME OF VOTE 15] | C20: =A5A!C160 -> 0 | D20: =A5A!D160 -> 0 | E20: =A5A!E160 -> 0 | F20: =A5A!F160 -> 0 | G20: =A5A!G160 -> 0 | H20: =A5A!H160 -> 0 | I20: =A5A!I160 -> 0 | J20: =A5A!J160 -> 0 | K20: =A5A!K160 -> 0 | L20: =A5A!L160 -> 0
A21: Capital multi-year expenditure sub-total | B21: 7 | C21: =SUM(C6:C20) -> 0 | D21: =SUM(D6:D20) -> 0 | E21: 0 | F21: 0 | G21: 0 | H21: =SUM(H6:H20) -> 0 | I21: 0 | J21: 0 | K21: 0 | L21: 0
A23: Single-year expenditure to be appropriated | B23: 2
A24: =A6 -> Vote 1 - General Council | C24: =A5A!C175 -> 0 | D24: =A5A!D175 -> 0 | E24: =A5A!E175 -> 0 | F24: =A5A!F175 -> 5000 | G24: =A5A!G175 -> 55115 | H24: =A5A!H175 -> 55115 | I24: =A5A!I175 -> 55115 | J24: =A5A!J175 -> 1070000 | K24: =A5A!K175 -> 0 | L24: =A5A!L175 -> 0
A25: =A7 -> Vote 2 - Municipal Manager | C25: =A5A!C186 -> 0 | D25: =A5A!D186 -> 0 | E25: =A5A!E186 -> 905854 | F25: =A5A!F186 -> 25000 | G25: =A5A!G186 -> 4666.666667 | H25: =A5A!H186 -> 4666.666667 | I25: =A5A!I186 -> 4666.666667 | J25: =A5A!J186 -> 25000 | K25: =A5A!K186 -> 0 | L25: =A5A!L186 -> 0
A26: Vote 3 - Budget & Treasury Office | C26: =A5A!C197 -> 687893 | D26: =A5A!D197 -> 666676 | E26: =A5A!E197 -> 1175141 | F26: =A5A!F197 -> 635000 | G26: =A5A!G197 -> 934252.997 | H26: =A5A!H197 -> 934252.997 | I26: =A5A!I197 -> 934252.997 | J26: =A5A!J197 -> 570000 | K26: =A5A!K197 -> 627000 | L26: =A5A!L197 -> 689700
A27: Vote 4 - Planning & Development | C27: =A5A!C208 -> 733291 | D27: =A5A!D208 -> 2096675 | E27: =A5A!E208 -> 1586391 | F27: =A5A!F208 -> 449695.6522 | G27: =A5A!G208 -> 41844 | H27: =A5A!H208 -> 41844 | I27: =A5A!I208 -> 41844 | J27: =A5A!J208 -> 55000 | K27: =A5A!K208 -> 60500 | L27: =A5A!L208 -> 66550
A28: Vote 5 - Corporate Services | C28: =A5A!C219 -> 4190194 | D28: =A5A!D219 -> 4711538 | E28: =A5A!E219 -> 16409325 | F28: =A5A!F219 -> 1935000 | G28: =A5A!G219 -> 288701 | H28: =A5A!H219 -> 288701 | I28: =A5A!I219 -> 288701 | J28: =A5A!J219 -> 25000 | K28: =A5A!K219 -> 27500 | L28: =A5A!L219 -> 30250
A29: Vote 6 - [NAME OF VOTE 6] | C29: =A5A!C230 -> 0 | D29: =A5A!D230 -> 0 | E29: =A5A!E230 -> 0 | F29: =A5A!F230 -> 0 | G29: =A5A!G230 -> 0 | H29: =A5A!H230 -> 0 | I29: =A5A!I230 -> 0 | J29: =A5A!J230 -> 0 | K29: =A5A!K230 -> 0 | L29: =A5A!L230 -> 0
A30: Vote 7 - [NAME OF VOTE 7] | C30: =A5A!C241 -> 0 | D30: =A5A!D241 -> 0 | E30: =A5A!E241 -> 0 | F30: =A5A!F241 -> 0 | G30: =A5A!G241 -> 0 | H30: =A5A!H241 -> 0 | I30: =A5A!I241 -> 0 | J30: =A5A!J241 -> 0 | K30: =A5A!K241 -> 0 | L30: =A5A!L241 -> 0
A31: Vote 8 - [NAME OF VOTE 8] | C31: =A5A!C252 -> 0 | D31: =A5A!D252 -> 0 | E31: =A5A!E252 -> 0 | F31: =A5A!F252 -> 0 | G31: =A5A!G252 -> 0 | H31: =A5A!H252 -> 0 | I31: =A5A!I252 -> 0 | J31: =A5A!J252 -> 0 | K31: =A5A!K252 -> 0 | L31: =A5A!L252 -> 0
A32: Vote 9 - [NAME OF VOTE 9] | C32: =A5A!C263 -> 0 | D32: =A5A!D263 -> 0 | E32: =A5A!E263 -> 0 | F32: =A5A!F263 -> 0 | G32: =A5A!G263 -> 0 | H32: =A5A!H263 -> 0 | I32: =A5A!I263 -> 0 | J32: =A5A!J263 -> 0 | K32: =A5A!K263 -> 0 | L32: =A5A!L263 -> 0
A33: Vote 10 - [NAME OF VOTE 10] | C33: =A5A!C274 -> 0 | D33: =A5A!D274 -> 0 | E33: =A5A!E274 -> 0 | F33: =A5A!F274 -> 0 | G33: =A5A!G274 -> 0 | H33: =A5A!H274 -> 0 | I33: =A5A!I274 -> 0 | J33: =A5A!J274 -> 0 | K33: =A5A!K274 -> 0 | L33: =A5A!L274 -> 0
A34: Vote 11 - [NAME OF VOTE 11] | C34: =A5A!C285 -> 0 | D34: =A5A!D285 -> 0 | E34: =A5A!E285 -> 0 | F34: =A5A!F285 -> 0 | G34: =A5A!G285 -> 0 | H34: =A5A!H285 -> 0 | I34: =A5A!I285 -> 0 | J34: =A5A!J285 -> 0 | K34: =A5A!K285 -> 0 | L34: =A5A!L285 -> 0
A35: Vote 12 - [NAME OF VOTE 12] | C35: =A5A!C296 -> 0 | D35: =A5A!D296 -> 0 | E35: =A5A!E296 -> 0 | F35: =A5A!F296 -> 0 | G35: =A5A!G296 -> 0 | H35: =A5A!H296 -> 0 | I35: =A5A!I296 -> 0 | J35: =A5A!J296 -> 0 | K35: =A5A!K296 -> 0 | L35: =A5A!L296 -> 0
A36: Vote 13 - [NAME OF VOTE 13] | C36: =A5A!C307 -> 0 | D36: =A5A!D307 -> 0 | E36: =A5A!E307 -> 0 | F36: =A5A!F307 -> 0 | G36: =A5A!G307 -> 0 | H36: =A5A!H307 -> 0 | I36: =A5A!I307 -> 0 | J36: =A5A!J307 -> 0 | K36: =A5A!K307 -> 0 | L36: =A5A!L307 -> 0
A37: Vote 14 - [NAME OF VOTE 14] | C37: =A5A!C318 -> 0 | D37: =A5A!D318 -> 0 | E37: =A5A!E318 -> 0 | F37: =A5A!F318 -> 0 | G37: =A5A!G318 -> 0 | H37: =A5A!H318 -> 0 | I37: =A5A!I318 -> 0 | J37: =A5A!J318 -> 0 | K37: =A5A!K318 -> 0 | L37: =A5A!L318 -> 0
A38: =A20 -> Vote 15 - [NAME OF VOTE 15] | C38: =A5A!C329 -> 0 | D38: =A5A!D329 -> 0 | E38: =A5A!E329 -> 0 | F38: =A5A!F329 -> 0 | G38: =A5A!G329 -> 0 | H38: =A5A!H329 -> 0 | I38: =A5A!I329 -> 0 | J38: =A5A!J329 -> 0 | K38: =A5A!K329 -> 0 | L38: =A5A!L329 -> 0
A39: Capital single-year expenditure sub-total | C39: =SUM(C24:C38) -> 5611378 | D39: =SUM(D24:D38) -> 7474889 | E39: 20076711 | F39: 3049695.652 | G39: 1324579.664 | H39: 1324579.664 | I39: 1324579.664 | J39: 1745000 | K39: 715000 | L39: 786500
A40: Total Capital Expenditure - Vote | C40: =C39+C21 -> 5611378 | D40: =D39+D21 -> 7474889 | E40: 20076711 | F40: 3049695.652 | G40: 1324579.664 | H40: 1324579.664 | I40: 1324579.664 | J40: 1745000 | K40: 715000 | L40: 786500
A42: Capital Expenditure - Standard
A43: Governance and administration | C43: =SUM(C44:C46) -> 5611378 | D43: =SUM(D44:D46) -> 7474889 | E43: 20077000 | F43: 2600000 | G43: 1283068.997 | H43: 1283068.997 | I43: 1283068.997 | J43: 1690000 | K43: 654500 | L43: 719950
A44: Executive and council | F44: 30000 | G44: 60115 | H44: 60115 | I44: 60115 | J44: =525000+570000 -> 1095000 | K44: 0 | L44: 0
A45: Budget and treasury office | C45: 5611378 | D45: 7474889 | E45: 20077000 | F45: 635000 | G45: 934252.997 | H45: 934252.997 | I45: 934252.997 | J45: 570000 | K45: =J45*1.1 -> 627000 | L45: 689700
A46: Corporate services | F46: 1935000 | G46: 288701 | H46: 288701 | I46: 288701 | J46: 25000 | K46: =J46*1.1 -> 27500 | L46: 30250
A47: Community and public safety | C47: =SUM(C48:C52) -> 0 | D47: =SUM(D48:D52) -> 0 | E47: 0 | F47: 0 | G47: 0 | H47: 0 | I47: 0 | J47: 0 | K47: 0 | L47: 0
A48: Community and social services
A49: Sport and recreation
A50: Public safety
A51: Housing
A52: Health
A53: Economic and environmental services | C53: =SUM(C54:C56) -> 0 | D53: =SUM(D54:D56) -> 0 | E53: 0 | F53: 1890000 | G53: 41510.7 | H53: 41510.7 | I53: 41510.7 | J53: 55000 | K53: 60500 | L53: 66550
A54: Planning and development | F54: =1890000 -> 1890000 | G54: 41510.7 | H54: 41510.7 | I54: 41510.7 | J54: =1907000-1852000 -> 55000 | K54: =J54*1.1 -> 60500 | L54: =K54*1.1 -> 66550
A55: Road transport
A56: Environmental protection
A57: Trading services | C57: =SUM(C58:C61) -> 0 | D57: =SUM(D58:D61) -> 0 | E57: 0 | F57: 0 | G57: 0 | H57: 0 | I57: 0 | J57: 0 | K57: 0 | L57: 0
A58: Electricity
A59: Water
A60: Waste water management
A61: Waste management
A62: Other
A63: Total Capital Expenditure - Standard | B63: 3 | C63: =C43+C47+C53+C57+C62 -> 5611378 | D63: =D43+D47+D53+D57+D62 -> 7474889 | E63: 20077000 | F63: 4490000 | G63: 1324579.697 | H63: 1324579.697 | I63: 1324579.697 | J63: 1745000 | K63: 715000 | L63: =L43+L47+L53+L57+L62 -> 786500
A65: Funded by:
A66: National Government | C66: 5611378 | D66: 7474889 | E66: 20076711 | G66: 1324579.697 | H66: 1324579.697 | I66: 1324579.697 | J66: =1675000+70000 -> 1745000 | K66: =650000*1.1 -> 715000 | L66: =K66*1.1 -> 786500
A67: Provincial Government | F67: =4346000-1296304 -> 3049696
A68: District Municipality
A69: Other transfers and grants
A70: Transfers recognised - capital | B70: 4 | C70: =SUM(C66:C69) -> 5611378 | D70: 7474889 | E70: 20076711 | F70: 3049696 | G70: 1324579.697 | H70: 1324579.697 | I70: 1324579.697 | J70: 1745000 | K70: 715000 | L70: 786500
A71: Public contributions & donations | B71: 5
A72: Borrowing | B72: 6
A73: Internally generated funds
A74: Total Capital Funding | B74: 7 | C74: =SUM(C70:C73) -> 5611378 | D74: 7474889 | E74: 20076711 | F74: 3049696 | G74: 1324579.697 | H74: 1324579.697 | I74: 1324579.697 | J74: 1745000 | K74: 715000 | L74: 786500
A75: =head27a -> References
A76: 1. Municipalities may choose to appropriate for capital expenditure for three years or for one year (if one year appropriation projected expenditure required for yr2 and yr3).
A77: 2. Include capital component of PPP unitary payment. Note that capital transfers are only appropriated to municipalities for the budget year
A78: 3. Capital expenditure by standard classification must reconcile to the appropriations by vote
A79: 4. Must reconcile to supporting table SA20 and to Budgeted Financial Performance (revenue and expenditure)
A80: 5. Must reconcile to Budgeted Financial Performance (revenue and expenditure)
A81: 6. Include finance leases and PPP capital funding component of unitary payment - total borrowing/repayments to reconcile to changes in Table SA17
A82: 7. Total Capital Funding must balance with Total Capital Expenditure
A83: 8. Include any capitalised interest (MFMA section 46) as part of relevant capital budget
A85: check balance | C85: =C40-C74 -> 0 | D85: =D40-D74 -> 0 | E85: 0 | F85: -0.347826086 | G85: -0.03333333344 | H85: -0.03333333647 | I85: -0.03333333647 | J85: 0 | K85: 0 | L85: 0

Sheet A5A
A1: =muni&" - "&Approve5 -> DC16 Xhariep - Table A5 Budgeted Capital Expenditure by vote, standard classification and funding
A2: =Vdesc -> Vote Description | B2: =head27 -> Ref | C2: =head1b -> 2010/11 | D2: =head1A -> 2011/12 | E2: =Head1 -> 2012/13 | F2: =Head2 -> Current Year 2013/14 | J2: =Head3 -> 2014/15 Medium Term Revenue & Expenditure Framework | N2: Multi-year appropriation for 2012/13 in the 2011/12 Annual Budget | R2: Multi-year appropriation for 2013/14 in the 2011/12 Annual Budget | V2: New multi-year appropriations (funds for new and existing projects)
A3: R thousand | B3: 1 | C3: =Head5 -> Audited Outcome | D3: =Head5 -> Audited Outcome | E3: =Head5 -> Audited Outcome | F3: =Head6 -> Original Budget | G3: =Head7 -> Adjusted Budget | H3: =Head8 -> Full Year Forecast | I3: =Head5b -> Pre-audit outcome | J3: =Head9 -> Budget Year 2014/15 | K3: =Head10 -> Budget Year +1 2015/16 | L3: =Head11 -> Budget Year +2 2016/17 | N3: Appropriation for 2012/13 | O3: Adjustments in 2011/12 | P3: Downward adjustments for 2012/13 | Q3: Appropriation carried forward | R3: Appropriation for 2012/13 | S3: Adjustments in 2011/12 | T3: Downward adjustments for 2012/13 | U3: Appropriation carried forward | V3: =Head9 -> Budget Year 2014/15 | W3: =Head10 -> Budget Year +1 2015/16 | X3: =Head11 -> Budget Year +2 2016/17
A4: Capital expenditure - Municipal Vote
A5: Multi-year expenditure appropriation | B5: 2
A6: ='Org structure'!A2 -> Vote 1 - General Council | C6: =SUM(C7:C16) -> 0 | D6: =SUM(D7:D16) -> 0 | E6: 0 | F6: 0 | G6: 0 | H6: 0 | I6: =SUM(I7:I16) -> 0 | J6: 0 | K6: 0 | L6: 0 | N6: =SUM(N7:N16) -> 0 | O6: 0 | P6: 0 | Q6: 0 | R6: 0 | S6: 0 | T6: 0 | U6: 0 | V6: =SUM(V7:V16) -> 0 | W6: =SUM(W7:W16) -> 0 | X6: =SUM(X7:X16) -> 0
A7: ='Org structure'!E3 -> 1.1 - Mayor | J7: =Q7+V7 -> 0 | K7: =U7+W7 -> 0 | L7: =X7 -> 0 | Q7: =SUM(N7:P7) -> 0 | U7: =SUM(R7:T7) -> 0
A8: ='Org structure'!E4 -> 1.2 - Speaker | J8: =Q8+V8 -> 0 | K8: =U8+W8 -> 0 | L8: =X8 -> 0 | Q8: =SUM(N8:P8) -> 0 | U8: =SUM(R8:T8) -> 0
A9: ='Org structure'!E5 -> 1.3 - Council | J9: =Q9+V9 -> 0 | K9: =U9+W9 -> 0 | L9: 0 | Q9: 0 | U9: 0
A10: ='Org structure'!E6 -> 1.4 Youth Development Programme | J10: 0 | K10: 0 | L10: 0 | Q10: 0 | U10: 0
A11: ='Org structure'!E7 -> 1.5 Special Programme | J11: 0 | K11: 0 | L11: =X11 -> 0 | Q11: 0 | U11: 0
A12: ='Org structure'!E8 -> 1.6 IGR | J12: 0 | K12: 0 | L12: 0 | Q12: 0 | U12: 0
A13: ='Org structure'!E9 -> 0 | J13: 0 | K13: 0 | L13: 0 | Q13: 0 | U13: 0
A14: ='Org structure'!E10 -> 0 | J14: 0 | K14: 0 | L14: 0 | Q14: 0 | U14: 0
A15: ='Org structure'!E11 -> 0 | J15: 0 | K15: 0 | L15: 0 | Q15: 0 | U15: 0
A16: ='Org structure'!E12 -> 0 | J16: 0 | K16: 0 | L16: 0 | Q16: 0 | U16: 0
A17: ='Org structure'!A3 -> Vote 2 - Municipal Manager | C17: =SUM(C18:C27) -> 0 | D17: =SUM(D18:D27) -> 0 | E17: 0 | F17: 0 | G17: 0 | H17: 0 | I17: =SUM(I18:I27) -> 0 | J17: 0 | K17: 0 | L17: 0 | N17: =SUM(N18:N27) -> 0 | O17: 0 | P17: 0 | Q17: 0 | R17: 0 | S17: 0 | T17: 0 | U17: 0 | V17: 0 | W17: 0 | X17: 0
A18: ='Org structure'!E14 -> 2.1 - Office of the Municipal Manager | J18: =Q18+V18 -> 0 | K18: =U18+W18 -> 0 | L18: =X18 -> 0 | Q18: =SUM(N18:P18) -> 0 | U18: 0
A19: ='Org structure'!E15 -> 2.2 - Internal Audit | J19: =Q19+V19 -> 0 | K19: =U19+W19 -> 0 | L19: 0 | Q19: 0 | U19: 0
A20: ='Org structure'!E16 -> 2.3 - Performance and Monitoring Management | J20: 0 | K20: 0 | L20: 0 | Q20: 0 | U20: 0
A21: ='Org structure'!E17 -> 2.4 - Risk Office | J21: 0 | K21: =U21+W21 -> 0 | L21: 0 | Q21: 0 | U21: 0
A22: ='Org structure'!E18 -> 2.5 - Disaster management | J22: 0 | K22: 0 | L22: 0 | Q22: 0 | U22: 0
A23: ='Org structure'!E19 -> 0 | J23: 0 | K23: 0 | L23: 0 | Q23: 0 | U23: 0
A24: ='Org structure'!E20 -> 0 | J24: 0 | K24: 0 | L24: 0 | Q24: 0 | U24: 0
A25: ='Org structure'!E21 -> 0 | J25: 0 | K25: 0 | L25: 0 | Q25: 0 | U25: 0
A26: ='Org structure'!E22 -> 0 | J26: 0 | K26: 0 | L26: 0 | Q26: 0 | U26: 0
A27: ='Org structure'!E23 -> 0 | J27: 0 | K27: 0 | L27: 0 | Q27: 0 | U27: 0
A28: ='Org structure'!A4 -> Vote 3 - Budget & Treasury Office | C28: =SUM(C29:C38) -> 0 | D28: =SUM(D29:D38) -> 0 | E28: 0 | F28: 0 | G28: 0 | H28: 0 | I28: =SUM(I29:I38) -> 0 | J28: 0 | K28: 0 | L28: 0 | N28: =SUM(N29:N38) -> 0 | O28: 0 | P28: 0 | Q28: 0 | R28: 0 | S28: 0 | T28: 0 | U28: 0 | V28: 0 | W28: 0 | X28: 0
A29: ='Org structure'!E25 -> 3.1 - Office of the CFO | J29: =Q29+V29 -> 0 | K29: =U29+W29 -> 0 | L29: =X29 -> 0 | Q29: =SUM(N29:P29) -> 0 | U29: 0
A30: ='Org structure'!E26 -> 3.2 - Supply Chain Management | J30: 0 | K30: 0 | L30: 0 | Q30: 0 | U30: 0
A31: ='Org structure'!E27 -> 3.3 - Expenditure | J31: 0 | K31: 0 | L31: 0 | Q31: 0 | U31: =SUM(R31:T31) -> 0
A32: ='Org structure'!E28 -> 3.4 - Budget & Reporting | J32: 0 | K32: =U32+W32 -> 0 | L32: 0 | Q32: 0 | U32: 0
A33: ='Org structure'!E29 -> 3.5 - FMG Projects | J33: =Q33+V33 -> 0 | K33: 0 | L33: 0 | Q33: 0 | U33: 0
A34: ='Org structure'!E30 -> 0 | J34: 0 | K34: 0 | L34: 0 | Q34: 0 | U34: 0
A35: ='Org structure'!E31 -> 0 | J35: 0 | K35: 0 | L35: 0 | Q35: 0 | U35: 0
A36: ='Org structure'!E32 -> 0 | J36: 0 | K36: 0 | L36: 0 | Q36: 0 | U36: 0
A37: ='Org structure'!E33 -> 0 | J37: 0 | K37: 0 | L37: 0 | Q37: 0 | U37: 0
A38: ='Org structure'!E34 -> 0 | J38: 0 | K38: 0 | L38: 0 | Q38: 0 | U38: 0
A39: ='Org structure'!A5 -> Vote 4 - Planning & Development | C39: =SUM(C40:C49) -> 0 | D39: =SUM(D40:D49) -> 0 | E39: 0 | F39: 0 | G39: 0 | H39: 0 | I39: =SUM(I40:I49) -> 0 | J39: 0 | K39: 0 | L39: 0 | N39: =SUM(N40:N49) -> 0 | O39: 0 | P39: 0 | Q39: 0 | R39: 0 | S39: 0 | T39: 0 | U39: 0 | V39: 0 | W39: 0 | X39: 0
A40: ='Org structure'!E36 -> 4.1 - Office of the Director - Planning and Development | J40: =Q40+V40 -> 0 | K40: =U40+W40 -> 0 | L40: =X40 -> 0 | Q40: =SUM(N40:P40) -> 0 | U40: 0
A41: ='Org structure'!E37 -> 4.2 - Economic Development | J41: 0 | K41: 0 | L41: 0 | Q41: 0 | U41: 0
A42: ='Org structure'!E38 -> 4.4 - Development Planning | J42: 0 | K42: 0 | L42: 0 | Q42: 0 | U42: 0
A43: ='Org structure'!E39 -> 4.5 - Municipal Health | J43: 0 | K43: 0 | L43: 0 | Q43: 0 | U43: 0
A44: ='Org structure'!E40 -> 0 | J44: 0 | K44: 0 | L44: 0 | Q44: 0 | U44: 0
A45: ='Org structure'!E41 -> 0 | J45: 0 | K45: 0 | L45: 0 | Q45: 0 | U45: 0
A46: ='Org structure'!E42 -> 0 | J46: 0 | K46: 0 | L46: 0 | Q46: 0 | U46: 0
A47: ='Org structure'!E43 -> 0 | J47: 0 | K47: 0 | L47: 0 | Q47: 0 | U47: 0
A48: ='Org structure'!E44 -> 0 | J48: 0 | K48: 0 | L48: 0 | Q48: 0 | U48: 0
A49: ='Org structure'!E45 -> 0 | J49: 0 | K49: 0 | L49: 0 | Q49: 0 | U49: 0
A50: ='Org structure'!A6 -> Vote 5 - Corporate Services | C50: =SUM(C51:C60) -> 0 | D50: =SUM(D51:D60) -> 0 | E50: 0 | F50: 0 | G50: 0 | H50: 0 | I50: =SUM(I51:I60) -> 0 | J50: 0 | K50: 0 | L50: 0 | N50: =SUM(N51:N60) -> 0 | O50: 0 | P50: 0 | Q50: 0 | R50: 0 | S50: 0 | T50: 0 | U50: 0 | V50: 0 | W50: 0 | X50: 0
A51: ='Org structure'!E47 -> 5.1 - Office of the Director - Corporate Services | J51: =Q51+V51 -> 0 | K51: =U51+W51 -> 0 | L51: =X51 -> 0 | Q51: =SUM(N51:P51) -> 0 | U51: 0
A52: ='Org structure'!E48 -> 5.2 - Administration | J52: 0 | K52: 0 | L52: 0 | Q52: 0 | U52: 0
A53: ='Org structure'!E49 -> 5.3 - Information Technology | J53: 0 | K53: 0 | L53: 0 | Q53: 0 | U53: 0
A54: ='Org structure'!E50 -> 5.4 - Property Services | J54: 0 | K54: 0 | L54: 0 | Q54: 0 | U54: 0
A55: ='Org structure'!E51 -> 5.5 - Human Resources | J55: 0 | K55: 0 | L55: 0 | Q55: 0 | U55: 0
A56: ='Org structure'!E52 -> 0 | J56: 0 | K56: 0 | L56: 0 | Q56: 0 | U56: 0
A57: ='Org structure'!E53 -> 0 | J57: 0 | K57: 0 | L57: 0 | Q57: 0 | U57: 0
A58: ='Org structure'!E54 -> 0 | J58: 0 | K58: 0 | L58: 0 | Q58: 0 | U58: 0
A59: ='Org structure'!E55 -> 0 | J59: 0 | K59: 0 | L59: 0 | Q59: 0 | U59: 0
A60: ='Org structure'!E56 -> 0 | J60: 0 | K60: 0 | L60: 0 | Q60: 0 | U60: 0
A61: ='Org structure'!A7 -> Vote 6 - [NAME OF VOTE 6] | C61: =SUM(C62:C71) -> 0 | D61: =SUM(D62:D71) -> 0 | E61: 0 | F61: 0 | G61: 0 | H61: 0 | I61: =SUM(I62:I71) -> 0 | J61: 0 | K61: 0 | L61: 0 | N61: =SUM(N62:N71) -> 0 | O61: 0 | P61: 0 | Q61: 0 | R61: 0 | S61: 0 | T61: 0 | U61: 0 | V61: 0 | W61: 0 | X61: 0
A62: ='Org structure'!E58 -> 6.1 - [Name of sub-vote] | J62: =Q62+V62 -> 0 | K62: =U62+W62 -> 0 | L62: =X62 -> 0 | Q62: =SUM(N62:P62) -> 0 | U62: 0
A63: ='Org structure'!E59 -> 0 | J63: 0 | K63: 0 | L63: 0 | Q63: 0 | U63: 0
A64: ='Org structure'!E60 -> 0 | J64: 0 | K64: 0 | L64: 0 | Q64: 0 | U64: 0
A65: ='Org structure'!E61 -> 0 | J65: 0 | K65: 0 | L65: 0 | Q65: 0 | U65: 0
A66: ='Org structure'!E62 -> 0 | J66: 0 | K66: 0 | L66: 0 | Q66: 0 | U66: 0
A67: ='Org structure'!E63 -> 0 | J67: 0 | K67: 0 | L67: 0 | Q67: 0 | U67: 0
A68: ='Org structure'!E64 -> 0 | J68: 0 | K68: 0 | L68: 0 | Q68: 0 | U68: 0
A69: ='Org structure'!E65 -> 0 | J69: 0 | K69: 0 | L69: 0 | Q69: 0 | U69: 0
A70: ='Org structure'!E66 -> 0 | J70: 0 | K70: 0 | L70: 0 | Q70: 0 | U70: 0
A71: ='Org structure'!E67 -> 0 | J71: 0 | K71: 0 | L71: 0 | Q71: 0 | U71: 0
A72: ='Org structure'!A8 -> Vote 7 - [NAME OF VOTE 7] | C72: =SUM(C73:C82) -> 0 | D72: 0 | E72: 0 | F72: 0 | G72: 0 | H72: 0 | I72: 0 | J72: 0 | K72: 0 | L72: 0 | N72: =SUM(N73:N82) -> 0 | O72: 0 | P72: 0 | Q72: 0 | R72: 0 | S72: 0 | T72: 0 | U72: 0 | V72: 0 | W72: 0 | X72: 0
A73: ='Org structure'!E69 -> 7.1 - [Name of sub-vote] | J73: =Q73+V73 -> 0 | K73: =U73+W73 -> 0 | L73: =X73 -> 0 | Q73: =SUM(N73:P73) -> 0 | U73: =SUM(R73:T73) -> 0
A74: ='Org structure'!E70 -> 0 | J74: 0 | K74: 0 | L74: 0 | Q74: 0 | U74: 0
A75: ='Org structure'!E71 -> 0 | J75: 0 | K75: 0 | L75: 0 | Q75: 0 | U75: 0
A76: ='Org structure'!E72 -> 0 | J76: 0 | K76: 0 | L76: 0 | Q76: 0 | U76: 0
A77: ='Org structure'!E73 -> 0 | J77: 0 | K77: 0 | L77: 0 | Q77: 0 | U77: 0
A78: ='Org structure'!E74 -> 0 | J78: 0 | K78: 0 | L78: 0 | Q78: 0 | U78: 0
A79: ='Org structure'!E75 -> 0 | J79: 0 | K79: 0 | L79: 0 | Q79: 0 | U79: 0
A80: ='Org structure'!E76 -> 0 | J80: 0 | K80: 0 | L80: 0 | Q80: 0 | U80: 0
A81: ='Org structure'!E77 -> 0 | J81: 0 | K81: 0 | L81: 0 | Q81: 0 | U81: 0
A82: ='Org structure'!E78 -> 0 | J82: 0 | K82: 0 | L82: 0 | Q82: 0 | U82: 0
A83: ='Org structure'!A9 -> Vote 8 - [NAME OF VOTE 8] | C83: =SUM(C84:C93) -> 0 | D83: 0 | E83: 0 | F83: 0 | G83: 0 | H83: 0 | I83: 0 | J83: 0 | K83: 0 | L83: 0 | N83: =SUM(N84:N93) -> 0 | O83: 0 | P83: 0 | Q83: 0 | R83: 0 | S83: 0 | T83: 0 | U83: 0 | V83: 0 | W83: 0 | X83: 0
A84: ='Org structure'!E80 -> 8.1 - [Name of sub-vote] | J84: =Q84+V84 -> 0 | K84: =U84+W84 -> 0 | L84: =X84 -> 0 | Q84: =SUM(N84:P84) -> 0 | U84: 0
A85: ='Org structure'!E81 -> 0 | J85: 0 | K85: 0 | L85: 0 | Q85: 0 | U85: 0
A86: ='Org structure'!E82 -> 0 | J86: 0 | K86: 0 | L86: 0 | Q86: 0 | U86: 0
A87: ='Org structure'!E83 -> 0 | J87: 0 | K87: 0 | L87: 0 | Q87: 0 | U87: 0
A88: ='Org structure'!E84 -> 0 | J88: 0 | K88: 0 | L88: 0 | Q88: 0 | U88: 0
A89: ='Org structure'!E85 -> 0 | J89: 0 | K89: 0 | L89: 0 | Q89: 0 | U89: 0
A90: ='Org structure'!E86 -> 0 | J90: 0 | K90: 0 | L90: 0 | Q90: 0 | U90: 0
A91: ='Org structure'!E87 -> 0 | J91: 0 | K91: 0 | L91: 0 | Q91: 0 | U91: 0
A92: ='Org structure'!E88 -> 0 | J92: 0 | K92: 0 | L92: 0 | Q92: 0 | U92: 0
A93: ='Org structure'!E89 -> 0 | J93: 0 | K93: 0 | L93: 0 | Q93: 0 | U93: 0
A94: ='Org structure'!A10 -> Vote 9 - [NAME OF VOTE 9] | C94: =SUM(C95:C104) -> 0 | D94: =SUM(D95:D104) -> 0 | E94: 0 | F94: 0 | G94: 0 | H94: 0 | I94: 0 | J94: 0 | K94: 0 | L94: 0 | N94: =SUM(N95:N104) -> 0 | O94: 0 | P94: 0 | Q94: 0 | R94: 0 | S94: 0 | T94: 0 | U94: 0 | V94: 0 | W94: 0 | X94: 0
A95: ='Org structure'!E91 -> 9.1 - [Name of sub-vote] | J95: =Q95+V95 -> 0 | K95: =U95+W95 -> 0 | L95: =X95 -> 0 | Q95: =SUM(N95:P95) -> 0 | U95: 0
A96: ='Org structure'!E92 -> 0 | J96: 0 | K96: 0 | L96: 0 | Q96: 0 | U96: 0
A97: ='Org structure'!E93 -> 0 | J97: 0 | K97: 0 | L97: 0 | Q97: 0 | U97: 0
A98: ='Org structure'!E94 -> 0 | J98: 0 | K98: 0 | L98: 0 | Q98: 0 | U98: 0
A99: ='Org structure'!E95 -> 0 | J99: 0 | K99: 0 | L99: 0 | Q99: 0 | U99: 0
A100: ='Org structure'!E96 -> 0 | J100: 0 | K100: 0 | L100: 0 | Q100: 0 | U100: 0
A101: ='Org structure'!E97 -> 0 | J101: 0 | K101: 0 | L101: 0 | Q101: 0 | U101: 0
A102: ='Org structure'!E98 -> 0 | J102: 0 | K102: 0 | L102: 0 | Q102: 0 | U102: 0
A103: ='Org structure'!E99 -> 0 | J103: 0 | K103: 0 | L103: 0 | Q103: 0 | U103: 0
A104: ='Org structure'!E100 -> 0 | J104: 0 | K104: 0 | L104: 0 | Q104: 0 | U104: 0
A105: ='Org structure'!A11 -> Vote 10 - [NAME OF VOTE 10] | C105: =SUM(C106:C115) -> 0 | D105: =SUM(D106:D115) -> 0 | E105: 0 | F105: 0 | G105: 0 | H105: 0 | I105: 0 | J105: 0 | K105: 0 | L105: 0 | N105: =SUM(N106:N115) -> 0 | O105: 0 | P105: 0 | Q105: 0 | R105: 0 | S105: 0 | T105: 0 | U105: 0 | V105: 0 | W105: 0 | X105: 0
A106: ='Org structure'!E102 -> 10.1 - [Name of sub-vote] | J106: =Q106+V106 -> 0 | K106: =U106+W106 -> 0 | L106: =X106 -> 0 | Q106: =SUM(N106:P106) -> 0 | U106: 0
A107: ='Org structure'!E103 -> 0 | J107: 0 | K107: 0 | L107: 0 | Q107: 0 | U107: 0
A108: ='Org structure'!E104 -> 0 | J108: 0 | K108: 0 | L108: 0 | Q108: 0 | U108: 0
A109: ='Org structure'!E105 -> 0 | J109: 0 | K109: 0 | L109: 0 | Q109: 0 | U109: 0
A110: ='Org structure'!E106 -> 0 | J110: 0 | K110: 0 | L110: 0 | Q110: 0 | U110: 0
A111: ='Org structure'!E107 -> 0 | J111: 0 | K111: 0 | L111: 0 | Q111: 0 | U111: 0
A112: ='Org structure'!E108 -> 0 | J112: 0 | K112: 0 | L112: 0 | Q112: 0 | U112: 0
A113: ='Org structure'!E109 -> 0 | J113: 0 | K113: 0 | L113: 0 | Q113: 0 | U113: 0
A114: ='Org structure'!E110 -> 0 | J114: 0 | K114: 0 | L114: 0 | Q114: 0 | U114: 0
A115: ='Org structure'!E111 -> 0 | J115: 0 | K115: 0 | L115: 0 | Q115: 0 | U115: 0
A116: ='Org structure'!A12 -> Vote 11 - [NAME OF VOTE 11] | C116: =SUM(C117:C126) -> 0 | D116: 0 | E116: 0 | F116: 0 | G116: 0 | H116: 0 | I116: 0 | J116: 0 | K116: 0 | L116: 0 | N116: =SUM(N117:N126) -> 0 | O116: 0 | P116: 0 | Q116: 0 | R116: 0 | S116: 0 | T116: 0 | U116: 0 | V116: 0 | W116: 0 | X116: 0
A117: ='Org structure'!E113 -> 11.1 - [Name of sub-vote] | J117: =Q117+V117 -> 0 | K117: =U117+W117 -> 0 | L117: =X117 -> 0 | Q117: =SUM(N117:P117) -> 0 | U117: 0
A118: ='Org structure'!E114 -> 0 | J118: 0 | K118: 0 | L118: 0 | Q118: 0 | U118: 0
A119: ='Org structure'!E115 -> 0 | J119: 0 | K119: 0 | L119: 0 | Q119: 0 | U119: 0
A120: ='Org structure'!E116 -> 0 | J120: 0 | K120: 0 | L120: 0 | Q120: 0 | U120: 0
A121: ='Org structure'!E117 -> 0 | J121: 0 | K121: 0 | L121: 0 | Q121: 0 | U121: 0
A122: ='Org structure'!E118 -> 0 | J122: 0 | K122: 0 | L122: 0 | Q122: 0 | U122: 0
A123: ='Org structure'!E119 -> 0 | J123: 0 | K123: 0 | L123: 0 | Q123: 0 | U123: 0
A124: ='Org structure'!E120 -> 0 | J124: 0 | K124: 0 | L124: 0 | Q124: 0 | U124: 0
A125: ='Org structure'!E121 -> 0 | J125: 0 | K125: 0 | L125: 0 | Q125: 0 | U125: 0
A126: ='Org structure'!E122 -> 0 | J126: 0 | K126: 0 | L126: 0 | Q126: 0 | U126: 0
A127: ='Org structure'!A13 -> Vote 12 - [NAME OF VOTE 12] | C127: =SUM(C128:C137) -> 0 | D127: 0 | E127: 0 | F127: 0 | G127: 0 | H127: 0 | I127: 0 | J127: 0 | K127: 0 | L127: 0 | N127: =SUM(N128:N137) -> 0 | O127: 0 | P127: 0 | Q127: 0 | R127: 0 | S127: 0 | T127: 0 | U127: 0 | V127: 0 | W127: 0 | X127: 0
A128: ='Org structure'!E124 -> 12.1 - [Name of sub-vote] | J128: =Q128+V128 -> 0 | K128: =U128+W128 -> 0 | L128: =X128 -> 0 | Q128: =SUM(N128:P128) -> 0 | U128: 0
A129: ='Org structure'!E125 -> 0 | J129: 0 | K129: 0 | L129: 0 | Q129: 0 | U129: 0
A130: ='Org structure'!E126 -> 0 | J130: 0 | K130: 0 | L130: 0 | Q130: 0 | U130: 0
A131: ='Org structure'!E127 -> 0 | J131: 0 | K131: 0 | L131: 0 | Q131: 0 | U131: 0
A132: ='Org structure'!E128 -> 0 | J132: 0 | K132: 0 | L132: 0 | Q132: 0 | U132: 0
A133: ='Org structure'!E129 -> 0 | J133: =Q133+V133 -> 0 | K133: 0 | L133: 0 | Q133: 0 | U133: 0
A134: ='Org structure'!E130 -> 0 | J134: 0 | K134: 0 | L134: 0 | Q134: 0 | U134: 0
A135: ='Org structure'!E131 -> 0 | J135: 0 | K135: 0 | L135: 0 | Q135: 0 | U135: 0
A136: ='Org structure'!E132 -> 0 | J136: 0 | K136: 0 | L136: 0 | Q136: 0 | U136: =SUM(R136:T136) -> 0
A137: ='Org structure'!E133 -> 0 | J137: 0 | K137: 0 | L137: 0 | Q137: 0 | U137: 0
A138: ='Org structure'!A14 -> Vote 13 - [NAME OF VOTE 13] | C138: =SUM(C139:C148) -> 0 | D138: 0 | E138: 0 | F138: 0 | G138: 0 | H138: 0 | I138: 0 | J138: 0 | K138: 0 | L138: 0 | N138: =SUM(N139:N148) -> 0 | O138: 0 | P138: 0 | Q138: 0 | R138: 0 | S138: 0 | T138: 0 | U138: 0 | V138: 0 | W138: 0 | X138: 0
A139: ='Org structure'!E135 -> 13.1 - [Name of sub-vote] | J139: =Q139+V139 -> 0 | K139: =U139+W139 -> 0 | L139: =X139 -> 0 | Q139: =SUM(N139:P139) -> 0 | U139: 0
A140: ='Org structure'!E136 -> 0 | J140: 0 | K140: 0 | L140: 0 | Q140: 0 | U140: 0
A141: ='Org structure'!E137 -> 0 | J141: 0 | K141: 0 | L141: 0 | Q141: 0 | U141: 0
A142: ='Org structure'!E138 -> 0 | J142: 0 | K142: 0 | L142: 0 | Q142: 0 | U142: 0
A143: ='Org structure'!E139 -> 0 | J143: 0 | K143: 0 | L143: 0 | Q143: 0 | U143: 0
A144: ='Org structure'!E140 -> 0 | J144: 0 | K144: 0 | L144: 0 | Q144: 0 | U144: 0
A145: ='Org structure'!E141 -> 0 | J145: 0 | K145: 0 | L145: 0 | Q145: 0 | U145: 0
A146: ='Org structure'!E142 -> 0 | J146: 0 | K146: 0 | L146: 0 | Q146: 0 | U146: 0
A147: ='Org structure'!E143 -> 0 | J147: 0 | K147: 0 | L147: 0 | Q147: 0 | U147: 0
A148: ='Org structure'!E144 -> 0 | J148: 0 | K148: 0 | L148: 0 | Q148: 0 | U148: 0
A149: ='Org structure'!A15 -> Vote 14 - [NAME OF VOTE 14] | C149: =SUM(C150:C159) -> 0 | D149: 0 | E149: 0 | F149: 0 | G149: 0 | H149: 0 | I149: 0 | J149: 0 | K149: 0 | L149: 0 | N149: =SUM(N150:N159) -> 0 | O149: 0 | P149: 0 | Q149: 0 | R149: 0 | S149: 0 | T149: 0 | U149: 0 | V149: 0 | W149: 0 | X149: 0
A150: ='Org structure'!E146 -> 14.1 - [Name of sub-vote] | J150: =Q150+V150 -> 0 | K150: =U150+W150 -> 0 | L150: =X150 -> 0 | Q150: =SUM(N150:P150) -> 0 | U150: 0
A151: ='Org structure'!E147 -> 0 | J151: 0 | K151: 0 | L151: 0 | Q151: 0 | U151: 0
A152: ='Org structure'!E148 -> 0 | J152: 0 | K152: 0 | L152: 0 | Q152: 0 | U152: 0
A153: ='Org structure'!E149 -> 0 | J153: 0 | K153: 0 | L153: 0 | Q153: 0 | U153: 0
A154: ='Org structure'!E150 -> 0 | J154: 0 | K154: 0 | L154: 0 | Q154: 0 | U154: 0
A155: ='Org structure'!E151 -> 0 | J155: 0 | K155: 0 | L155: 0 | Q155: 0 | U155: 0
A156: ='Org structure'!E152 -> 0 | J156: 0 | K156: 0 | L156: 0 | Q156: 0 | U156: 0
A157: ='Org structure'!E153 -> 0 | J157: 0 | K157: 0 | L157: 0 | Q157: 0 | U157: 0
A158: ='Org structure'!E154 -> 0 | J158: 0 | K158: 0 | L158: 0 | Q158: 0 | U158: 0
A159: ='Org structure'!E155 -> 0 | J159: 0 | K159: 0 | L159: 0 | Q159: 0 | U159: 0
A160: ='Org structure'!A16 -> Vote 15 - [NAME OF VOTE 15] | C160: =SUM(C161:C170) -> 0 | D160: 0 | E160: 0 | F160: 0 | G160: 0 | H160: 0 | I160: 0 | J160: 0 | K160: 0 | L160: 0 | N160: =SUM(N161:N170) -> 0 | O160: 0 | P160: 0 | Q160: 0 | R160: 0 | S160: 0 | T160: 0 | U160: 0 | V160: 0 | W160: 0 | X160: 0
A161: ='Org structure'!E157 -> 15.1 - [Name of sub-vote] | J161: =Q161+V161 -> 0 | K161: =U161+W161 -> 0 | L161: =X161 -> 0 | Q161: =SUM(N161:P161) -> 0 | U161: 0
A162: ='Org structure'!E158 -> 0 | J162: 0 | K162: 0 | L162: 0 | Q162: 0 | U162: 0
A163: ='Org structure'!E159 -> 0 | J163: 0 | K163: 0 | L163: 0 | Q163: 0 | U163: 0
A164: ='Org structure'!E160 -> 0 | J164: 0 | K164: 0 | L164: 0 | Q164: 0 | U164: 0
A165: ='Org structure'!E161 -> 0 | J165: 0 | K165: 0 | L165: 0 | Q165: 0 | U165: 0
A166: ='Org structure'!E162 -> 0 | J166: 0 | K166: 0 | L166: 0 | Q166: 0 | U166: 0
A167: ='Org structure'!E163 -> 0 | J167: 0 | K167: 0 | L167: 0 | Q167: 0 | U167: 0
A168: ='Org structure'!E164 -> 0 | J168: 0 | K168: 0 | L168: 0 | Q168: 0 | U168: 0
A169: ='Org structure'!E165 -> 0 | J169: 0 | K169: 0 | L169: 0 | Q169: 0 | U169: 0
A170: ='Org structure'!E166 -> 0 | J170: 0 | K170: 0 | L170: 0 | Q170: 0 | U170: 0
A171: Capital multi-year expenditure sub-total | C171: =C6+C17+C28+C39+C50+C61+C72+C83+C94+C105+C116+C127+C138+C149+C160 -> 0 | D171: =D6+D17+D28+D39+D50+D61+D72+D83+D94+D105+D116+D127+D138+D149+D160 -> 0 | E171: 0 | F171: 0 | G171: 0 | H171: 0 | I171: 0 | J171: 0 | K171: 0 | L171: 0 | N171: =N6+N17+N28+N39+N50+N61+N72+N83+N94+N105+N116+N127+N138+N149+N160 -> 0 | O171: 0 | P171: 0 | Q171: 0 | R171: 0 | S171: 0 | U171: 0 | V171: =V6+V17+V28+V39+V50+V61+V72+V83+V94+V105+V116+V127+V138+V149+V160 -> 0 | W171: =W6+W17+W28+W39+W50+W61+W72+W83+W94+W105+W116+W127+W138+W149+W160 -> 0
A173: Capital expenditure - Municipal Vote
A174: Single-year expenditure appropriation | B174: 2
A175: =A6 -> Vote 1 - General Council | C175: =SUM(C176:C185) -> 0 | D175: 0 | E175: 0 | F175: 5000 | G175: 55115 | H175: 55115 | I175: 55115 | J175: 1070000 | K175: 0 | L175: 0
A176: =A7 -> 1.1 - Mayor | F176: 1666.666667 | G176: 55115 | H176: 55115 | I176: 55115 | J176: 570000 | K176: 0 | L176: 0
A177: 1.2 - Speaker | F177: 2083.333333 | G177: 0 | H177: 0 | I177: 0 | J177: 500000 | K177: 0 | L177: 0
A178: 1.3 - Council | F178: 0 | G178: 0 | H178: 0 | I178: 0 | J178: 0
A179: 1.4 Youth Development Programme | F179: 416.6666667 | G179: 0 | H179: 0 | I179: 0
A180: 1.5 Special Programme | F180: 416.6666667 | G180: 0 | H180: 0 | I180: 0
A181: 1.6 IGR | F181: 416.6666667 | G181: 0 | H181: 0 | I181: 0
A182: 0
A183: 0
A184: 0
A185: 0
A186: Vote 2 - Municipal Manager | C186: =SUM(C187:C196) -> 0 | D186: 0 | E186: 905854 | F186: 25000 | G186: 4666.666667 | H186: 4666.666667 | I186: 4666.666667 | J186: 25000 | K186: 0 | L186: 0
A187: 2.1 - Office of the Municipal Manager | E187: 905854 | F187: 5555.555556 | G187: 0 | H187: 0 | I187: 0
A188: 2.2 - Internal Audit | F188: 5555.555556 | G188: 1555.555556 | H188: 1555.555556 | I188: 1555.555556 | J188: 5000 | L188: =K188*1.1 -> 0
A189: 2.3 - Performance and Monitoring Management | F189: 5555.555556 | G189: 3111.111111 | H189: 3111.111111 | I189: 3111.111111 | J189: 10000 | L189: =K189*1.1 -> 0
A190: 2.4 - Risk Office | F190: 2777.777778 | G190: 0 | H190: 0 | I190: 0 | J190: 10000 | L190: =K190*1.1 -> 0
A191: 2.5 - Disaster management | F191: 5555.555556 | G191: 0 | H191: 0 | I191: 0
A192: 0 | G192: 0 | H192: 0 | I192: 0
A193: 0
A194: 0
A195: 0
A196: 0
A197: Vote 3 - Budget & Treasury Office | C197: =SUM(C198:C207) -> 687893 | D197: 666676 | E197: 1175141 | F197: 635000 | G197: 934252.997 | H197: 934252.997 | I197: 934252.997 | J197: 570000 | K197: 627000 | L197: 689700
A198: 3.1 - Office of the CFO | C198: 687893 | D198: 666676 | E198: 1175141 | F198: 47037.03704 | G198: 899999.997 | H198: 899999.997 | I198: 899999.997 | J198: 500000 | K198: =J198*1.1 -> 550000 | L198: =K198*1.1 -> 605000
A199: 3.2 - Supply Chain Management | F199: 94074.07407 | G199: 7653 | H199: 7653 | I199: 7653 | J199: 50000 | K199: =J199*1.1 -> 55000 | L199: 60500
A200: 3.3 - Expenditure | F200: 211666.6667 | G200: 26600 | H200: 26600 | I200: 26600 | J200: 20000 | K200: 22000 | L200: 24200
A201: 3.4 - Budget & Reporting | F201: 164629.6296 | G201: 0 | H201: 0 | I201: 0 | J201: 0 | K201: 0 | L201: 0
... 140 more rows

Sheet A6-FinPos
A1: =muni&" - "&Approve6 -> DC16 Xhariep - Table A6 Budgeted Financial Position
A2: =desc -> Description | B2: =head27 -> Ref | C2: =head1b -> 2010/11 | D2: =head1A -> 2011/12 | E2: =Head1 -> 2012/13 | F2: =Head2 -> Current Year 2013/14 | J2: =Head3 -> 2014/15 Medium Term Revenue & Expenditure Framework
A3: R thousand | C3: =Head5 -> Audited Outcome | D3: =Head5 -> Audited Outcome | E3: =Head5 -> Audited Outcome | F3: =Head6 -> Original Budget | G3: =Head7 -> Adjusted Budget | H3: =Head8 -> Full Year Forecast | I3: =Head5b -> Pre-audit outcome | J3: =Head9 -> Budget Year 2014/15 | K3: =Head10 -> Budget Year +1 2015/16 | L3: =Head11 -> Budget Year +2 2016/17
A4: ASSETS
A5: Current assets
A6: Cash | C6: 1358177 | D6: 11062090 | E6: 1819068 | J6: 260000 | K6: 560000 | L6: 875000
A7: Call investment deposits | B7: 1 | C7: ='SA3'!C9 -> 5031973 | D7: ='SA3'!D9 -> 5000000 | E7: ='SA3'!E9 -> 0 | F7: ='SA3'!F9 -> 5000000 | G7: ='SA3'!G9 -> 5000000 | H7: ='SA3'!H9 -> 5000000 | I7: ='SA3'!I9 -> 0 | J7: ='SA3'!J9 -> 0 | K7: ='SA3'!K9 -> 0 | L7: ='SA3'!L9 -> 0
A8: Consumer debtors | B8: 1 | C8: ='SA3'!C14 -> 8449143 | D8: ='SA3'!D14 -> 17392548 | E8: ='SA3'!E14 -> 847326.26 | F8: ='SA3'!F14 -> 17193230.03 | G8: ='SA3'!G14 -> 17193230.03 | H8: ='SA3'!H14 -> 17193230.03 | I8: ='SA3'!I14 -> 562766.63 | J8: ='SA3'!J14 -> 112000 | K8: ='SA3'!K14 -> 58000 | L8: ='SA3'!L14 -> 0
A9: Other debtors | C9: 1885489 | D9: 2465385 | E9: 0 | F9: 1033317.68 | G9: 1033317.68 | H9: 1033317.68 | I9: 1033317.68 | J9: 0 | K9: 0 | L9: 0
A10: Current portion of long-term receivables | C10: 0 | D10: 0 | E10: 0 | F10: 0
A11: Inventory | B11: 2 | C11: 0 | D11: 36020 | E11: 123671 | F11: 0 | J11: 46000 | K11: 385000 | L11: 0
A12: Total current assets | C12: =SUM(C6:C11) -> 16724782 | D12: 35956043 | E12: 2790065.26 | F12: 23226547.71 | G12: 23226547.71 | H12: 23226547.71 | I12: 1596084.31 | J12: 418000 | K12: 1003000 | L12: 875000
A14: Non current assets
A15: Long-term receivables | E15: 806729 | F15: 0
A16: Investments | C16: -5031973 | D16: -5000000 | F16: -5000000 | G16: -5000000 | H16: -5000000
A17: Investment property | F17: 0
A18: Investment in Associate | F18: 0
A19: Property, plant and equipment | B19: 3 | C19: ='SA3'!C26 -> 16777105 | D19: ='SA3'!D26 -> 22042469 | E19: ='SA3'!E26 -> 20082803 | F19: ='SA3'!F26 -> 20716155.75 | G19: ='SA3'!G26 -> 20716155.75 | H19: ='SA3'!H26 -> 20716155.75 | I19: ='SA3'!I26 -> 18807495.87 | J19: ='SA3'!J26 -> 15907495.87 | K19: ='SA3'!K26 -> 12407495.87 | L19: ='SA3'!L26 -> 14761439.8
A20: Agricultural | C20: 0 | D20: 0 | E20: 0 | F20: 0
A21: Biological | C21: 0 | D21: 0 | E21: 0 | F21: 0
A22: Intangible | C22: 344908 | D22: 455024 | E22: 739015 | F22: 408000 | G22: 408000 | H22: 408000 | I22: 580000 | J22: 460000 | K22: 386000 | L22: 300000
A23: Other non-current assets | C23: 0 | D23: 0 | E23: 0 | F23: 0
A24: Total non current assets | C24: =SUM(C15:C23) -> 12090040 | D24: =SUM(D15:D23) -> 17497493 | E24: =SUM(E15:E23) -> 21628547 | F24: 16124155.75 | G24: 16124155.75 | H24: 16124155.75 | I24: 19387495.87 | J24: 16367495.87 | K24: 12793495.87 | L24: 15061439.8
A25: TOTAL ASSETS | C25: =C12+C24 -> 28814822 | D25: =D12+D24 -> 53453536 | E25: =E12+E24 -> 24418612.26 | F25: =F12+F24 -> 39350703.46 | G25: 39350703.46 | H25: 39350703.46 | I25: 20983580.18 | J25: 16785495.87 | K25: 13796495.87 | L25: 15936439.8
A27: LIABILITIES
A28: Current liabilities
A29: Bank overdraft | B29: 1
A30: Borrowing | B30: 4 | C30: ='SA3'!C32 -> 397947 | D30: ='SA3'!D32 -> 362288 | E30: ='SA3'!E32 -> 0 | F30: ='SA3'!F32 -> 0 | G30: ='SA3'!G32 -> 0 | H30: ='SA3'!H32 -> 0 | I30: ='SA3'!I32 -> 0 | J30: ='SA3'!J32 -> 0 | K30: ='SA3'!K32 -> 0 | L30: ='SA3'!L32 -> 0
A31: Consumer deposits
A32: Trade and other payables | B32: 4 | C32: ='SA3'!C38 -> 5578689 | D32: ='SA3'!D38 -> 4132910 | E32: ='SA3'!E38 -> 7303639 | F32: ='SA3'!F38 -> 15076020.66 | G32: ='SA3'!G38 -> 15076020.66 | H32: ='SA3'!H38 -> 15076020.66 | I32: ='SA3'!I38 -> 7201365.82 | J32: ='SA3'!J38 -> 4307053 | K32: ='SA3'!K38 -> 3960033 | L32: ='SA3'!L38 -> 3255984
A33: Provisions | C33: 107000 | D33: 84000 | E33: 0 | F33: 84000 | G33: 84000 | H33: 84000 | I33: 84000
A34: Total current liabilities | C34: =SUM(C29:C33) -> 6083636 | D34: 4579198 | E34: 7303639 | F34: 15160020.66 | G34: 15160020.66 | H34: 15160020.66 | I34: 7285365.82 | J34: 4307053 | K34: 3960033 | L34: 3255984
A36: Non current liabilities
A37: Borrowing | C37: ='SA3'!C43 -> 362289 | D37: ='SA3'!D43 -> 0 | E37: ='SA3'!E43 -> 0 | F37: ='SA3'!F43 -> 701000 | G37: ='SA3'!G43 -> 900000 | H37: ='SA3'!H43 -> 900000 | I37: ='SA3'!I43 -> 0 | J37: ='SA3'!J43 -> 500000 | K37: ='SA3'!K43 -> 550000 | L37: ='SA3'!L43 -> 605000
A38: Provisions | C38: ='SA3'!C50 -> 495889 | D38: ='SA3'!D50 -> 673000 | E38: ='SA3'!E50 -> 879000 | F38: ='SA3'!F50 -> 603000 | G38: ='SA3'!G50 -> 603000 | H38: ='SA3'!H50 -> 603000 | I38: ='SA3'!I50 -> 879000 | J38: ='SA3'!J50 -> 912000 | K38: ='SA3'!K50 -> 984960 | L38: ='SA3'!L50 -> 1063756.8
A39: Total non current liabilities | C39: =SUM(C37:C38) -> 858178 | D39: =SUM(D37:D38) -> 673000 | E39: =SUM(E37:E38) -> 879000 | F39: =SUM(F37:F38) -> 1304000 | G39: 1503000 | H39: 1503000 | I39: 879000 | J39: 1412000 | K39: =SUM(K37:K38) -> 1534960 | L39: 1668756.8
A40: TOTAL LIABILITIES | C40: =C34+C39 -> 6941814 | D40: =D34+D39 -> 5252198 | E40: =E34+E39 -> 8182639 | F40: =F34+F39 -> 16464020.66 | G40: 16663020.66 | H40: 16663020.66 | I40: 8164365.82 | J40: 5719053 | K40: =K34+K39 -> 5494993 | L40: 4924740.8
A42: NET ASSETS | B42: 5 | C42: =C25-C40 -> 21873008 | D42: 48201338 | E42: 16235973.26 | F42: 22886682.8 | G42: 22687682.8 | H42: 22687682.8 | I42: 12819214.36 | J42: 11066442.87 | K42: 8301502.87 | L42: 11011699
A44: COMMUNITY WEALTH/EQUITY
A45: Accumulated Surplus/(Deficit) | C45: 26904981 | D45: 53201338 | E45: 16235973.26 | F45: 28587682.8 | G45: 28587682.8 | H45: 28587682.8 | I45: 12819214.36 | J45: 10966443 | K45: 8431502.87 | L45: 11396699
A46: Reserves | B46: 4 | C46: ='SA3'!C69 -> 0 | D46: ='SA3'!D69 -> 0 | E46: ='SA3'!E69 -> 0 | F46: ='SA3'!F69 -> 0 | G46: ='SA3'!G69 -> 0 | H46: ='SA3'!H69 -> 0 | I46: ='SA3'!I69 -> 0 | J46: ='SA3'!J69 -> 0 | K46: ='SA3'!K69 -> 0 | L46: ='SA3'!L69 -> 0
A47: Minorities' interests
A48: TOTAL COMMUNITY WEALTH/EQUITY | B48: 5 | C48: =SUM(C45:C47) -> 26904981 | D48: =SUM(D45:D47) -> 53201338 | E48: 16235973.26 | F48: 28587682.8 | G48: 28587682.8 | H48: 28587682.8 | I48: 12819214.36 | J48: 10966443 | K48: 8431502.87 | L48: 11396699
A49: =head27a -> References
A50: 1. Detail to be provided in Table SA3
A51: 2. Include completed low cost housing to be transferred to beneficiaries within 12 months
A52: 3. Include 'Construction-work-in-progress' (disclosed separately in annual financial statements)
A53: 4. Detail to be provided in Table SA3. Includes reserves to be funded by statute.
A54: 5. Net assets must balance with Total Community Wealth/Equity
A55: check balance | C55: =C42-C48 -> -5031973 | D55: -5000000 | E55: 0 | F55: -5701000 | G55: -5900000 | H55: -5900000 | I55: 0 | J55: 99999.87007 | K55: -129999.9999 | L55: -384999.9997

Sheet A7-CFlow
A1: =muni&" - "&Approve7 -> DC16 Xhariep - Table A7 Budgeted Cash Flows
A2: =desc -> Description | B2: =head27 -> Ref | C2: =head1b -> 2010/11 | D2: =head1A -> 2011/12 | E2: =Head1 -> 2012/13 | F2: =Head2 -> Current Year 2013/14 | J2: =Head3 -> 2014/15 Medium Term Revenue & Expenditure Framework
A3: R thousand | C3: =Head5 -> Audited Outcome | D3: =Head5 -> Audited Outcome | E3: =Head5 -> Audited Outcome | F3: =Head6 -> Original Budget | G3: =Head7 -> Adjusted Budget | H3: =Head8 -> Full Year Forecast | I3: =Head5b -> Pre-audit outcome | J3: =Head9 -> Budget Year 2014/15 | K3: =Head10 -> Budget Year +1 2015/16 | L3: =Head11 -> Budget Year +2 2016/17
A4: CASH FLOW FROM OPERATING ACTIVITIES
A5: Receipts
A6: Ratepayers and other | C6: 307367 | D6: 1871229 | E6: 254017 | F6: 444496.6842 | G6: 444496.6842 | H6: 444496.6842 | I6: 444496.6842 | J6: =468566+58998+570000-500000 -> 597564 | K6: =J6*1.1 -> 657320.4 | L6: =K6*1.1 -> 723052.44
A7: Government - operating | B7: 1 | C7: 40782860 | D7: 78025800 | E7: 40588152 | F7: 59971000 | G7: 59339904.38 | H7: 59339904.38 | I7: 59339904.38 | J7: =63492000-500000 -> 62992000 | K7: =J7*1.1 -> 69291200 | L7: 76220320
A8: Government - capital | B8: 1 | F8: 0 | K8: =J8*1.1 -> 0 | L8: 0
A9: Interest | C9: 382910 | D9: 731392 | E9: 283816 | F9: 139358.36 | G9: 128600 | H9: 128600 | I9: 128600 | J9: =115806 -> 115806 | K9: =J9*1.1 -> 127386.6 | L9: 140125.26
A10: Dividends | F10: 0 | K10: =J10*1.1 -> 0 | L10: 0
A11: Payments
A12: Suppliers and employees | C12: -35507730 | D12: -64042327 | E12: -52725566 | F12: -58358463.56 | G12: -55874533.26 | H12: -55874533.26 | I12: -55874533.26 | J12: =-66463879.41+500000-570000+500000+500000 -> -65533879.41 | K12: =J12*1.1 -> -72087267.35 | L12: =K12*1.1 -> -79295994.09
A13: Finance charges | C13: -497112 | D13: -307741 | E13: -286676 | F13: 0 | G13: 0 | H13: 0 | I13: -1646
A14: Transfers and Grants | B14: 1 | F14: 0 | G14: 0 | H14: 0 | I14: 0
A15: NET CASH FROM/(USED) OPERATING ACTIVITIES | C15: =SUM(C6:C10)+SUM(C12:C14) -> 5468295 | D15: =SUM(D6:D10)+SUM(D12:D14) -> 16278353 | E15: -11886257 | F15: 2196391.484 | G15: 4038467.809 | H15: 4038467.809 | I15: 4036821.809 | J15: -1828509.41 | K15: -2011360.351 | L15: -2212496.386
A17: CASH FLOWS FROM INVESTING ACTIVITIES
A18: Receipts
A19: Proceeds on disposal of PPE | C19: 774286 | D19: 40288 | E19: 46697 | F19: 0 | G19: 0 | H19: 0 | I19: 0
A20: Decrease (Increase) in non-current debtors | E20: 0 | F20: 0 | G20: 0 | H20: 0 | I20: 0
A21: Decrease (increase) other non-current receivables | C21: 0 | D21: -240000 | E21: 0 | F21: 0 | G21: 0 | H21: 0 | I21: 0
A22: Decrease (increase) in non-current investments | C22: -901256 | D22: 31973 | E22: 0 | F22: 0 | G22: 0 | H22: 0 | I22: 0
A23: Payments
A24: Capital assets | C24: -5611378 | D24: -6008753 | E24: -1457514 | F24: -3746000 | G24: -2620913 | H24: -2620913 | I24: -2620913
A25: NET CASH FROM/(USED) INVESTING ACTIVITIES | C25: =SUM(C19:C22)+C24 -> -5738348 | D25: =SUM(D19:D22)+D24 -> -6176492 | E25: -1410817 | F25: -3746000 | G25: -2620913 | H25: -2620913 | I25: -2620913 | J25: 0 | K25: 0 | L25: 0
A27: CASH FLOWS FROM FINANCING ACTIVITIES
A28: Receipts
A29: Short term loans
A30: Borrowing long term/refinancing
A31: Increase (decrease) in consumer deposits
A32: Payments
A33: Repayment of borrowing | C33: -254470 | D33: -397947 | E33: -362859 | J33: -500000 | K33: =J33*1.1 -> -550000 | L33: =K33*1.1 -> -605000
A34: NET CASH FROM/(USED) FINANCING ACTIVITIES | C34: =SUM(C29:C31)+C33 -> -254470 | D34: =SUM(D29:D31)+D33 -> -397947 | E34: -362859 | F34: 0 | G34: 0 | H34: 0 | I34: 0 | J34: -500000 | K34: -550000 | L34: -605000
A36: NET INCREASE/ (DECREASE) IN CASH HELD | C36: =C15+C25+C34 -> -524523 | D36: =D15+D25+D34 -> 9703914 | E36: -13659933 | F36: -1549608.516 | G36: 1417554.809 | H36: 1417554.809 | I36: 1415908.809 | J36: -2328509.41 | K36: -2561360.351 | L36: -2817496.386
A37: Cash/cash equivalents at the year begin: | B37: 2 | C37: 10477349 | D37: =C38 -> 9952826 | E37: =D38 -> 19656740 | I37: =G37 -> 0 | K37: =J38 -> -2328509.41 | L37: =K38 -> -4889869.761
A38: Cash/cash equivalents at the year end: | B38: 2 | C38: =C36+C37 -> 9952826 | D38: =D36+D37 -> 19656740 | E38: =E36+E37 -> 5996807 | F38: =F36+F37 -> -1549608.516 | G38: 1417554.809 | H38: 1417554.809 | I38: 1415908.809 | J38: -2328509.41 | K38: -4889869.761 | L38: -7707366.147
A39: =head27a -> References
A40: 1. Local/District municipalities to include transfers from/to District/Local Municipalities
A41: 2. Cash equivalents includes investments with maturities of 3 months or less
A43: Total receipts | C43: =SUM(C6:C10)+SUM(C19:C21) -> 42247423 | D43: =SUM(D6:D10)+SUM(D19:D21) -> 80428709 | E43: 41172682 | F43: 60554855.04 | G43: 59913001.06 | H43: 59913001.06 | I43: 59913001.06 | J43: 63705370 | K43: 70075907 | L43: 77083497.7
A44: Total payments | C44: =SUM(C12:C14)+C24 -> -41616220 | D44: =SUM(D12:D14)+D24 -> -70358821 | E44: -54469756 | F44: -62104463.56 | G44: -58495446.26 | H44: -58495446.26 | I44: -58497092.26 | J44: -65533879.41 | K44: -72087267.35 | L44: -79295994.09
C45: =C43+C44 -> 631203 | D45: =D43+D44 -> 10069888 | E45: -13297074 | F45: -1549608.516 | G45: 1417554.809 | H45: 1417554.809 | I45: 1415908.809 | J45: -1828509.41 | K45: -2011360.351 | L45: -2212496.386
A46: Borrowings & investments & c.deposits | C46: =C22+C30+C31 -> -901256 | D46: =D22+D30+D31 -> 31973 | E46: 0 | F46: 0 | G46: 0 | H46: 0 | I46: 0 | J46: 0 | K46: 0 | L46: 0
A47: =A33 -> Repayment of borrowing | C47: =C33 -> -254470 | D47: =D33 -> -397947 | E47: -362859 | F47: 0 | G47: 0 | H47: 0 | I47: =I33 -> 0 | J47: -500000 | K47: -550000 | L47: -605000
C48: =C45+C46+C47 -> -524523 | D48: =D45+D46+D47 -> 9703914 | E48: -13659933 | F48: -1549608.516 | G48: 1417554.809 | H48: 1417554.809 | I48: 1415908.809 | J48: -2328509.41 | K48: -2561360.351 | L48: -2817496.386
C49: =C36-C48 -> 0 | D49: 0 | E49: 0 | F49: 0 | G49: 0 | H49: 0 | I49: 0 | J49: 0 | K49: 0 | L49: 0

Sheet A8-ResRecon
A1: =muni&" - "&Approve8 -> DC16 Xhariep - Table A8 Cash backed reserves/accumulated surplus reconciliation
A2: =desc -> Description | B2: =head27 -> Ref | C2: =head1b -> 2010/11 | D2: =head1A -> 2011/12 | E2: =Head1 -> 2012/13 | F2: =Head2 -> Current Year 2013/14 | J2: =Head3 -> 2014/15 Medium Term Revenue & Expenditure Framework
A3: R thousand | C3: =Head5 -> Audited Outcome | D3: =Head5 -> Audited Outcome | E3: =Head5 -> Audited Outcome | F3: =Head6 -> Original Budget | G3: =Head7 -> Adjusted Budget | H3: =Head8 -> Full Year Forecast | I3: =Head5b -> Pre-audit outcome | J3: =Head9 -> Budget Year 2014/15 | K3: =Head10 -> Budget Year +1 2015/16 | L3: =Head11 -> Budget Year +2 2016/17
A4: Cash and investments available
A5: =LEFT('A7-CFlow'!A38,37) -> Cash/cash equivalents at the year end | B5: 1 | C5: ='A7-CFlow'!C38 -> 9952826 | D5: ='A7-CFlow'!D38 -> 19656740 | E5: ='A7-CFlow'!E38 -> 5996807 | F5: ='A7-CFlow'!F38 -> -1549608.516 | G5: ='A7-CFlow'!G38 -> 1417554.809 | H5: ='A7-CFlow'!H38 -> 1417554.809 | I5: ='A7-CFlow'!I38 -> 1415908.809 | J5: ='A7-CFlow'!J38 -> -2328509.41 | K5: ='A7-CFlow'!K38 -> -4889869.761 | L5: ='A7-CFlow'!L38 -> -7707366.147
A6: Other current investments > 90 days | C6: ='A6-FinPos'!C6+'A6-FinPos'!C7-'A6-FinPos'!C29-'A8-ResRecon'!C5 -> -3562676 | D6: ='A6-FinPos'!D6+'A6-FinPos'!D7-'A6-FinPos'!D29-'A8-ResRecon'!D5 -> -3594650 | E6: ='A6-FinPos'!E6+'A6-FinPos'!E7-'A6-FinPos'!E29-'A8-ResRecon'!E5 -> -4177739 | F6: ='A6-FinPos'!F6+'A6-FinPos'!F7-'A6-FinPos'!F29-'A8-ResRecon'!F5 -> 6549608.516 | G6: ='A6-FinPos'!G6+'A6-FinPos'!G7-'A6-FinPos'!G29-'A8-ResRecon'!G5 -> 3582445.191 | H6: ='A6-FinPos'!H6+'A6-FinPos'!H7-'A6-FinPos'!H29-'A8-ResRecon'!H5 -> 3582445.191 | I6: ='A6-FinPos'!I6+'A6-FinPos'!I7-'A6-FinPos'!I29-'A8-ResRecon'!I5 -> -1415908.809 | J6: ='A6-FinPos'!J6+'A6-FinPos'!J7-'A6-FinPos'!J29-'A8-ResRecon'!J5 -> 2588509.41 | K6: ='A6-FinPos'!K6+'A6-FinPos'!K7-'A6-FinPos'!K29-'A8-ResRecon'!K5 -> 5449869.761 | L6: ='A6-FinPos'!L6+'A6-FinPos'!L7-'A6-FinPos'!L29-'A8-ResRecon'!L5 -> 8582366.147
A7: ='A6-FinPos'!A14&" - "&'A6-FinPos'!A16 -> Non current assets - Investments | B7: 1 | C7: ='A6-FinPos'!C16 -> -5031973 | D7: ='A6-FinPos'!D16 -> -5000000 | E7: ='A6-FinPos'!E16 -> 0 | F7: ='A6-FinPos'!F16 -> -5000000 | G7: ='A6-FinPos'!G16 -> -5000000 | H7: ='A6-FinPos'!H16 -> -5000000 | I7: ='A6-FinPos'!I16 -> 0 | J7: ='A6-FinPos'!J16 -> 0 | K7: ='A6-FinPos'!K16 -> 0 | L7: ='A6-FinPos'!L16 -> 0
A8: Cash and investments available: | C8: =SUM(C5:C7) -> 1358177 | D8: =SUM(D5:D7) -> 11062090 | E8: 1819068 | F8: 0 | G8: 0 | H8: 0 | I8: 0 | J8: 260000 | K8: 560000 | L8: 875000
A10: Application of cash and investments
A11: ='SA3'!A36 -> Unspent conditional transfers | C11: ='SA3'!C36 -> 355449 | D11: ='SA3'!D36 -> 1523205 | E11: ='SA3'!E36 -> 1992053 | F11: ='SA3'!F36 -> 0 | G11: ='SA3'!G36 -> 0 | H11: ='SA3'!H36 -> 0 | I11: ='SA3'!I36 -> 3860068.35 | J11: ='SA3'!J36 -> 1292053 | K11: ='SA3'!K36 -> 1292053 | L11: ='SA3'!L36 -> 960000
A12: Unspent borrowing | C12: ='SA17'!C67 -> 0 | D12: ='SA17'!D67 -> 0 | E12: ='SA17'!E67 -> 0 | F12: ='SA17'!F67 -> 0 | G12: ='SA17'!G67 -> 0 | H12: ='SA17'!H67 -> 0 | J12: ='SA17'!I67 -> 0 | K12: ='SA17'!J67 -> 0 | L12: ='SA17'!K67 -> 0
A13: Statutory requirements | B13: 2
A14: Other working capital requirements | B14: 3 | C14: =-C32 -> -5111760 | D14: =-D32 -> -14781812 | E14: 5459487 | F14: =-F32 -> -2719979.34 | G14: -3150979.34 | H14: -3150979.34 | I14: 3479081.74 | J14: 3585000 | K14: 3261980 | L14: 3007984
A15: Other provisions
A16: Long term investments committed | B16: 4 | C16: =C52 -> 0 | D16: =D52 -> 0 | E16: 0 | F16: 0 | G16: 0 | H16: 0 | I16: 0 | J16: 0 | K16: 0 | L16: 0
A17: Reserves to be backed by cash/investments | B17: 5
A18: ="Total "&A10&":" -> Total Application of cash and investments: | C18: =SUM(C11:C17) -> -4756311 | D18: =SUM(D11:D17) -> -13258607 | E18: 7451540 | F18: -2719979.34 | G18: -3150979.34 | H18: -3150979.34 | I18: 7339150.09 | J18: 4877053 | K18: 4554033 | L18: 3967984
A19: Surplus(shortfall) | C19: =C8-C18 -> 6114488 | D19: =D8-D18 -> 24320697 | E19: -5632472 | F19: 2719979.34 | G19: 3150979.34 | H19: 3150979.34 | I19: -7339150.09 | J19: -4617053 | K19: -3994033 | L19: -3092984
A20: =head27a -> References
A21: 1. Must reconcile with Budgeted Cash Flows
A22: 2. For example: VAT, taxation
A23: 3. Council approval for policy required - include sufficient working capital (e.g. allowing for a % of current debtors > 90 days as uncollectable)
A24: 4. For example: sinking fund requirements for borrowing
A25: 5. Council approval required for each reserve created and basis of cash backing of reserves
A28: Other working capital requirements
A29: Debtors | C29: =IF(ISERROR(ROUND(C35*C36,-3)),0,(ROUND(C35*C36,-3))) -> 10335000 | D29: =IF(ISERROR(ROUND(D35*D36,-3)),0,(ROUND(D35*D36,-3))) -> 19858000 | E29: 832000 | F29: 17796000 | G29: 18227000 | H29: 18227000 | I29: 1558000 | J29: 60000 | K29: 64000 | L29: 0
A31: Creditors due | C31: ='SA3'!C35 -> 5223240 | D31: ='SA3'!D35 -> 5076188 | E31: ='SA3'!E35 -> 6291487 | F31: ='SA3'!F35 -> 15076020.66 | G31: ='SA3'!G35 -> 15076020.66 | H31: ='SA3'!H35 -> 15076020.66 | I31: ='SA3'!I35 -> 5037081.74 | J31: ='SA3'!J35 -> 3645000 | K31: ='SA3'!K35 -> 3325980 | L31: ='SA3'!L35 -> 3007984
A32: Total | C32: =C29-C31 -> 5111760 | D32: =D29-D31 -> 14781812 | E32: -5459487 | F32: 2719979.34 | G32: 3150979.34 | H32: 3150979.34 | I32: -3479081.74 | J32: -3585000 | K32: -3261980 | L32: -3007984
A34: Debtors collection assumptions
A35: Balance outstanding - debtors | C35: ='A6-FinPos'!C8+'A6-FinPos'!C9+'A6-FinPos'!C15 -> 10334632 | D35: ='A6-FinPos'!D8+'A6-FinPos'!D9+'A6-FinPos'!D15 -> 19857933 | E35: ='A6-FinPos'!E8+'A6-FinPos'!E9+'A6-FinPos'!E15 -> 1654055.26 | F35: ='A6-FinPos'!F8+'A6-FinPos'!F9+'A6-FinPos'!F15 -> 18226547.71 | G35: ='A6-FinPos'!G8+'A6-FinPos'!G9+'A6-FinPos'!G15 -> 18226547.71 | H35: ='A6-FinPos'!H8+'A6-FinPos'!H9+'A6-FinPos'!H15 -> 18226547.71 | I35: ='A6-FinPos'!I8+'A6-FinPos'!I9+'A6-FinPos'!I15 -> 1596084.31 | J35: ='A6-FinPos'!J8+'A6-FinPos'!J9+'A6-FinPos'!J15 -> 112000 | K35: ='A6-FinPos'!K8+'A6-FinPos'!K9+'A6-FinPos'!K15 -> 58000 | L35: ='A6-FinPos'!L8+'A6-FinPos'!L9+'A6-FinPos'!L15 -> 0
A36: Estimate of debtors collection rate | C36: =IF(ISERROR('SA10'!D10),0,('SA10'!D10)) -> 1 | D36: =IF(ISERROR('SA10'!E10),0,('SA10'!E10)) -> 1 | E36: =IF(ISERROR('SA10'!F10),0,('SA10'!F10)) -> 0.5028645524 | F36: =IF(ISERROR('SA10'!G10),0,('SA10'!G10)) -> 0.9763684991 | G36: =IF(ISERROR('SA10'!H10),0,('SA10'!H10)) -> 1 | H36: =IF(ISERROR('SA10'!I10),0,('SA10'!I10)) -> 1 | I36: =IF(ISERROR('SA10'!J10),0,('SA10'!J10)) -> 0.9758505377 | J36: =IF(ISERROR('SA10'!K10),0,('SA10'!K10)) -> 0.5385543422 | K36: =IF(ISERROR('SA10'!L10),0,('SA10'!L10)) -> 1.107480899 | L36: =IF(ISERROR('SA10'!M10),0,('SA10'!M10)) -> 1.107480899
K39: `
A40: =A16 -> Long term investments committed
A41: Balance (Insert description; eg sinking fund)
C52: =SUM(C41:C51) -> 0 | D52: =SUM(D41:D51) -> 0 | E52: 0 | F52: 0 | G52: 0 | H52: 0 | I52: 0 | J52: 0 | K52: 0 | L52: 0
A53: =A17 -> Reserves to be backed by cash/investments
A54: ='SA3'!A64 -> Housing Development Fund | C54: ='SA3'!C64 -> 0 | D54: ='SA3'!D64 -> 0 | E54: ='SA3'!E64 -> 0 | F54: ='SA3'!F64 -> 0 | G54: ='SA3'!G64 -> 0 | H54: ='SA3'!H64 -> 0 | I54: ='SA3'!I64 -> 0 | J54: ='SA3'!J64 -> 0 | K54: ='SA3'!K64 -> 0 | L54: ='SA3'!L64 -> 0
A55: ='SA3'!A65 -> Capital replacement
A56: ='SA3'!A66 -> Self-insurance
A57: Other (list)
C67: =SUM(C54:C65) -> 0 | D67: 0 | E67: 0 | F67: 0 | G67: 0 | H67: 0 | I67: 0 | J67: 0 | K67: 0 | L67: 0

Sheet A9-Asset
A1: =muni&" - "&Approve9 -> DC16 Xhariep - Table A9 Asset Management
A2: =desc -> Description | B2: =head27 -> Ref | C2: =head1b -> 2010/11 | D2: =head1A -> 2011/12 | E2: =Head1 -> 2012/13 | F2: =Head2 -> Current Year 2013/14 | I2: =Head3 -> 2014/15 Medium Term Revenue & Expenditure Framework
A3: R thousand | C3: =Head5 -> Audited Outcome | D3: =Head5 -> Audited Outcome | E3: =Head5 -> Audited Outcome | F3: =Head6 -> Original Budget | G3: =Head7 -> Adjusted Budget | H3: =Head8 -> Full Year Forecast | I3: =Head9 -> Budget Year 2014/15 | J3: =Head10 -> Budget Year +1 2015/16 | K3: =Head11 -> Budget Year +2 2016/17
A4: CAPITAL EXPENDITURE
A5: Total New Assets | B5: 1 | C5: =SUM(C11:C18) -> 2393801 | D5: =SUM(D11:D18) -> 0 | E5: =SUM(E11:E18) -> 0 | F5: 3050000 | G5: 1324913 | H5: 1324913 | I5: 1745000 | J5: 715000 | K5: 786500
A6: Infrastructure - Road transport | C6: =SA34a!C7 -> 0 | D6: =SA34a!D7 -> 0 | E6: =SA34a!E7 -> 0 | F6: =SA34a!F7 -> 0 | G6: =SA34a!G7 -> 0 | H6: =SA34a!H7 -> 0 | I6: =SA34a!I7 -> 0 | J6: =SA34a!J7 -> 0 | K6: =SA34a!K7 -> 0
A7: Infrastructure - Electricity | C7: =SA34a!C10 -> 0 | D7: =SA34a!D10 -> 0 | E7: =SA34a!E10 -> 0 | F7: =SA34a!F10 -> 0 | G7: =SA34a!G10 -> 0 | H7: =SA34a!H10 -> 0 | I7: =SA34a!I10 -> 0 | J7: =SA34a!J10 -> 0 | K7: =SA34a!K10 -> 0
A8: Infrastructure - Water | C8: =SA34a!C14 -> 0 | D8: =SA34a!D14 -> 0 | E8: =SA34a!E14 -> 0 | F8: =SA34a!F14 -> 0 | G8: =SA34a!G14 -> 0 | H8: =SA34a!H14 -> 0 | I8: =SA34a!I14 -> 0 | J8: =SA34a!J14 -> 0 | K8: =SA34a!K14 -> 0
A9: Infrastructure - Sanitation | C9: =SA34a!C18 -> 0 | D9: =SA34a!D18 -> 0 | E9: =SA34a!E18 -> 0 | F9: =SA34a!F18 -> 0 | G9: =SA34a!G18 -> 0 | H9: =SA34a!H18 -> 0 | I9: =SA34a!I18 -> 0 | J9: =SA34a!J18 -> 0 | K9: =SA34a!K18 -> 0
A10: Infrastructure - Other | C10: =SA34a!C21 -> 0 | D10: =SA34a!D21 -> 0 | E10: =SA34a!E21 -> 0 | F10: =SA34a!F21 -> 0 | G10: =SA34a!G21 -> 0 | H10: =SA34a!H21 -> 0 | I10: =SA34a!I21 -> 0 | J10: =SA34a!J21 -> 0 | K10: =SA34a!K21 -> 0
A11: Infrastructure | C11: =SUM(C6:C10) -> 0 | D11: =SUM(D6:D10) -> 0 | E11: =SUM(E6:E10) -> 0 | F11: 0 | G11: 0 | H11: 0 | I11: 0 | J11: 0 | K11: 0
A12: =$A$42 -> Community | C12: =SA34a!C27 -> 0 | D12: =SA34a!D27 -> 0 | E12: =SA34a!E27 -> 0 | F12: =SA34a!F27 -> 0 | G12: =SA34a!G27 -> 0 | H12: =SA34a!H27 -> 0 | I12: =SA34a!I27 -> 0 | J12: =SA34a!J27 -> 0 | K12: =SA34a!K27 -> 0
A13: =$A$43 -> Heritage assets | C13: =SA34a!C43 -> 0 | D13: =SA34a!D43 -> 0 | E13: =SA34a!E43 -> 0 | F13: =SA34a!F43 -> 0 | G13: =SA34a!G43 -> 0 | H13: =SA34a!H43 -> 0 | I13: =SA34a!I43 -> 0 | J13: =SA34a!J43 -> 0 | K13: =SA34a!K43 -> 0
A14: =$A$44 -> Investment properties | C14: =SA34a!C47 -> 0 | D14: =SA34a!D47 -> 0 | E14: =SA34a!E47 -> 0 | F14: =SA34a!F47 -> 0 | G14: =SA34a!G47 -> 0 | H14: =SA34a!H47 -> 0 | I14: =SA34a!I47 -> 0 | J14: =SA34a!J47 -> 0 | K14: =SA34a!K47 -> 0
A15: =$A$45 -> Other assets | B15: 6 | C15: =SA34a!C51 -> 2393801 | D15: =SA34a!D51 -> 0 | E15: =SA34a!E51 -> 0 | F15: =SA34a!F51 -> 3050000 | G15: =SA34a!G51 -> 1324913 | H15: =SA34a!H51 -> 1324913 | I15: =SA34a!I51 -> 1745000 | J15: =SA34a!J51 -> 715000 | K15: =SA34a!K51 -> 786500
A16: Agricultural Assets | C16: =SA34a!C65 -> 0 | D16: =SA34a!D65 -> 0 | E16: =SA34a!E65 -> 0 | F16: =SA34a!F65 -> 0 | G16: =SA34a!G65 -> 0 | H16: =SA34a!H65 -> 0 | I16: =SA34a!I65 -> 0 | J16: =SA34a!J65 -> 0 | K16: =SA34a!K65 -> 0
A17: =SA34a!A69 -> Biological assets | C17: =SA34a!C69 -> 0 | D17: =SA34a!D69 -> 0 | E17: =SA34a!E69 -> 0 | F17: =SA34a!F69 -> 0 | G17: =SA34a!G69 -> 0 | H17: =SA34a!H69 -> 0 | I17: =SA34a!I69 -> 0 | J17: =SA34a!J69 -> 0 | K17: =SA34a!K69 -> 0
A18: =SA34a!A73 -> Intangibles | C18: =SA34a!C73 -> 0 | D18: =SA34a!D73 -> 0 | E18: =SA34a!E73 -> 0 | F18: =SA34a!F73 -> 0 | G18: =SA34a!G73 -> 0 | H18: =SA34a!H73 -> 0 | I18: =SA34a!I73 -> 0 | J18: =SA34a!J73 -> 0 | K18: =SA34a!K73 -> 0
A20: Total Renewal of Existing Assets | B20: 2 | C20: =SUM(C26:C33) -> 140000 | D20: =SUM(D26:D33) -> 0 | E20: =SUM(E26:E33) -> 0 | F20: 0 | G20: 0 | H20: 0 | I20: 0 | J20: 0 | K20: 0
A21: Infrastructure - Road transport | C21: =SA34b!C7 -> 0 | D21: =SA34b!D7 -> 0 | E21: =SA34b!E7 -> 0 | F21: =SA34b!F7 -> 0 | G21: =SA34b!G7 -> 0 | H21: =SA34b!H7 -> 0 | I21: =SA34b!I7 -> 0 | J21: =SA34b!J7 -> 0 | K21: =SA34b!K7 -> 0
A22: Infrastructure - Electricity | C22: =SA34b!C10 -> 0 | D22: =SA34b!D10 -> 0 | E22: =SA34b!E10 -> 0 | F22: =SA34b!F10 -> 0 | G22: =SA34b!G10 -> 0 | H22: =SA34b!H10 -> 0 | I22: =SA34b!I10 -> 0 | J22: =SA34b!J10 -> 0 | K22: =SA34b!K10 -> 0
A23: Infrastructure - Water | C23: =SA34b!C14 -> 0 | D23: =SA34b!D14 -> 0 | E23: =SA34b!E14 -> 0 | F23: =SA34b!F14 -> 0 | G23: =SA34b!G14 -> 0 | H23: =SA34b!H14 -> 0 | I23: =SA34b!I14 -> 0 | J23: =SA34b!J14 -> 0 | K23: =SA34b!K14 -> 0
A24: Infrastructure - Sanitation | C24: =SA34b!C18 -> 0 | D24: =SA34b!D18 -> 0 | E24: =SA34b!E18 -> 0 | F24: =SA34b!F18 -> 0 | G24: =SA34b!G18 -> 0 | H24: =SA34b!H18 -> 0 | I24: =SA34b!I18 -> 0 | J24: =SA34b!J18 -> 0 | K24: =SA34b!K18 -> 0
A25: Infrastructure - Other | C25: =SA34b!C21 -> 0 | D25: =SA34b!D21 -> 0 | E25: =SA34b!E21 -> 0 | F25: =SA34b!F21 -> 0 | G25: =SA34b!G21 -> 0 | H25: =SA34b!H21 -> 0 | I25: =SA34b!I21 -> 0 | J25: =SA34b!J21 -> 0 | K25: =SA34b!K21 -> 0
A26: =$A$11 -> Infrastructure | C26: =SUM(C21:C25) -> 0 | D26: =SUM(D21:D25) -> 0 | E26: =SUM(E21:E25) -> 0 | F26: 0 | G26: 0 | H26: 0 | I26: 0 | J26: 0 | K26: 0
A27: =A12 -> Community | C27: =SA34b!C27 -> 0 | D27: =SA34b!D27 -> 0 | E27: =SA34b!E27 -> 0 | F27: =SA34b!F27 -> 0 | G27: =SA34b!G27 -> 0 | H27: =SA34b!H27 -> 0 | I27: =SA34b!I27 -> 0 | J27: =SA34b!J27 -> 0 | K27: =SA34b!K27 -> 0
A28: =A13 -> Heritage assets | C28: =SA34b!C43 -> 0 | D28: =SA34b!D43 -> 0 | E28: =SA34b!E43 -> 0 | F28: =SA34b!F43 -> 0 | G28: =SA34b!G43 -> 0 | H28: =SA34b!H43 -> 0 | I28: =SA34b!I43 -> 0 | J28: =SA34b!J43 -> 0 | K28: =SA34b!K43 -> 0
A29: =A14 -> Investment properties | C29: =SA34b!C47 -> 0 | D29: =SA34b!D47 -> 0 | E29: =SA34b!E47 -> 0 | F29: =SA34b!F47 -> 0 | G29: =SA34b!G47 -> 0 | H29: =SA34b!H47 -> 0 | I29: =SA34b!I47 -> 0 | J29: =SA34b!J47 -> 0 | K29: =SA34b!K47 -> 0
A30: =A15 -> Other assets | B30: 6 | C30: =SA34b!C51 -> 140000 | D30: =SA34b!D51 -> 0 | E30: =SA34b!E51 -> 0 | F30: =SA34b!F51 -> 0 | G30: =SA34b!G51 -> 0 | H30: =SA34b!H51 -> 0 | I30: =SA34b!I51 -> 0 | J30: =SA34b!J51 -> 0 | K30: =SA34b!K51 -> 0
A31: Agricultural Assets | C31: =SA34b!C65 -> 0 | D31: =SA34b!D65 -> 0 | E31: =SA34b!E65 -> 0 | F31: =SA34b!F65 -> 0 | G31: =SA34b!G65 -> 0 | H31: =SA34b!H65 -> 0 | I31: =SA34b!I65 -> 0 | J31: =SA34b!J65 -> 0 | K31: =SA34b!K65 -> 0
A32: =A17 -> Biological assets | C32: =SA34b!C69 -> 0 | D32: =SA34b!D69 -> 0 | E32: =SA34b!E69 -> 0 | F32: =SA34b!F69 -> 0 | G32: =SA34b!G69 -> 0 | H32: =SA34b!H69 -> 0 | I32: =SA34b!I69 -> 0 | J32: =SA34b!J69 -> 0 | K32: =SA34b!K69 -> 0
A33: =A18 -> Intangibles | C33: =SA34b!C73 -> 0 | D33: =SA34b!D73 -> 0 | E33: =SA34b!E73 -> 0 | F33: =SA34b!F73 -> 0 | G33: =SA34b!G73 -> 0 | H33: =SA34b!H73 -> 0 | I33: =SA34b!I73 -> 0 | J33: =SA34b!J73 -> 0 | K33: =SA34b!K73 -> 0
A35: Total Capital Expenditure | B35: 4
A36: Infrastructure - Road transport | C36: =C6+C21 -> 0 | D36: =D6+D21 -> 0 | E36: 0 | F36: 0 | G36: 0 | H36: 0 | I36: 0 | J36: 0 | K36: 0
A37: Infrastructure - Electricity | C37: =C7+C22 -> 0 | D37: =D7+D22 -> 0 | E37: 0 | F37: 0 | G37: 0 | H37: 0 | I37: 0 | J37: 0 | K37: 0
A38: Infrastructure - Water | C38: =C8+C23 -> 0 | D38: 0 | E38: 0 | F38: 0 | G38: 0 | H38: 0 | I38: 0 | J38: 0 | K38: 0
A39: Infrastructure - Sanitation | C39: =C9+C24 -> 0 | D39: =D9+D24 -> 0 | E39: =E9+E24 -> 0 | F39: 0 | G39: 0 | H39: 0 | I39: 0 | J39: 0 | K39: 0
A40: Infrastructure - Other | C40: =C10+C25 -> 0 | D40: 0 | E40: 0 | F40: 0 | G40: 0 | H40: 0 | I40: 0 | J40: 0 | K40: 0
A41: =$A$11 -> Infrastructure | C41: =SUM(C36:C40) -> 0 | D41: =SUM(D36:D40) -> 0 | E41: 0 | F41: 0 | G41: 0 | H41: 0 | I41: 0 | J41: 0 | K41: 0
A42: =SA34a!A27 -> Community | C42: =C12+C27 -> 0 | D42: =D12+D27 -> 0 | E42: 0 | F42: 0 | G42: 0 | H42: 0 | I42: 0 | J42: 0 | K42: 0
A43: =SA34a!A43 -> Heritage assets | C43: 0 | D43: =D13+D28 -> 0 | E43: 0 | F43: 0 | G43: 0 | H43: 0 | I43: 0 | J43: 0 | K43: 0
A44: =SA34a!A47 -> Investment properties | C44: 0 | D44: =D14+D29 -> 0 | E44: 0 | F44: 0 | G44: 0 | H44: 0 | I44: 0 | J44: 0 | K44: 0
A45: =SA34a!A51 -> Other assets | C45: 2533801 | D45: =D15+D30 -> 0 | E45: 0 | F45: 3050000 | G45: 1324913 | H45: 1324913 | I45: 1745000 | J45: 715000 | K45: 786500
A46: Agricultural Assets | C46: 0 | D46: =D16+D31 -> 0 | E46: 0 | F46: 0 | G46: 0 | H46: 0 | I46: 0 | J46: 0 | K46: 0
A47: =A32 -> Biological assets | C47: 0 | D47: =D17+D32 -> 0 | E47: 0 | F47: 0 | G47: 0 | H47: 0 | I47: 0 | J47: 0 | K47: 0
A48: =A33 -> Intangibles | C48: 0 | D48: =D18+D33 -> 0 | E48: 0 | F48: 0 | G48: 0 | H48: 0 | I48: 0 | J48: 0 | K48: 0
A49: TOTAL CAPITAL EXPENDITURE - Asset class | B49: 2 | C49: =SUM(C41:C48) -> 2533801 | D49: 0 | E49: 0 | F49: 3050000 | G49: 1324913 | H49: 1324913 | I49: 1745000 | J49: 715000 | K49: 786500
A51: ASSET REGISTER SUMMARY - PPE (WDV) | B51: 5
A52: Infrastructure - Road transport
A53: Infrastructure - Electricity
A54: Infrastructure - Water
A55: Infrastructure - Sanitation
A56: Infrastructure - Other
A57: =A41 -> Infrastructure | C57: =SUM(C52:C56) -> 0 | D57: =SUM(D52:D56) -> 0 | E57: 0 | F57: 0 | G57: 0 | H57: 0 | I57: 0 | J57: 0 | K57: 0
A58: =A12 -> Community
A59: =A13 -> Heritage assets
A60: =A14 -> Investment properties | C60: ='A6-FinPos'!C17 -> 0 | D60: ='A6-FinPos'!D17 -> 0 | E60: ='A6-FinPos'!E17 -> 0 | F60: ='A6-FinPos'!F17 -> 0 | G60: ='A6-FinPos'!G17 -> 0 | H60: ='A6-FinPos'!H17 -> 0 | I60: ='A6-FinPos'!J17 -> 0 | J60: ='A6-FinPos'!K17 -> 0 | K60: ='A6-FinPos'!L17 -> 0
A61: =A15 -> Other assets
A62: Agricultural Assets | C62: ='A6-FinPos'!C20 -> 0 | D62: ='A6-FinPos'!D20 -> 0 | E62: ='A6-FinPos'!E20 -> 0 | F62: ='A6-FinPos'!F20 -> 0 | G62: ='A6-FinPos'!G20 -> 0 | H62: ='A6-FinPos'!H20 -> 0 | I62: ='A6-FinPos'!J20 -> 0 | J62: ='A6-FinPos'!K20 -> 0 | K62: ='A6-FinPos'!L20 -> 0
A63: =A17 -> Biological assets | C63: ='A6-FinPos'!C21 -> 0 | D63: ='A6-FinPos'!D21 -> 0 | E63: ='A6-FinPos'!E21 -> 0 | F63: ='A6-FinPos'!F21 -> 0 | G63: ='A6-FinPos'!G21 -> 0 | H63: ='A6-FinPos'!H21 -> 0 | I63: ='A6-FinPos'!J21 -> 0 | J63: ='A6-FinPos'!K21 -> 0 | K63: ='A6-FinPos'!L21 -> 0
A64: =A18 -> Intangibles | C64: ='A6-FinPos'!C22 -> 344908 | D64: ='A6-FinPos'!D22 -> 455024 | E64: ='A6-FinPos'!E22 -> 739015 | F64: ='A6-FinPos'!F22 -> 408000 | G64: ='A6-FinPos'!G22 -> 408000 | H64: ='A6-FinPos'!H22 -> 408000 | I64: ='A6-FinPos'!J22 -> 460000 | J64: ='A6-FinPos'!K22 -> 386000 | K64: ='A6-FinPos'!L22 -> 300000
A65: TOTAL ASSET REGISTER SUMMARY - PPE (WDV) | B65: 5 | C65: =SUM(C57:C64) -> 344908 | D65: 455024 | E65: 739015 | F65: 408000 | G65: 408000 | H65: 408000 | I65: 460000 | J65: 386000 | K65: 300000
A67: EXPENDITURE OTHER ITEMS
A68: ='A4-FinPerf RE'!A28 -> Depreciation & asset impairment | C68: ='A4-FinPerf RE'!C28 -> 0 | D68: ='A4-FinPerf RE'!D28 -> 2307376 | E68: ='A4-FinPerf RE'!E28 -> 3648189 | F68: ='A4-FinPerf RE'!F28 -> 3866861.745 | G68: ='A4-FinPerf RE'!G28 -> 3366861.745 | H68: ='A4-FinPerf RE'!H28 -> 3366861.745 | I68: ='A4-FinPerf RE'!J28 -> 3500000 | J68: ='A4-FinPerf RE'!K28 -> 3850000 | K68: ='A4-FinPerf RE'!L28 -> 4235000
A69: Repairs and Maintenance by Asset Class | B69: 3 | C69: =SUM(C75:C79) -> 4878087 | D69: =SUM(D75:D79) -> 7602087 | E69: 1271312 | F69: 1151000 | G69: 1445465 | H69: 1445465 | I69: 528000 | J69: 580800 | K69: 638880
A70: Infrastructure - Road transport | C70: =SA34c!C7 -> 0 | D70: =SA34c!D7 -> 0 | E70: =SA34c!E7 -> 0 | F70: =SA34c!F7 -> 0 | G70: =SA34c!G7 -> 0 | H70: =SA34c!H7 -> 0 | I70: =SA34c!I7 -> 0 | J70: =SA34c!J7 -> 0 | K70: =SA34c!K7 -> 0
A71: Infrastructure - Electricity | C71: =SA34c!C10 -> 0 | D71: =SA34c!D10 -> 0 | E71: =SA34c!E10 -> 0 | F71: =SA34c!F10 -> 0 | G71: =SA34c!G10 -> 0 | H71: =SA34c!H10 -> 0 | I71: =SA34c!I10 -> 0 | J71: =SA34c!J10 -> 0 | K71: =SA34c!K10 -> 0
A72: Infrastructure - Water | C72: =SA34c!C14 -> 0 | D72: =SA34c!D14 -> 0 | E72: =SA34c!E14 -> 0 | F72: =SA34c!F14 -> 0 | G72: =SA34c!G14 -> 0 | H72: =SA34c!H14 -> 0 | I72: =SA34c!I14 -> 0 | J72: =SA34c!J14 -> 0 | K72: =SA34c!K14 -> 0
A73: Infrastructure - Sanitation | C73: =SA34c!C18 -> 0 | D73: =SA34c!D18 -> 0 | E73: =SA34c!E18 -> 0 | F73: =SA34c!F18 -> 0 | G73: =SA34c!G18 -> 0 | H73: =SA34c!H18 -> 0 | I73: =SA34c!I18 -> 0 | J73: =SA34c!J18 -> 0 | K73: =SA34c!K18 -> 0
A74: Infrastructure - Other | C74: =SA34c!C21 -> 0 | D74: =SA34c!D21 -> 0 | E74: =SA34c!E21 -> 0 | F74: =SA34c!F21 -> 0 | G74: =SA34c!G21 -> 0 | H74: =SA34c!H21 -> 0 | I74: =SA34c!I21 -> 0 | J74: =SA34c!J21 -> 0 | K74: =SA34c!K21 -> 0
A75: =$A$11 -> Infrastructure | C75: =SUM(C70:C74) -> 0 | D75: =SUM(D70:D74) -> 0 | E75: 0 | F75: 0 | G75: 0 | H75: 0 | I75: 0 | J75: 0 | K75: 0
A76: =A12 -> Community | C76: =SA34c!C27 -> 0 | D76: =SA34c!D27 -> 0 | E76: =SA34c!E27 -> 0 | F76: =SA34c!F27 -> 0 | G76: =SA34c!G27 -> 0 | H76: =SA34c!H27 -> 0 | I76: =SA34c!I27 -> 0 | J76: =SA34c!J27 -> 0 | K76: =SA34c!K27 -> 0
A77: =A13 -> Heritage assets | C77: =SA34c!C43 -> 0 | D77: =SA34c!D43 -> 0 | E77: =SA34c!E43 -> 0 | F77: =SA34c!F43 -> 0 | G77: =SA34c!G43 -> 0 | H77: =SA34c!H43 -> 0 | I77: =SA34c!I43 -> 0 | J77: =SA34c!J43 -> 0 | K77: =SA34c!K43 -> 0
A78: =A14 -> Investment properties | C78: =SA34c!C47 -> 0 | D78: =SA34c!D47 -> 0 | E78: =SA34c!E47 -> 0 | F78: =SA34c!F47 -> 0 | G78: =SA34c!G47 -> 0 | H78: =SA34c!H47 -> 0 | I78: =SA34c!I47 -> 0 | J78: =SA34c!J47 -> 0 | K78: =SA34c!K47 -> 0
A79: =A15 -> Other assets | B79: 6, 7 | C79: =SA34c!C51+SA34c!C65+SA34c!C69+SA34c!C73 -> 4878087 | D79: =SA34c!D51+SA34c!D65+SA34c!D69+SA34c!D73 -> 7602087 | E79: =SA34c!E51+SA34c!E65+SA34c!E69+SA34c!E73 -> 1271312 | F79: =SA34c!F51+SA34c!F65+SA34c!F69+SA34c!F73 -> 1151000 | G79: =SA34c!G51+SA34c!G65+SA34c!G69+SA34c!G73 -> 1445465 | H79: =SA34c!H51+SA34c!H65+SA34c!H69+SA34c!H73 -> 1445465 | I79: =SA34c!I51+SA34c!I65+SA34c!I69+SA34c!I73 -> 528000 | J79: =SA34c!J51+SA34c!J65+SA34c!J69+SA34c!J73 -> 580800 | K79: =SA34c!K51+SA34c!K65+SA34c!K69+SA34c!K73 -> 638880
A80: TOTAL EXPENDITURE OTHER ITEMS | C80: =SUM(C68:C69) -> 4878087 | D80: 9909463 | E80: 4919501 | F80: 5017861.745 | G80: 4812326.745 | H80: 4812326.745 | I80: 4028000 | J80: 4430800 | K80: 4873880
A82: Renewal of Existing Assets as % of total capex | C82: =IF(ISERROR(C20/C49),0,(C20/C49)) -> 0.05525295791 | D82: =IF(ISERROR(D20/D49),0,(D20/D49)) -> 0 | E82: 0 | F82: 0 | G82: 0 | H82: 0 | I82: 0 | J82: 0 | K82: 0
A83: Renewal of Existing Assets as % of deprecn" | C83: =IF(ISERROR(C20/C68),0,(C20/C68)) -> 0 | D83: =IF(ISERROR(D20/D68),0,(D20/D68)) -> 0 | E83: 0 | F83: 0 | G83: 0 | H83: 0 | I83: 0 | J83: 0 | K83: 0
A84: R&M as a % of PPE | C84: =IF(ISERROR(ROUND(C69/'A6-FinPos'!C19,3)),0,(ROUND(C69/'A6-FinPos'!C19,3))) -> 0.291 | D84: =IF(ISERROR(ROUND(D69/'A6-FinPos'!D19,3)),0,(ROUND(D69/'A6-FinPos'!D19,3))) -> 0.345 | E84: =IF(ISERROR(ROUND(E69/'A6-FinPos'!E19,3)),0,(ROUND(E69/'A6-FinPos'!E19,3))) -> 0.063 | F84: =IF(ISERROR(ROUND(F69/'A6-FinPos'!F19,3)),0,(ROUND(F69/'A6-FinPos'!F19,3))) -> 0.056 | G84: =IF(ISERROR(ROUND(G69/'A6-FinPos'!G19,3)),0,(ROUND(G69/'A6-FinPos'!G19,3))) -> 0.07 | H84: =IF(ISERROR(ROUND(H69/'A6-FinPos'!H19,3)),0,(ROUND(H69/'A6-FinPos'!H19,3))) -> 0.07 | I84: =IF(ISERROR(ROUND(I69/'A6-FinPos'!J19,3)),0,(ROUND(I69/'A6-FinPos'!J19,3))) -> 0.033 | J84: =IF(ISERROR(ROUND(J69/'A6-FinPos'!K19,3)),0,(ROUND(J69/'A6-FinPos'!K19,3))) -> 0.047 | K84: =IF(ISERROR(ROUND(K69/'A6-FinPos'!L19,3)),0,(ROUND(K69/'A6-FinPos'!L19,3))) -> 0.043
A85: Renewal and R&M as a % of PPE | C85: =IF(ISERROR(ROUND((C20+C69)/C65,2)),0,(ROUND((C20+C69)/C65,2))) -> 14.55 | D85: =IF(ISERROR(ROUND((D20+D69)/D65,2)),0,(ROUND((D20+D69)/D65,2))) -> 16.71 | E85: 1.72 | F85: 2.82 | G85: 3.54 | H85: 3.54 | I85: 1.15 | J85: 1.5 | K85: 2.13
A87: =head27a -> References
A88: 1. Detail of new assets provided in Table SA34a
A89: 2. Detail of renewal of existing assets provided in Table SA34b
A90: 3. Detail of Repairs and Maintenance by Asset Class provided in Table SA34c
A91: 4. Must reconcile to total capital expenditure on Budgeted Capital Expenditure
A92: 5. Must reconcile to 'Budgeted Financial Position' (written down value)
A93: 6. Donated/contributed and assets funded by finance leases to be allocated to the respective category
A94: 7. Including repairs and maintenance to agricultural, biological and intangible assets
A95: Check balance to A6 | C95: =C65-'A6-FinPos'!C17-'A6-FinPos'!C19-'A6-FinPos'!C21-'A6-FinPos'!C22 -> -16777105 | D95: =D65-'A6-FinPos'!D17-'A6-FinPos'!D19-'A6-FinPos'!D21-'A6-FinPos'!D22 -> -22042469 | E95: =E65-'A6-FinPos'!E17-'A6-FinPos'!E19-'A6-FinPos'!E21-'A6-FinPos'!E22 -> -20082803 | F95: =F65-'A6-FinPos'!F17-'A6-FinPos'!F19-'A6-FinPos'!F21-'A6-FinPos'!F22 -> -20716155.75 | G95: =G65-'A6-FinPos'!G17-'A6-FinPos'!G19-'A6-FinPos'!G21-'A6-FinPos'!G22 -> -20716155.75 | H95: =H65-'A6-FinPos'!H17-'A6-FinPos'!H19-'A6-FinPos'!H21-'A6-FinPos'!H22 -> -20716155.75 | I95: =I65-'A6-FinPos'!J17-'A6-FinPos'!J19-'A6-FinPos'!J21-'A6-FinPos'!J22 -> -15907495.87 | J95: =J65-'A6-FinPos'!K17-'A6-FinPos'!K19-'A6-FinPos'!K21-'A6-FinPos'!K22 -> -12407495.87 | K95: =K65-'A6-FinPos'!L17-'A6-FinPos'!L19-'A6-FinPos'!L21-'A6-FinPos'!L22 -> -14761439.8

Sheet A10-SerDel
A1: =muni&" - "&Approve10 -> DC16 Xhariep - Table A10 Basic service delivery measurement
A2: =desc -> Description | B2: =head27 -> Ref | C2: =head1b -> 2010/11 | D2: =head1A -> 2011/12 | E2: =Head1 -> 2012/13 | F2: =Head2 -> Current Year 2013/14 | I2: =Head3 -> 2014/15 Medium Term Revenue & Expenditure Framework
C3: =Head5A -> Outcome | D3: =Head5A -> Outcome | E3: =Head5A -> Outcome | F3: =Head6 -> Original Budget | G3: =Head7 -> Adjusted Budget | H3: =Head8 -> Full Year Forecast | I3: =Head9 -> Budget Year 2014/15 | J3: =Head10 -> Budget Year +1 2015/16 | K3: =Head11 -> Budget Year +2 2016/17
A4: Household service targets | B4: 1
A5: Water:
A6: Piped water inside dwelling
A7: Piped water inside yard (but not in dwelling)
A8: Using public tap (at least min.service level) | B8: 2
A9: Other water supply (at least min.service level) | B9: 4
A10: Minimum Service Level and Above sub-total | C10: =SUM(C6:C9) -> 0 | D10: =SUM(D6:D9) -> 0 | E10: 0 | F10: 0 | G10: 0 | H10: 0 | I10: 0 | J10: 0 | K10: 0
A11: Using public tap (< min.service level) | B11: 3
A12: Other water supply (< min.service level) | B12: =B9 -> 4
A13: No water supply
A14: Below Minimum Service Level sub-total | C14: =SUM(C11:C13) -> 0 | D14: =SUM(D11:D13) -> 0 | E14: 0 | F14: 0 | G14: 0 | H14: 0 | I14: 0 | J14: 0 | K14: 0
A15: Total number of households | B15: 5 | C15: =C10+C14 -> 0 | D15: =D10+D14 -> 0 | E15: 0 | F15: 0 | G15: 0 | H15: 0 | I15: 0 | J15: 0 | K15: 0
A16: Sanitation/sewerage:
A17: Flush toilet (connected to sewerage)
A18: Flush toilet (with septic tank)
A19: Chemical toilet
A20: Pit toilet (ventilated)
A21: Other toilet provisions (> min.service level)
A22: =$A$10 -> Minimum Service Level and Above sub-total | C22: =SUM(C17:C21) -> 0 | D22: =SUM(D17:D21) -> 0 | E22: 0 | F22: 0 | G22: 0 | H22: 0 | I22: 0 | J22: 0 | K22: 0
A23: Bucket toilet
A24: Other toilet provisions (< min.service level)
A25: No toilet provisions
A26: =$A$14 -> Below Minimum Service Level sub-total | C26: =SUM(C23:C25) -> 0 | D26: =SUM(D23:D25) -> 0 | E26: 0 | F26: 0 | G26: 0 | H26: 0 | I26: 0 | J26: 0 | K26: 0
A27: =$A$15 -> Total number of households | B27: =$B$15 -> 5 | C27: =C22+C26 -> 0 | D27: =D22+D26 -> 0 | E27: 0 | F27: 0 | G27: 0 | H27: 0 | I27: 0 | J27: 0 | K27: 0
A28: Energy:
A29: Electricity (at least min.service level)
A30: Electricity - prepaid (min.service level)
A31: =$A$10 -> Minimum Service Level and Above sub-total | C31: =SUM(C29:C30) -> 0 | D31: =SUM(D29:D30) -> 0 | E31: 0 | F31: 0 | G31: 0 | H31: 0 | I31: 0 | J31: 0 | K31: 0
A32: Electricity (< min.service level)
A33: Electricity - prepaid (< min. service level)
A34: Other energy sources
A35: =$A$14 -> Below Minimum Service Level sub-total | C35: =SUM(C32:C34) -> 0 | D35: =SUM(D32:D34) -> 0 | E35: 0 | F35: 0 | G35: 0 | H35: 0 | I35: 0 | J35: 0 | K35: 0
A36: =$A$15 -> Total number of households | B36: =$B$15 -> 5 | C36: =C31+C35 -> 0 | D36: =D31+D35 -> 0 | E36: 0 | F36: 0 | G36: 0 | H36: 0 | I36: 0 | J36: 0 | K36: 0
A37: Refuse:
A38: Removed at least once a week
A39: =$A$10 -> Minimum Service Level and Above sub-total | C39: =SUM(C38) -> 0 | D39: =SUM(D38) -> 0 | E39: 0 | F39: 0 | G39: 0 | H39: 0 | I39: 0 | J39: 0 | K39: 0
A40: Removed less frequently than once a week
A41: Using communal refuse dump
A42: Using own refuse dump
A43: Other rubbish disposal
A44: No rubbish disposal
A45: =$A$14 -> Below Minimum Service Level sub-total | C45: =SUM(C40:C44) -> 0 | D45: 0 | E45: 0 | F45: 0 | G45: 0 | H45: 0 | I45: 0 | J45: 0 | K45: 0
A46: =$A$15 -> Total number of households | B46: =$B$15 -> 5 | C46: =C39+C45 -> 0 | D46: =D39+D45 -> 0 | E46: 0 | F46: 0 | G46: 0 | H46: 0 | I46: 0 | J46: 0 | K46: 0
A48: Households receiving Free Basic Service | B48: 7
A49: Water (6 kilolitres per household per month)
A50: Sanitation (free minimum level service)
A51: Electricity/other energy (50kwh per household per month)
A52: Refuse (removed at least once a week)
A54: Cost of Free Basic Services provided (R'000) | B54: 8
A55: Water (6 kilolitres per household per month)
A56: Sanitation (free sanitation service)
A57: Electricity/other energy (50kwh per household per month)
A58: Refuse (removed once a week)
A59: Total cost of FBS provided (minimum social package) | C59: =SUM(C54:C58) -> 0 | D59: =SUM(D54:D58) -> 0 | E59: 0 | F59: 0 | G59: 0 | H59: 0 | I59: 0 | J59: 0 | K59: 0
A61: Highest level of free service provided
A62: Property rates (R value threshold)
A63: Water (kilolitres per household per month)
A64: Sanitation (kilolitres per household per month)
A65: Sanitation (Rand per household per month)
A66: Electricity (kwh per household per month)
A67: Refuse (average litres per week)
A68: Revenue cost of free services provided (R'000) | B68: 9
A69: Property rates (R15 000 threshold rebate)
A70: Property rates (other exemptions, reductions and rebates)
A71: Water
A72: Sanitation
A73: Electricity/other energy
A74: Refuse
A75: Municipal Housing - rental rebates
A76: Housing - top structure subsidies | B76: 6
A77: Other
A78: Total revenue cost of free services provided (total social package) | C78: =SUM(C69:C77) -> 0 | D78: 0 | E78: 0 | F78: 0 | G78: 0 | H78: 0 | I78: 0 | J78: =SUM(J69:J77) -> 0 | K78: =SUM(K69:K77) -> 0
A79: =head27a -> References
A80: 1. Include services provided by another entity; e.g. Eskom
A81: 2. Stand distance <= 200m from dwelling
A82: 3. Stand distance > 200m from dwelling
A83: 4. Borehole, spring, rain-water tank etc.
A84: 5. Must agree to total number of households in municipal area
A85: 6. Include value of subsidy provided by municipality above provincial subsidy level
A86: 7. Show number of households receiving at least these levels of services completely free
A87: 8. Must reflect the cost to the municipality of providing the Free Basic Service
A88: 9. Reflect the cost to the municipality in terms of 'revenue foregone' of providing free services (note this will not equal 'Revenue Foregone' on SA1)
A91: Check (no. of households)
A92: Water | C92: =C15-'SA9'!E76 -> 0 | D92: =D15-'SA9'!F76 -> 0 | E92: =E15-'SA9'!G76 -> 0 | F92: =F15-'SA9'!H76 -> 0 | G92: =G15-'SA9'!I76 -> 0 | H92: =H15-'SA9'!J76 -> 0 | I92: =I15-'SA9'!K76 -> 0 | J92: =J15-'SA9'!L76 -> 0 | K92: =K15-'SA9'!M76 -> 0
A93: Sanitation | C93: =C27-'SA9'!E88 -> 0 | D93: =D27-'SA9'!F88 -> 0 | E93: =E27-'SA9'!G88 -> 0 | F93: =F27-'SA9'!H88 -> 0 | G93: =G27-'SA9'!I88 -> 0 | H93: =H27-'SA9'!J88 -> 0 | I93: =I27-'SA9'!K88 -> 0 | J93: =J27-'SA9'!L88 -> 0 | K93: =K27-'SA9'!M88 -> 0
A94: Energy | C94: =C36-'SA9'!E97 -> 0 | D94: =D36-'SA9'!F97 -> 0 | E94: =E36-'SA9'!G97 -> 0 | F94: =F36-'SA9'!H97 -> 0 | G94: =G36-'SA9'!I97 -> 0 | H94: =H36-'SA9'!J97 -> 0 | I94: =I36-'SA9'!K97 -> 0 | J94: =J36-'SA9'!L97 -> 0 | K94: =K36-'SA9'!M97 -> 0
A95: Refuse | C95: =C46-'SA9'!E107 -> 0 | D95: =D46-'SA9'!F107 -> 0 | E95: =E46-'SA9'!G107 -> 0 | F95: =F46-'SA9'!H107 -> 0 | G95: =G46-'SA9'!I107 -> 0 | H95: =H46-'SA9'!J107 -> 0 | I95: =I46-'SA9'!K107 -> 0 | J95: =J46-'SA9'!L107 -> 0 | K95: =K46-'SA9'!M107 -> 0

Sheet SA1
A1: =muni&" - "&TableA1 -> DC16 Xhariep - Supporting Table SA1 Supportinging detail to 'Budgeted Financial Performance'
A2: =desc -> Description | B2: =head27 -> Ref | C2: =head1b -> 2010/11 | D2: =head1A -> 2011/12 | E2: =Head1 -> 2012/13 | F2: =Head2 -> Current Year 2013/14 | J2: =Head3 -> 2014/15 Medium Term Revenue & Expenditure Framework
C3: =Head5 -> Audited Outcome | D3: =Head5 -> Audited Outcome | E3: =Head5 -> Audited Outcome | F3: =Head6 -> Original Budget | G3: =Head7 -> Adjusted Budget | H3: =Head8 -> Full Year Forecast | I3: =Head5b -> Pre-audit outcome | J3: =Head9 -> Budget Year 2014/15 | K3: =Head10 -> Budget Year +1 2015/16 | L3: =Head11 -> Budget Year +2 2016/17
A4: R thousand
A5: REVENUE ITEMS:
A6: ='A4-FinPerf RE'!A5 -> Property rates | B6: 6
A7: Total Property Rates
A8: less Revenue Foregone
A9: Net Property Rates | C9: =C7-C8 -> 0 | D9: =D7-D8 -> 0 | E9: 0 | F9: 0 | G9: 0 | H9: 0 | I9: 0 | J9: 0 | K9: 0 | L9: 0
A11: ='A4-FinPerf RE'!A7 -> Service charges - electricity revenue | B11: 6
A12: ="Total "&A11 -> Total Service charges - electricity revenue
A13: =$A$8 -> less Revenue Foregone
A14: ="Net "& A11 -> Net Service charges - electricity revenue | C14: =C12-C13 -> 0 | D14: 0 | E14: 0 | F14: 0 | G14: 0 | H14: 0 | I14: 0 | J14: 0 | K14: 0 | L14: 0
A16: ='A4-FinPerf RE'!A8 -> Service charges - water revenue | B16: 6
A17: ="Total "&A16 -> Total Service charges - water revenue
A18: =$A$8 -> less Revenue Foregone
A19: ="Net "& A16 -> Net Service charges - water revenue | C19: =C17-C18 -> 0 | D19: 0 | E19: 0 | F19: 0 | G19: 0 | H19: 0 | I19: 0 | J19: 0 | K19: 0 | L19: 0
A21: ='A4-FinPerf RE'!A9 -> Service charges - sanitation revenue
A22: ="Total "&A21 -> Total Service charges - sanitation revenue
A23: =$A$8 -> less Revenue Foregone
A24: ="Net "& A21 -> Net Service charges - sanitation revenue | C24: =C22-C23 -> 0 | D24: 0 | E24: 0 | F24: 0 | G24: 0 | H24: 0 | I24: 0 | J24: 0 | K24: 0 | L24: 0
A26: ='A4-FinPerf RE'!A10 -> Service charges - refuse revenue | B26: 6
A27: Total refuse removal revenue
A28: Total landfill revenue
A29: =$A$8 -> less Revenue Foregone
A30: ="Net "& A26 -> Net Service charges - refuse revenue | C30: =SUM(C27:C28)-C29 -> 0 | D30: =SUM(D27:D28)-D29 -> 0 | E30: 0 | F30: 0 | G30: 0 | H30: 0 | I30: 0 | J30: 0 | K30: 0 | L30: 0
A32: Other Revenue by source
A33: Parking Bays | D33: 15741 | F33: 88774 | G33: 88774 | H33: 88774 | I33: 88774 | J33: 46497.6 | K33: =J33*1.1 -> 51147.36 | L33: =K33*1.1 -> 56262.096
A34: Tender Document Fees | C34: 16360 | D34: 22398 | F34: 15000 | G34: 15000 | H34: 15000 | I34: 15000 | J34: 12500 | K34: =J34*1.1 -> 13750 | L34: =K34*1.1 -> 15125
A35: Other revenue | C35: 0 | E35: 72623 | J35: 570000 | K35: 0 | L35: 0
A36: Donations | C36: 50 | D36: 1466136 | E36: 0
B44: 3
A45: Total 'Other' Revenue | B45: 1 | C45: =SUM(C33:C44) -> 16410 | D45: =SUM(D33:D44) -> 1504275 | E45: 72623 | F45: 103774 | G45: 103774 | H45: 103774 | I45: 103774 | J45: 628997.6 | K45: 64897.36 | L45: 71387.096
A47: EXPENDITURE ITEMS:
A48: ='A4-FinPerf RE'!A25 -> Employee related costs
A49: Basic Salaries and Wages | B49: 2 | C49: 15006210 | D49: 18228147 | E49: 22054528 | F49: 22181857.29 | G49: 19870395.01 | H49: 19870395.01 | I49: 19870395.01 | J49: 26375151.43 | K49: =J49*1.075 -> 28353287.79 | L49: =K49*1.075 -> 30479784.37
A50: Pension and UIF Contributions | C50: 2798355 | D50: 3710754 | E50: 4686895 | F50: 3741947.885 | G50: 3741947.885 | H50: 3741947.885 | I50: 3741947.885 | J50: 4221686.72 | K50: =J50*1.1 -> 4643855.392 | L50: 5108240.931
A51: Medical Aid Contributions | C51: 0 | D51: 0 | F51: 1796195.504 | G51: 1796195.504 | H51: 1796195.504 | I51: 1796195.504 | J51: 1923998.58 | K51: 2116398.438 | L51: 2328038.282
A52: Overtime | C52: 0 | F52: 0 | G52: 0 | H52: 0 | I52: 0 | J52: 0 | K52: 0 | L52: 0
A53: Performance Bonus | C53: 0 | F53: 0 | G53: 0 | H53: 0 | I53: 0 | J53: 12231.29 | K53: 13454.419 | L53: 14799.8609
A54: Motor Vehicle Allowance | C54: 2070531 | D54: 2499524 | E54: 3258437 | F54: 4063280.394 | G54: 4063280.394 | H54: 4063280.394 | I54: 4063280.394 | J54: 3885542.14 | K54: 4274096.354 | L54: 4701505.989
A55: Cellphone Allowance | C55: 0 | F55: 319186.1165 | G55: 319186.1165 | H55: 319186.1165 | I55: 319186.1165 | J55: 329496 | K55: 362445.6 | L55: 398690.16
A56: Housing Allowances | C56: 126535 | D56: 147205 | E56: 159150 | F56: 301114.8736 | G56: 301114.8736 | H56: 301114.8736 | I56: 301114.8736 | J56: 282245.16 | K56: 310469.676 | L56: 341516.6436
A57: Other benefits and allowances | C57: 0 | D57: 0 | F57: 1983956.805 | G57: 1983956.805 | H57: 1983956.805 | I57: 1983956.805 | J57: 2134454.63 | K57: 2347900.093 | L57: 2582690.102
A58: Payments in lieu of leave | F58: 0 | G58: 1 | H58: 1 | I58: 1 | J58: 0 | K58: 0 | L58: 0
A59: Long service awards | F59: 23467.626 | G59: 23467.626 | H59: 23467.626 | I59: 23467.626 | J59: 0 | K59: 0 | L59: 0
A60: Post-retirement benefit obligations | B60: 4 | F60: 0 | G60: 0 | H60: 0 | I60: 0 | J60: 0 | K60: 0 | L60: 0
A61: sub-total | B61: 5 | C61: =SUM(C49:C60) -> 20001631 | D61: =SUM(D49:D60) -> 24585630 | E61: 30159010 | F61: 34411006.5 | G61: 32099545.22 | H61: 32099545.22 | I61: 32099545.22 | J61: 39164805.95 | K61: 42421907.76 | L61: 45955266.34
A62: Less: Employees costs capitalised to PPE
A63: ="Total "&A48 -> Total Employee related costs | B63: 1 | C63: =C61-C62 -> 20001631 | D63: =D61-D62 -> 24585630 | E63: 30159010 | F63: 34411006.5 | G63: 32099545.22 | H63: 32099545.22 | I63: 32099545.22 | J63: 39164805.95 | K63: 42421907.76 | L63: 45955266.34
A65: Contributions recognised - capital
A66: List contributions by contract
A72: ="Total "&A65 -> Total Contributions recognised - capital | C72: =SUM(C66:C71) -> 0 | D72: 0 | E72: 0 | F72: 0 | G72: 0 | H72: 0 | I72: 0 | J72: 0 | K72: 0 | L72: 0
A74: ='A4-FinPerf RE'!A28 -> Depreciation & asset impairment
A75: Depreciation of Property, Plant & Equipment | D75: 2307376 | E75: 3648189 | F75: 3866861.745 | G75: 3366861.745 | H75: 3366861.745 | I75: 3366861.745 | J75: 3500000 | K75: =J75*1.1 -> 3850000 | L75: =K75*1.1 -> 4235000
A76: Lease amortisation
A77: Capital asset impairment
A78: Depreciation resulting from revaluation of PPE | B78: 10
A79: ="Total "&LEFT(A74,35) -> Total Depreciation & asset impairment | B79: 1 | C79: =SUM(C75:C77)-C78 -> 0 | D79: =SUM(D75:D77)-D78 -> 2307376 | E79: 3648189 | F79: 3866861.745 | G79: 3366861.745 | H79: 3366861.745 | I79: 3366861.745 | J79: =SUM(J75:J77)-J78 -> 3500000 | K79: 3850000 | L79: 4235000
A81: ='A4-FinPerf RE'!A30 -> Bulk purchases
A82: Electricity Bulk Purchases
A83: Water Bulk Purchases
A84: Total bulk purchases | B84: 1 | C84: =SUM(C82:C83) -> 0 | D84: =SUM(D82:D83) -> 0 | E84: 0 | F84: 0 | G84: 0 | H84: 0 | I84: 0 | J84: 0 | K84: 0 | L84: 0
A86: Transfers and grants
A87: Cash transfers and grants | C87: ='SA21'!C34 -> 0 | D87: ='SA21'!D34 -> 0 | E87: ='SA21'!E34 -> 0 | F87: ='SA21'!F34 -> 0 | G87: ='SA21'!G34 -> 1089978 | H87: ='SA21'!H34 -> 1089978 | I87: ='SA21'!I34 -> 1089978 | J87: ='SA21'!J34 -> 0 | K87: ='SA21'!K34 -> 0 | L87: ='SA21'!L34 -> 0
A88: Non-cash transfers and grants | C88: ='SA21'!C65 -> 0 | D88: ='SA21'!D65 -> 0 | E88: ='SA21'!E65 -> 0 | F88: ='SA21'!F65 -> 0 | G88: ='SA21'!G65 -> 0 | H88: ='SA21'!H65 -> 0 | I88: ='SA21'!I65 -> 0 | J88: ='SA21'!J65 -> 0 | K88: ='SA21'!K65 -> 0 | L88: ='SA21'!L65 -> 0
A89: Total transfers and grants | B89: 1 | C89: =SUM(C87:C88) -> 0 | D89: =SUM(D87:D88) -> 0 | E89: 0 | F89: 0 | G89: 1089978 | H89: 1089978 | I89: 1089978 | J89: 0 | K89: 0 | L89: 0
A91: ='A4-FinPerf RE'!A32 -> Contracted services
A92: Finance Lease Contract | F92: 600000 | G92: 900000 | H92: 900000 | I92: 900000 | J92: 500000 | K92: =J92*1.1 -> 550000 | L92: =K92*1.1 -> 605000
A117: sub-total | B117: 1 | C117: =SUM(C92:C116) -> 0 | D117: 0 | E117: 0 | F117: 600000 | G117: 900000 | H117: 900000 | I117: 900000 | J117: 500000 | K117: 550000 | L117: 605000
A118: Allocations to organs of state:
A119: Electricity
A120: Water
A121: Sanitation
A122: Other
A123: Total contracted services | C123: =SUM(C117:C122) -> 0 | D123: =SUM(D117:D122) -> 0 | E123: 0 | F123: 600000 | G123: 900000 | H123: 900000 | I123: 900000 | J123: 500000 | K123: 550000 | L123: 605000
A125: Other Expenditure By Type
A126: Collection costs | C126: 0 | D126: 0 | F126: 0 | J126: 0 | K126: =J126*1.1 -> 0 | L126: =K126*1.1 -> 0
A127: Contributions to 'other' provisions | C127: 0 | D127: 0 | F127: 0 | J127: 0 | K127: =J127*1.1 -> 0 | L127: 0
A128: Consultant fees | C128: 1624812 | D128: 3502707 | E128: 2842751 | F128: 810000 | G128: 471119 | H128: 471119 | I128: 471119 | J128: 130000 | K128: =J128*1.1 -> 143000 | L128: 157300
A129: Audit fees | C129: 1581379 | D129: 3682032 | E129: 1730112 | F129: 1800000 | G129: 2777673 | H129: 2777673 | I129: 2777673 | J129: 1800000 | K129: =J129*1.1 -> 1980000 | L129: 2178000
A130: General expenses | B130: 3 | C130: 5830795 | D130: 17151196 | E130: 6419162 | F130: 11508087 | G130: 17006196.6 | H130: 17006196.6 | I130: 17006196.6 | J130: =12505739.98-J129-3500000+3127500-500000 -> 9833239.98 | K130: =J130*1.1 -> 10816563.98 | L130: 11898220.38
A131: Repairs and maintenance | C131: 1418656 | D131: 2124674 | E131: 1271312 | F131: 1151000 | G131: 1445465 | H131: 1445465 | I131: 1445465 | K131: =J131*1.1 -> 0 | L131: 0
A132: Advertising | C132: 394115 | D132: 570790 | E132: 365860 | K132: =J132*1.1 -> 0 | L132: 0
A133: Bursaries | C133: 105388 | D133: 121488 | E133: 36318 | K133: =J133*1.1 -> 0 | L133: 0
A134: Conference and Delegation | C134: 43747 | D134: 90042 | E134: 67296 | K134: =J134*1.1 -> 0 | L134: 0
A135: Disaster Management | C135: 0 | D135: 618323 | E135: 374384 | K135: =J135*1.1 -> 0 | L135: 0
A136: General expenses | K136: =J136*1.1 -> 0 | L136: 0
A137: Entertainment | C137: 398756 | D137: 405573 | E137: 166010 | K137: =J137*1.1 -> 0 | L137: 0
A138: Fuel and Oil | C138: 275902 | D138: 380187 | E138: 309386 | K138: =J138*1.1 -> 0 | L138: 0
A139: Insurance | C139: 141800 | D139: 226986 | K139: =J139*1.1 -> 0 | L139: 0
A140: Legal Expenses | C140: 231767 | D140: 75766 | E140: 101436 | F140: 5469816.601 | G140: 0 | H140: 0 | I140: 0 | K140: =J140*1.1 -> 0 | L140: 0
A141: Licence Fees | C141: 60426 | D141: 332626 | E141: 530930 | K141: =J141*1.1 -> 0 | L141: 0
A142: Membership Fees | C142: 166769 | D142: 217469 | E142: 459911 | K142: =J142*1.1 -> 0 | L142: 0
A143: Postage | C143: 8227 | D143: 2213 | E143: 2335 | K143: =J143*1.1 -> 0 | L143: 0
A144: Printing and stationery | C144: 199698 | D144: 483527 | E144: 376082 | K144: =J144*1.1 -> 0 | L144: 0
A145: Security Costs | C145: 4277 | D145: 11285 | E145: 1767052 | K145: =J145*1.1 -> 0 | L145: 0
A146: Training | C146: 888385 | D146: 1794359 | E146: 361873 | K146: =J146*1.1 -> 0 | L146: 0
A147: Telephone Costs | C147: 760939 | D147: 977963 | E147: 671100 | K147: =J147*1.1 -> 0 | L147: 0
A148: Travel and Subsistence | C148: 2533717 | D148: 4918139 | E148: 4239138 | K148: =J148*1.1 -> 0 | L148: 0
A149: Water and Electricity | C149: 67383 | D149: 268725 | E149: 463025 | K149: =J149*1.1 -> 0 | L149: 0
A150: Repairs and Maitenance | F150: 0 | J150: 528000 | K150: =J150*1.1 -> 580800 | L150: 638880
A151: Expenditure on grants | J151: =4636000 -> 4636000 | K151: =J151*1.1 -> 5099600 | L151: 5609560
A152: Capital Expenditure | J152: =3027000-1852000+70000+500000 -> 1745000 | K152: =J152*1.1 -> 1919500 | L152: 2111450
A153: Total 'Other' Expenditure | B153: 1 | C153: =SUM(C126:C152) -> 16736938 | D153: =SUM(D126:D152) -> 37956070 | E153: 22555473 | F153: 20738903.6 | G153: 21700453.6 | H153: 21700453.6 | I153: 21700453.6 | J153: 18672239.98 | K153: 20539463.98 | L153: 22593410.38
A155: Repairs and Maintenance by Expenditure Item | B155: 8
A156: Employee related costs
A157: Other materials
A158: Contracted Services
A159: Other Expenditure | C159: 4878000 | D159: 7602000 | E159: 1271312 | F159: 1151000 | G159: 1445465 | H159: 1445465 | I159: 1445000 | J159: 528000 | K159: =J159*1.1 -> 580800 | L159: =K159*1.1 -> 638880
A160: Total Repairs and Maintenance Expenditure | B160: 9 | C160: =SUM(C156:C159) -> 4878000 | D160: =SUM(D156:D159) -> 7602000 | E160: 1271312 | F160: 1151000 | G160: 1445465 | H160: 1445465 | I160: 1445000 | J160: 528000 | K160: 580800 | L160: 638880
A162: check | C162: =C160-SA34c!C77 -> -87 | D162: =D160-SA34c!D77 -> -87 | E162: =E160-SA34c!E77 -> 0 | F162: =F160-SA34c!F77 -> 0 | G162: =G160-SA34c!G77 -> 0 | H162: =H160-SA34c!H77 -> 0 | J162: =J160-SA34c!I77 -> 0 | K162: =K160-SA34c!J77 -> 0 | L162: =L160-SA34c!K77 -> 0
A165: =head27a -> References
A166: 1. Must reconcile with 'Budgeted Financial Performance (Revenue and Expenditure)
A167: 2. Must reconcile to supporting documentation on staff salaries
A168: 3. Insert other categories where revenue or expenditure is of a material nature (list separate items until 'General expenses' is not > 10% of Total Expenditure)
A169: 4. Expenditure to meet any 'unfunded obligations'
A170: 5 This sub-total must agree with the total on SA22, but excluding councillor and board member items
A171: 6. Include a note for each revenue item that is affected by 'revenue foregone'
A172: 7. Special consideration may have to be given to including 'goodwill arising' or 'joint venture' budgets where circumstances require this (include separately under relevant notes)
A173: 8. Repairs and Maintenance is not a GRAP item. However to facilitate transparency, municipalities must provide a breakdown of the amounts included in the relevant GRAP items that will be spent on Repairs and Maintenance.
A174: 9. Must reconcile with Repairs and Maintenance by Asset Class (Total Repairs and Maintenance) on Table SA34c.
A175: 10. Only applicable to municipalities that have adopted the 'revaluation method' in GRAP 17. The aim is to prevent overstating 'depreciation and asset impairment'

Sheet SA2
A1: =muni&" - "&TableA2 -> DC16 Xhariep - Supporting Table SA2 Matrix Financial Performance Budget (revenue source/expenditure type and dept.)
A2: =desc -> Description | B2: =head27 -> Ref | C2: ='A3-FinPerf V'!A5 -> Vote 1 - General Council | D2: ='A3-FinPerf V'!A6 -> Vote 2 - Municipal Manager | E2: ='A3-FinPerf V'!A7 -> Vote 3 - Budget & Treasury Office | F2: ='A3-FinPerf V'!A8 -> Vote 4 - Planning & Development | G2: ='A3-FinPerf V'!A9 -> Vote 5 - Corporate Services | H2: ='A3-FinPerf V'!A10 -> Vote 6 - [NAME OF VOTE 6] | I2: ='A3-FinPerf V'!A11 -> Vote 7 - [NAME OF VOTE 7] | J2: ='A3-FinPerf V'!A12 -> Vote 8 - [NAME OF VOTE 8] | K2: ='A3-FinPerf V'!A13 -> Vote 9 - [NAME OF VOTE 9] | L2: ='A3-FinPerf V'!A14 -> Vote 10 - [NAME OF VOTE 10] | M2: ='A3-FinPerf V'!A15 -> Vote 11 - [NAME OF VOTE 11] | N2: ='A3-FinPerf V'!A16 -> Vote 12 - [NAME OF VOTE 12] | O2: ='A3-FinPerf V'!A17 -> Vote 13 - [NAME OF VOTE 13] | P2: ='A3-FinPerf V'!A18 -> Vote 14 - [NAME OF VOTE 14] | Q2: ='A3-FinPerf V'!A19 -> Vote 15 - [NAME OF VOTE 15] | R2: Total
A3: R thousand | B3: 1 | C3: R'000 | D3: R'000 | E3: R'000 | F3: R'000 | G3: R'000 | H3: R'000 | Q3: R'000 | R3: R'000
A4: ='A4-FinPerf RE'!A4 -> Revenue By Source
A5: ='A4-FinPerf RE'!A5 -> Property rates | R5: =SUM(C5:Q5) -> 0
A6: ='A4-FinPerf RE'!A6 -> Property rates - penalties & collection charges | R6: =SUM(C6:Q6) -> 0
A7: ='A4-FinPerf RE'!A7 -> Service charges - electricity revenue | R7: 0
A8: ='A4-FinPerf RE'!A8 -> Service charges - water revenue | R8: 0
A9: ='A4-FinPerf RE'!A9 -> Service charges - sanitation revenue | R9: 0
A10: ='A4-FinPerf RE'!A10 -> Service charges - refuse revenue | R10: 0
A11: ='A4-FinPerf RE'!A11 -> Service charges - other | R11: 0
A12: ='A4-FinPerf RE'!A12 -> Rental of facilities and equipment | C12: 0 | D12: 0 | E12: 0 | F12: 0 | G12: 468566 | H12: 0 | I12: 0 | J12: 0 | K12: 0 | L12: 0 | M12: 0 | N12: 0 | O12: 0 | P12: 0 | Q12: 0 | R12: 468566
A13: ='A4-FinPerf RE'!A13 -> Interest earned - external investments | C13: 0 | D13: 0 | E13: =100000+3800 -> 103800 | R13: 103800
A14: ='A4-FinPerf RE'!A14 -> Interest earned - outstanding debtors | E14: =8404+3603 -> 12007 | R14: 12007
A15: ='A4-FinPerf RE'!A15 -> Dividends received | R15: 0
A16: ='A4-FinPerf RE'!A16 -> Fines | R16: 0
A17: ='A4-FinPerf RE'!A17 -> Licences and permits | R17: 0
A18: ='A4-FinPerf RE'!A18 -> Agency services | R18: 0
A19: ='A4-FinPerf RE'!A20 -> Other revenue | C19: 570000 | E19: 12500 | G19: 46498 | R19: 628998
A20: ='A4-FinPerf RE'!A19 -> Transfers recognised - operational | C20: =8928332-500000-500000 -> 7928332 | D20: 6379624 | E20: 14800102 | F20: 11639009 | G20: 21744934 | R20: 62492001
A21: ='A4-FinPerf RE'!A21 -> Gains on disposal of PPE | R21: 0
A22: ='A4-FinPerf RE'!A22 -> Total Revenue (excluding capital transfers and contributions) | C22: =SUM(C5:C21) -> 8498332 | D22: 6379624 | E22: 14928409 | F22: 11639009 | G22: 22259998 | H22: 0 | I22: 0 | J22: 0 | K22: 0 | L22: 0 | M22: 0 | N22: 0 | O22: 0 | P22: 0 | Q22: 0 | R22: 63705372
A24: ='A4-FinPerf RE'!A24 -> Expenditure By Type
A25: ='A4-FinPerf RE'!A25 -> Employee related costs | D25: 5687728.33 | E25: 9899658.26 | F25: 8086166.5 | G25: 15491252.86 | R25: =SUM(C25:Q25) -> 39164805.95
A26: ='A4-FinPerf RE'!A26 -> Remuneration of councillors | C26: 4696833.48 | R26: =SUM(C26:Q26) -> 4696833.48
A27: ='A4-FinPerf RE'!A27 -> Debt impairment | R27: 0
A28: ='A4-FinPerf RE'!A28 -> Depreciation & asset impairment | R28: 0
A29: ='A4-FinPerf RE'!A29 -> Finance charges | R29: 0
A30: ='A4-FinPerf RE'!A30 -> Bulk purchases | R30: 0
A31: ='A4-FinPerf RE'!A31 -> Other materials | R31: 0
A32: ='A4-FinPerf RE'!A32 -> Contracted services | R32: 0
A33: ='A4-FinPerf RE'!A33 -> Transfers and grants | R33: 0
A34: ='A4-FinPerf RE'!A34 -> Other expenditure | C34: ='[5]Annual budget'!$B$117-C26-500000 -> 6103307 | D34: =10030074.33-D25 -> 4342346 | E34: =12354570.26-E25 -> 2454912 | F34: =13806724.02-F25 -> 5720557.52 | G34: =19042370.32-G25 -> 3551117.46 | R34: 22172239.98
A35: ='A4-FinPerf RE'!A35 -> Loss on disposal of PPE | R35: 0
A36: Total Expenditure | C36: =SUM(C25:C35) -> 10800140.48 | D36: 10030074.33 | E36: 12354570.26 | F36: 13806724.02 | G36: 19042370.32 | H36: 0 | I36: 0 | J36: 0 | K36: 0 | L36: 0 | M36: 0 | N36: 0 | O36: 0 | P36: 0 | Q36: 0 | R36: 66033879.41
A38: ='A4-FinPerf RE'!A38 -> Surplus/(Deficit) | C38: =C22-C36 -> -2301808.48 | D38: -3650450.33 | E38: 2573838.74 | F38: -2167715.02 | G38: 3217627.68 | H38: 0 | I38: =I22-I36 -> 0 | J38: 0 | K38: 0 | L38: 0 | M38: 0 | N38: 0 | O38: 0 | P38: 0 | Q38: 0 | R38: =R22-R36 -> -2328507.41
A39: ='A4-FinPerf RE'!A39 -> Transfers recognised - capital | R39: =SUM(C39:Q39) -> 0
A40: ='A4-FinPerf RE'!A40 -> Contributions recognised - capital | R40: =SUM(C40:Q40) -> 0
A41: ='A4-FinPerf RE'!A41 -> Contributed assets | R41: =SUM(C41:Q41) -> 0
A42: ='A4-FinPerf RE'!A42 -> Surplus/(Deficit) after capital transfers & contributions | C42: =SUM(C38:C41) -> -2301808.48 | D42: -3650450.33 | E42: 2573838.74 | F42: -2167715.02 | G42: 3217627.68 | H42: 0 | I42: 0 | J42: 0 | K42: 0 | L42: 0 | M42: 0 | N42: 0 | O42: 0 | P42: 0 | Q42: =SUM(Q38:Q41) -> 0 | R42: =SUM(R38:R41) -> -2328507.41
A43: =head27a -> References
A44: 1. Departmental columns to be based on municipal organisation structure
A45: check balance | R45: ='A4-FinPerf RE'!J42-'SA2'!R42 -> -1.519999981

Sheet SA3
A1: =muni&" - "&TableA3 -> DC16 Xhariep - Supporting Table SA3 Supportinging detail to 'Budgeted Financial Position'
A2: =desc -> Description | B2: =head27 -> Ref | C2: =head1b -> 2010/11 | D2: =head1A -> 2011/12 | E2: =Head1 -> 2012/13 | F2: =Head2 -> Current Year 2013/14 | J2: =Head3 -> 2014/15 Medium Term Revenue & Expenditure Framework
C3: =Head5 -> Audited Outcome | D3: =Head5 -> Audited Outcome | E3: =Head5 -> Audited Outcome | F3: =Head6 -> Original Budget | G3: =Head7 -> Adjusted Budget | H3: =Head8 -> Full Year Forecast | I3: =Head5b -> Pre-audit outcome | J3: =Head9 -> Budget Year 2014/15 | K3: =Head10 -> Budget Year +1 2015/16 | L3: =Head11 -> Budget Year +2 2016/17
A4: R thousand
A5: ASSETS
A6: ='A6-FinPos'!A7 -> Call investment deposits
A7: Call deposits < 90 days | C7: 5031973 | D7: 5000000 | E7: 0 | F7: 5000000 | G7: 5000000 | H7: 5000000
A8: Other current investments > 90 days
A9: ="Total "&A6 -> Total Call investment deposits | B9: 2 | C9: =SUM(C7:C8) -> 5031973 | D9: =SUM(D7:D8) -> 5000000 | E9: 0 | F9: 5000000 | G9: 5000000 | H9: 5000000 | I9: 0 | J9: 0 | K9: 0 | L9: 0
A11: ='A6-FinPos'!A8 -> Consumer debtors
A12: =A11 -> Consumer debtors | C12: 8449143 | D12: 17392548 | E12: 11715267.63 | F12: 17193230.03 | G12: 17193230.03 | H12: 17193230.03 | I12: 2145721.33 | J12: 400000 | K12: 360000
A13: Less: Provision for debt impairment | E13: -10867941.37 | F13: 0 | I13: -1582954.7 | J13: -288000 | K13: -302000
A14: ="Total "&A11 -> Total Consumer debtors | B14: 2 | C14: =SUM(C12:C13) -> 8449143 | D14: =SUM(D12:D13) -> 17392548 | E14: 847326.26 | F14: =SUM(F12:F13) -> 17193230.03 | G14: 17193230.03 | H14: 17193230.03 | I14: 562766.63 | J14: 112000 | K14: 58000 | L14: 0
A16: Debt impairment provision
A17: Balance at the beginning of the year | F17: 0
A18: Contributions to the provision | F18: 0 | J18: 600000
A19: Bad debts written off | C19: 0 | D19: 0 | E19: 10777736.25 | F19: 0 | G19: 0 | H19: 0 | I19: 715017.81
A20: Balance at end of year | C20: =SUM(C17:C19) -> 0 | D20: =SUM(D17:D19) -> 0 | E20: 10777736.25 | F20: 0 | G20: 0 | H20: 0 | I20: 715017.81 | J20: 600000 | K20: 0 | L20: 0
A22: ='A6-FinPos'!A19&" (PPE)" -> Property, plant and equipment (PPE)
A23: PPE at cost/valuation (excl. finance leases) | C23: 16777105 | D23: 27241634 | E23: 28514250 | F23: 33137660 | G23: 33137660 | H23: 33137660 | I23: 28746056.07 | J23: 28746056.07 | K23: 28746056.07 | L23: 29400000
A24: Leases recognised as PPE | B24: 3 | D24: 1281358 | E24: 1281358 | F24: 1281358 | G24: 1281358 | H24: 1281358 | I24: 0 | J24: 600000 | K24: 600000 | L24: 600000
A25: Less: Accumulated depreciation | D25: 6480523 | E25: 9712805 | F25: 13702862.25 | G25: 13702862.25 | H25: 13702862.25 | I25: 9938560.2 | J25: 13438560.2 | K25: 16938560.2 | L25: 15238560.2
A26: ="Total "&A22 -> Total Property, plant and equipment (PPE) | B26: 2 | C26: =SUM(C23:C24)-C25 -> 16777105 | D26: =SUM(D23:D24)-D25 -> 22042469 | E26: 20082803 | F26: 20716155.75 | G26: 20716155.75 | H26: 20716155.75 | I26: 18807495.87 | J26: 15907495.87 | K26: 12407495.87 | L26: 14761439.8
A28: LIABILITIES
A29: ='A6-FinPos'!A28&" - "&'A6-FinPos'!A30 -> Current liabilities - Borrowing
A30: Short term loans (other than bank overdraft)
A31: Current portion of long-term liabilities | C31: 397947 | D31: 362288 | E31: 0
A32: ="Total "&A29 -> Total Current liabilities - Borrowing | C32: =SUM(C30:C31) -> 397947 | D32: =SUM(D30:D31) -> 362288 | E32: 0 | F32: 0 | G32: 0 | H32: 0 | I32: 0 | J32: 0 | K32: 0 | L32: 0
A34: ='A6-FinPos'!A32 -> Trade and other payables
A35: Trade and other creditors | C35: 5223240 | D35: 5076188 | E35: 6291487 | F35: 15076020.66 | G35: 15076020.66 | H35: 15076020.66 | I35: 5037081.74 | J35: 3645000 | K35: 3325980 | L35: 3007984
A36: Unspent conditional transfers | C36: 355449 | D36: 1523205 | E36: 1992053 | I36: 3860068.35 | J36: 1292053 | K36: 1292053 | L36: 960000
A37: VAT | C37: 0 | D37: -2466483 | E37: -979901 | I37: -1695784.27 | J37: -630000 | K37: -658000 | L37: -712000
A38: ="Total "&A34 -> Total Trade and other payables | B38: 2 | C38: =SUM(C35:C37) -> 5578689 | D38: 4132910 | E38: 7303639 | F38: 15076020.66 | G38: 15076020.66 | H38: 15076020.66 | I38: 7201365.82 | J38: 4307053 | K38: 3960033 | L38: =SUM(L35:L37) -> 3255984
A40: ='A6-FinPos'!A36&" - "&'A6-FinPos'!A37 -> Non current liabilities - Borrowing
A41: Borrowing | B41: 4
A42: Finance leases (including PPP asset element) | C42: 362289 | F42: 701000 | G42: 900000 | H42: 900000 | J42: 500000 | K42: =J42*1.1 -> 550000 | L42: =K42*1.1 -> 605000
A43: ="Total "&A40 -> Total Non current liabilities - Borrowing | C43: =SUM(C41:C42) -> 362289 | D43: =SUM(D41:D42) -> 0 | E43: 0 | F43: 701000 | G43: 900000 | H43: 900000 | I43: 0 | J43: 500000 | K43: 550000 | L43: 605000
A45: ='A6-FinPos'!A38&" - non-current" -> Provisions - non-current
A46: Retirement benefits
A47: List other major provision items
A48: Refuse landfill site rehabilitation
A49: Other | C49: 495889 | D49: 673000 | E49: 879000 | F49: 603000 | G49: 603000 | H49: 603000 | I49: 879000 | J49: 912000 | K49: 984960 | L49: 1063756.8
A50: ="Total "&A45 -> Total Provisions - non-current | C50: =SUM(C46:C49) -> 495889 | D50: 673000 | E50: 879000 | F50: 603000 | G50: 603000 | H50: 603000 | I50: 879000 | J50: 912000 | K50: 984960 | L50: 1063756.8
A52: CHANGES IN NET ASSETS
A53: ='A6-FinPos'!A45 -> Accumulated Surplus/(Deficit)
A54: =A53&" - opening balance" -> Accumulated Surplus/(Deficit) - opening balance | C54: 20515702 | D54: 54199717.99 | E54: -29396196 | F54: 68555162.76 | G54: 68555162.76
A55: GRAP adjustments
A56: Restated balance | C56: =SUM(C54:C55) -> 20515702 | D56: =SUM(D54:D55) -> 54199717.99 | E56: =SUM(E54:E55) -> -29396196 | F56: =SUM(F54:F55) -> 68555162.76 | G56: 68555162.76 | H56: 0 | I56: 0 | J56: 0 | K56: 0 | L56: 0
A57: ='A4-FinPerf RE'!A38 -> Surplus/(Deficit) | C57: ='A4-FinPerf RE'!C46 -> 6389279 | D57: ='A4-FinPerf RE'!D46 -> 22817575 | E57: ='A4-FinPerf RE'!E46 -> -31360030 | F57: ='A4-FinPerf RE'!F46 -> -2301061.871 | G57: ='A4-FinPerf RE'!G46 -> -2482886.95 | H57: ='A4-FinPerf RE'!H46 -> -2482886.95 | I57: ='A4-FinPerf RE'!I46 -> -6880886.95 | J57: ='A4-FinPerf RE'!J46 -> -2328508.93 | K57: ='A4-FinPerf RE'!K46 -> -2388076.033 | L57: ='A4-FinPerf RE'!L46 -> -1767283.087
A58: Appropriations to Reserves
A59: Transfers from Reserves
A60: Depreciation offsets
A61: Other adjustments
A62: Accumulated Surplus/(Deficit) | B62: 1 | C62: =SUM(C56:C61) -> 26904981 | D62: =SUM(D56:D61) -> 77017292.99 | E62: =SUM(E56:E61) -> -60756226 | F62: 66254100.88 | G62: 66072275.81 | H62: -2482886.95 | I62: -6880886.95 | J62: -2328508.93 | K62: -2388076.033 | L62: -1767283.087
A63: Reserves
A64: Housing Development Fund
A65: Capital replacement
A66: Self-insurance
A67: Other reserves
A68: Revaluation
A69: Total Reserves | B69: 2 | C69: =SUM(C64:C68) -> 0 | D69: 0 | E69: 0 | F69: 0 | G69: 0 | H69: 0 | I69: 0 | J69: 0 | K69: 0 | L69: 0
A70: ='A6-FinPos'!A48 -> TOTAL COMMUNITY WEALTH/EQUITY | B70: 2 | C70: =C62+C69 -> 26904981 | D70: 77017292.99 | E70: -60756226 | F70: 66254100.88 | G70: 66072275.81 | H70: -2482886.95 | I70: -6880886.95 | J70: -2328508.93 | K70: -2388076.033 | L70: -1767283.087
A72: Total capital expenditure includes expenditure on nationally significant priorities:
A73: Provision of basic services
A76: =head27a -> References
A77: ="1. Must reconcile with "&'Template names'!F103 -> 1. Must reconcile with Table A4 Budgeted Financial Performance (revenue and expenditure)
A78: ="2. Must reconcile with "&'Template names'!F105 -> 2. Must reconcile with Table A6 Budgeted Financial Position
A79: 3. Leases treated as assets to be depreciated as the same as purchased/constructed assets. Includes PPP asset element accounted for as finance leases
A80: 4. Borrowing must reconcile to Table A17
A81: check | C81: =C70-'A6-FinPos'!C48 -> 0 | D81: =D70-'A6-FinPos'!D48 -> 23815954.99 | E81: =E70-'A6-FinPos'!E48 -> -76992199.26 | F81: =F70-'A6-FinPos'!F48 -> 37666418.08 | G81: =G70-'A6-FinPos'!G48 -> 37484593 | H81: =H70-'A6-FinPos'!H48 -> -31070569.75 | I81: =I70-'A6-FinPos'!I48 -> -19700101.31 | J81: =J70-'A6-FinPos'!J48 -> -13294951.93 | K81: =K70-'A6-FinPos'!K48 -> -10819578.9 | L81: =L70-'A6-FinPos'!L48 -> -13163982.09
C82: =TREND(D82:H82) -> 0 | D82: =TREND(E82:H82) -> 0 | E82: =E73 -> 0 | F82: =H73 -> 0 | G82: =J73 -> 0 | H82: =K73 -> 0 | I82: =L73 -> 0

Sheet SA4
A1: =muni&" - "&TableA4 -> DC16 Xhariep - Supporting Table SA4 Reconciliation of IDP strategic objectives and budget (revenue)
A2: Strategic Objective | B2: Goal | C2: Goal Code | D2: =head27 -> Ref | E2: =head1b -> 2010/11 | F2: =head1A -> 2011/12 | G2: =Head1 -> 2012/13 | H2: =Head2 -> Current Year 2013/14 | K2: =Head3 -> 2014/15 Medium Term Revenue & Expenditure Framework
A3: R thousand | E3: =Head5 -> Audited Outcome | F3: =Head5 -> Audited Outcome | G3: =Head5 -> Audited Outcome | H3: =Head6 -> Original Budget | I3: =Head7 -> Adjusted Budget | J3: =Head8 -> Full Year Forecast | K3: =Head9 -> Budget Year 2014/15 | L3: =Head10 -> Budget Year +1 2015/16 | M3: =Head11 -> Budget Year +2 2016/17
A4: To manage and prevent harm to the environment and ensure its sustainability | B4: Municipal Health Services (Environmental Management Projects) | H4: 300000 | I4: 200000 | J4: 200000 | K4: 500000 | L4: =K4*1.1 -> 550000 | M4: =L4*1.1 -> 605000
A5: To improve economic growth. | B5: LED Promotion and Marketing | H5: 0 | I5: 0 | J5: 0 | K5: 0 | L5: =K5*1.1 -> 0 | M5: 0
A6: To provide accredited trainings on animal and plant production to emerging farmers. | B6: LED Trainings | H6: 100000 | I6: 460000 | J6: 460000 | K6: 0 | L6: =K6*1.1 -> 0 | M6: 0
A7: To improve economic growth. | B7: Machinery and Stock for the Arts and Craft centre | H7: 400000 | I7: 0 | J7: 0 | K7: 0 | L7: =K7*1.1 -> 0 | M7: 0
A8: To manage and prevent occurence loss of lives due to disasters | B8: Disaster Management Plan | H8: 40000 | I8: 0 | J8: 0 | K8: 0 | L8: =K8*1.1 -> 0 | M8: 0
A9: To provide awareness on opportunities in the tourism industry | B9: Tourism Awareness | H9: 20000 | I9: 30000 | J9: 30000 | K9: 400000 | L9: =K9*1.1 -> 440000 | M9: 484000
A10: For cimmunity benefit events, training SMME's, green and clean projects, food security projects, fodd for waste projects, LED feasibility studies | B10: LED Projects | H10: 500000 | I10: 630042 | J10: 630042 | K10: 950000 | L10: =K10*1.1 -> 1045000 | M10: 1149500
A11: To coordinate programmes with relevant Stakeholders | B11: District Forums for LED,Disaster Management and Environmeental Health | H11: 40000 | I11: 15000 | J11: 15000 | K11: 50000 | L11: =K11*1.1 -> 55000 | M11: 60500
A12: To ensure a smooth running Planning and Development department that effectively grow the economy and deliver services | B12: Business Processes | H12: 0 | I12: 0 | J12: 0 | K12: 0 | L12: =K12*1.1 -> 0 | M12: 0
A13: To coordinate work on AIDS,outreach programmes and enhance publi participation of ward committees. | B13: District AIDS Council, Public Participation, Youth Development Programmes, Special Programmes, Intergovernmental Relations, Mayor's social Responsibility, Mandela Day Celebration | H13: 25000 | I13: 1228 | J13: 1228 | K13: =165000+90000+27500 -> 282500 | L13: =K13*1.1 -> 310750 | M13: 341825
A14: To manage and prevent harm to the environment and ensure its sustainability | B14: Health and Hygiene education | H14: 20000 | I14: 10000 | J14: 10000 | K14: 0 | L14: =K14*1.1 -> 0 | M14: 0
A15: To manage and prevent occurence loss of lives due to disasters | B15: Disaster Management Contributions | H15: 50000 | J15: 569841 | K15: 300000 | L15: =K15*1.1 -> 330000 | M15: 363000
A16: Astatutory requirement to ensure good governance | B16: PMS strategy | H16: 0 | I16: 0 | J16: 0 | K16: 70000 | L16: =K16*1.1 -> 77000 | M16: 84700
A17: To continuously prepare, adopt, effectively implement and annually review IDP | B17: Complete the review and adoption of IDP for implementation in 2010/2011 financial year | H17: 150000 | I17: 0 | J17: 0 | K17: 350000 | L17: =K17*1.1 -> 385000 | M17: 423500
A18: To improve financial viability of the municipality and audit outcomes | B18: GRAP AFS | H18: 600000 | I18: 505882 | J18: 505882 | K18: 200000 | L18: =K18*1.1 -> 220000 | M18: 242000
A19: To host a succesful Disaster conference as decided in the last ISDR | B19: Disaster Conference | H19: 0 | I19: 0 | J19: 0 | K19: 0 | L19: =K19*1.1 -> 0 | M19: 0
A20: To procure the land on which the municipal building is situated. Upgrading of the Internal Streets in Local Municipalities | B20: Land and Upgrading of Internal Streets | H20: 650000 | I20: 0 | J20: 0 | K20: 0 | L20: =K20*1.1 -> 0 | M20: 0
A21: Allocations to other priorities | D21: 2
A22: ='A4-FinPerf RE'!A22 -> Total Revenue (excluding capital transfers and contributions) | D22: 1 | E22: =SUM(E4:E21) -> 0 | F22: 0 | G22: 0 | H22: 2895000 | I22: 1852152 | J22: 2421993 | K22: 3102500 | L22: 3412750 | M22: 3754025
A23: =head27a -> References
A24: ="1. Total revenue must reconcile to "&'Template names'!F103 -> 1. Total revenue must reconcile to Table A4 Budgeted Financial Performance (revenue and expenditure)
A25: 2. Balance of allocations not directly linked to an IDP strategic objective
A26: check op revenue balance | E26: =E22-'A4-FinPerf RE'!C60 -> -45576624 | F26: =F22-'A4-FinPerf RE'!D60 -> -90879214 | G26: =G22-'A4-FinPerf RE'!E60 -> -39385108 | H26: =H22-'A4-FinPerf RE'!F60 -> -57660255.04 | I26: =I22-'A4-FinPerf RE'!G60 -> -58061344.68 | J26: =J22-'A4-FinPerf RE'!H60 -> -57491503.68 | K26: =K22-'A4-FinPerf RE'!J60 -> -61102870.48 | L26: =L22-'A4-FinPerf RE'!K60 -> -66586157.53 | M26: =M22-'A4-FinPerf RE'!L60 -> -73244773.28

Sheet SA5
A1: =muni&" - "&TableA5 -> DC16 Xhariep - Supporting Table SA5 Reconciliation of IDP strategic objectives and budget (operating expenditure)
A2: Strategic Objective | B2: Goal | C2: Goal Code | D2: =head27 -> Ref | E2: =head1b -> 2010/11 | F2: =head1A -> 2011/12 | G2: =Head1 -> 2012/13 | H2: =Head2 -> Current Year 2013/14 | K2: =Head3 -> 2014/15 Medium Term Revenue & Expenditure Framework
A3: R thousand | E3: =Head5 -> Audited Outcome | F3: =Head5 -> Audited Outcome | G3: =Head5 -> Audited Outcome | H3: =Head6 -> Original Budget | I3: =Head7 -> Adjusted Budget | J3: =Head8 -> Full Year Forecast | K3: =Head9 -> Budget Year 2014/15 | L3: =Head10 -> Budget Year +1 2015/16 | M3: =Head11 -> Budget Year +2 2016/17
A4: To manage and prevent harm to the environment and ensure its sustainability | B4: Municipal Health Services (Environmental Management Projects) | H4: 300000 | I4: 200000 | J4: 200000 | K4: 500000 | L4: =K4*1.1 -> 550000 | M4: =L4*1.1 -> 605000
A5: To improve economic growth. | B5: LED Promotion and Marketing | H5: 0 | I5: 0 | J5: 0 | K5: 0 | L5: =K5*1.1 -> 0 | M5: 0
A6: To provide accredited trainings on animal and plant production to emerging farmers. | B6: LED Trainings | H6: 100000 | I6: 460000 | J6: 460000 | K6: 0 | L6: =K6*1.1 -> 0 | M6: 0
A7: To improve economic growth. | B7: Machinery and Stock for the Arts and Craft centre | H7: 400000 | I7: 0 | J7: 0 | K7: 0 | L7: =K7*1.1 -> 0 | M7: 0
A8: To manage and prevent occurence loss of lives due to disasters | B8: Disaster Management Plan | H8: 40000 | I8: 0 | J8: 0 | K8: 0 | L8: =K8*1.1 -> 0 | M8: 0
A9: To provide awareness on opportunities in the tourism industry | B9: Tourism Awareness | H9: 20000 | I9: 30000 | J9: 30000 | K9: 400000 | L9: =K9*1.1 -> 440000 | M9: 484000
A10: For cimmunity benefit events, training SMME's, green and clean projects, food security projects, fodd for waste projects, LED feasibility studies | B10: LED Projects | H10: 500000 | I10: 630042 | J10: 630042 | K10: 950000 | L10: =K10*1.1 -> 1045000 | M10: 1149500
A11: To coordinate programmes with relevant Stakeholders | B11: District Forums for LED,Disaster Management and Environmeental Health | H11: 40000 | I11: 15000 | J11: 15000 | K11: 50000 | L11: =K11*1.1 -> 55000 | M11: 60500
A12: To ensure a smooth running Planning and Development department that effectively grow the economy and deliver services | B12: Business Processes | H12: 0 | I12: 0 | J12: 0 | K12: 0 | L12: =K12*1.1 -> 0 | M12: 0
A13: To coordinate work on AIDS,outreach programmes and enhance publi participation of ward committees. | B13: District AIDS Council, Public Participation, Youth Development Programmes, Special Programmes, Intergovernmental Relations, Mayor's social Responsibility, Mandela Day Celebration | H13: 25000 | I13: 1228 | J13: 1228 | K13: =165000+90000+27500 -> 282500 | L13: =K13*1.1 -> 310750 | M13: 341825
A14: To manage and prevent harm to the environment and ensure its sustainability | B14: Health and Hygiene education | H14: 20000 | I14: 10000 | J14: 10000 | K14: 0 | L14: =K14*1.1 -> 0 | M14: 0
A15: To manage and prevent occurence loss of lives due to disasters | B15: Disaster Management Contributions | H15: 50000 | J15: 569841 | K15: 300000 | L15: =K15*1.1 -> 330000 | M15: 363000
A16: Astatutory requirement to ensure good governance | B16: PMS strategy | H16: 0 | I16: 0 | J16: 0 | K16: 70000 | L16: =K16*1.1 -> 77000 | M16: 84700
A17: To continuously prepare, adopt, effectively implement and annually review IDP | B17: Complete the review and adoption of IDP for implementation in 2012/2013 financial year | H17: 150000 | I17: 0 | J17: 0 | K17: 350000 | L17: =K17*1.1 -> 385000 | M17: 423500
A18: To improve financial viability of the municipality and audit outcomes | B18: Compilation of GRAP Compliant AFS | H18: 600000 | I18: 505882 | J18: 505882 | K18: 200000 | L18: 0 | M18: 0
A19: To host a succesful Disaster conference as decided in the last ISDR | B19: Disaster Conference | H19: 0 | I19: 0 | J19: 0 | K19: 0 | L19: 0 | M19: 0
A20: To procure the land on which the municipal building is situated | B20: Land | H20: 650000 | I20: 0 | J20: 0 | K20: 0 | L20: 0 | M20: 0
A21: For continuous review of the finance department's systems | B21: BTO Consultancy | H21: 150000 | I21: 100000 | J21: 100000 | K21: 40000
A22: Allocations to other priorities
A23: ='A4-FinPerf RE'!A36 -> Total Expenditure | D23: 1 | E23: =SUM(E4:E22) -> 0 | F23: 0 | G23: 0 | H23: 3045000 | I23: 1952152 | J23: 2521993 | K23: 3142500 | L23: 3192750 | M23: 3512025
A24: =head27a -> References
A25: ="1. Total expenditure must reconcile to "&'Template names'!F103 -> 1. Total expenditure must reconcile to Table A4 Budgeted Financial Performance (revenue and expenditure)
A26: 2. Balance of allocations not directly linked to an IDP strategic objective
A27: check op expenditure balance | E27: =E23-'A4-FinPerf RE'!C36 -> -39187345 | F27: =F23-'A4-FinPerf RE'!D36 -> -68061639 | G27: =G23-'A4-FinPerf RE'!E36 -> -70745138 | H27: =H23-'A4-FinPerf RE'!F36 -> -59811316.92 | I27: =I23-'A4-FinPerf RE'!G36 -> -60444231.63 | J27: =J23-'A4-FinPerf RE'!H36 -> -59874390.63 | K27: =K23-'A4-FinPerf RE'!J36 -> -63391379.41 | L27: =L23-'A4-FinPerf RE'!K36 -> -69194233.56 | M27: =M23-'A4-FinPerf RE'!L36 -> -75254056.37

Sheet SA6
A1: =muni&" - "&TableA6 -> DC16 Xhariep - Supporting Table SA6 Reconciliation of IDP strategic objectives and budget (capital expenditure)
A2: Strategic Objective | B2: Goal | C2: Goal Code | D2: =head27 -> Ref | E2: =head1b -> 2010/11 | F2: =head1A -> 2011/12 | G2: =Head1 -> 2012/13 | H2: =Head2 -> Current Year 2013/14 | K2: =Head3 -> 2014/15 Medium Term Revenue & Expenditure Framework
A3: R thousand | E3: =Head5 -> Audited Outcome | F3: =Head5 -> Audited Outcome | G3: =Head5 -> Audited Outcome | H3: =Head6 -> Original Budget | I3: =Head7 -> Adjusted Budget | J3: =Head8 -> Full Year Forecast | K3: =Head9 -> Budget Year 2014/15 | L3: =Head10 -> Budget Year +1 2015/16 | M3: =Head11 -> Budget Year +2 2016/17
A4: To improve economic growth. | B4: Machinery and Stock for the Arts and Craft centre | C4: A | E4: 70000 | H4: 400000 | I4: 0 | J4: 0
A5: To procure the land on which the municipal building is situated. | B5: Land and Upgrading of Internal Streets | C5: B | H5: 650000 | I5: 0 | J5: 0
A6: Procurement of printing machnies(finance lease) | C6: C | H6: 600000 | I6: 900000 | J6: 900000 | K6: 500000 | L6: =K6*1.1 -> 550000 | M6: =L6*1.1 -> 605000
A7: Procurement of vehicles | C7: D | E7: 820000 | H7: 1250000 | I7: 185000 | J7: 185000 | K7: 1070000 | L7: 0 | M7: 0
A8: Procurement of furniture and equipment and computers and laptop for officials | C8: E | E8: 296000 | H8: =20000+130000 -> 150000 | I8: =67000+173000 -> 240000 | J8: =67000+173333 -> 240333 | K8: 175000 | L8: =150000*1.1 -> 165000 | M8: =L8*1.1 -> 181500
A9: Surplus Assets-(Investment or inventory) | C9: F | E9: 1208000
C10: G
C11: H
C12: I
C13: J
C14: K
C15: L
C16: M
C17: N
C18: O
C19: P
A20: Allocations to other priorities | D20: 3
A21: Total Capital Expenditure | D21: 1 | E21: =SUM(E4:E20) -> 2394000 | F21: 0 | G21: 0 | H21: 3050000 | I21: 1325000 | J21: 1325333 | K21: 1745000 | L21: 715000 | M21: 786500
A22: =head27a -> References
A23: 1. Total capital expenditure must reconcile to Budgeted Capital Expenditure
A24: 2. Goal code must be used on Table SA36
A25: 3. Balance of allocations not directly linked to an IDP strategic objective
A26: check capital balance | E26: =E21-'A5-Capex'!C40 -> -3217378 | F26: =F21-'A5-Capex'!D40 -> -7474889 | G26: =G21-'A5-Capex'!E40 -> -20076711 | H26: =H21-'A5-Capex'!F40 -> 304.3478261 | I26: =I21-'A5-Capex'!G40 -> 420.3362963 | J26: =J21-'A5-Capex'!H40 -> 753.3362963 | K26: =K21-'A5-Capex'!J40 -> 0 | L26: =L21-'A5-Capex'!K40 -> 0 | M26: =M21-'A5-Capex'!L40 -> 0

Sheet SA7
A1: =muni&" - "&TableA7 -> DC16 Xhariep - Supporting Table SA7 Measureable performance objectives
A2: Description | B2: Unit of measurement | C2: =head1b -> 2010/11 | D2: =head1A -> 2011/12 | E2: =Head1 -> 2012/13 | F2: =Head2 -> Current Year 2013/14 | I2: =Head3 -> 2014/15 Medium Term Revenue & Expenditure Framework
C3: =Head5 -> Audited Outcome | D3: =Head5 -> Audited Outcome | E3: =Head5 -> Audited Outcome | F3: =Head6 -> Original Budget | G3: =Head7 -> Adjusted Budget | H3: =Head8 -> Full Year Forecast | I3: =Head9 -> Budget Year 2014/15 | J3: =Head10 -> Budget Year +1 2015/16 | K3: =Head11 -> Budget Year +2 2016/17
A4: Vote 1 - vote name
A5: Function 1 - (name)
A6: Sub-function 1 - (name)
A7: Insert measure/s description
A9: Sub-function 2 - (name)
A10: Insert measure/s description
A12: Sub-function 3 - (name)
A13: Insert measure/s description
A15: Function 2 - (name)
A16: Sub-function 1 - (name)
A17: Insert measure/s description
A19: Sub-function 2 - (name)
A20: Insert measure/s description
A22: Sub-function 3 - (name)
A23: Insert measure/s description
A25: Vote 2 - vote name
A26: Function 1 - (name)
A27: Sub-function 1 - (name)
A28: Insert measure/s description
A30: Sub-function 2 - (name)
A31: Insert measure/s description
A33: Sub-function 3 - (name)
A34: Insert measure/s description
A36: Function 2 - (name)
A37: Sub-function 1 - (name)
A38: Insert measure/s description
A40: Sub-function 2 - (name)
A41: Insert measure/s description
A43: Sub-function 3 - (name)
A44: Insert measure/s description
A46: Vote 3 - vote name
A47: Function 1 - (name)
A48: Sub-function 1 - (name)
A49: Insert measure/s description
A51: Sub-function 2 - (name)
A52: Insert measure/s description
A54: Sub-function 3 - (name)
A55: Insert measure/s description
A57: Function 2 - (name)
A58: Sub-function 1 - (name)
A59: Insert measure/s description
A61: Sub-function 2 - (name)
A62: Insert measure/s description
A64: Sub-function 3 - (name)
A65: Insert measure/s description
A67: And so on for the rest of the Votes
A68: 1. Include a measurable performance objective for each revenue source (within a relevant function) and each vote (MFMA s17(3)(b))
A69: 2. Include all Basic Services performance targets from 'Basic Service Delivery' to ensure Table SA7 represents all strategic responsibilities
A70: 3. Only include prior year comparative information for individual measures where relevant activity occurred in that year/s
A72: =muni&" - "&"Entities measureable performance objectives" -> DC16 Xhariep - Entities measureable performance objectives
A73: =A2 -> Description | B73: Unit of measurement | C73: =head1b -> 2010/11 | D73: =head1A -> 2011/12 | E73: =Head1 -> 2012/13 | F73: =Head2 -> Current Year 2013/14 | I73: =Head3 -> 2014/15 Medium Term Revenue & Expenditure Framework
C74: =Head5 -> Audited Outcome | D74: =Head5 -> Audited Outcome | E74: =Head5 -> Audited Outcome | F74: =Head6 -> Original Budget | G74: =Head7 -> Adjusted Budget | H74: =Head8 -> Full Year Forecast | I74: =Head9 -> Budget Year 2014/15 | J74: =Head10 -> Budget Year +1 2015/16 | K74: =Head11 -> Budget Year +2 2016/17
A75: Entity 1 - (name of entity)
A76: Insert measure/s description
A79: Entity 2 - (name of entity)
A80: =$A$10 -> Insert measure/s description
A83: Entity 3 - (name of entity)
A84: =$A$10 -> Insert measure/s description
A87: And so on for the rest of the Entities
A88: 1. Include a measurable performance objective as agreed with the parent municipality (MFMA s87(5)(d))
A89: 2. Only include prior year comparative information for individual measures where relevant activity occurred in that year/s

Sheet SA8
A1: =muni&" - "&TableA8 -> DC16 Xhariep - Supporting Table SA8 Performance indicators and benchmarks
A2: Description of financial indicator | B2: Basis of calculation | C2: =head1b -> 2010/11 | D2: =head1A -> 2011/12 | E2: =Head1 -> 2012/13 | F2: =Head2 -> Current Year 2013/14 | J2: =Head3 -> 2014/15 Medium Term Revenue & Expenditure Framework
C3: =Head5 -> Audited Outcome | D3: =Head5 -> Audited Outcome | E3: =Head5 -> Audited Outcome | F3: =Head6 -> Original Budget | G3: =Head7 -> Adjusted Budget | H3: =Head8 -> Full Year Forecast | I3: =Head5b -> Pre-audit outcome | J3: =Head9 -> Budget Year 2014/15 | K3: =Head10 -> Budget Year +1 2015/16 | L3: =Head11 -> Budget Year +2 2016/17
A4: Borrowing Management
A6: Credit Rating
A7: Capital Charges to Operating Expenditure | B7: Interest & Principal Paid /Operating Expenditure | C7: =IF(ISERROR(('A4-FinPerf RE'!C29-'A7-CFlow'!C33)/'A4-FinPerf RE'!C36),0,(('A4-FinPerf RE'!C29-'A7-CFlow'!C33)/'A4-FinPerf RE'!C36)) -> 0.01917920186 | D7: =IF(ISERROR(('A4-FinPerf RE'!D29-'A7-CFlow'!D33)/'A4-FinPerf RE'!D36),0,(('A4-FinPerf RE'!D29-'A7-CFlow'!D33)/'A4-FinPerf RE'!D36)) -> 0.01036836624 | E7: =IF(ISERROR(('A4-FinPerf RE'!E29-'A7-CFlow'!E33)/'A4-FinPerf RE'!E36),0,(('A4-FinPerf RE'!E29-'A7-CFlow'!E33)/'A4-FinPerf RE'!E36)) -> 0.009181337663 | F7: =IF(ISERROR(('A4-FinPerf RE'!F29-'A7-CFlow'!F33)/'A4-FinPerf RE'!F36),0,(('A4-FinPerf RE'!F29-'A7-CFlow'!F33)/'A4-FinPerf RE'!F36)) -> 0 | G7: =IF(ISERROR(('A4-FinPerf RE'!G29-'A7-CFlow'!G33)/'A4-FinPerf RE'!G36),0,(('A4-FinPerf RE'!G29-'A7-CFlow'!G33)/'A4-FinPerf RE'!G36)) -> 0 | H7: =IF(ISERROR(('A4-FinPerf RE'!H29-'A7-CFlow'!H33)/'A4-FinPerf RE'!H36),0,(('A4-FinPerf RE'!H29-'A7-CFlow'!H33)/'A4-FinPerf RE'!H36)) -> 0 | I7: =IF(ISERROR(('A4-FinPerf RE'!I29-'A7-CFlow'!I33)/'A4-FinPerf RE'!I36),0,(('A4-FinPerf RE'!I29-'A7-CFlow'!I33)/'A4-FinPerf RE'!I36)) -> 0 | J7: =IF(ISERROR(('A4-FinPerf RE'!J29-'A7-CFlow'!J33)/'A4-FinPerf RE'!J36),0,(('A4-FinPerf RE'!J29-'A7-CFlow'!J33)/'A4-FinPerf RE'!J36)) -> 0.007514968381 | K7: =IF(ISERROR(('A4-FinPerf RE'!K29-'A7-CFlow'!K33)/'A4-FinPerf RE'!K36),0,(('A4-FinPerf RE'!K29-'A7-CFlow'!K33)/'A4-FinPerf RE'!K36)) -> 0.007598051099 | L7: =IF(ISERROR(('A4-FinPerf RE'!L29-'A7-CFlow'!L33)/'A4-FinPerf RE'!L36),0,(('A4-FinPerf RE'!L29-'A7-CFlow'!L33)/'A4-FinPerf RE'!L36)) -> 0.007680971168
A8: Capital Charges to Own Revenue | B8: Finance charges & Repayment of borrowing /Own Revenue | C8: =IF(ISERROR(('A4-FinPerf RE'!C29-'A7-CFlow'!C33)/('A4-FinPerf RE'!C22-'A4-FinPerf RE'!C19)),0,(('A4-FinPerf RE'!C29-'A7-CFlow'!C33)/('A4-FinPerf RE'!C22-'A4-FinPerf RE'!C19))) -> 1.088812173 | D8: =IF(ISERROR(('A4-FinPerf RE'!D29-'A7-CFlow'!D33)/('A4-FinPerf RE'!D22-'A4-FinPerf RE'!D19)),0,(('A4-FinPerf RE'!D29-'A7-CFlow'!D33)/('A4-FinPerf RE'!D22-'A4-FinPerf RE'!D19))) -> 0.2689027727 | E8: =IF(ISERROR(('A4-FinPerf RE'!E29-'A7-CFlow'!E33)/('A4-FinPerf RE'!E22-'A4-FinPerf RE'!E19)),0,(('A4-FinPerf RE'!E29-'A7-CFlow'!E33)/('A4-FinPerf RE'!E22-'A4-FinPerf RE'!E19))) -> 0.8232841882 | F8: =IF(ISERROR(('A4-FinPerf RE'!F29-'A7-CFlow'!F33)/('A4-FinPerf RE'!F22-'A4-FinPerf RE'!F19)),0,(('A4-FinPerf RE'!F29-'A7-CFlow'!F33)/('A4-FinPerf RE'!F22-'A4-FinPerf RE'!F19))) -> 0 | G8: =IF(ISERROR(('A4-FinPerf RE'!G29-'A7-CFlow'!G33)/('A4-FinPerf RE'!G22-'A4-FinPerf RE'!G19)),0,(('A4-FinPerf RE'!G29-'A7-CFlow'!G33)/('A4-FinPerf RE'!G22-'A4-FinPerf RE'!G19))) -> 0 | H8: =IF(ISERROR(('A4-FinPerf RE'!H29-'A7-CFlow'!H33)/('A4-FinPerf RE'!H22-'A4-FinPerf RE'!H19)),0,(('A4-FinPerf RE'!H29-'A7-CFlow'!H33)/('A4-FinPerf RE'!H22-'A4-FinPerf RE'!H19))) -> 0 | I8: =IF(ISERROR(('A4-FinPerf RE'!I29-'A7-CFlow'!I33)/('A4-FinPerf RE'!I22-'A4-FinPerf RE'!I19)),0,(('A4-FinPerf RE'!I29-'A7-CFlow'!I33)/('A4-FinPerf RE'!I22-'A4-FinPerf RE'!I19))) -> 0 | J8: =IF(ISERROR(('A4-FinPerf RE'!J29-'A7-CFlow'!J33)/('A4-FinPerf RE'!J22-'A4-FinPerf RE'!J19)),0,(('A4-FinPerf RE'!J29-'A7-CFlow'!J33)/('A4-FinPerf RE'!J22-'A4-FinPerf RE'!J19))) -> 0.4120752962 | K8: =IF(ISERROR(('A4-FinPerf RE'!K29-'A7-CFlow'!K33)/('A4-FinPerf RE'!K22-'A4-FinPerf RE'!K19)),0,(('A4-FinPerf RE'!K29-'A7-CFlow'!K33)/('A4-FinPerf RE'!K22-'A4-FinPerf RE'!K19))) -> 0.7771571988 | L8: =IF(ISERROR(('A4-FinPerf RE'!L29-'A7-CFlow'!L33)/('A4-FinPerf RE'!L22-'A4-FinPerf RE'!L19)),0,(('A4-FinPerf RE'!L29-'A7-CFlow'!L33)/('A4-FinPerf RE'!L22-'A4-FinPerf RE'!L19))) -> 0.7771571988
A9: Borrowed funding of 'own' capital expenditure | B9: Borrowing/Capital expenditure excl. transfers and grants and contributions | C9: =IF(ISERROR(C49/C48),0,(C49/C48)) -> 0 | D9: =IF(ISERROR(D49/D48),0,(D49/D48)) -> 0 | E9: =IF(ISERROR(E49/E48),0,(E49/E48)) -> 0 | F9: 0 | G9: 0 | H9: 0 | I9: 0 | J9: 0 | K9: 0 | L9: 0
A10: Safety of Capital
A11: Gearing | B11: Long Term Borrowing/ Funds & Reserves | C11: =IF(ISERROR(('A6-FinPos'!C37/'A6-FinPos'!C46)),0,(('A6-FinPos'!C37/'A6-FinPos'!C46))) -> 0 | D11: =IF(ISERROR(('A6-FinPos'!D37/'A6-FinPos'!D46)),0,(('A6-FinPos'!D37/'A6-FinPos'!D46))) -> 0 | E11: =IF(ISERROR(('A6-FinPos'!E37/'A6-FinPos'!E46)),0,(('A6-FinPos'!E37/'A6-FinPos'!E46))) -> 0 | F11: =IF(ISERROR(('A6-FinPos'!F37/'A6-FinPos'!F46)),0,(('A6-FinPos'!F37/'A6-FinPos'!F46))) -> 0 | G11: =IF(ISERROR(('A6-FinPos'!G37/'A6-FinPos'!G46)),0,(('A6-FinPos'!G37/'A6-FinPos'!G46))) -> 0 | H11: =IF(ISERROR(('A6-FinPos'!H37/'A6-FinPos'!H46)),0,(('A6-FinPos'!H37/'A6-FinPos'!H46))) -> 0 | I11: =IF(ISERROR(('A6-FinPos'!I37/'A6-FinPos'!I46)),0,(('A6-FinPos'!I37/'A6-FinPos'!I46))) -> 0 | J11: =IF(ISERROR(('A6-FinPos'!J37/'A6-FinPos'!J46)),0,(('A6-FinPos'!J37/'A6-FinPos'!J46))) -> 0 | K11: =IF(ISERROR(('A6-FinPos'!K37/'A6-FinPos'!K46)),0,(('A6-FinPos'!K37/'A6-FinPos'!K46))) -> 0 | L11: =IF(ISERROR(('A6-FinPos'!L37/'A6-FinPos'!L46)),0,(('A6-FinPos'!L37/'A6-FinPos'!L46))) -> 0
A12: Liquidity
A13: Current Ratio | B13: Current assets/current liabilities | C13: =IF(ISERROR('A6-FinPos'!C12/'A6-FinPos'!C34),0,('A6-FinPos'!C12/'A6-FinPos'!C34)) -> 2.749142454 | D13: =IF(ISERROR('A6-FinPos'!D12/'A6-FinPos'!D34),0,('A6-FinPos'!D12/'A6-FinPos'!D34)) -> 7.852039375 | E13: =IF(ISERROR('A6-FinPos'!E12/'A6-FinPos'!E34),0,('A6-FinPos'!E12/'A6-FinPos'!E34)) -> 0.382010291 | F13: =IF(ISERROR('A6-FinPos'!F12/'A6-FinPos'!F34),0,('A6-FinPos'!F12/'A6-FinPos'!F34)) -> 1.532092088 | G13: =IF(ISERROR('A6-FinPos'!G12/'A6-FinPos'!G34),0,('A6-FinPos'!G12/'A6-FinPos'!G34)) -> 1.532092088 | H13: =IF(ISERROR('A6-FinPos'!H12/'A6-FinPos'!H34),0,('A6-FinPos'!H12/'A6-FinPos'!H34)) -> 1.532092088 | I13: =IF(ISERROR('A6-FinPos'!I12/'A6-FinPos'!I34),0,('A6-FinPos'!I12/'A6-FinPos'!I34)) -> 0.2190808738 | J13: =IF(ISERROR('A6-FinPos'!J12/'A6-FinPos'!J34),0,('A6-FinPos'!J12/'A6-FinPos'!J34)) -> 0.09705011756 | K13: =IF(ISERROR('A6-FinPos'!K12/'A6-FinPos'!K34),0,('A6-FinPos'!K12/'A6-FinPos'!K34)) -> 0.2532807176 | L13: =IF(ISERROR('A6-FinPos'!L12/'A6-FinPos'!L34),0,('A6-FinPos'!L12/'A6-FinPos'!L34)) -> 0.2687359643
A14: Current Ratio adjusted for aged debtors | B14: Current assets less debtors > 90 days/current liabilities | C14: =IF(ISERROR(('A6-FinPos'!C12-'SA8'!C45)/'A6-FinPos'!C34),0,(('A6-FinPos'!C12-'SA8'!C45)/'A6-FinPos'!C34)) -> 2.749142454 | D14: =IF(ISERROR(('A6-FinPos'!D12-'SA8'!D45)/'A6-FinPos'!D34),0,(('A6-FinPos'!D12-'SA8'!D45)/'A6-FinPos'!D34)) -> 7.852039375 | E14: =IF(ISERROR(('A6-FinPos'!E12-'SA8'!E45)/'A6-FinPos'!E34),0,(('A6-FinPos'!E12-'SA8'!E45)/'A6-FinPos'!E34)) -> 0.382010291 | F14: =IF(ISERROR(('A6-FinPos'!F12-'SA8'!F45)/'A6-FinPos'!F34),0,(('A6-FinPos'!F12-'SA8'!F45)/'A6-FinPos'!F34)) -> 1.532092088 | G14: =IF(ISERROR(('A6-FinPos'!G12-'SA8'!G45)/'A6-FinPos'!G34),0,(('A6-FinPos'!G12-'SA8'!G45)/'A6-FinPos'!G34)) -> 1.532092088 | H14: =IF(ISERROR(('A6-FinPos'!H12-'SA8'!H45)/'A6-FinPos'!H34),0,(('A6-FinPos'!H12-'SA8'!H45)/'A6-FinPos'!H34)) -> 1.532092088 | I14: =IF(ISERROR(('A6-FinPos'!I12-'SA8'!I45)/'A6-FinPos'!I34),0,(('A6-FinPos'!I12-'SA8'!I45)/'A6-FinPos'!I34)) -> 0.2190808738 | J14: =IF(ISERROR(('A6-FinPos'!J12-'SA8'!J45)/'A6-FinPos'!J34),0,(('A6-FinPos'!J12-'SA8'!J45)/'A6-FinPos'!J34)) -> 0.09705011756 | K14: =IF(ISERROR(('A6-FinPos'!K12-'SA8'!K45)/'A6-FinPos'!K34),0,(('A6-FinPos'!K12-'SA8'!K45)/'A6-FinPos'!K34)) -> 0.2532807176 | L14: =IF(ISERROR(('A6-FinPos'!L12-'SA8'!L45)/'A6-FinPos'!L34),0,(('A6-FinPos'!L12-'SA8'!L45)/'A6-FinPos'!L34)) -> 0.2687359643
A15: Liquidity Ratio | B15: Monetary Assets/Current Liabilities | C15: =IF(ISERROR(('A6-FinPos'!C6+'A6-FinPos'!C7)/'A6-FinPos'!C34),0,(('A6-FinPos'!C6+'A6-FinPos'!C7)/'A6-FinPos'!C34)) -> 1.050383356 | D15: =IF(ISERROR(('A6-FinPos'!D6+'A6-FinPos'!D7)/'A6-FinPos'!D34),0,(('A6-FinPos'!D6+'A6-FinPos'!D7)/'A6-FinPos'!D34)) -> 3.507620767 | E15: =IF(ISERROR(('A6-FinPos'!E6+'A6-FinPos'!E7)/'A6-FinPos'!E34),0,(('A6-FinPos'!E6+'A6-FinPos'!E7)/'A6-FinPos'!E34)) -> 0.2490632409 | F15: =IF(ISERROR(('A6-FinPos'!F6+'A6-FinPos'!F7)/'A6-FinPos'!F34),0,(('A6-FinPos'!F6+'A6-FinPos'!F7)/'A6-FinPos'!F34)) -> 0.329814854 | G15: =IF(ISERROR(('A6-FinPos'!G6+'A6-FinPos'!G7)/'A6-FinPos'!G34),0,(('A6-FinPos'!G6+'A6-FinPos'!G7)/'A6-FinPos'!G34)) -> 0.329814854 | H15: =IF(ISERROR(('A6-FinPos'!H6+'A6-FinPos'!H7)/'A6-FinPos'!H34),0,(('A6-FinPos'!H6+'A6-FinPos'!H7)/'A6-FinPos'!H34)) -> 0.329814854 | I15: =IF(ISERROR(('A6-FinPos'!I6+'A6-FinPos'!I7)/'A6-FinPos'!I34),0,(('A6-FinPos'!I6+'A6-FinPos'!I7)/'A6-FinPos'!I34)) -> 0 | J15: =IF(ISERROR(('A6-FinPos'!J6+'A6-FinPos'!J7)/'A6-FinPos'!J34),0,(('A6-FinPos'!J6+'A6-FinPos'!J7)/'A6-FinPos'!J34)) -> 0.06036610183 | K15: =IF(ISERROR(('A6-FinPos'!K6+'A6-FinPos'!K7)/'A6-FinPos'!K34),0,(('A6-FinPos'!K6+'A6-FinPos'!K7)/'A6-FinPos'!K34)) -> 0.141412963 | L15: =IF(ISERROR(('A6-FinPos'!L6+'A6-FinPos'!L7)/'A6-FinPos'!L34),0,(('A6-FinPos'!L6+'A6-FinPos'!L7)/'A6-FinPos'!L34)) -> 0.2687359643
A16: Revenue Management
A17: Annual Debtors Collection Rate (Payment Level %) | B17: Last 12 Mths Receipts/Last 12 Mths Billing | D17: =IF(ISERROR(('A7-CFlow'!C6+'A7-CFlow'!C20+'A7-CFlow'!C21)/(SUM('A4-FinPerf RE'!C5:C12)+'A4-FinPerf RE'!C14+SUM('A4-FinPerf RE'!C16:C18)+'A4-FinPerf RE'!C20)),0,(('A7-CFlow'!C6+'A7-CFlow'!C20+'A7-CFlow'!C21)/(SUM('A4-FinPerf RE'!C5:C12)+'A4-FinPerf RE'!C14+SUM('A4-FinPerf RE'!C16:C18)+'A4-FinPerf RE'!C20))) -> 1 | E17: =IF(ISERROR(('A7-CFlow'!D6+'A7-CFlow'!D20+'A7-CFlow'!D21)/(SUM('A4-FinPerf RE'!D5:D12)+'A4-FinPerf RE'!D14+SUM('A4-FinPerf RE'!D16:D18)+'A4-FinPerf RE'!D20)),0,(('A7-CFlow'!D6+'A7-CFlow'!D20+'A7-CFlow'!D21)/(SUM('A4-FinPerf RE'!D5:D12)+'A4-FinPerf RE'!D14+SUM('A4-FinPerf RE'!D16:D18)+'A4-FinPerf RE'!D20))) -> 0.8717420476 | F17: =IF(ISERROR(('A7-CFlow'!E6+'A7-CFlow'!E20+'A7-CFlow'!E21)/(SUM('A4-FinPerf RE'!E5:E12)+'A4-FinPerf RE'!E14+SUM('A4-FinPerf RE'!E16:E18)+'A4-FinPerf RE'!E20)),0,(('A7-CFlow'!E6+'A7-CFlow'!E20+'A7-CFlow'!E21)/(SUM('A4-FinPerf RE'!E5:E12)+'A4-FinPerf RE'!E14+SUM('A4-FinPerf RE'!E16:E18)+'A4-FinPerf RE'!E20))) -> 0.5028645524 | G17: =IF(ISERROR(('A7-CFlow'!F6+'A7-CFlow'!F20+'A7-CFlow'!F21)/(SUM('A4-FinPerf RE'!F5:F12)+'A4-FinPerf RE'!F14+SUM('A4-FinPerf RE'!F16:F18)+'A4-FinPerf RE'!F20)),0,(('A7-CFlow'!F6+'A7-CFlow'!F20+'A7-CFlow'!F21)/(SUM('A4-FinPerf RE'!F5:F12)+'A4-FinPerf RE'!F14+SUM('A4-FinPerf RE'!F16:F18)+'A4-FinPerf RE'!F20))) -> 0.9763684991 | H17: =IF(ISERROR(('A7-CFlow'!G6+'A7-CFlow'!G20+'A7-CFlow'!G21)/(SUM('A4-FinPerf RE'!G5:G12)+'A4-FinPerf RE'!G14+SUM('A4-FinPerf RE'!G16:G18)+'A4-FinPerf RE'!G20)),0,(('A7-CFlow'!G6+'A7-CFlow'!G20+'A7-CFlow'!G21)/(SUM('A4-FinPerf RE'!G5:G12)+'A4-FinPerf RE'!G14+SUM('A4-FinPerf RE'!G16:G18)+'A4-FinPerf RE'!G20))) -> 1 | I17: =IF(ISERROR(('A7-CFlow'!H6+'A7-CFlow'!H20+'A7-CFlow'!H21)/(SUM('A4-FinPerf RE'!H5:H12)+'A4-FinPerf RE'!H14+SUM('A4-FinPerf RE'!H16:H18)+'A4-FinPerf RE'!H20)),0,(('A7-CFlow'!H6+'A7-CFlow'!H20+'A7-CFlow'!H21)/(SUM('A4-FinPerf RE'!H5:H12)+'A4-FinPerf RE'!H14+SUM('A4-FinPerf RE'!H16:H18)+'A4-FinPerf RE'!H20))) -> 1 | J17: =IF(ISERROR(('A7-CFlow'!I6+'A7-CFlow'!I20+'A7-CFlow'!I21)/(SUM('A4-FinPerf RE'!I5:I12)+'A4-FinPerf RE'!I14+SUM('A4-FinPerf RE'!I16:I18)+'A4-FinPerf RE'!I20)),0,(('A7-CFlow'!I6+'A7-CFlow'!I20+'A7-CFlow'!I21)/(SUM('A4-FinPerf RE'!I5:I12)+'A4-FinPerf RE'!I14+SUM('A4-FinPerf RE'!I16:I18)+'A4-FinPerf RE'!I20))) -> 0.9758505377 | K17: =IF(ISERROR(('A7-CFlow'!J6+'A7-CFlow'!J20+'A7-CFlow'!J21)/(SUM('A4-FinPerf RE'!J5:J12)+'A4-FinPerf RE'!J14+SUM('A4-FinPerf RE'!J16:J18)+'A4-FinPerf RE'!J20)),0,(('A7-CFlow'!J6+'A7-CFlow'!J20+'A7-CFlow'!J21)/(SUM('A4-FinPerf RE'!J5:J12)+'A4-FinPerf RE'!J14+SUM('A4-FinPerf RE'!J16:J18)+'A4-FinPerf RE'!J20))) -> 0.5385543422 | L17: =IF(ISERROR(('A7-CFlow'!K6+'A7-CFlow'!K20+'A7-CFlow'!K21)/(SUM('A4-FinPerf RE'!K5:K12)+'A4-FinPerf RE'!K14+SUM('A4-FinPerf RE'!K16:K18)+'A4-FinPerf RE'!K20)),0,(('A7-CFlow'!K6+'A7-CFlow'!K20+'A7-CFlow'!K21)/(SUM('A4-FinPerf RE'!K5:K12)+'A4-FinPerf RE'!K14+SUM('A4-FinPerf RE'!K16:K18)+'A4-FinPerf RE'!K20))) -> 1.107480899
A18: Current Debtors Collection Rate (Cash receipts % of Ratepayer & Other revenue) | C18: =IF(ISERROR(('A7-CFlow'!C6)/(SUM('A4-FinPerf RE'!C5:C12)+'A4-FinPerf RE'!C14+SUM('A4-FinPerf RE'!C16:C18)+'A4-FinPerf RE'!C20)),0,(('A7-CFlow'!C6)/(SUM('A4-FinPerf RE'!C5:C12)+'A4-FinPerf RE'!C14+SUM('A4-FinPerf RE'!C16:C18)+'A4-FinPerf RE'!C20))) -> 1 | D18: =IF(ISERROR(('A7-CFlow'!D6)/(SUM('A4-FinPerf RE'!D5:D12)+'A4-FinPerf RE'!D14+SUM('A4-FinPerf RE'!D16:D18)+'A4-FinPerf RE'!D20)),0,(('A7-CFlow'!D6)/(SUM('A4-FinPerf RE'!D5:D12)+'A4-FinPerf RE'!D14+SUM('A4-FinPerf RE'!D16:D18)+'A4-FinPerf RE'!D20))) -> 1 | E18: =IF(ISERROR(('A7-CFlow'!E6)/(SUM('A4-FinPerf RE'!E5:E12)+'A4-FinPerf RE'!E14+SUM('A4-FinPerf RE'!E16:E18)+'A4-FinPerf RE'!E20)),0,(('A7-CFlow'!E6)/(SUM('A4-FinPerf RE'!E5:E12)+'A4-FinPerf RE'!E14+SUM('A4-FinPerf RE'!E16:E18)+'A4-FinPerf RE'!E20))) -> 0.5028645524 | F18: =IF(ISERROR(('A7-CFlow'!F6)/(SUM('A4-FinPerf RE'!F5:F12)+'A4-FinPerf RE'!F14+SUM('A4-FinPerf RE'!F16:F18)+'A4-FinPerf RE'!F20)),0,(('A7-CFlow'!F6)/(SUM('A4-FinPerf RE'!F5:F12)+'A4-FinPerf RE'!F14+SUM('A4-FinPerf RE'!F16:F18)+'A4-FinPerf RE'!F20))) -> 0.9763684991 | G18: =IF(ISERROR(('A7-CFlow'!G6)/(SUM('A4-FinPerf RE'!G5:G12)+'A4-FinPerf RE'!G14+SUM('A4-FinPerf RE'!G16:G18)+'A4-FinPerf RE'!G20)),0,(('A7-CFlow'!G6)/(SUM('A4-FinPerf RE'!G5:G12)+'A4-FinPerf RE'!G14+SUM('A4-FinPerf RE'!G16:G18)+'A4-FinPerf RE'!G20))) -> 1 | H18: =IF(ISERROR(('A7-CFlow'!H6)/(SUM('A4-FinPerf RE'!H5:H12)+'A4-FinPerf RE'!H14+SUM('A4-FinPerf RE'!H16:H18)+'A4-FinPerf RE'!H20)),0,(('A7-CFlow'!H6)/(SUM('A4-FinPerf RE'!H5:H12)+'A4-FinPerf RE'!H14+SUM('A4-FinPerf RE'!H16:H18)+'A4-FinPerf RE'!H20))) -> 1 | I18: =IF(ISERROR(('A7-CFlow'!I6)/(SUM('A4-FinPerf RE'!I5:I12)+'A4-FinPerf RE'!I14+SUM('A4-FinPerf RE'!I16:I18)+'A4-FinPerf RE'!I20)),0,(('A7-CFlow'!I6)/(SUM('A4-FinPerf RE'!I5:I12)+'A4-FinPerf RE'!I14+SUM('A4-FinPerf RE'!I16:I18)+'A4-FinPerf RE'!I20))) -> 0.9758505377 | J18: =IF(ISERROR(('A7-CFlow'!J6)/(SUM('A4-FinPerf RE'!J5:J12)+'A4-FinPerf RE'!J14+SUM('A4-FinPerf RE'!J16:J18)+'A4-FinPerf RE'!J20)),0,(('A7-CFlow'!J6)/(SUM('A4-FinPerf RE'!J5:J12)+'A4-FinPerf RE'!J14+SUM('A4-FinPerf RE'!J16:J18)+'A4-FinPerf RE'!J20))) -> 0.5385543422 | K18: =IF(ISERROR(('A7-CFlow'!K6)/(SUM('A4-FinPerf RE'!K5:K12)+'A4-FinPerf RE'!K14+SUM('A4-FinPerf RE'!K16:K18)+'A4-FinPerf RE'!K20)),0,(('A7-CFlow'!K6)/(SUM('A4-FinPerf RE'!K5:K12)+'A4-FinPerf RE'!K14+SUM('A4-FinPerf RE'!K16:K18)+'A4-FinPerf RE'!K20))) -> 1.107480899 | L18: =IF(ISERROR(('A7-CFlow'!L6)/(SUM('A4-FinPerf RE'!L5:L12)+'A4-FinPerf RE'!L14+SUM('A4-FinPerf RE'!L16:L18)+'A4-FinPerf RE'!L20)),0,(('A7-CFlow'!L6)/(SUM('A4-FinPerf RE'!L5:L12)+'A4-FinPerf RE'!L14+SUM('A4-FinPerf RE'!L16:L18)+'A4-FinPerf RE'!L20))) -> 1.107480899
A19: Outstanding Debtors to Revenue | B19: Total Outstanding Debtors to Annual Revenue | C19: =IF(ISERROR(('A6-FinPos'!C8+'A6-FinPos'!C9+'A6-FinPos'!C10+'A6-FinPos'!C15)/'A4-FinPerf RE'!C22),0,(('A6-FinPos'!C8+'A6-FinPos'!C9+'A6-FinPos'!C10+'A6-FinPos'!C15)/'A4-FinPerf RE'!C22)) -> 0.2267529074 | D19: =IF(ISERROR(('A6-FinPos'!D8+'A6-FinPos'!D9+'A6-FinPos'!D10+'A6-FinPos'!D15)/'A4-FinPerf RE'!D22),0,(('A6-FinPos'!D8+'A6-FinPos'!D9+'A6-FinPos'!D10+'A6-FinPos'!D15)/'A4-FinPerf RE'!D22)) -> 0.2185090751 | E19: =IF(ISERROR(('A6-FinPos'!E8+'A6-FinPos'!E9+'A6-FinPos'!E10+'A6-FinPos'!E15)/'A4-FinPerf RE'!E22),0,(('A6-FinPos'!E8+'A6-FinPos'!E9+'A6-FinPos'!E10+'A6-FinPos'!E15)/'A4-FinPerf RE'!E22)) -> 0.04199697155 | F19: =IF(ISERROR(('A6-FinPos'!F8+'A6-FinPos'!F9+'A6-FinPos'!F10+'A6-FinPos'!F15)/'A4-FinPerf RE'!F22),0,(('A6-FinPos'!F8+'A6-FinPos'!F9+'A6-FinPos'!F10+'A6-FinPos'!F15)/'A4-FinPerf RE'!F22)) -> 0.3009903549 | G19: =IF(ISERROR(('A6-FinPos'!G8+'A6-FinPos'!G9+'A6-FinPos'!G10+'A6-FinPos'!G15)/'A4-FinPerf RE'!G22),0,(('A6-FinPos'!G8+'A6-FinPos'!G9+'A6-FinPos'!G10+'A6-FinPos'!G15)/'A4-FinPerf RE'!G22)) -> 0.3042143877 | H19: =IF(ISERROR(('A6-FinPos'!H8+'A6-FinPos'!H9+'A6-FinPos'!H10+'A6-FinPos'!H15)/'A4-FinPerf RE'!H22),0,(('A6-FinPos'!H8+'A6-FinPos'!H9+'A6-FinPos'!H10+'A6-FinPos'!H15)/'A4-FinPerf RE'!H22)) -> 0.3042143877 | I19: =IF(ISERROR(('A6-FinPos'!I8+'A6-FinPos'!I9+'A6-FinPos'!I10+'A6-FinPos'!I15)/'A4-FinPerf RE'!I22),0,(('A6-FinPos'!I8+'A6-FinPos'!I9+'A6-FinPos'!I10+'A6-FinPos'!I15)/'A4-FinPerf RE'!I22)) -> 0.02875024822 | J19: =IF(ISERROR(('A6-FinPos'!J8+'A6-FinPos'!J9+'A6-FinPos'!J10+'A6-FinPos'!J15)/'A4-FinPerf RE'!J22),0,(('A6-FinPos'!J8+'A6-FinPos'!J9+'A6-FinPos'!J10+'A6-FinPos'!J15)/'A4-FinPerf RE'!J22)) -> 0.001744402363 | K19: =IF(ISERROR(('A6-FinPos'!K8+'A6-FinPos'!K9+'A6-FinPos'!K10+'A6-FinPos'!K15)/'A4-FinPerf RE'!K22),0,(('A6-FinPos'!K8+'A6-FinPos'!K9+'A6-FinPos'!K10+'A6-FinPos'!K15)/'A4-FinPerf RE'!K22)) -> 0.0008285843601 | L19: =IF(ISERROR(('A6-FinPos'!L8+'A6-FinPos'!L9+'A6-FinPos'!L10+'A6-FinPos'!L15)/'A4-FinPerf RE'!L22),0,(('A6-FinPos'!L8+'A6-FinPos'!L9+'A6-FinPos'!L10+'A6-FinPos'!L15)/'A4-FinPerf RE'!L22)) -> 0
A20: Longstanding Debtors Recovered | B20: Debtors > 12 Mths Recovered/Total Debtors > 12 Months Old
A21: Creditors Management
A22: Creditors System Efficiency | B22: % of Creditors Paid Within Terms (within`MFMA' s 65(e))
A23: Creditors to Cash and Investments | C23: =IF(ISERROR('SA3'!C35/'A7-CFlow'!C38), 0, ('SA3'!C35/'A7-CFlow'!C38)) -> 0.5247996901 | D23: =IF(ISERROR('SA3'!D35/'A7-CFlow'!D38), 0, ('SA3'!D35/'A7-CFlow'!D38)) -> 0.2582416006 | E23: =IF(ISERROR('SA3'!E35/'A7-CFlow'!E38), 0, ('SA3'!E35/'A7-CFlow'!E38)) -> 1.049139484 | F23: =IF(ISERROR('SA3'!F35/'A7-CFlow'!F38), 0, ('SA3'!F35/'A7-CFlow'!F38)) -> -9.72892218 | G23: =IF(ISERROR('SA3'!G35/'A7-CFlow'!G38), 0, ('SA3'!G35/'A7-CFlow'!G38)) -> 10.63522946 | H23: =IF(ISERROR('SA3'!H35/'A7-CFlow'!H38), 0, ('SA3'!H35/'A7-CFlow'!H38)) -> 10.63522946 | I23: =IF(ISERROR('SA3'!I35/'A7-CFlow'!I38), 0, ('SA3'!I35/'A7-CFlow'!I38)) -> 3.55749022 | J23: =IF(ISERROR('SA3'!J35/'A7-CFlow'!J38), 0, ('SA3'!J35/'A7-CFlow'!J38)) -> -1.565379115 | K23: =IF(ISERROR('SA3'!K35/'A7-CFlow'!K38), 0, ('SA3'!K35/'A7-CFlow'!K38)) -> -0.6801776249 | L23: =IF(ISERROR('SA3'!L35/'A7-CFlow'!L38), 0, ('SA3'!L35/'A7-CFlow'!L38)) -> -0.3902739201
A25: Other Indicators
A26: Electricity Distribution Losses (2) | B26: Total Volume Losses (kW)
B27: Total Cost of Losses (Rand '000)
B28: % Volume (units purchased and generated less units sold)/units purchased and generated
A29: Water Distribution Losses (2) | B29: Total Volume Losses (kℓ)
B30: Total Cost of Losses (Rand '000)
B31: % Volume (units purchased and generated less units sold)/units purchased and generated
A32: Employee costs | B32: Employee costs/(Total Revenue - capital revenue) | C32: =IF(ISERROR('A4-FinPerf RE'!C25/'A4-FinPerf RE'!C22),0,('A4-FinPerf RE'!C25/'A4-FinPerf RE'!C22)) -> 0.4388572308 | D32: =IF(ISERROR('A4-FinPerf RE'!D25/'A4-FinPerf RE'!D22),0,('A4-FinPerf RE'!D25/'A4-FinPerf RE'!D22)) -> 0.2705308389 | E32: =IF(ISERROR('A4-FinPerf RE'!E25/'A4-FinPerf RE'!E22),0,('A4-FinPerf RE'!E25/'A4-FinPerf RE'!E22)) -> 0.7657465355 | F32: =IF(ISERROR('A4-FinPerf RE'!F25/'A4-FinPerf RE'!F22),0,('A4-FinPerf RE'!F25/'A4-FinPerf RE'!F22)) -> 0.5682579732 | G32: =IF(ISERROR('A4-FinPerf RE'!G25/'A4-FinPerf RE'!G22),0,('A4-FinPerf RE'!G25/'A4-FinPerf RE'!G22)) -> 0.5357648442 | H32: =IF(ISERROR('A4-FinPerf RE'!H25/'A4-FinPerf RE'!H22),0,('A4-FinPerf RE'!H25/'A4-FinPerf RE'!H22)) -> 0.5357648442 | I32: =IF(ISERROR('A4-FinPerf RE'!I25/'A4-FinPerf RE'!I22),0,('A4-FinPerf RE'!I25/'A4-FinPerf RE'!I22)) -> 0.5782087369 | J32: =IF(ISERROR('A4-FinPerf RE'!J25/'A4-FinPerf RE'!J22),0,('A4-FinPerf RE'!J25/'A4-FinPerf RE'!J22)) -> 0.6099926791 | K32: =IF(ISERROR('A4-FinPerf RE'!K25/'A4-FinPerf RE'!K22),0,('A4-FinPerf RE'!K25/'A4-FinPerf RE'!K22)) -> 0.606036712 | L32: =IF(ISERROR('A4-FinPerf RE'!L25/'A4-FinPerf RE'!L22),0,('A4-FinPerf RE'!L25/'A4-FinPerf RE'!L22)) -> 0.5968309554
A33: Remuneration | B33: Total remuneration/(Total Revenue - capital revenue) | C33: =IF(ISERROR('SA22'!C102/'A4-FinPerf RE'!C22),0,('SA22'!C102/'A4-FinPerf RE'!C22)) -> 0.1125796417 | D33: =IF(ISERROR('SA22'!D102/'A4-FinPerf RE'!D22),0,('SA22'!D102/'A4-FinPerf RE'!D22)) -> 0.3312794071 | E33: =IF(ISERROR('SA22'!E102/'A4-FinPerf RE'!E22),0,('SA22'!E102/'A4-FinPerf RE'!E22)) -> 0.1033648302 | F33: =IF(ISERROR('SA22'!F102/'A4-FinPerf RE'!F22),0,('SA22'!F102/'A4-FinPerf RE'!F22)) -> 0.6217553133 | G33: =IF(ISERROR('SA22'!G102/'A4-FinPerf RE'!G22),0,('SA22'!G102/'A4-FinPerf RE'!G22)) -> 0.5898351998 | H33: =IF(ISERROR('SA22'!H102/'A4-FinPerf RE'!H22),0,('SA22'!H102/'A4-FinPerf RE'!H22)) -> 0.5898351998 | J33: =IF(ISERROR('SA22'!I102/'A4-FinPerf RE'!J22),0,('SA22'!I102/'A4-FinPerf RE'!J22)) -> 0.6823672085 | K33: =IF(ISERROR('SA22'!J102/'A4-FinPerf RE'!K22),0,('SA22'!J102/'A4-FinPerf RE'!K22)) -> 0.6698441734 | L33: =IF(ISERROR('SA22'!K102/'A4-FinPerf RE'!L22),0,('SA22'!K102/'A4-FinPerf RE'!L22)) -> 0.6517133492
A34: Repairs & Maintenance | B34: R&M/(Total Revenue excluding capital revenue) | C34: =IF(ISERROR('A9-Asset'!C69/'A4-FinPerf RE'!C22),0,('A9-Asset'!C69/'A4-FinPerf RE'!C22)) -> 0.1070304593 | D34: =IF(ISERROR('A9-Asset'!D69/'A4-FinPerf RE'!D22),0,('A9-Asset'!D69/'A4-FinPerf RE'!D22)) -> 0.08365044839 | E34: =IF(ISERROR('A9-Asset'!E69/'A4-FinPerf RE'!E22),0,('A9-Asset'!E69/'A4-FinPerf RE'!E22)) -> 0.03227900251 | F34: =IF(ISERROR('A9-Asset'!F69/'A4-FinPerf RE'!F22),0,('A9-Asset'!F69/'A4-FinPerf RE'!F22)) -> 0.01900743378 | G34: =IF(ISERROR('A9-Asset'!G69/'A4-FinPerf RE'!G22),0,('A9-Asset'!G69/'A4-FinPerf RE'!G22)) -> 0.02412586612 | H34: =IF(ISERROR('A9-Asset'!H69/'A4-FinPerf RE'!H22),0,('A9-Asset'!H69/'A4-FinPerf RE'!H22)) -> 0.02412586612 | J34: =IF(ISERROR('A9-Asset'!I69/'A4-FinPerf RE'!J22),0,('A9-Asset'!I69/'A4-FinPerf RE'!J22)) -> 0.008223611141 | K34: =IF(ISERROR('A9-Asset'!J69/'A4-FinPerf RE'!K22),0,('A9-Asset'!J69/'A4-FinPerf RE'!K22)) -> 0.008297272351 | L34: =IF(ISERROR('A9-Asset'!K69/'A4-FinPerf RE'!L22),0,('A9-Asset'!K69/'A4-FinPerf RE'!L22)) -> 0.008297272351
A35: Finance charges & Depreciation | B35: FC&D/(Total Revenue - capital revenue) | C35: =IF(ISERROR(('A4-FinPerf RE'!C29+'A4-FinPerf RE'!C28)/'A4-FinPerf RE'!C22),0,(('A4-FinPerf RE'!C29+'A4-FinPerf RE'!C28)/'A4-FinPerf RE'!C22)) -> 0.01090717031 | D35: =IF(ISERROR(('A4-FinPerf RE'!D29+'A4-FinPerf RE'!D28)/'A4-FinPerf RE'!D22),0,(('A4-FinPerf RE'!D29+'A4-FinPerf RE'!D28)/'A4-FinPerf RE'!D22)) -> 0.02877574403 | E35: =IF(ISERROR(('A4-FinPerf RE'!E29+'A4-FinPerf RE'!E28)/'A4-FinPerf RE'!E22),0,(('A4-FinPerf RE'!E29+'A4-FinPerf RE'!E28)/'A4-FinPerf RE'!E22)) -> 0.09990743202 | F35: =IF(ISERROR(('A4-FinPerf RE'!F29+'A4-FinPerf RE'!F28)/'A4-FinPerf RE'!F22),0,(('A4-FinPerf RE'!F29+'A4-FinPerf RE'!F28)/'A4-FinPerf RE'!F22)) -> 0.06385674937 | G35: =IF(ISERROR(('A4-FinPerf RE'!G29+'A4-FinPerf RE'!G28)/'A4-FinPerf RE'!G22),0,(('A4-FinPerf RE'!G29+'A4-FinPerf RE'!G28)/'A4-FinPerf RE'!G22)) -> 0.05619538052 | H35: =IF(ISERROR(('A4-FinPerf RE'!H29+'A4-FinPerf RE'!H28)/'A4-FinPerf RE'!H22),0,(('A4-FinPerf RE'!H29+'A4-FinPerf RE'!H28)/'A4-FinPerf RE'!H22)) -> 0.05619538052 | I35: =IF(ISERROR(('A4-FinPerf RE'!I29+'A4-FinPerf RE'!I28)/'A4-FinPerf RE'!I22),0,(('A4-FinPerf RE'!I29+'A4-FinPerf RE'!I28)/'A4-FinPerf RE'!I22)) -> 0.06064724169 | J35: =IF(ISERROR(('A4-FinPerf RE'!J29+'A4-FinPerf RE'!J28)/'A4-FinPerf RE'!J22),0,(('A4-FinPerf RE'!J29+'A4-FinPerf RE'!J28)/'A4-FinPerf RE'!J22)) -> 0.05451257385 | K35: =IF(ISERROR(('A4-FinPerf RE'!K29+'A4-FinPerf RE'!K28)/'A4-FinPerf RE'!K22),0,(('A4-FinPerf RE'!K29+'A4-FinPerf RE'!K28)/'A4-FinPerf RE'!K22)) -> 0.05500085838 | L35: =IF(ISERROR(('A4-FinPerf RE'!L29+'A4-FinPerf RE'!L28)/'A4-FinPerf RE'!L22),0,(('A4-FinPerf RE'!L29+'A4-FinPerf RE'!L28)/'A4-FinPerf RE'!L22)) -> 0.05500085838
A36: IDP regulation financial viability indicators
